{"text_format":"1","workbook":"xlsx","n_sheets":10,"sheets":["Standard Report","TRx Tracker vs AOP","TRx Tracker vs LBE","Fentora Tracker","Data Inputs","IMS Data","Split Month Calcs","Fentora 2017","Zecuity Weekly Forecast","NUVIGIL Goals"],"not_rendered":{"charts":8,"images":9,"macros":1,"external_links":0,"defined_names":2,"comments":0,"pivot_tables":0},"unopened":[],"bounds":{"document_bytes":16777216,"sheet_cells":100000,"rows_first":2000,"rows_last":500,"rows_between":2000,"halvings":0,"cell_chars":16384,"cell_head_chars":4096},"cells_cut":0,"cells_raw":0,"read":"whole","date_system":"1900"}

{"sheet":"Standard Report","index":0,"n_rows":81,"n_cols":19,"rows_kept":81,"cut":false,"hidden":true,"merged":[]}
[]
[]
[]
[]
[]
[]
[]
[]
[]
[]
[]
[]
[]
[]
[]
[]
[]
[]
[]
[]
[]
["Title0","Nuvigil","Nuvigil","Amrix","Amrix","Fentora","Fentora","Actiq","Actiq","Gabitril","Gabitril","Provigil","Provigil","Copaxone 20","Copaxone 20","Copaxone 40","Copaxone 40","Azilect","Azilect"]
["Type","Actual","Forecast (Double Exponential Smoothing-Holt)","Actual","Forecast (Holt-Winters)","Actual","Forecast (Box Jenkins)","Actual","Forecast (Box Jenkins)","Actual","Forecast (Holt-Winters)","Actual","Forecast (Holt-Winters)","Actual","Forecast (Holt-Winters)","Actual","Forecast (Double Exponential Smoothing-Holt)","Actual","Forecast (Box Jenkins)"]
["2015-01-02",16068,15427.648946929425,2965,2905.0259919586856,380.00000000000006,375.9590316949413,34.999999999999993,30.902970199507589,448,440.49388091874499,671,686.11394390942121,4474,4471.1096203945972,7349,7559.5573185632311,9629.0000000000018,9224.5942220232137]
["2015-01-09",15426,15489.463584097944,3058,2885.0069626899362,341.99999999999989,359.85259421343403,41.000000000000007,31.133591522005066,469,472.06223883238721,650,680.07989465495973,4406,4439.4179896816795,7541,7730.2163427799687,9741.9999999999964,9292.4067636068958]
["2015-01-16",15761,15535.708247580062,3138,3046.6548626884037,416,395.8001266577707,24.999999999999996,23.539715561586796,454,451.13960756718097,705,680.68597479994628,4579,4406.4693378696547,7414,7892.3832200086226,9235,9116.1996759157173]
["2015-01-23",15460,15591.332010365271,2981,3047.5860310375783,353.99999999999994,354.50340805280575,24.000000000000004,23.990429351994923,423,421.62089306747077,719,694.92012391139758,4596,4505.5898496140971,7720,8002.1406821982719,8809.0000000000055,8941.6091887409111]
["2015-01-30",15099,15637.577648817754,2948,2971.6955481110485,328.00000000000011,377.67519204064286,43,32.086699181635097,423,440.56333567541867,685,690.68368840630831,4539,4550.0953954487759,8252,8114.0613265208322,8837.9999999999964,9364.113122333094]
["2015-02-06",15700,15667.280305937949,2924,2957.4939215804839,377.00000000000006,370.61449806521978,37,31.547466776394248,475,465.11505246666536,781,704.91717472325774,4401,4511.6846661053687,8171,8271.4541010879548,9363.0000000000055,9429.8070739165887]
["2015-02-13",15873,15709.339211058787,3131,3109.2527780172759,399.99999999999989,396.96402367086932,18.999999999999996,23.451699705208934,452,448.06148761953034,712,702.62738097671956,4626,4436.2112293821428,8562,8401.8209601538802,9182.0000000000055,9152.8895859101031]
["2015-02-20",15196,15756.574434710821,3030,3100.1772859265302,329.99999999999994,360.40817155415584,31,27.354994515133843,421,417.93368814340619,660,699.06739329874188,4474,4546.6725262160098,8078,8564.507037356565,8534.0000000000055,8911.6473310681995]
["2015-02-27",15473,15780.353024218779,2985,3022.6313859209063,305.00000000000006,354.89231277974983,34.999999999999993,36.112191758226921,428,425.10883432713342,669,705.72781121644755,4812,4489.1693973678312,9051,8642.0989927587325,8845.0000000000073,8990.0828650814383]
["2015-03-06",16018,15804.776739253199,3035,3004.388720935488,397.00000000000011,394.9868326140874,43,33.305148443051763,474,466.35033060349048,765,718.7826099737058,4361,4658.0779460172262,7933,8822.9400620779834,9464.9999999999927,9264.5606497843746]
["2015-03-13",16199,15843.212987446766,3041,3158.3646146661149,407.99999999999989,389.00053297633622,26.000000000000004,20.028681690143692,421,445.91466990338625,677,714.42986081973902,4561,4474.4930627218801,8890,8837.6730251827703,8861,9132.1034816083484]
["2015-03-20",15901,15889.951110635388,3023,3136.6856394683205,390.00000000000006,340.55467348861583,32,25.809431803938637,399,415.34998484126561,716,734.08588243805036,4671,4517.7171961088943,8970,8940.250782385172,8870.9999999999982,8766.2100383782745]
["2015-03-27",15954,15929.695358478803,3112,3052.2662640059439,310.99999999999994,315.06328155002001,21,28.343997214985578,429,422.06224803265599,670,721.05575700193049,4742,4608.7570661721793,9197,9042.4304149371783,9100.9999999999945,8937.3695559053958]
["2015-04-03",15917,15970.079767772273,3109,3035.3334546189121,368.00000000000011,389.51877705247193,37.999999999999993,40.37923079105839,495,465.591532886057,744,707.69603870834112,4462,4651.9814129716888,8954,9164.3742319390112,9205.0000000000036,9289.809756510429]
["2015-04-10",15466,16008.060183227382,3008,3183.2269797082458,395.00000000000006,401.95047592208954,36,29.059599708625488,426,425.60275183778867,697,715.66340376465291,4582,4542.8867151607128,9391,9241.8298706251298,9122.9999999999982,8967.1127570568697]
["2015-04-17",16076,16027.747818475465,3218,3155.5861143159295,386.00000000000006,385.82959137123242,24.999999999999996,28.267891240169533,422,400.80736555128402,713,734.09328033346105,4666,4559.6812992332625,8993,9359.9175002000848,8840,8915.8631834875614]
["2015-04-24",16424,16060.419789085976,3181,3082.7171063190208,358,333.4780029141059,27.999999999999996,24.050295445037381,428,422.14121322766903,717,718.12437612807753,4639,4622.591955604561,9506,9411.2705311135724,9120.0000000000055,9058.2249557729738]
["2015-05-01",16113,16105.098702900073,3080,3069.0526094982934,370.99999999999994,361.4873392565151,29.000000000000004,32.605722615445075,408,479.26845162698208,739,738.4885907471263,4685,4588.8335345869409,9750,9509.4651516602735,9125.9999999999927,9164.5274177255487]
["2015-05-08",16385,16142.509264924265,3192,3206.9648938860691,429.99999999999989,383.32612234633649,32,33.817006479882799,448,421.26327321326175,746,722.16130458085615,4489,4663.2138158116422,9167,9634.0486080573155,9355.0000000000055,9073.864024240982]
["2015-05-15",16279,16188.432163100182,3300,3196.1867310217085,350.99999999999989,366.93480579909271,17.999999999999996,27.468407914168434,419,409.49804950756317,705,718.08416180759855,4406,4550.3689589607202,9144,9669.1180263950155,9024.0000000000055,8923.4288214699282]
["2015-05-22",16648,16232.559420991947,3134,3131.2060029032491,369.99999999999989,369.22740604444408,34.999999999999993,34.104245057466535,402,421.06936831491981,737,719.60388171640295,4669,4454.8510290969371,10030,9670.043298358496,9186.0000000000055,9086.5024513595454]
["2015-05-29",15263,16289.670372714112,2737,3114.6293237513246,310.00000000000006,371.68904388609957,27.999999999999996,30.567109084030559,385,430.11198728980929,664,739.58337146158271,4116,4544.2070829410322,8499,9770.5915192793709,8760.0000000000055,9105.8551547730785]
["2015-06-05",16849,16301.418431059987,3247,3231.8037327684333,419.99999999999994,432.71563651396002,27.999999999999996,31.694651171221754,483,432.46756852191845,780,721.46378003513246,4499,4283.4408125297068,9272,9654.0213304857116,9541.9999999999909,9205.8602590300525]
["2015-06-12",15963,16354.081761968611,3283,3218.6935158916167,386.00000000000006,362.99223085941202,23,22.976408546144569,397,410.43115906034768,694,744.72384640906637,4639,4408.8161581005497,9498,9596.6331558062502,9091.0000000000018,9017.4634934661572]
["2015-06-19",16062,16381.379478374763,3231,3141.1221362117249,360.00000000000006,363.84350699719403,24.000000000000004,33.053834357164625,380,404.17969075109244,745,726.88371836991473,4375,4552.3949271210922,9676,9559.3682686187149,8826.9999999999982,9123.8664124781244]
["2015-06-26",16243,16405.371876850742,3050,3109.3584179173213,326,334.03663861231314,43,32.349426386844108,410,397.02481071925087,655,718.79743377732359,4308,4389.6809436997837,9523,9547.9344438831868,8898.9999999999982,8911.6527952859324]
["2015-07-03",16435,16430.187606577998,3088,3251.9497741951473,410.99999999999983,404.83765339023444,26.000000000000004,26.348681591128038,448,457.99661906234445,722,717.74347245902129,3377,4354.9341562518084,8633,9522.3629504864257,9172.0000000000073,9318.582827214821]
["2015-07-10",16276,16458.547767997003,3046,3232.9568059479375,406.99999999999983,379.26743212862846,32,24.005428426362059,429,396.80479629563962,755,727.63939985786317,3414,3732.8034630478196,9332,9369.8860776328056,9118.0000000000073,9065.6716491798288]
["2015-07-17",16307,16480.276335522904,3237,3139.5905478088384,374.99999999999994,356.65562133637388,23,22.76023647868745,397,384.37736172536154,663,722.35129608869272,3480,3511.4972739461896,9683,9292.1011777443782,8929.9999999999982,8948.5623033998072]
["2015-07-24",16837,16499.596259926533,3161,3094.6699496728888,363.99999999999994,337.72121053931187,24.000000000000004,34.966508626698783,374,400.38244405077268,719,729.90654710005015,3497,3431.1236348164266,9824,9274.4989789655756,8857,8952.6559737723128]
["2015-07-31",16408,16534.587365293086,3269,3232.6514595918306,331.99999999999989,386.52968712037904,30.000000000000004,31.601520357515966,394,446.46799248694765,703,715.88454580973803,3316,3452.439956750412,9647,9301.4482587309321,8997.0000000000018,9152.3611867202399]
["2015-08-07",16566,16558.041699274228,3076,3219.4844713484381,464,414.20591659747623,36,33.328191576138792,416,411.3197122953386,730,697.96010044046216,3309,3351.4029329690616,9618,9329.0302528270477,8966,9086.6511213147896]
["2015-08-14",16428,16584.409831634133,3243,3138.097987558554,365,360.60111472550517,21,24.399303583675042,394,386.69820588105267,668,704.44341187555369,3111,3302.3636697204488,9627,9367.4181919010825,8912.0000000000055,8974.0255019592769]
["2015-08-21",16513,16605.016261858284,3171,3094.1852372966,365,366.11996502577409,37,27.019225360142489,388,378.40823457318214,700,712.33574568596339,3207,3124.0491307063248,9610,9417.4463404975868,8709.0000000000055,8937.7155824338643]
["2015-08-28",16921,16625.578724322815,3262,3233.5913679650621,345.00000000000017,347.6240858430138,27,26.40924531873867,393,407.99412112713975,682,697.03405753548623,3313,3148.5237005831327,10085,9472.0307473510184,8924.0000000000018,9039.0953746094037]
["2015-09-04",17301,16658.622554297839,3181,3216.2784542600161,429.99999999999989,428.16279275276952,40,31.038898548810216,425,408.29196686157081,768,707.47811274198955,3211,3233.7654671409987,9765,9598.2682921911128,9370.9999999999927,9013.4220715119391]
["2015-09-11",15423,16708.5154625828,2829,3150.9877814215679,341.99999999999989,367.69536744560742,17,21.138950862979542,402,385.75514810353314,674,696.73263873814949,2790,3194.603564422297,8432,9693.4472929159165,8488,8968.8556366983066]
["2015-09-18",16850,16699.07070698497,3141,3086.0183440671749,363.99999999999994,377.16063931505931,24.000000000000004,35.312713690687914,371,379.14527795135473,692,681.9458566910597,3053,2888.9365121373194,9784,9590.4041202477511,9083.9999999999945,8860.0717488521514]
["2015-09-25",16640,16721.724673180113,3230,3215.6512297804156,353.99999999999994,359.82244843862657,24.000000000000004,33.713175123351647,400,393.31343586370735,625,682.36607501048013,3083,2962.9179652833027,9772,9629.2196664273615,8877.0000000000036,8984.9152457787695]
["2015-10-02",16960,16738.319896095851,3258,3187.9302683517326,447.00000000000017,409.67558421039973,48.999999999999993,43.312998231772404,416,413.15713572655812,707,689.56601091772927,3121,3015.3743063383781,9820,9671.3133119162776,9215.0000000000073,9204.288837052869]
["2015-10-09",16306,16764.544249650589,3033,3111.7156356121118,391,343.62935373386904,22.000000000000004,20.798510334471931,432,390.63555399261622,687,675.2720246100381,3045,3048.5087000694739,9820,9722.1248153203578,8997.0000000000018,8751.0545882220576]
["2015-10-16",16612,16769.757676358073,3006,3067.9758154931069,371.99999999999989,352.19922657532902,26.000000000000004,24.562974814923496,386,369.59439138994901,659,691.81952788404897,2899,3002.8636447570102,9573,9773.7427299387236,9075,9037.6183554214931]
["2015-10-23",16721,16778.849794708942,3161,3191.1411794002415,370.99999999999994,354.83114042146872,19.999999999999996,24.825729321202772,345,393.1122992634053,702,670.27778976888635,3036,2912.6595920482469,9917,9787.3832885176525,9098.9999999999982,8952.8103654565948]
["2015-10-30",16752,16789.148430843008,3145,3161.0425822063721,380.00000000000006,411.23449993354632,37,43.342110902255946,393,410.15369507575656,648,659.4988319603633,2971,2968.2086457133005,10583,9837.9478092068057,9176.9999999999945,9156.4760611091933]
["2015-11-06",null,16799.319339391306,null,3072.2621396756017,null,394.40072185276028,null,26.949774710357019,null,411.20102740160451,null,653.39014670320103,null,2936.6985203177014,null,9985.0216369801601,null,8976.8838544569535]
["2015-11-13",null,16810.261770070309,null,3028.5093075625427,null,372.56579402423637,null,27.672483038789196,null,374.7499443377128,null,667.69935508981052,null,2892.3908901033774,null,10064.914150431476,null,9060.7656540159769]
["2015-11-20",null,16821.204200749307,null,3153.3345192432416,null,371.94650186339942,null,22.932242123429205,null,358.27332587047937,null,652.7494291139401,null,2871.0665467722283,null,10144.806663882793,null,9059.6330620214412]
["2015-11-27",null,16832.14663142831,null,3124.1760232006359,null,377.49744705768848,null,33.540360596337038,null,394.0555857158418,null,664.87299097968344,null,2848.5426036043714,null,10224.699177334109,null,9130.1551574705063]
["2015-12-04",null,16843.089062107309,null,3036.4038810878014,null,386.27607032212097,null,27.573853221358018,null,405.59128741310741,null,649.93381322726191,null,2815.3915619438885,null,10304.591690785424,null,9002.0509468298133]
["2015-12-11",null,16854.031492786311,null,2992.6510489747425,null,372.915904151169,null,28.028542738377382,null,369.61998589616854,null,635.08472640590151,null,2771.6674700531275,null,10384.48420423674,null,9057.1889451773804]
["2015-12-18",null,16864.97392346531,null,3117.4762606554414,null,372.53267915969326,null,24.955596159007676,null,353.35207436873526,null,630.22649701427156,null,2749.9695732906139,null,10464.376717688057,null,9056.4456294994616]
["2015-12-25",null,16875.916354144312,null,3088.3177646128361,null,375.9590316949413,null,31.565921231883298,null,388.62417669117713,null,643.8877298380844,null,2727.1152512010103,null,10544.269231139373,null,9102.6683401651717]
["2016-01-01",null,16886.858784823311,null,3000.5456225000012,null,381.33866447338102,null,27.966759739228422,null,399.98154742461031,null,629.3317634886788,null,2694.0846035700756,null,10624.161744590689,null,9018.6125348215191]
[]
["Mean Absolute Percentage Error (MAPE)",null,1.6958569527093584E-2,null,2.719191637216661E-2,null,5.4570235456038292E-2,null,0.17279660354970558,null,4.3230255616439901E-2,null,4.1561625271755137E-2,null,4.0932767917277874E-2,null,3.7016661930444221E-2,null,1.9042213846538741E-2]
["R-Square",null,0.46948324200872582,null,0.16845675280477937,null,0.44155543174108847,null,0.37010554291780584,null,0.42742697827794646,null,0.1104328672680869,null,0.89316788147318449,null,0.67333523788749405,null,0.28340945858551542]
["Mean",null,16183.454545454546,null,3106.318181818182,null,373.81818181818181,null,29.863636363636363,null,418.68181818181819,null,702.72727272727275,null,3977.5,null,9137.636363636364,null,9057.75]
["Standard Deviation",null,529.03705653589213,null,123.45788712873615,null,36.02536104576609,null,7.8015827526271089,null,31.876048256195272,null,37.697920266096986,null,693.19863591701426,null,782.28476023043868,null,261.61654213042118]

{"sheet":"TRx Tracker vs AOP","index":1,"n_rows":73,"n_cols":15,"rows_kept":73,"cut":false,"hidden":false,"merged":[]}
[]
[]
[]
[]
[null,null,"CNS TRx Tracker"]
[]
[null,null,null,"Select Product",null,"Amrix"]
[]
[null,null,null,1,2,3,4,5,6,7,8,9,10,11,12]
[null,null,null,"Jan","Feb","Mar","Apr","May","Jun","Jul","Aug","Sep","Oct","Nov","Dec"]
[null,null,"Unit Forecast",{"$f":"SUMIFS('Data Inputs'!D:D,'Data Inputs'!$C:$C,'TRx Tracker vs AOP'!$F$7,'Data Inputs'!$B:$B,'TRx Tracker vs AOP'!$C:$C,'Data Inputs'!$A:$A,\"AOP\")","v":5627.3606529400013},{"$f":"SUMIFS('Data Inputs'!E:E,'Data Inputs'!$C:$C,'TRx Tracker vs AOP'!$F$7,'Data Inputs'!$B:$B,'TRx Tracker vs AOP'!$C:$C,'Data Inputs'!$A:$A,\"AOP\")","v":5145.6196084000003},{"$f":"SUMIFS('Data Inputs'!F:F,'Data Inputs'!$C:$C,'TRx Tracker vs AOP'!$F$7,'Data Inputs'!$B:$B,'TRx Tracker vs AOP'!$C:$C,'Data Inputs'!$A:$A,\"AOP\")","v":5252.1188758299995},{"$f":"SUMIFS('Data Inputs'!G:G,'Data Inputs'!$C:$C,'TRx Tracker vs AOP'!$F$7,'Data Inputs'!$B:$B,'TRx Tracker vs AOP'!$C:$C,'Data Inputs'!$A:$A,\"AOP\")","v":6269.1345107700017},{"$f":"SUMIFS('Data Inputs'!H:H,'Data Inputs'!$C:$C,'TRx Tracker vs AOP'!$F$7,'Data Inputs'!$B:$B,'TRx Tracker vs AOP'!$C:$C,'Data Inputs'!$A:$A,\"AOP\")","v":5361.9955889799976},{"$f":"SUMIFS('Data Inputs'!I:I,'Data Inputs'!$C:$C,'TRx Tracker vs AOP'!$F$7,'Data Inputs'!$B:$B,'TRx Tracker vs AOP'!$C:$C,'Data Inputs'!$A:$A,\"AOP\")","v":5907.1087499800005},{"$f":"SUMIFS('Data Inputs'!J:J,'Data Inputs'!$C:$C,'TRx Tracker vs AOP'!$F$7,'Data Inputs'!$B:$B,'TRx Tracker vs AOP'!$C:$C,'Data Inputs'!$A:$A,\"AOP\")","v":6286.8785048400005},{"$f":"SUMIFS('Data Inputs'!K:K,'Data Inputs'!$C:$C,'TRx Tracker vs AOP'!$F$7,'Data Inputs'!$B:$B,'TRx Tracker vs AOP'!$C:$C,'Data Inputs'!$A:$A,\"AOP\")","v":5405.2377651675997},{"$f":"SUMIFS('Data Inputs'!L:L,'Data Inputs'!$C:$C,'TRx Tracker vs AOP'!$F$7,'Data Inputs'!$B:$B,'TRx Tracker vs AOP'!$C:$C,'Data Inputs'!$A:$A,\"AOP\")","v":5726.8716586187993},{"$f":"SUMIFS('Data Inputs'!M:M,'Data Inputs'!$C:$C,'TRx Tracker vs AOP'!$F$7,'Data Inputs'!$B:$B,'TRx Tracker vs AOP'!$C:$C,'Data Inputs'!$A:$A,\"AOP\")","v":5700.087559955602},{"$f":"SUMIFS('Data Inputs'!N:N,'Data Inputs'!$C:$C,'TRx Tracker vs AOP'!$F$7,'Data Inputs'!$B:$B,'TRx Tracker vs AOP'!$C:$C,'Data Inputs'!$A:$A,\"AOP\")","v":5384.0680283057982},{"$f":"SUMIFS('Data Inputs'!O:O,'Data Inputs'!$C:$C,'TRx Tracker vs AOP'!$F$7,'Data Inputs'!$B:$B,'TRx Tracker vs AOP'!$C:$C,'Data Inputs'!$A:$A,\"AOP\")","v":6277.3971491582006}]
[null,null,"Bottle Size",{"$f":"SUMIFS('Data Inputs'!D:D,'Data Inputs'!$C:$C,'TRx Tracker vs AOP'!$F$7,'Data Inputs'!$B:$B,'TRx Tracker vs AOP'!$C:$C,'Data Inputs'!$A:$A,\"AOP\")","v":60},{"$f":"SUMIFS('Data Inputs'!E:E,'Data Inputs'!$C:$C,'TRx Tracker vs AOP'!$F$7,'Data Inputs'!$B:$B,'TRx Tracker vs AOP'!$C:$C,'Data Inputs'!$A:$A,\"AOP\")","v":60},{"$f":"SUMIFS('Data Inputs'!F:F,'Data Inputs'!$C:$C,'TRx Tracker vs AOP'!$F$7,'Data Inputs'!$B:$B,'TRx Tracker vs AOP'!$C:$C,'Data Inputs'!$A:$A,\"AOP\")","v":60},{"$f":"SUMIFS('Data Inputs'!G:G,'Data Inputs'!$C:$C,'TRx Tracker vs AOP'!$F$7,'Data Inputs'!$B:$B,'TRx Tracker vs AOP'!$C:$C,'Data Inputs'!$A:$A,\"AOP\")","v":60},{"$f":"SUMIFS('Data Inputs'!H:H,'Data Inputs'!$C:$C,'TRx Tracker vs AOP'!$F$7,'Data Inputs'!$B:$B,'TRx Tracker vs AOP'!$C:$C,'Data Inputs'!$A:$A,\"AOP\")","v":60},{"$f":"SUMIFS('Data Inputs'!I:I,'Data Inputs'!$C:$C,'TRx Tracker vs AOP'!$F$7,'Data Inputs'!$B:$B,'TRx Tracker vs AOP'!$C:$C,'Data Inputs'!$A:$A,\"AOP\")","v":60},{"$f":"SUMIFS('Data Inputs'!J:J,'Data Inputs'!$C:$C,'TRx Tracker vs AOP'!$F$7,'Data Inputs'!$B:$B,'TRx Tracker vs AOP'!$C:$C,'Data Inputs'!$A:$A,\"AOP\")","v":60},{"$f":"SUMIFS('Data Inputs'!K:K,'Data Inputs'!$C:$C,'TRx Tracker vs AOP'!$F$7,'Data Inputs'!$B:$B,'TRx Tracker vs AOP'!$C:$C,'Data Inputs'!$A:$A,\"AOP\")","v":60},{"$f":"SUMIFS('Data Inputs'!L:L,'Data Inputs'!$C:$C,'TRx Tracker vs AOP'!$F$7,'Data Inputs'!$B:$B,'TRx Tracker vs AOP'!$C:$C,'Data Inputs'!$A:$A,\"AOP\")","v":60},{"$f":"SUMIFS('Data Inputs'!M:M,'Data Inputs'!$C:$C,'TRx Tracker vs AOP'!$F$7,'Data Inputs'!$B:$B,'TRx Tracker vs AOP'!$C:$C,'Data Inputs'!$A:$A,\"AOP\")","v":60},{"$f":"SUMIFS('Data Inputs'!N:N,'Data Inputs'!$C:$C,'TRx Tracker vs AOP'!$F$7,'Data Inputs'!$B:$B,'TRx Tracker vs AOP'!$C:$C,'Data Inputs'!$A:$A,\"AOP\")","v":60},{"$f":"SUMIFS('Data Inputs'!O:O,'Data Inputs'!$C:$C,'TRx Tracker vs AOP'!$F$7,'Data Inputs'!$B:$B,'TRx Tracker vs AOP'!$C:$C,'Data Inputs'!$A:$A,\"AOP\")","v":60}]
[null,null,"Avg Units per TRx",{"$f":"SUMIFS('Data Inputs'!D:D,'Data Inputs'!$C:$C,'TRx Tracker vs AOP'!$F$7,'Data Inputs'!$B:$B,'TRx Tracker vs AOP'!$C:$C,'Data Inputs'!$A:$A,\"AOP\")","v":34},{"$f":"SUMIFS('Data Inputs'!E:E,'Data Inputs'!$C:$C,'TRx Tracker vs AOP'!$F$7,'Data Inputs'!$B:$B,'TRx Tracker vs AOP'!$C:$C,'Data Inputs'!$A:$A,\"AOP\")","v":34},{"$f":"SUMIFS('Data Inputs'!F:F,'Data Inputs'!$C:$C,'TRx Tracker vs AOP'!$F$7,'Data Inputs'!$B:$B,'TRx Tracker vs AOP'!$C:$C,'Data Inputs'!$A:$A,\"AOP\")","v":34},{"$f":"SUMIFS('Data Inputs'!G:G,'Data Inputs'!$C:$C,'TRx Tracker vs AOP'!$F$7,'Data Inputs'!$B:$B,'TRx Tracker vs AOP'!$C:$C,'Data Inputs'!$A:$A,\"AOP\")","v":34},{"$f":"SUMIFS('Data Inputs'!H:H,'Data Inputs'!$C:$C,'TRx Tracker vs AOP'!$F$7,'Data Inputs'!$B:$B,'TRx Tracker vs AOP'!$C:$C,'Data Inputs'!$A:$A,\"AOP\")","v":34},{"$f":"SUMIFS('Data Inputs'!I:I,'Data Inputs'!$C:$C,'TRx Tracker vs AOP'!$F$7,'Data Inputs'!$B:$B,'TRx Tracker vs AOP'!$C:$C,'Data Inputs'!$A:$A,\"AOP\")","v":34},{"$f":"SUMIFS('Data Inputs'!J:J,'Data Inputs'!$C:$C,'TRx Tracker vs AOP'!$F$7,'Data Inputs'!$B:$B,'TRx Tracker vs AOP'!$C:$C,'Data Inputs'!$A:$A,\"AOP\")","v":34},{"$f":"SUMIFS('Data Inputs'!K:K,'Data Inputs'!$C:$C,'TRx Tracker vs AOP'!$F$7,'Data Inputs'!$B:$B,'TRx Tracker vs AOP'!$C:$C,'Data Inputs'!$A:$A,\"AOP\")","v":34},{"$f":"SUMIFS('Data Inputs'!L:L,'Data Inputs'!$C:$C,'TRx Tracker vs AOP'!$F$7,'Data Inputs'!$B:$B,'TRx Tracker vs AOP'!$C:$C,'Data Inputs'!$A:$A,\"AOP\")","v":34},{"$f":"SUMIFS('Data Inputs'!M:M,'Data Inputs'!$C:$C,'TRx Tracker vs AOP'!$F$7,'Data Inputs'!$B:$B,'TRx Tracker vs AOP'!$C:$C,'Data Inputs'!$A:$A,\"AOP\")","v":34},{"$f":"SUMIFS('Data Inputs'!N:N,'Data Inputs'!$C:$C,'TRx Tracker vs AOP'!$F$7,'Data Inputs'!$B:$B,'TRx Tracker vs AOP'!$C:$C,'Data Inputs'!$A:$A,\"AOP\")","v":34},{"$f":"SUMIFS('Data Inputs'!O:O,'Data Inputs'!$C:$C,'TRx Tracker vs AOP'!$F$7,'Data Inputs'!$B:$B,'TRx Tracker vs AOP'!$C:$C,'Data Inputs'!$A:$A,\"AOP\")","v":34}]
[null,null,"NPA Capture Rate",1,1,1,1,1,1,1,1,1,1,1,1]
[null,null,"TRx Forecast",{"$f":"SUMIFS('Data Inputs'!D:D,'Data Inputs'!$C:$C,'TRx Tracker vs AOP'!$F$7,'Data Inputs'!$B:$B,'TRx Tracker vs AOP'!$C:$C,'Data Inputs'!$A:$A,\"AOP\")","v":9131.7246719999985},{"$f":"SUMIFS('Data Inputs'!E:E,'Data Inputs'!$C:$C,'TRx Tracker vs AOP'!$F$7,'Data Inputs'!$B:$B,'TRx Tracker vs AOP'!$C:$C,'Data Inputs'!$A:$A,\"AOP\")","v":9240.7410479999999},{"$f":"SUMIFS('Data Inputs'!F:F,'Data Inputs'!$C:$C,'TRx Tracker vs AOP'!$F$7,'Data Inputs'!$B:$B,'TRx Tracker vs AOP'!$C:$C,'Data Inputs'!$A:$A,\"AOP\")","v":10408.391937999997},{"$f":"SUMIFS('Data Inputs'!G:G,'Data Inputs'!$C:$C,'TRx Tracker vs AOP'!$F$7,'Data Inputs'!$B:$B,'TRx Tracker vs AOP'!$C:$C,'Data Inputs'!$A:$A,\"AOP\")","v":9616.4200300000011},{"$f":"SUMIFS('Data Inputs'!H:H,'Data Inputs'!$C:$C,'TRx Tracker vs AOP'!$F$7,'Data Inputs'!$B:$B,'TRx Tracker vs AOP'!$C:$C,'Data Inputs'!$A:$A,\"AOP\")","v":9790.6324739999982},{"$f":"SUMIFS('Data Inputs'!I:I,'Data Inputs'!$C:$C,'TRx Tracker vs AOP'!$F$7,'Data Inputs'!$B:$B,'TRx Tracker vs AOP'!$C:$C,'Data Inputs'!$A:$A,\"AOP\")","v":10015.612347999999},{"$f":"SUMIFS('Data Inputs'!J:J,'Data Inputs'!$C:$C,'TRx Tracker vs AOP'!$F$7,'Data Inputs'!$B:$B,'TRx Tracker vs AOP'!$C:$C,'Data Inputs'!$A:$A,\"AOP\")","v":10090.427507999999},{"$f":"SUMIFS('Data Inputs'!K:K,'Data Inputs'!$C:$C,'TRx Tracker vs AOP'!$F$7,'Data Inputs'!$B:$B,'TRx Tracker vs AOP'!$C:$C,'Data Inputs'!$A:$A,\"AOP\")","v":10063.718495879999},{"$f":"SUMIFS('Data Inputs'!L:L,'Data Inputs'!$C:$C,'TRx Tracker vs AOP'!$F$7,'Data Inputs'!$B:$B,'TRx Tracker vs AOP'!$C:$C,'Data Inputs'!$A:$A,\"AOP\")","v":9969.8040943199976},{"$f":"SUMIFS('Data Inputs'!M:M,'Data Inputs'!$C:$C,'TRx Tracker vs AOP'!$F$7,'Data Inputs'!$B:$B,'TRx Tracker vs AOP'!$C:$C,'Data Inputs'!$A:$A,\"AOP\")","v":10179.484268100001},{"$f":"SUMIFS('Data Inputs'!N:N,'Data Inputs'!$C:$C,'TRx Tracker vs AOP'!$F$7,'Data Inputs'!$B:$B,'TRx Tracker vs AOP'!$C:$C,'Data Inputs'!$A:$A,\"AOP\")","v":9420.7302911399984},{"$f":"SUMIFS('Data Inputs'!O:O,'Data Inputs'!$C:$C,'TRx Tracker vs AOP'!$F$7,'Data Inputs'!$B:$B,'TRx Tracker vs AOP'!$C:$C,'Data Inputs'!$A:$A,\"AOP\")","v":10087.894480439998}]
[null,null,"Actual TRxs To Date",{"$f":"IF($F$7=\"Nuvigil\",SUMIFS('Split Month Calcs'!$D:$D,'Split Month Calcs'!$A:$A,'TRx Tracker vs AOP'!D9),IF('TRx Tracker vs AOP'!$F$7=\"amrix\",SUMIFS('Split Month Calcs'!$E:$E,'Split Month Calcs'!$A:$A,'TRx Tracker vs AOP'!D9),IF('TRx Tracker vs AOP'!$F$7=\"Fentora\",SUMIFS('Split Month Calcs'!$F:$F,'Split Month Calcs'!$A:$A,'TRx Tracker vs AOP'!D9),IF('TRx Tracker vs AOP'!$F$7=\"Provigil\",SUMIFS('Split Month Calcs'!$I:$I,'Split Month Calcs'!$A:$A,'TRx Tracker vs AOP'!D9),IF('TRx Tracker vs AOP'!$F$7=\"Gabitril\",SUMIFS('Split Month Calcs'!$H:$H,'Split Month Calcs'!$A:$A,'TRx Tracker vs AOP'!D9),IF('TRx Tracker vs AOP'!$F$7=\"Actiq\",SUMIFS('Split Month Calcs'!$G:$G,'Split Month Calcs'!$A:$A,'TRx Tracker vs AOP'!D9),IF('TRx Tracker vs AOP'!$F$7=\"Copaxone 40\",SUMIFS('Split Month Calcs'!$K:$K,'Split Month Calcs'!$A:$A,'TRx Tracker vs AOP'!D9),IF('TRx Tracker vs AOP'!$F$7=\"Copaxone 20\",SUMIFS('Split Month Calcs'!$J:$J,'Split Month Calcs'!$A:$A,'TRx Tracker vs AOP'!D9),IF('TRx Tracker vs AOP'!$F$7=\"Azilect\",SUMIFS('Split Month Calcs'!$L:$L,'Split Month Calcs'!$A:$A,'TRx Tracker vs AOP'!D9),IF($F$7=\"zecuity\",SUMIFS('Split Month Calcs'!$M:$M,'Split Month Calcs'!$A:$A,'TRx Tracker vs AOP'!D9)))))))))))","v":5515},{"$f":"IF($F$7=\"Nuvigil\",SUMIFS('Split Month Calcs'!$D:$D,'Split Month Calcs'!$A:$A,'TRx Tracker vs AOP'!E9),IF('TRx Tracker vs AOP'!$F$7=\"amrix\",SUMIFS('Split Month Calcs'!$E:$E,'Split Month Calcs'!$A:$A,'TRx Tracker vs AOP'!E9),IF('TRx Tracker vs AOP'!$F$7=\"Fentora\",SUMIFS('Split Month Calcs'!$F:$F,'Split Month Calcs'!$A:$A,'TRx Tracker vs AOP'!E9),IF('TRx Tracker vs AOP'!$F$7=\"Provigil\",SUMIFS('Split Month Calcs'!$I:$I,'Split Month Calcs'!$A:$A,'TRx Tracker vs AOP'!E9),IF('TRx Tracker vs AOP'!$F$7=\"Gabitril\",SUMIFS('Split Month Calcs'!$H:$H,'Split Month Calcs'!$A:$A,'TRx Tracker vs AOP'!E9),IF('TRx Tracker vs AOP'!$F$7=\"Actiq\",SUMIFS('Split Month Calcs'!$G:$G,'Split Month Calcs'!$A:$A,'TRx Tracker vs AOP'!E9),IF('TRx Tracker vs AOP'!$F$7=\"Copaxone 40\",SUMIFS('Split Month Calcs'!$K:$K,'Split Month Calcs'!$A:$A,'TRx Tracker vs AOP'!E9),IF('TRx Tracker vs AOP'!$F$7=\"Copaxone 20\",SUMIFS('Split Month Calcs'!$J:$J,'Split Month Calcs'!$A:$A,'TRx Tracker vs AOP'!E9),IF('TRx Tracker vs AOP'!$F$7=\"Azilect\",SUMIFS('Split Month Calcs'!$L:$L,'Split Month Calcs'!$A:$A,'TRx Tracker vs AOP'!E9),IF($F$7=\"zecuity\",SUMIFS('Split Month Calcs'!$M:$M,'Split Month Calcs'!$A:$A,'TRx Tracker vs AOP'!E9)))))))))))","v":0},{"$f":"IF($F$7=\"Nuvigil\",SUMIFS('Split Month Calcs'!$D:$D,'Split Month Calcs'!$A:$A,'TRx Tracker vs AOP'!F9),IF('TRx Tracker vs AOP'!$F$7=\"amrix\",SUMIFS('Split Month Calcs'!$E:$E,'Split Month Calcs'!$A:$A,'TRx Tracker vs AOP'!F9),IF('TRx Tracker vs AOP'!$F$7=\"Fentora\",SUMIFS('Split Month Calcs'!$F:$F,'Split Month Calcs'!$A:$A,'TRx Tracker vs AOP'!F9),IF('TRx Tracker vs AOP'!$F$7=\"Provigil\",SUMIFS('Split Month Calcs'!$I:$I,'Split Month Calcs'!$A:$A,'TRx Tracker vs AOP'!F9),IF('TRx Tracker vs AOP'!$F$7=\"Gabitril\",SUMIFS('Split Month Calcs'!$H:$H,'Split Month Calcs'!$A:$A,'TRx Tracker vs AOP'!F9),IF('TRx Tracker vs AOP'!$F$7=\"Actiq\",SUMIFS('Split Month Calcs'!$G:$G,'Split Month Calcs'!$A:$A,'TRx Tracker vs AOP'!F9),IF('TRx Tracker vs AOP'!$F$7=\"Copaxone 40\",SUMIFS('Split Month Calcs'!$K:$K,'Split Month Calcs'!$A:$A,'TRx Tracker vs AOP'!F9),IF('TRx Tracker vs AOP'!$F$7=\"Copaxone 20\",SUMIFS('Split Month Calcs'!$J:$J,'Split Month Calcs'!$A:$A,'TRx Tracker vs AOP'!F9),IF('TRx Tracker vs AOP'!$F$7=\"Azilect\",SUMIFS('Split Month Calcs'!$L:$L,'Split Month Calcs'!$A:$A,'TRx Tracker vs AOP'!F9),IF($F$7=\"zecuity\",SUMIFS('Split Month Calcs'!$M:$M,'Split Month Calcs'!$A:$A,'TRx Tracker vs AOP'!F9)))))))))))","v":0},{"$f":"IF($F$7=\"Nuvigil\",SUMIFS('Split Month Calcs'!$D:$D,'Split Month Calcs'!$A:$A,'TRx Tracker vs AOP'!G9),IF('TRx Tracker vs AOP'!$F$7=\"amrix\",SUMIFS('Split Month Calcs'!$E:$E,'Split Month Calcs'!$A:$A,'TRx Tracker vs AOP'!G9),IF('TRx Tracker vs AOP'!$F$7=\"Fentora\",SUMIFS('Split Month Calcs'!$F:$F,'Split Month Calcs'!$A:$A,'TRx Tracker vs AOP'!G9),IF('TRx Tracker vs AOP'!$F$7=\"Provigil\",SUMIFS('Split Month Calcs'!$I:$I,'Split Month Calcs'!$A:$A,'TRx Tracker vs AOP'!G9),IF('TRx Tracker vs AOP'!$F$7=\"Gabitril\",SUMIFS('Split Month Calcs'!$H:$H,'Split Month Calcs'!$A:$A,'TRx Tracker vs AOP'!G9),IF('TRx Tracker vs AOP'!$F$7=\"Actiq\",SUMIFS('Split Month Calcs'!$G:$G,'Split Month Calcs'!$A:$A,'TRx Tracker vs AOP'!G9),IF('TRx Tracker vs AOP'!$F$7=\"Copaxone 40\",SUMIFS('Split Month Calcs'!$K:$K,'Split Month Calcs'!$A:$A,'TRx Tracker vs AOP'!G9),IF('TRx Tracker vs AOP'!$F$7=\"Copaxone 20\",SUMIFS('Split Month Calcs'!$J:$J,'Split Month Calcs'!$A:$A,'TRx Tracker vs AOP'!G9),IF('TRx Tracker vs AOP'!$F$7=\"Azilect\",SUMIFS('Split Month Calcs'!$L:$L,'Split Month Calcs'!$A:$A,'TRx Tracker vs AOP'!G9),IF($F$7=\"zecuity\",SUMIFS('Split Month Calcs'!$M:$M,'Split Month Calcs'!$A:$A,'TRx Tracker vs AOP'!G9)))))))))))","v":0},{"$f":"IF($F$7=\"Nuvigil\",SUMIFS('Split Month Calcs'!$D:$D,'Split Month Calcs'!$A:$A,'TRx Tracker vs AOP'!H9),IF('TRx Tracker vs AOP'!$F$7=\"amrix\",SUMIFS('Split Month Calcs'!$E:$E,'Split Month Calcs'!$A:$A,'TRx Tracker vs AOP'!H9),IF('TRx Tracker vs AOP'!$F$7=\"Fentora\",SUMIFS('Split Month Calcs'!$F:$F,'Split Month Calcs'!$A:$A,'TRx Tracker vs AOP'!H9),IF('TRx Tracker vs AOP'!$F$7=\"Provigil\",SUMIFS('Split Month Calcs'!$I:$I,'Split Month Calcs'!$A:$A,'TRx Tracker vs AOP'!H9),IF('TRx Tracker vs AOP'!$F$7=\"Gabitril\",SUMIFS('Split Month Calcs'!$H:$H,'Split Month Calcs'!$A:$A,'TRx Tracker vs AOP'!H9),IF('TRx Tracker vs AOP'!$F$7=\"Actiq\",SUMIFS('Split Month Calcs'!$G:$G,'Split Month Calcs'!$A:$A,'TRx Tracker vs AOP'!H9),IF('TRx Tracker vs AOP'!$F$7=\"Copaxone 40\",SUMIFS('Split Month Calcs'!$K:$K,'Split Month Calcs'!$A:$A,'TRx Tracker vs AOP'!H9),IF('TRx Tracker vs AOP'!$F$7=\"Copaxone 20\",SUMIFS('Split Month Calcs'!$J:$J,'Split Month Calcs'!$A:$A,'TRx Tracker vs AOP'!H9),IF('TRx Tracker vs AOP'!$F$7=\"Azilect\",SUMIFS('Split Month Calcs'!$L:$L,'Split Month Calcs'!$A:$A,'TRx Tracker vs AOP'!H9),IF($F$7=\"zecuity\",SUMIFS('Split Month Calcs'!$M:$M,'Split Month Calcs'!$A:$A,'TRx Tracker vs AOP'!H9)))))))))))","v":0},{"$f":"IF($F$7=\"Nuvigil\",SUMIFS('Split Month Calcs'!$D:$D,'Split Month Calcs'!$A:$A,'TRx Tracker vs AOP'!I9),IF('TRx Tracker vs AOP'!$F$7=\"amrix\",SUMIFS('Split Month Calcs'!$E:$E,'Split Month Calcs'!$A:$A,'TRx Tracker vs AOP'!I9),IF('TRx Tracker vs AOP'!$F$7=\"Fentora\",SUMIFS('Split Month Calcs'!$F:$F,'Split Month Calcs'!$A:$A,'TRx Tracker vs AOP'!I9),IF('TRx Tracker vs AOP'!$F$7=\"Provigil\",SUMIFS('Split Month Calcs'!$I:$I,'Split Month Calcs'!$A:$A,'TRx Tracker vs AOP'!I9),IF('TRx Tracker vs AOP'!$F$7=\"Gabitril\",SUMIFS('Split Month Calcs'!$H:$H,'Split Month Calcs'!$A:$A,'TRx Tracker vs AOP'!I9),IF('TRx Tracker vs AOP'!$F$7=\"Actiq\",SUMIFS('Split Month Calcs'!$G:$G,'Split Month Calcs'!$A:$A,'TRx Tracker vs AOP'!I9),IF('TRx Tracker vs AOP'!$F$7=\"Copaxone 40\",SUMIFS('Split Month Calcs'!$K:$K,'Split Month Calcs'!$A:$A,'TRx Tracker vs AOP'!I9),IF('TRx Tracker vs AOP'!$F$7=\"Copaxone 20\",SUMIFS('Split Month Calcs'!$J:$J,'Split Month Calcs'!$A:$A,'TRx Tracker vs AOP'!I9),IF('TRx Tracker vs AOP'!$F$7=\"Azilect\",SUMIFS('Split Month Calcs'!$L:$L,'Split Month Calcs'!$A:$A,'TRx Tracker vs AOP'!I9),IF($F$7=\"zecuity\",SUMIFS('Split Month Calcs'!$M:$M,'Split Month Calcs'!$A:$A,'TRx Tracker vs AOP'!I9)))))))))))","v":0},{"$f":"IF($F$7=\"Nuvigil\",SUMIFS('Split Month Calcs'!$D:$D,'Split Month Calcs'!$A:$A,'TRx Tracker vs AOP'!J9),IF('TRx Tracker vs AOP'!$F$7=\"amrix\",SUMIFS('Split Month Calcs'!$E:$E,'Split Month Calcs'!$A:$A,'TRx Tracker vs AOP'!J9),IF('TRx Tracker vs AOP'!$F$7=\"Fentora\",SUMIFS('Split Month Calcs'!$F:$F,'Split Month Calcs'!$A:$A,'TRx Tracker vs AOP'!J9),IF('TRx Tracker vs AOP'!$F$7=\"Provigil\",SUMIFS('Split Month Calcs'!$I:$I,'Split Month Calcs'!$A:$A,'TRx Tracker vs AOP'!J9),IF('TRx Tracker vs AOP'!$F$7=\"Gabitril\",SUMIFS('Split Month Calcs'!$H:$H,'Split Month Calcs'!$A:$A,'TRx Tracker vs AOP'!J9),IF('TRx Tracker vs AOP'!$F$7=\"Actiq\",SUMIFS('Split Month Calcs'!$G:$G,'Split Month Calcs'!$A:$A,'TRx Tracker vs AOP'!J9),IF('TRx Tracker vs AOP'!$F$7=\"Copaxone 40\",SUMIFS('Split Month Calcs'!$K:$K,'Split Month Calcs'!$A:$A,'TRx Tracker vs AOP'!J9),IF('TRx Tracker vs AOP'!$F$7=\"Copaxone 20\",SUMIFS('Split Month Calcs'!$J:$J,'Split Month Calcs'!$A:$A,'TRx Tracker vs AOP'!J9),IF('TRx Tracker vs AOP'!$F$7=\"Azilect\",SUMIFS('Split Month Calcs'!$L:$L,'Split Month Calcs'!$A:$A,'TRx Tracker vs AOP'!J9),IF($F$7=\"zecuity\",SUMIFS('Split Month Calcs'!$M:$M,'Split Month Calcs'!$A:$A,'TRx Tracker vs AOP'!J9)))))))))))","v":0},{"$f":"IF($F$7=\"Nuvigil\",SUMIFS('Split Month Calcs'!$D:$D,'Split Month Calcs'!$A:$A,'TRx Tracker vs AOP'!K9),IF('TRx Tracker vs AOP'!$F$7=\"amrix\",SUMIFS('Split Month Calcs'!$E:$E,'Split Month Calcs'!$A:$A,'TRx Tracker vs AOP'!K9),IF('TRx Tracker vs AOP'!$F$7=\"Fentora\",SUMIFS('Split Month Calcs'!$F:$F,'Split Month Calcs'!$A:$A,'TRx Tracker vs AOP'!K9),IF('TRx Tracker vs AOP'!$F$7=\"Provigil\",SUMIFS('Split Month Calcs'!$I:$I,'Split Month Calcs'!$A:$A,'TRx Tracker vs AOP'!K9),IF('TRx Tracker vs AOP'!$F$7=\"Gabitril\",SUMIFS('Split Month Calcs'!$H:$H,'Split Month Calcs'!$A:$A,'TRx Tracker vs AOP'!K9),IF('TRx Tracker vs AOP'!$F$7=\"Actiq\",SUMIFS('Split Month Calcs'!$G:$G,'Split Month Calcs'!$A:$A,'TRx Tracker vs AOP'!K9),IF('TRx Tracker vs AOP'!$F$7=\"Copaxone 40\",SUMIFS('Split Month Calcs'!$K:$K,'Split Month Calcs'!$A:$A,'TRx Tracker vs AOP'!K9),IF('TRx Tracker vs AOP'!$F$7=\"Copaxone 20\",SUMIFS('Split Month Calcs'!$J:$J,'Split Month Calcs'!$A:$A,'TRx Tracker vs AOP'!K9),IF('TRx Tracker vs AOP'!$F$7=\"Azilect\",SUMIFS('Split Month Calcs'!$L:$L,'Split Month Calcs'!$A:$A,'TRx Tracker vs AOP'!K9),IF($F$7=\"zecuity\",SUMIFS('Split Month Calcs'!$M:$M,'Split Month Calcs'!$A:$A,'TRx Tracker vs AOP'!K9)))))))))))","v":0},{"$f":"IF($F$7=\"Nuvigil\",SUMIFS('Split Month Calcs'!$D:$D,'Split Month Calcs'!$A:$A,'TRx Tracker vs AOP'!L9),IF('TRx Tracker vs AOP'!$F$7=\"amrix\",SUMIFS('Split Month Calcs'!$E:$E,'Split Month Calcs'!$A:$A,'TRx Tracker vs AOP'!L9),IF('TRx Tracker vs AOP'!$F$7=\"Fentora\",SUMIFS('Split Month Calcs'!$F:$F,'Split Month Calcs'!$A:$A,'TRx Tracker vs AOP'!L9),IF('TRx Tracker vs AOP'!$F$7=\"Provigil\",SUMIFS('Split Month Calcs'!$I:$I,'Split Month Calcs'!$A:$A,'TRx Tracker vs AOP'!L9),IF('TRx Tracker vs AOP'!$F$7=\"Gabitril\",SUMIFS('Split Month Calcs'!$H:$H,'Split Month Calcs'!$A:$A,'TRx Tracker vs AOP'!L9),IF('TRx Tracker vs AOP'!$F$7=\"Actiq\",SUMIFS('Split Month Calcs'!$G:$G,'Split Month Calcs'!$A:$A,'TRx Tracker vs AOP'!L9),IF('TRx Tracker vs AOP'!$F$7=\"Copaxone 40\",SUMIFS('Split Month Calcs'!$K:$K,'Split Month Calcs'!$A:$A,'TRx Tracker vs AOP'!L9),IF('TRx Tracker vs AOP'!$F$7=\"Copaxone 20\",SUMIFS('Split Month Calcs'!$J:$J,'Split Month Calcs'!$A:$A,'TRx Tracker vs AOP'!L9),IF('TRx Tracker vs AOP'!$F$7=\"Azilect\",SUMIFS('Split Month Calcs'!$L:$L,'Split Month Calcs'!$A:$A,'TRx Tracker vs AOP'!L9),IF($F$7=\"zecuity\",SUMIFS('Split Month Calcs'!$M:$M,'Split Month Calcs'!$A:$A,'TRx Tracker vs AOP'!L9)))))))))))","v":0},{"$f":"IF($F$7=\"Nuvigil\",SUMIFS('Split Month Calcs'!$D:$D,'Split Month Calcs'!$A:$A,'TRx Tracker vs AOP'!M9),IF('TRx Tracker vs AOP'!$F$7=\"amrix\",SUMIFS('Split Month Calcs'!$E:$E,'Split Month Calcs'!$A:$A,'TRx Tracker vs AOP'!M9),IF('TRx Tracker vs AOP'!$F$7=\"Fentora\",SUMIFS('Split Month Calcs'!$F:$F,'Split Month Calcs'!$A:$A,'TRx Tracker vs AOP'!M9),IF('TRx Tracker vs AOP'!$F$7=\"Provigil\",SUMIFS('Split Month Calcs'!$I:$I,'Split Month Calcs'!$A:$A,'TRx Tracker vs AOP'!M9),IF('TRx Tracker vs AOP'!$F$7=\"Gabitril\",SUMIFS('Split Month Calcs'!$H:$H,'Split Month Calcs'!$A:$A,'TRx Tracker vs AOP'!M9),IF('TRx Tracker vs AOP'!$F$7=\"Actiq\",SUMIFS('Split Month Calcs'!$G:$G,'Split Month Calcs'!$A:$A,'TRx Tracker vs AOP'!M9),IF('TRx Tracker vs AOP'!$F$7=\"Copaxone 40\",SUMIFS('Split Month Calcs'!$K:$K,'Split Month Calcs'!$A:$A,'TRx Tracker vs AOP'!M9),IF('TRx Tracker vs AOP'!$F$7=\"Copaxone 20\",SUMIFS('Split Month Calcs'!$J:$J,'Split Month Calcs'!$A:$A,'TRx Tracker vs AOP'!M9),IF('TRx Tracker vs AOP'!$F$7=\"Azilect\",SUMIFS('Split Month Calcs'!$L:$L,'Split Month Calcs'!$A:$A,'TRx Tracker vs AOP'!M9),IF($F$7=\"zecuity\",SUMIFS('Split Month Calcs'!$M:$M,'Split Month Calcs'!$A:$A,'TRx Tracker vs AOP'!M9)))))))))))","v":0},{"$f":"IF($F$7=\"Nuvigil\",SUMIFS('Split Month Calcs'!$D:$D,'Split Month Calcs'!$A:$A,'TRx Tracker vs AOP'!N9),IF('TRx Tracker vs AOP'!$F$7=\"amrix\",SUMIFS('Split Month Calcs'!$E:$E,'Split Month Calcs'!$A:$A,'TRx Tracker vs AOP'!N9),IF('TRx Tracker vs AOP'!$F$7=\"Fentora\",SUMIFS('Split Month Calcs'!$F:$F,'Split Month Calcs'!$A:$A,'TRx Tracker vs AOP'!N9),IF('TRx Tracker vs AOP'!$F$7=\"Provigil\",SUMIFS('Split Month Calcs'!$I:$I,'Split Month Calcs'!$A:$A,'TRx Tracker vs AOP'!N9),IF('TRx Tracker vs AOP'!$F$7=\"Gabitril\",SUMIFS('Split Month Calcs'!$H:$H,'Split Month Calcs'!$A:$A,'TRx Tracker vs AOP'!N9),IF('TRx Tracker vs AOP'!$F$7=\"Actiq\",SUMIFS('Split Month Calcs'!$G:$G,'Split Month Calcs'!$A:$A,'TRx Tracker vs AOP'!N9),IF('TRx Tracker vs AOP'!$F$7=\"Copaxone 40\",SUMIFS('Split Month Calcs'!$K:$K,'Split Month Calcs'!$A:$A,'TRx Tracker vs AOP'!N9),IF('TRx Tracker vs AOP'!$F$7=\"Copaxone 20\",SUMIFS('Split Month Calcs'!$J:$J,'Split Month Calcs'!$A:$A,'TRx Tracker vs AOP'!N9),IF('TRx Tracker vs AOP'!$F$7=\"Azilect\",SUMIFS('Split Month Calcs'!$L:$L,'Split Month Calcs'!$A:$A,'TRx Tracker vs AOP'!N9),IF($F$7=\"zecuity\",SUMIFS('Split Month Calcs'!$M:$M,'Split Month Calcs'!$A:$A,'TRx Tracker vs AOP'!N9)))))))))))","v":0},{"$f":"IF($F$7=\"Nuvigil\",SUMIFS('Split Month Calcs'!$D:$D,'Split Month Calcs'!$A:$A,'TRx Tracker vs AOP'!O9),IF('TRx Tracker vs AOP'!$F$7=\"amrix\",SUMIFS('Split Month Calcs'!$E:$E,'Split Month Calcs'!$A:$A,'TRx Tracker vs AOP'!O9),IF('TRx Tracker vs AOP'!$F$7=\"Fentora\",SUMIFS('Split Month Calcs'!$F:$F,'Split Month Calcs'!$A:$A,'TRx Tracker vs AOP'!O9),IF('TRx Tracker vs AOP'!$F$7=\"Provigil\",SUMIFS('Split Month Calcs'!$I:$I,'Split Month Calcs'!$A:$A,'TRx Tracker vs AOP'!O9),IF('TRx Tracker vs AOP'!$F$7=\"Gabitril\",SUMIFS('Split Month Calcs'!$H:$H,'Split Month Calcs'!$A:$A,'TRx Tracker vs AOP'!O9),IF('TRx Tracker vs AOP'!$F$7=\"Actiq\",SUMIFS('Split Month Calcs'!$G:$G,'Split Month Calcs'!$A:$A,'TRx Tracker vs AOP'!O9),IF('TRx Tracker vs AOP'!$F$7=\"Copaxone 40\",SUMIFS('Split Month Calcs'!$K:$K,'Split Month Calcs'!$A:$A,'TRx Tracker vs AOP'!O9),IF('TRx Tracker vs AOP'!$F$7=\"Copaxone 20\",SUMIFS('Split Month Calcs'!$J:$J,'Split Month Calcs'!$A:$A,'TRx Tracker vs AOP'!O9),IF('TRx Tracker vs AOP'!$F$7=\"Azilect\",SUMIFS('Split Month Calcs'!$L:$L,'Split Month Calcs'!$A:$A,'TRx Tracker vs AOP'!O9),IF($F$7=\"zecuity\",SUMIFS('Split Month Calcs'!$M:$M,'Split Month Calcs'!$A:$A,'TRx Tracker vs AOP'!O9)))))))))))","v":0}]
[null,null,"% to Plan",{"$f":"D16/D15","v":0.60393848895929581},{"$f":"E16/E15","v":0},0,0,0,0,0,0,0,0,0,0]
[null,null,"Weeks",{"$f":"52/12","v":4.333333333333333},{"$f":"52/12","v":4.333333333333333},4.333333333333333,4.333333333333333,4.333333333333333,4.333333333333333,4.333333333333333,4.333333333333333,4.333333333333333,4.333333333333333,4.333333333333333,4.333333333333333]
[null,null,"Source: IMS NPA Audit"]
[]
[null,null,null,null,"Month","Week #","Week Ending","Actual TRxs","Goal","Variance"]
[null,null,null,null,{"$f":"MONTH(G22)","v":1},1,"2017-01-06",{"$f":"IF($F$7=\"Nuvigil\",SUMIFS('IMS Data'!D:D,'IMS Data'!C:C,'TRx Tracker vs AOP'!G:G),IF('TRx Tracker vs AOP'!$F$7=\"Fentora\",SUMIFS('IMS Data'!F:F,'IMS Data'!C:C,'TRx Tracker vs AOP'!G:G),IF('TRx Tracker vs AOP'!$F$7=\"Amrix\",SUMIFS('IMS Data'!E:E,'IMS Data'!C:C,'TRx Tracker vs AOP'!G:G),IF('TRx Tracker vs AOP'!$F$7=\"Provigil\",SUMIFS('IMS Data'!I:I,'IMS Data'!C:C,'TRx Tracker vs AOP'!G:G),IF('TRx Tracker vs AOP'!$F$7=\"Gabitril\",SUMIFS('IMS Data'!H:H,'IMS Data'!C:C,'TRx Tracker vs AOP'!G:G),IF('TRx Tracker vs AOP'!$F$7=\"Actiq\",SUMIFS('IMS Data'!G:G,'IMS Data'!C:C,'TRx Tracker vs AOP'!G:G),IF($F$7=\"Copaxone 40\",SUMIFS('IMS Data'!K:K,'IMS Data'!C:C,'TRx Tracker vs AOP'!G:G),IF($F$7=\"Azilect\",SUMIFS('IMS Data'!L:L,'IMS Data'!C:C,'TRx Tracker vs AOP'!G:G),IF($F$7=\"Copaxone 20\",SUMIFS('IMS Data'!J:J,'IMS Data'!C:C,'TRx Tracker vs AOP'!G:G),IF($F$7=\"Zecuity\",SUMIFS('IMS Data'!M:M,'IMS Data'!C:C,'TRx Tracker vs LBE'!G:G)))))))))))","v":2653},{"$f":"IF($F$7=\"Zecuity\",SUMIFS('Zecuity Weekly Forecast'!B:B,'Zecuity Weekly Forecast'!A:A,'TRx Tracker vs AOP'!G:G),IF($F$7=\"Nuvigil\",SUMIFS('NUVIGIL Goals'!$E:$E,'NUVIGIL Goals'!$B:$B,'TRx Tracker vs AOP'!$F:$F),SUMIFS($15:$15,$9:$9,$E:$E)/SUMIFS($18:$18,$9:$9,$E:$E)))","v":2107.321078153846},{"$f":"H22-I22","v":545.67892184615403}]
[null,null,null,null,{"$f":"MONTH(G23)","v":1},2,{"$f":"G22+7","v":"2017-01-13"},{"$f":"IF($F$7=\"Nuvigil\",SUMIFS('IMS Data'!D:D,'IMS Data'!C:C,'TRx Tracker vs AOP'!G:G),IF('TRx Tracker vs AOP'!$F$7=\"Fentora\",SUMIFS('IMS Data'!F:F,'IMS Data'!C:C,'TRx Tracker vs AOP'!G:G),IF('TRx Tracker vs AOP'!$F$7=\"Amrix\",SUMIFS('IMS Data'!E:E,'IMS Data'!C:C,'TRx Tracker vs AOP'!G:G),IF('TRx Tracker vs AOP'!$F$7=\"Provigil\",SUMIFS('IMS Data'!I:I,'IMS Data'!C:C,'TRx Tracker vs AOP'!G:G),IF('TRx Tracker vs AOP'!$F$7=\"Gabitril\",SUMIFS('IMS Data'!H:H,'IMS Data'!C:C,'TRx Tracker vs AOP'!G:G),IF('TRx Tracker vs AOP'!$F$7=\"Actiq\",SUMIFS('IMS Data'!G:G,'IMS Data'!C:C,'TRx Tracker vs AOP'!G:G),IF($F$7=\"Copaxone 40\",SUMIFS('IMS Data'!K:K,'IMS Data'!C:C,'TRx Tracker vs AOP'!G:G),IF($F$7=\"Azilect\",SUMIFS('IMS Data'!L:L,'IMS Data'!C:C,'TRx Tracker vs AOP'!G:G),IF($F$7=\"Copaxone 20\",SUMIFS('IMS Data'!J:J,'IMS Data'!C:C,'TRx Tracker vs AOP'!G:G),IF($F$7=\"Zecuity\",SUMIFS('IMS Data'!M:M,'IMS Data'!C:C,'TRx Tracker vs LBE'!G:G)))))))))))","v":2862},{"$f":"IF($F$7=\"Zecuity\",SUMIFS('Zecuity Weekly Forecast'!B:B,'Zecuity Weekly Forecast'!A:A,'TRx Tracker vs AOP'!G:G),IF($F$7=\"Nuvigil\",SUMIFS('NUVIGIL Goals'!$E:$E,'NUVIGIL Goals'!$B:$B,'TRx Tracker vs AOP'!$F:$F),SUMIFS($15:$15,$9:$9,$E:$E)/SUMIFS($18:$18,$9:$9,$E:$E)))","v":2107.321078153846},{"$f":"H23-I23","v":754.67892184615403}]
[null,null,null,null,1,3,{"$f":"G23+7","v":"2017-01-20"},{"$f":"IF($F$7=\"Nuvigil\",SUMIFS('IMS Data'!D:D,'IMS Data'!C:C,'TRx Tracker vs AOP'!G:G),IF('TRx Tracker vs AOP'!$F$7=\"Fentora\",SUMIFS('IMS Data'!F:F,'IMS Data'!C:C,'TRx Tracker vs AOP'!G:G),IF('TRx Tracker vs AOP'!$F$7=\"Amrix\",SUMIFS('IMS Data'!E:E,'IMS Data'!C:C,'TRx Tracker vs AOP'!G:G),IF('TRx Tracker vs AOP'!$F$7=\"Provigil\",SUMIFS('IMS Data'!I:I,'IMS Data'!C:C,'TRx Tracker vs AOP'!G:G),IF('TRx Tracker vs AOP'!$F$7=\"Gabitril\",SUMIFS('IMS Data'!H:H,'IMS Data'!C:C,'TRx Tracker vs AOP'!G:G),IF('TRx Tracker vs AOP'!$F$7=\"Actiq\",SUMIFS('IMS Data'!G:G,'IMS Data'!C:C,'TRx Tracker vs AOP'!G:G),IF($F$7=\"Copaxone 40\",SUMIFS('IMS Data'!K:K,'IMS Data'!C:C,'TRx Tracker vs AOP'!G:G),IF($F$7=\"Azilect\",SUMIFS('IMS Data'!L:L,'IMS Data'!C:C,'TRx Tracker vs AOP'!G:G),IF($F$7=\"Copaxone 20\",SUMIFS('IMS Data'!J:J,'IMS Data'!C:C,'TRx Tracker vs AOP'!G:G),IF($F$7=\"Zecuity\",SUMIFS('IMS Data'!M:M,'IMS Data'!C:C,'TRx Tracker vs LBE'!G:G)))))))))))","v":0},{"$f":"IF($F$7=\"Zecuity\",SUMIFS('Zecuity Weekly Forecast'!B:B,'Zecuity Weekly Forecast'!A:A,'TRx Tracker vs AOP'!G:G),IF($F$7=\"Nuvigil\",SUMIFS('NUVIGIL Goals'!$E:$E,'NUVIGIL Goals'!$B:$B,'TRx Tracker vs AOP'!$F:$F),SUMIFS($15:$15,$9:$9,$E:$E)/SUMIFS($18:$18,$9:$9,$E:$E)))","v":2107.321078153846},-2107.321078153846]
[null,null,null,null,1,4,"2017-01-27",{"$f":"IF($F$7=\"Nuvigil\",SUMIFS('IMS Data'!D:D,'IMS Data'!C:C,'TRx Tracker vs AOP'!G:G),IF('TRx Tracker vs AOP'!$F$7=\"Fentora\",SUMIFS('IMS Data'!F:F,'IMS Data'!C:C,'TRx Tracker vs AOP'!G:G),IF('TRx Tracker vs AOP'!$F$7=\"Amrix\",SUMIFS('IMS Data'!E:E,'IMS Data'!C:C,'TRx Tracker vs AOP'!G:G),IF('TRx Tracker vs AOP'!$F$7=\"Provigil\",SUMIFS('IMS Data'!I:I,'IMS Data'!C:C,'TRx Tracker vs AOP'!G:G),IF('TRx Tracker vs AOP'!$F$7=\"Gabitril\",SUMIFS('IMS Data'!H:H,'IMS Data'!C:C,'TRx Tracker vs AOP'!G:G),IF('TRx Tracker vs AOP'!$F$7=\"Actiq\",SUMIFS('IMS Data'!G:G,'IMS Data'!C:C,'TRx Tracker vs AOP'!G:G),IF($F$7=\"Copaxone 40\",SUMIFS('IMS Data'!K:K,'IMS Data'!C:C,'TRx Tracker vs AOP'!G:G),IF($F$7=\"Azilect\",SUMIFS('IMS Data'!L:L,'IMS Data'!C:C,'TRx Tracker vs AOP'!G:G),IF($F$7=\"Copaxone 20\",SUMIFS('IMS Data'!J:J,'IMS Data'!C:C,'TRx Tracker vs AOP'!G:G),IF($F$7=\"Zecuity\",SUMIFS('IMS Data'!M:M,'IMS Data'!C:C,'TRx Tracker vs LBE'!G:G)))))))))))","v":0},{"$f":"IF($F$7=\"Zecuity\",SUMIFS('Zecuity Weekly Forecast'!B:B,'Zecuity Weekly Forecast'!A:A,'TRx Tracker vs AOP'!G:G),IF($F$7=\"Nuvigil\",SUMIFS('NUVIGIL Goals'!$E:$E,'NUVIGIL Goals'!$B:$B,'TRx Tracker vs AOP'!$F:$F),SUMIFS($15:$15,$9:$9,$E:$E)/SUMIFS($18:$18,$9:$9,$E:$E)))","v":2107.321078153846},-2107.321078153846]
[null,null,null,null,2,5,"2017-02-03",{"$f":"IF($F$7=\"Nuvigil\",SUMIFS('IMS Data'!D:D,'IMS Data'!C:C,'TRx Tracker vs AOP'!G:G),IF('TRx Tracker vs AOP'!$F$7=\"Fentora\",SUMIFS('IMS Data'!F:F,'IMS Data'!C:C,'TRx Tracker vs AOP'!G:G),IF('TRx Tracker vs AOP'!$F$7=\"Amrix\",SUMIFS('IMS Data'!E:E,'IMS Data'!C:C,'TRx Tracker vs AOP'!G:G),IF('TRx Tracker vs AOP'!$F$7=\"Provigil\",SUMIFS('IMS Data'!I:I,'IMS Data'!C:C,'TRx Tracker vs AOP'!G:G),IF('TRx Tracker vs AOP'!$F$7=\"Gabitril\",SUMIFS('IMS Data'!H:H,'IMS Data'!C:C,'TRx Tracker vs AOP'!G:G),IF('TRx Tracker vs AOP'!$F$7=\"Actiq\",SUMIFS('IMS Data'!G:G,'IMS Data'!C:C,'TRx Tracker vs AOP'!G:G),IF($F$7=\"Copaxone 40\",SUMIFS('IMS Data'!K:K,'IMS Data'!C:C,'TRx Tracker vs AOP'!G:G),IF($F$7=\"Azilect\",SUMIFS('IMS Data'!L:L,'IMS Data'!C:C,'TRx Tracker vs AOP'!G:G),IF($F$7=\"Copaxone 20\",SUMIFS('IMS Data'!J:J,'IMS Data'!C:C,'TRx Tracker vs AOP'!G:G),IF($F$7=\"Zecuity\",SUMIFS('IMS Data'!M:M,'IMS Data'!C:C,'TRx Tracker vs LBE'!G:G)))))))))))","v":0},{"$f":"IF($F$7=\"Zecuity\",SUMIFS('Zecuity Weekly Forecast'!B:B,'Zecuity Weekly Forecast'!A:A,'TRx Tracker vs AOP'!G:G),IF($F$7=\"Nuvigil\",SUMIFS('NUVIGIL Goals'!$E:$E,'NUVIGIL Goals'!$B:$B,'TRx Tracker vs AOP'!$F:$F),SUMIFS($15:$15,$9:$9,$E:$E)/SUMIFS($18:$18,$9:$9,$E:$E)))","v":2132.4787033846155},-2132.4787033846155]
[null,null,null,null,2,6,"2017-02-10",{"$f":"IF($F$7=\"Nuvigil\",SUMIFS('IMS Data'!D:D,'IMS Data'!C:C,'TRx Tracker vs AOP'!G:G),IF('TRx Tracker vs AOP'!$F$7=\"Fentora\",SUMIFS('IMS Data'!F:F,'IMS Data'!C:C,'TRx Tracker vs AOP'!G:G),IF('TRx Tracker vs AOP'!$F$7=\"Amrix\",SUMIFS('IMS Data'!E:E,'IMS Data'!C:C,'TRx Tracker vs AOP'!G:G),IF('TRx Tracker vs AOP'!$F$7=\"Provigil\",SUMIFS('IMS Data'!I:I,'IMS Data'!C:C,'TRx Tracker vs AOP'!G:G),IF('TRx Tracker vs AOP'!$F$7=\"Gabitril\",SUMIFS('IMS Data'!H:H,'IMS Data'!C:C,'TRx Tracker vs AOP'!G:G),IF('TRx Tracker vs AOP'!$F$7=\"Actiq\",SUMIFS('IMS Data'!G:G,'IMS Data'!C:C,'TRx Tracker vs AOP'!G:G),IF($F$7=\"Copaxone 40\",SUMIFS('IMS Data'!K:K,'IMS Data'!C:C,'TRx Tracker vs AOP'!G:G),IF($F$7=\"Azilect\",SUMIFS('IMS Data'!L:L,'IMS Data'!C:C,'TRx Tracker vs AOP'!G:G),IF($F$7=\"Copaxone 20\",SUMIFS('IMS Data'!J:J,'IMS Data'!C:C,'TRx Tracker vs AOP'!G:G),IF($F$7=\"Zecuity\",SUMIFS('IMS Data'!M:M,'IMS Data'!C:C,'TRx Tracker vs LBE'!G:G)))))))))))","v":0},{"$f":"IF($F$7=\"Zecuity\",SUMIFS('Zecuity Weekly Forecast'!B:B,'Zecuity Weekly Forecast'!A:A,'TRx Tracker vs AOP'!G:G),IF($F$7=\"Nuvigil\",SUMIFS('NUVIGIL Goals'!$E:$E,'NUVIGIL Goals'!$B:$B,'TRx Tracker vs AOP'!$F:$F),SUMIFS($15:$15,$9:$9,$E:$E)/SUMIFS($18:$18,$9:$9,$E:$E)))","v":2132.4787033846155},-2132.4787033846155]
[null,null,null,null,2,7,"2017-02-17",{"$f":"IF($F$7=\"Nuvigil\",SUMIFS('IMS Data'!D:D,'IMS Data'!C:C,'TRx Tracker vs AOP'!G:G),IF('TRx Tracker vs AOP'!$F$7=\"Fentora\",SUMIFS('IMS Data'!F:F,'IMS Data'!C:C,'TRx Tracker vs AOP'!G:G),IF('TRx Tracker vs AOP'!$F$7=\"Amrix\",SUMIFS('IMS Data'!E:E,'IMS Data'!C:C,'TRx Tracker vs AOP'!G:G),IF('TRx Tracker vs AOP'!$F$7=\"Provigil\",SUMIFS('IMS Data'!I:I,'IMS Data'!C:C,'TRx Tracker vs AOP'!G:G),IF('TRx Tracker vs AOP'!$F$7=\"Gabitril\",SUMIFS('IMS Data'!H:H,'IMS Data'!C:C,'TRx Tracker vs AOP'!G:G),IF('TRx Tracker vs AOP'!$F$7=\"Actiq\",SUMIFS('IMS Data'!G:G,'IMS Data'!C:C,'TRx Tracker vs AOP'!G:G),IF($F$7=\"Copaxone 40\",SUMIFS('IMS Data'!K:K,'IMS Data'!C:C,'TRx Tracker vs AOP'!G:G),IF($F$7=\"Azilect\",SUMIFS('IMS Data'!L:L,'IMS Data'!C:C,'TRx Tracker vs AOP'!G:G),IF($F$7=\"Copaxone 20\",SUMIFS('IMS Data'!J:J,'IMS Data'!C:C,'TRx Tracker vs AOP'!G:G),IF($F$7=\"Zecuity\",SUMIFS('IMS Data'!M:M,'IMS Data'!C:C,'TRx Tracker vs LBE'!G:G)))))))))))","v":0},{"$f":"IF($F$7=\"Zecuity\",SUMIFS('Zecuity Weekly Forecast'!B:B,'Zecuity Weekly Forecast'!A:A,'TRx Tracker vs AOP'!G:G),IF($F$7=\"Nuvigil\",SUMIFS('NUVIGIL Goals'!$E:$E,'NUVIGIL Goals'!$B:$B,'TRx Tracker vs AOP'!$F:$F),SUMIFS($15:$15,$9:$9,$E:$E)/SUMIFS($18:$18,$9:$9,$E:$E)))","v":2132.4787033846155},-2132.4787033846155]
[null,null,null,null,2,8,"2017-02-24",{"$f":"IF($F$7=\"Nuvigil\",SUMIFS('IMS Data'!D:D,'IMS Data'!C:C,'TRx Tracker vs AOP'!G:G),IF('TRx Tracker vs AOP'!$F$7=\"Fentora\",SUMIFS('IMS Data'!F:F,'IMS Data'!C:C,'TRx Tracker vs AOP'!G:G),IF('TRx Tracker vs AOP'!$F$7=\"Amrix\",SUMIFS('IMS Data'!E:E,'IMS Data'!C:C,'TRx Tracker vs AOP'!G:G),IF('TRx Tracker vs AOP'!$F$7=\"Provigil\",SUMIFS('IMS Data'!I:I,'IMS Data'!C:C,'TRx Tracker vs AOP'!G:G),IF('TRx Tracker vs AOP'!$F$7=\"Gabitril\",SUMIFS('IMS Data'!H:H,'IMS Data'!C:C,'TRx Tracker vs AOP'!G:G),IF('TRx Tracker vs AOP'!$F$7=\"Actiq\",SUMIFS('IMS Data'!G:G,'IMS Data'!C:C,'TRx Tracker vs AOP'!G:G),IF($F$7=\"Copaxone 40\",SUMIFS('IMS Data'!K:K,'IMS Data'!C:C,'TRx Tracker vs AOP'!G:G),IF($F$7=\"Azilect\",SUMIFS('IMS Data'!L:L,'IMS Data'!C:C,'TRx Tracker vs AOP'!G:G),IF($F$7=\"Copaxone 20\",SUMIFS('IMS Data'!J:J,'IMS Data'!C:C,'TRx Tracker vs AOP'!G:G),IF($F$7=\"Zecuity\",SUMIFS('IMS Data'!M:M,'IMS Data'!C:C,'TRx Tracker vs LBE'!G:G)))))))))))","v":0},{"$f":"IF($F$7=\"Zecuity\",SUMIFS('Zecuity Weekly Forecast'!B:B,'Zecuity Weekly Forecast'!A:A,'TRx Tracker vs AOP'!G:G),IF($F$7=\"Nuvigil\",SUMIFS('NUVIGIL Goals'!$E:$E,'NUVIGIL Goals'!$B:$B,'TRx Tracker vs AOP'!$F:$F),SUMIFS($15:$15,$9:$9,$E:$E)/SUMIFS($18:$18,$9:$9,$E:$E)))","v":2132.4787033846155},-2132.4787033846155]
[null,null,null,null,3,9,"2017-03-03",{"$f":"IF($F$7=\"Nuvigil\",SUMIFS('IMS Data'!D:D,'IMS Data'!C:C,'TRx Tracker vs AOP'!G:G),IF('TRx Tracker vs AOP'!$F$7=\"Fentora\",SUMIFS('IMS Data'!F:F,'IMS Data'!C:C,'TRx Tracker vs AOP'!G:G),IF('TRx Tracker vs AOP'!$F$7=\"Amrix\",SUMIFS('IMS Data'!E:E,'IMS Data'!C:C,'TRx Tracker vs AOP'!G:G),IF('TRx Tracker vs AOP'!$F$7=\"Provigil\",SUMIFS('IMS Data'!I:I,'IMS Data'!C:C,'TRx Tracker vs AOP'!G:G),IF('TRx Tracker vs AOP'!$F$7=\"Gabitril\",SUMIFS('IMS Data'!H:H,'IMS Data'!C:C,'TRx Tracker vs AOP'!G:G),IF('TRx Tracker vs AOP'!$F$7=\"Actiq\",SUMIFS('IMS Data'!G:G,'IMS Data'!C:C,'TRx Tracker vs AOP'!G:G),IF($F$7=\"Copaxone 40\",SUMIFS('IMS Data'!K:K,'IMS Data'!C:C,'TRx Tracker vs AOP'!G:G),IF($F$7=\"Azilect\",SUMIFS('IMS Data'!L:L,'IMS Data'!C:C,'TRx Tracker vs AOP'!G:G),IF($F$7=\"Copaxone 20\",SUMIFS('IMS Data'!J:J,'IMS Data'!C:C,'TRx Tracker vs AOP'!G:G),IF($F$7=\"Zecuity\",SUMIFS('IMS Data'!M:M,'IMS Data'!C:C,'TRx Tracker vs LBE'!G:G)))))))))))","v":0},{"$f":"IF($F$7=\"Zecuity\",SUMIFS('Zecuity Weekly Forecast'!B:B,'Zecuity Weekly Forecast'!A:A,'TRx Tracker vs AOP'!G:G),IF($F$7=\"Nuvigil\",SUMIFS('NUVIGIL Goals'!$E:$E,'NUVIGIL Goals'!$B:$B,'TRx Tracker vs AOP'!$F:$F),SUMIFS($15:$15,$9:$9,$E:$E)/SUMIFS($18:$18,$9:$9,$E:$E)))","v":2401.9366010769227},-2401.9366010769227]
[null,null,null,null,3,10,"2017-03-10",{"$f":"IF($F$7=\"Nuvigil\",SUMIFS('IMS Data'!D:D,'IMS Data'!C:C,'TRx Tracker vs AOP'!G:G),IF('TRx Tracker vs AOP'!$F$7=\"Fentora\",SUMIFS('IMS Data'!F:F,'IMS Data'!C:C,'TRx Tracker vs AOP'!G:G),IF('TRx Tracker vs AOP'!$F$7=\"Amrix\",SUMIFS('IMS Data'!E:E,'IMS Data'!C:C,'TRx Tracker vs AOP'!G:G),IF('TRx Tracker vs AOP'!$F$7=\"Provigil\",SUMIFS('IMS Data'!I:I,'IMS Data'!C:C,'TRx Tracker vs AOP'!G:G),IF('TRx Tracker vs AOP'!$F$7=\"Gabitril\",SUMIFS('IMS Data'!H:H,'IMS Data'!C:C,'TRx Tracker vs AOP'!G:G),IF('TRx Tracker vs AOP'!$F$7=\"Actiq\",SUMIFS('IMS Data'!G:G,'IMS Data'!C:C,'TRx Tracker vs AOP'!G:G),IF($F$7=\"Copaxone 40\",SUMIFS('IMS Data'!K:K,'IMS Data'!C:C,'TRx Tracker vs AOP'!G:G),IF($F$7=\"Azilect\",SUMIFS('IMS Data'!L:L,'IMS Data'!C:C,'TRx Tracker vs AOP'!G:G),IF($F$7=\"Copaxone 20\",SUMIFS('IMS Data'!J:J,'IMS Data'!C:C,'TRx Tracker vs AOP'!G:G),IF($F$7=\"Zecuity\",SUMIFS('IMS Data'!M:M,'IMS Data'!C:C,'TRx Tracker vs LBE'!G:G)))))))))))","v":0},{"$f":"IF($F$7=\"Zecuity\",SUMIFS('Zecuity Weekly Forecast'!B:B,'Zecuity Weekly Forecast'!A:A,'TRx Tracker vs AOP'!G:G),IF($F$7=\"Nuvigil\",SUMIFS('NUVIGIL Goals'!$E:$E,'NUVIGIL Goals'!$B:$B,'TRx Tracker vs AOP'!$F:$F),SUMIFS($15:$15,$9:$9,$E:$E)/SUMIFS($18:$18,$9:$9,$E:$E)))","v":2401.9366010769227},-2401.9366010769227]
[null,null,null,null,3,11,"2017-03-17",{"$f":"IF($F$7=\"Nuvigil\",SUMIFS('IMS Data'!D:D,'IMS Data'!C:C,'TRx Tracker vs AOP'!G:G),IF('TRx Tracker vs AOP'!$F$7=\"Fentora\",SUMIFS('IMS Data'!F:F,'IMS Data'!C:C,'TRx Tracker vs AOP'!G:G),IF('TRx Tracker vs AOP'!$F$7=\"Amrix\",SUMIFS('IMS Data'!E:E,'IMS Data'!C:C,'TRx Tracker vs AOP'!G:G),IF('TRx Tracker vs AOP'!$F$7=\"Provigil\",SUMIFS('IMS Data'!I:I,'IMS Data'!C:C,'TRx Tracker vs AOP'!G:G),IF('TRx Tracker vs AOP'!$F$7=\"Gabitril\",SUMIFS('IMS Data'!H:H,'IMS Data'!C:C,'TRx Tracker vs AOP'!G:G),IF('TRx Tracker vs AOP'!$F$7=\"Actiq\",SUMIFS('IMS Data'!G:G,'IMS Data'!C:C,'TRx Tracker vs AOP'!G:G),IF($F$7=\"Copaxone 40\",SUMIFS('IMS Data'!K:K,'IMS Data'!C:C,'TRx Tracker vs AOP'!G:G),IF($F$7=\"Azilect\",SUMIFS('IMS Data'!L:L,'IMS Data'!C:C,'TRx Tracker vs AOP'!G:G),IF($F$7=\"Copaxone 20\",SUMIFS('IMS Data'!J:J,'IMS Data'!C:C,'TRx Tracker vs AOP'!G:G),IF($F$7=\"Zecuity\",SUMIFS('IMS Data'!M:M,'IMS Data'!C:C,'TRx Tracker vs LBE'!G:G)))))))))))","v":0},{"$f":"IF($F$7=\"Zecuity\",SUMIFS('Zecuity Weekly Forecast'!B:B,'Zecuity Weekly Forecast'!A:A,'TRx Tracker vs AOP'!G:G),IF($F$7=\"Nuvigil\",SUMIFS('NUVIGIL Goals'!$E:$E,'NUVIGIL Goals'!$B:$B,'TRx Tracker vs AOP'!$F:$F),SUMIFS($15:$15,$9:$9,$E:$E)/SUMIFS($18:$18,$9:$9,$E:$E)))","v":2401.9366010769227},-2401.9366010769227]
[null,null,null,null,3,12,"2017-03-24",{"$f":"IF($F$7=\"Nuvigil\",SUMIFS('IMS Data'!D:D,'IMS Data'!C:C,'TRx Tracker vs AOP'!G:G),IF('TRx Tracker vs AOP'!$F$7=\"Fentora\",SUMIFS('IMS Data'!F:F,'IMS Data'!C:C,'TRx Tracker vs AOP'!G:G),IF('TRx Tracker vs AOP'!$F$7=\"Amrix\",SUMIFS('IMS Data'!E:E,'IMS Data'!C:C,'TRx Tracker vs AOP'!G:G),IF('TRx Tracker vs AOP'!$F$7=\"Provigil\",SUMIFS('IMS Data'!I:I,'IMS Data'!C:C,'TRx Tracker vs AOP'!G:G),IF('TRx Tracker vs AOP'!$F$7=\"Gabitril\",SUMIFS('IMS Data'!H:H,'IMS Data'!C:C,'TRx Tracker vs AOP'!G:G),IF('TRx Tracker vs AOP'!$F$7=\"Actiq\",SUMIFS('IMS Data'!G:G,'IMS Data'!C:C,'TRx Tracker vs AOP'!G:G),IF($F$7=\"Copaxone 40\",SUMIFS('IMS Data'!K:K,'IMS Data'!C:C,'TRx Tracker vs AOP'!G:G),IF($F$7=\"Azilect\",SUMIFS('IMS Data'!L:L,'IMS Data'!C:C,'TRx Tracker vs AOP'!G:G),IF($F$7=\"Copaxone 20\",SUMIFS('IMS Data'!J:J,'IMS Data'!C:C,'TRx Tracker vs AOP'!G:G),IF($F$7=\"Zecuity\",SUMIFS('IMS Data'!M:M,'IMS Data'!C:C,'TRx Tracker vs LBE'!G:G)))))))))))","v":0},{"$f":"IF($F$7=\"Zecuity\",SUMIFS('Zecuity Weekly Forecast'!B:B,'Zecuity Weekly Forecast'!A:A,'TRx Tracker vs AOP'!G:G),IF($F$7=\"Nuvigil\",SUMIFS('NUVIGIL Goals'!$E:$E,'NUVIGIL Goals'!$B:$B,'TRx Tracker vs AOP'!$F:$F),SUMIFS($15:$15,$9:$9,$E:$E)/SUMIFS($18:$18,$9:$9,$E:$E)))","v":2401.9366010769227},-2401.9366010769227]
[null,null,null,null,3,13,"2017-03-31",{"$f":"IF($F$7=\"Nuvigil\",SUMIFS('IMS Data'!D:D,'IMS Data'!C:C,'TRx Tracker vs AOP'!G:G),IF('TRx Tracker vs AOP'!$F$7=\"Fentora\",SUMIFS('IMS Data'!F:F,'IMS Data'!C:C,'TRx Tracker vs AOP'!G:G),IF('TRx Tracker vs AOP'!$F$7=\"Amrix\",SUMIFS('IMS Data'!E:E,'IMS Data'!C:C,'TRx Tracker vs AOP'!G:G),IF('TRx Tracker vs AOP'!$F$7=\"Provigil\",SUMIFS('IMS Data'!I:I,'IMS Data'!C:C,'TRx Tracker vs AOP'!G:G),IF('TRx Tracker vs AOP'!$F$7=\"Gabitril\",SUMIFS('IMS Data'!H:H,'IMS Data'!C:C,'TRx Tracker vs AOP'!G:G),IF('TRx Tracker vs AOP'!$F$7=\"Actiq\",SUMIFS('IMS Data'!G:G,'IMS Data'!C:C,'TRx Tracker vs AOP'!G:G),IF($F$7=\"Copaxone 40\",SUMIFS('IMS Data'!K:K,'IMS Data'!C:C,'TRx Tracker vs AOP'!G:G),IF($F$7=\"Azilect\",SUMIFS('IMS Data'!L:L,'IMS Data'!C:C,'TRx Tracker vs AOP'!G:G),IF($F$7=\"Copaxone 20\",SUMIFS('IMS Data'!J:J,'IMS Data'!C:C,'TRx Tracker vs AOP'!G:G),IF($F$7=\"Zecuity\",SUMIFS('IMS Data'!M:M,'IMS Data'!C:C,'TRx Tracker vs LBE'!G:G)))))))))))","v":0},{"$f":"IF($F$7=\"Zecuity\",SUMIFS('Zecuity Weekly Forecast'!B:B,'Zecuity Weekly Forecast'!A:A,'TRx Tracker vs AOP'!G:G),IF($F$7=\"Nuvigil\",SUMIFS('NUVIGIL Goals'!$E:$E,'NUVIGIL Goals'!$B:$B,'TRx Tracker vs AOP'!$F:$F),SUMIFS($15:$15,$9:$9,$E:$E)/SUMIFS($18:$18,$9:$9,$E:$E)))","v":2401.9366010769227},-2401.9366010769227]
[null,null,null,null,4,14,"2017-04-07",{"$f":"IF($F$7=\"Nuvigil\",SUMIFS('IMS Data'!D:D,'IMS Data'!C:C,'TRx Tracker vs AOP'!G:G),IF('TRx Tracker vs AOP'!$F$7=\"Fentora\",SUMIFS('IMS Data'!F:F,'IMS Data'!C:C,'TRx Tracker vs AOP'!G:G),IF('TRx Tracker vs AOP'!$F$7=\"Amrix\",SUMIFS('IMS Data'!E:E,'IMS Data'!C:C,'TRx Tracker vs AOP'!G:G),IF('TRx Tracker vs AOP'!$F$7=\"Provigil\",SUMIFS('IMS Data'!I:I,'IMS Data'!C:C,'TRx Tracker vs AOP'!G:G),IF('TRx Tracker vs AOP'!$F$7=\"Gabitril\",SUMIFS('IMS Data'!H:H,'IMS Data'!C:C,'TRx Tracker vs AOP'!G:G),IF('TRx Tracker vs AOP'!$F$7=\"Actiq\",SUMIFS('IMS Data'!G:G,'IMS Data'!C:C,'TRx Tracker vs AOP'!G:G),IF($F$7=\"Copaxone 40\",SUMIFS('IMS Data'!K:K,'IMS Data'!C:C,'TRx Tracker vs AOP'!G:G),IF($F$7=\"Azilect\",SUMIFS('IMS Data'!L:L,'IMS Data'!C:C,'TRx Tracker vs AOP'!G:G),IF($F$7=\"Copaxone 20\",SUMIFS('IMS Data'!J:J,'IMS Data'!C:C,'TRx Tracker vs AOP'!G:G),IF($F$7=\"Zecuity\",SUMIFS('IMS Data'!M:M,'IMS Data'!C:C,'TRx Tracker vs LBE'!G:G)))))))))))","v":0},{"$f":"IF($F$7=\"Zecuity\",SUMIFS('Zecuity Weekly Forecast'!B:B,'Zecuity Weekly Forecast'!A:A,'TRx Tracker vs AOP'!G:G),IF($F$7=\"Nuvigil\",SUMIFS('NUVIGIL Goals'!$E:$E,'NUVIGIL Goals'!$B:$B,'TRx Tracker vs AOP'!$F:$F),SUMIFS($15:$15,$9:$9,$E:$E)/SUMIFS($18:$18,$9:$9,$E:$E)))","v":2219.1738530769235},-2219.1738530769235]
[null,null,null,null,4,15,"2017-04-14",{"$f":"IF($F$7=\"Nuvigil\",SUMIFS('IMS Data'!D:D,'IMS Data'!C:C,'TRx Tracker vs AOP'!G:G),IF('TRx Tracker vs AOP'!$F$7=\"Fentora\",SUMIFS('IMS Data'!F:F,'IMS Data'!C:C,'TRx Tracker vs AOP'!G:G),IF('TRx Tracker vs AOP'!$F$7=\"Amrix\",SUMIFS('IMS Data'!E:E,'IMS Data'!C:C,'TRx Tracker vs AOP'!G:G),IF('TRx Tracker vs AOP'!$F$7=\"Provigil\",SUMIFS('IMS Data'!I:I,'IMS Data'!C:C,'TRx Tracker vs AOP'!G:G),IF('TRx Tracker vs AOP'!$F$7=\"Gabitril\",SUMIFS('IMS Data'!H:H,'IMS Data'!C:C,'TRx Tracker vs AOP'!G:G),IF('TRx Tracker vs AOP'!$F$7=\"Actiq\",SUMIFS('IMS Data'!G:G,'IMS Data'!C:C,'TRx Tracker vs AOP'!G:G),IF($F$7=\"Copaxone 40\",SUMIFS('IMS Data'!K:K,'IMS Data'!C:C,'TRx Tracker vs AOP'!G:G),IF($F$7=\"Azilect\",SUMIFS('IMS Data'!L:L,'IMS Data'!C:C,'TRx Tracker vs AOP'!G:G),IF($F$7=\"Copaxone 20\",SUMIFS('IMS Data'!J:J,'IMS Data'!C:C,'TRx Tracker vs AOP'!G:G),IF($F$7=\"Zecuity\",SUMIFS('IMS Data'!M:M,'IMS Data'!C:C,'TRx Tracker vs LBE'!G:G)))))))))))","v":0},{"$f":"IF($F$7=\"Zecuity\",SUMIFS('Zecuity Weekly Forecast'!B:B,'Zecuity Weekly Forecast'!A:A,'TRx Tracker vs AOP'!G:G),IF($F$7=\"Nuvigil\",SUMIFS('NUVIGIL Goals'!$E:$E,'NUVIGIL Goals'!$B:$B,'TRx Tracker vs AOP'!$F:$F),SUMIFS($15:$15,$9:$9,$E:$E)/SUMIFS($18:$18,$9:$9,$E:$E)))","v":2219.1738530769235},-2219.1738530769235]
[null,null,null,null,4,16,"2017-04-21",{"$f":"IF($F$7=\"Nuvigil\",SUMIFS('IMS Data'!D:D,'IMS Data'!C:C,'TRx Tracker vs AOP'!G:G),IF('TRx Tracker vs AOP'!$F$7=\"Fentora\",SUMIFS('IMS Data'!F:F,'IMS Data'!C:C,'TRx Tracker vs AOP'!G:G),IF('TRx Tracker vs AOP'!$F$7=\"Amrix\",SUMIFS('IMS Data'!E:E,'IMS Data'!C:C,'TRx Tracker vs AOP'!G:G),IF('TRx Tracker vs AOP'!$F$7=\"Provigil\",SUMIFS('IMS Data'!I:I,'IMS Data'!C:C,'TRx Tracker vs AOP'!G:G),IF('TRx Tracker vs AOP'!$F$7=\"Gabitril\",SUMIFS('IMS Data'!H:H,'IMS Data'!C:C,'TRx Tracker vs AOP'!G:G),IF('TRx Tracker vs AOP'!$F$7=\"Actiq\",SUMIFS('IMS Data'!G:G,'IMS Data'!C:C,'TRx Tracker vs AOP'!G:G),IF($F$7=\"Copaxone 40\",SUMIFS('IMS Data'!K:K,'IMS Data'!C:C,'TRx Tracker vs AOP'!G:G),IF($F$7=\"Azilect\",SUMIFS('IMS Data'!L:L,'IMS Data'!C:C,'TRx Tracker vs AOP'!G:G),IF($F$7=\"Copaxone 20\",SUMIFS('IMS Data'!J:J,'IMS Data'!C:C,'TRx Tracker vs AOP'!G:G),IF($F$7=\"Zecuity\",SUMIFS('IMS Data'!M:M,'IMS Data'!C:C,'TRx Tracker vs LBE'!G:G)))))))))))","v":0},{"$f":"IF($F$7=\"Zecuity\",SUMIFS('Zecuity Weekly Forecast'!B:B,'Zecuity Weekly Forecast'!A:A,'TRx Tracker vs AOP'!G:G),IF($F$7=\"Nuvigil\",SUMIFS('NUVIGIL Goals'!$E:$E,'NUVIGIL Goals'!$B:$B,'TRx Tracker vs AOP'!$F:$F),SUMIFS($15:$15,$9:$9,$E:$E)/SUMIFS($18:$18,$9:$9,$E:$E)))","v":2219.1738530769235},-2219.1738530769235]
[null,null,null,null,4,17,"2017-04-28",{"$f":"IF($F$7=\"Nuvigil\",SUMIFS('IMS Data'!D:D,'IMS Data'!C:C,'TRx Tracker vs AOP'!G:G),IF('TRx Tracker vs AOP'!$F$7=\"Fentora\",SUMIFS('IMS Data'!F:F,'IMS Data'!C:C,'TRx Tracker vs AOP'!G:G),IF('TRx Tracker vs AOP'!$F$7=\"Amrix\",SUMIFS('IMS Data'!E:E,'IMS Data'!C:C,'TRx Tracker vs AOP'!G:G),IF('TRx Tracker vs AOP'!$F$7=\"Provigil\",SUMIFS('IMS Data'!I:I,'IMS Data'!C:C,'TRx Tracker vs AOP'!G:G),IF('TRx Tracker vs AOP'!$F$7=\"Gabitril\",SUMIFS('IMS Data'!H:H,'IMS Data'!C:C,'TRx Tracker vs AOP'!G:G),IF('TRx Tracker vs AOP'!$F$7=\"Actiq\",SUMIFS('IMS Data'!G:G,'IMS Data'!C:C,'TRx Tracker vs AOP'!G:G),IF($F$7=\"Copaxone 40\",SUMIFS('IMS Data'!K:K,'IMS Data'!C:C,'TRx Tracker vs AOP'!G:G),IF($F$7=\"Azilect\",SUMIFS('IMS Data'!L:L,'IMS Data'!C:C,'TRx Tracker vs AOP'!G:G),IF($F$7=\"Copaxone 20\",SUMIFS('IMS Data'!J:J,'IMS Data'!C:C,'TRx Tracker vs AOP'!G:G),IF($F$7=\"Zecuity\",SUMIFS('IMS Data'!M:M,'IMS Data'!C:C,'TRx Tracker vs LBE'!G:G)))))))))))","v":0},{"$f":"IF($F$7=\"Zecuity\",SUMIFS('Zecuity Weekly Forecast'!B:B,'Zecuity Weekly Forecast'!A:A,'TRx Tracker vs AOP'!G:G),IF($F$7=\"Nuvigil\",SUMIFS('NUVIGIL Goals'!$E:$E,'NUVIGIL Goals'!$B:$B,'TRx Tracker vs AOP'!$F:$F),SUMIFS($15:$15,$9:$9,$E:$E)/SUMIFS($18:$18,$9:$9,$E:$E)))","v":2219.1738530769235},-2219.1738530769235]
[null,null,null,null,5,18,"2017-05-05",{"$f":"IF($F$7=\"Nuvigil\",SUMIFS('IMS Data'!D:D,'IMS Data'!C:C,'TRx Tracker vs AOP'!G:G),IF('TRx Tracker vs AOP'!$F$7=\"Fentora\",SUMIFS('IMS Data'!F:F,'IMS Data'!C:C,'TRx Tracker vs AOP'!G:G),IF('TRx Tracker vs AOP'!$F$7=\"Amrix\",SUMIFS('IMS Data'!E:E,'IMS Data'!C:C,'TRx Tracker vs AOP'!G:G),IF('TRx Tracker vs AOP'!$F$7=\"Provigil\",SUMIFS('IMS Data'!I:I,'IMS Data'!C:C,'TRx Tracker vs AOP'!G:G),IF('TRx Tracker vs AOP'!$F$7=\"Gabitril\",SUMIFS('IMS Data'!H:H,'IMS Data'!C:C,'TRx Tracker vs AOP'!G:G),IF('TRx Tracker vs AOP'!$F$7=\"Actiq\",SUMIFS('IMS Data'!G:G,'IMS Data'!C:C,'TRx Tracker vs AOP'!G:G),IF($F$7=\"Copaxone 40\",SUMIFS('IMS Data'!K:K,'IMS Data'!C:C,'TRx Tracker vs AOP'!G:G),IF($F$7=\"Azilect\",SUMIFS('IMS Data'!L:L,'IMS Data'!C:C,'TRx Tracker vs AOP'!G:G),IF($F$7=\"Copaxone 20\",SUMIFS('IMS Data'!J:J,'IMS Data'!C:C,'TRx Tracker vs AOP'!G:G),IF($F$7=\"Zecuity\",SUMIFS('IMS Data'!M:M,'IMS Data'!C:C,'TRx Tracker vs LBE'!G:G)))))))))))","v":0},{"$f":"IF($F$7=\"Zecuity\",SUMIFS('Zecuity Weekly Forecast'!B:B,'Zecuity Weekly Forecast'!A:A,'TRx Tracker vs AOP'!G:G),IF($F$7=\"Nuvigil\",SUMIFS('NUVIGIL Goals'!$E:$E,'NUVIGIL Goals'!$B:$B,'TRx Tracker vs AOP'!$F:$F),SUMIFS($15:$15,$9:$9,$E:$E)/SUMIFS($18:$18,$9:$9,$E:$E)))","v":2259.3767247692303},-2259.3767247692303]
[null,null,null,null,5,19,"2017-05-12",{"$f":"IF($F$7=\"Nuvigil\",SUMIFS('IMS Data'!D:D,'IMS Data'!C:C,'TRx Tracker vs AOP'!G:G),IF('TRx Tracker vs AOP'!$F$7=\"Fentora\",SUMIFS('IMS Data'!F:F,'IMS Data'!C:C,'TRx Tracker vs AOP'!G:G),IF('TRx Tracker vs AOP'!$F$7=\"Amrix\",SUMIFS('IMS Data'!E:E,'IMS Data'!C:C,'TRx Tracker vs AOP'!G:G),IF('TRx Tracker vs AOP'!$F$7=\"Provigil\",SUMIFS('IMS Data'!I:I,'IMS Data'!C:C,'TRx Tracker vs AOP'!G:G),IF('TRx Tracker vs AOP'!$F$7=\"Gabitril\",SUMIFS('IMS Data'!H:H,'IMS Data'!C:C,'TRx Tracker vs AOP'!G:G),IF('TRx Tracker vs AOP'!$F$7=\"Actiq\",SUMIFS('IMS Data'!G:G,'IMS Data'!C:C,'TRx Tracker vs AOP'!G:G),IF($F$7=\"Copaxone 40\",SUMIFS('IMS Data'!K:K,'IMS Data'!C:C,'TRx Tracker vs AOP'!G:G),IF($F$7=\"Azilect\",SUMIFS('IMS Data'!L:L,'IMS Data'!C:C,'TRx Tracker vs AOP'!G:G),IF($F$7=\"Copaxone 20\",SUMIFS('IMS Data'!J:J,'IMS Data'!C:C,'TRx Tracker vs AOP'!G:G),IF($F$7=\"Zecuity\",SUMIFS('IMS Data'!M:M,'IMS Data'!C:C,'TRx Tracker vs LBE'!G:G)))))))))))","v":0},{"$f":"IF($F$7=\"Zecuity\",SUMIFS('Zecuity Weekly Forecast'!B:B,'Zecuity Weekly Forecast'!A:A,'TRx Tracker vs AOP'!G:G),IF($F$7=\"Nuvigil\",SUMIFS('NUVIGIL Goals'!$E:$E,'NUVIGIL Goals'!$B:$B,'TRx Tracker vs AOP'!$F:$F),SUMIFS($15:$15,$9:$9,$E:$E)/SUMIFS($18:$18,$9:$9,$E:$E)))","v":2259.3767247692303},-2259.3767247692303]
[null,null,null,null,5,20,"2017-05-19",{"$f":"IF($F$7=\"Nuvigil\",SUMIFS('IMS Data'!D:D,'IMS Data'!C:C,'TRx Tracker vs AOP'!G:G),IF('TRx Tracker vs AOP'!$F$7=\"Fentora\",SUMIFS('IMS Data'!F:F,'IMS Data'!C:C,'TRx Tracker vs AOP'!G:G),IF('TRx Tracker vs AOP'!$F$7=\"Amrix\",SUMIFS('IMS Data'!E:E,'IMS Data'!C:C,'TRx Tracker vs AOP'!G:G),IF('TRx Tracker vs AOP'!$F$7=\"Provigil\",SUMIFS('IMS Data'!I:I,'IMS Data'!C:C,'TRx Tracker vs AOP'!G:G),IF('TRx Tracker vs AOP'!$F$7=\"Gabitril\",SUMIFS('IMS Data'!H:H,'IMS Data'!C:C,'TRx Tracker vs AOP'!G:G),IF('TRx Tracker vs AOP'!$F$7=\"Actiq\",SUMIFS('IMS Data'!G:G,'IMS Data'!C:C,'TRx Tracker vs AOP'!G:G),IF($F$7=\"Copaxone 40\",SUMIFS('IMS Data'!K:K,'IMS Data'!C:C,'TRx Tracker vs AOP'!G:G),IF($F$7=\"Azilect\",SUMIFS('IMS Data'!L:L,'IMS Data'!C:C,'TRx Tracker vs AOP'!G:G),IF($F$7=\"Copaxone 20\",SUMIFS('IMS Data'!J:J,'IMS Data'!C:C,'TRx Tracker vs AOP'!G:G),IF($F$7=\"Zecuity\",SUMIFS('IMS Data'!M:M,'IMS Data'!C:C,'TRx Tracker vs LBE'!G:G)))))))))))","v":0},{"$f":"IF($F$7=\"Zecuity\",SUMIFS('Zecuity Weekly Forecast'!B:B,'Zecuity Weekly Forecast'!A:A,'TRx Tracker vs AOP'!G:G),IF($F$7=\"Nuvigil\",SUMIFS('NUVIGIL Goals'!$E:$E,'NUVIGIL Goals'!$B:$B,'TRx Tracker vs AOP'!$F:$F),SUMIFS($15:$15,$9:$9,$E:$E)/SUMIFS($18:$18,$9:$9,$E:$E)))","v":2259.3767247692303},-2259.3767247692303]
[null,null,null,null,5,21,"2017-05-26",{"$f":"IF($F$7=\"Nuvigil\",SUMIFS('IMS Data'!D:D,'IMS Data'!C:C,'TRx Tracker vs AOP'!G:G),IF('TRx Tracker vs AOP'!$F$7=\"Fentora\",SUMIFS('IMS Data'!F:F,'IMS Data'!C:C,'TRx Tracker vs AOP'!G:G),IF('TRx Tracker vs AOP'!$F$7=\"Amrix\",SUMIFS('IMS Data'!E:E,'IMS Data'!C:C,'TRx Tracker vs AOP'!G:G),IF('TRx Tracker vs AOP'!$F$7=\"Provigil\",SUMIFS('IMS Data'!I:I,'IMS Data'!C:C,'TRx Tracker vs AOP'!G:G),IF('TRx Tracker vs AOP'!$F$7=\"Gabitril\",SUMIFS('IMS Data'!H:H,'IMS Data'!C:C,'TRx Tracker vs AOP'!G:G),IF('TRx Tracker vs AOP'!$F$7=\"Actiq\",SUMIFS('IMS Data'!G:G,'IMS Data'!C:C,'TRx Tracker vs AOP'!G:G),IF($F$7=\"Copaxone 40\",SUMIFS('IMS Data'!K:K,'IMS Data'!C:C,'TRx Tracker vs AOP'!G:G),IF($F$7=\"Azilect\",SUMIFS('IMS Data'!L:L,'IMS Data'!C:C,'TRx Tracker vs AOP'!G:G),IF($F$7=\"Copaxone 20\",SUMIFS('IMS Data'!J:J,'IMS Data'!C:C,'TRx Tracker vs AOP'!G:G),IF($F$7=\"Zecuity\",SUMIFS('IMS Data'!M:M,'IMS Data'!C:C,'TRx Tracker vs LBE'!G:G)))))))))))","v":0},{"$f":"IF($F$7=\"Zecuity\",SUMIFS('Zecuity Weekly Forecast'!B:B,'Zecuity Weekly Forecast'!A:A,'TRx Tracker vs AOP'!G:G),IF($F$7=\"Nuvigil\",SUMIFS('NUVIGIL Goals'!$E:$E,'NUVIGIL Goals'!$B:$B,'TRx Tracker vs AOP'!$F:$F),SUMIFS($15:$15,$9:$9,$E:$E)/SUMIFS($18:$18,$9:$9,$E:$E)))","v":2259.3767247692303},-2259.3767247692303]
[null,null,null,null,6,22,"2017-06-02",{"$f":"IF($F$7=\"Nuvigil\",SUMIFS('IMS Data'!D:D,'IMS Data'!C:C,'TRx Tracker vs AOP'!G:G),IF('TRx Tracker vs AOP'!$F$7=\"Fentora\",SUMIFS('IMS Data'!F:F,'IMS Data'!C:C,'TRx Tracker vs AOP'!G:G),IF('TRx Tracker vs AOP'!$F$7=\"Amrix\",SUMIFS('IMS Data'!E:E,'IMS Data'!C:C,'TRx Tracker vs AOP'!G:G),IF('TRx Tracker vs AOP'!$F$7=\"Provigil\",SUMIFS('IMS Data'!I:I,'IMS Data'!C:C,'TRx Tracker vs AOP'!G:G),IF('TRx Tracker vs AOP'!$F$7=\"Gabitril\",SUMIFS('IMS Data'!H:H,'IMS Data'!C:C,'TRx Tracker vs AOP'!G:G),IF('TRx Tracker vs AOP'!$F$7=\"Actiq\",SUMIFS('IMS Data'!G:G,'IMS Data'!C:C,'TRx Tracker vs AOP'!G:G),IF($F$7=\"Copaxone 40\",SUMIFS('IMS Data'!K:K,'IMS Data'!C:C,'TRx Tracker vs AOP'!G:G),IF($F$7=\"Azilect\",SUMIFS('IMS Data'!L:L,'IMS Data'!C:C,'TRx Tracker vs AOP'!G:G),IF($F$7=\"Copaxone 20\",SUMIFS('IMS Data'!J:J,'IMS Data'!C:C,'TRx Tracker vs AOP'!G:G),IF($F$7=\"Zecuity\",SUMIFS('IMS Data'!M:M,'IMS Data'!C:C,'TRx Tracker vs LBE'!G:G)))))))))))","v":0},{"$f":"IF($F$7=\"Zecuity\",SUMIFS('Zecuity Weekly Forecast'!B:B,'Zecuity Weekly Forecast'!A:A,'TRx Tracker vs AOP'!G:G),IF($F$7=\"Nuvigil\",SUMIFS('NUVIGIL Goals'!$E:$E,'NUVIGIL Goals'!$B:$B,'TRx Tracker vs AOP'!$F:$F),SUMIFS($15:$15,$9:$9,$E:$E)/SUMIFS($18:$18,$9:$9,$E:$E)))","v":2311.2951572307693},-2311.2951572307693]
[null,null,null,null,6,23,"2017-06-09",{"$f":"IF($F$7=\"Nuvigil\",SUMIFS('IMS Data'!D:D,'IMS Data'!C:C,'TRx Tracker vs AOP'!G:G),IF('TRx Tracker vs AOP'!$F$7=\"Fentora\",SUMIFS('IMS Data'!F:F,'IMS Data'!C:C,'TRx Tracker vs AOP'!G:G),IF('TRx Tracker vs AOP'!$F$7=\"Amrix\",SUMIFS('IMS Data'!E:E,'IMS Data'!C:C,'TRx Tracker vs AOP'!G:G),IF('TRx Tracker vs AOP'!$F$7=\"Provigil\",SUMIFS('IMS Data'!I:I,'IMS Data'!C:C,'TRx Tracker vs AOP'!G:G),IF('TRx Tracker vs AOP'!$F$7=\"Gabitril\",SUMIFS('IMS Data'!H:H,'IMS Data'!C:C,'TRx Tracker vs AOP'!G:G),IF('TRx Tracker vs AOP'!$F$7=\"Actiq\",SUMIFS('IMS Data'!G:G,'IMS Data'!C:C,'TRx Tracker vs AOP'!G:G),IF($F$7=\"Copaxone 40\",SUMIFS('IMS Data'!K:K,'IMS Data'!C:C,'TRx Tracker vs AOP'!G:G),IF($F$7=\"Azilect\",SUMIFS('IMS Data'!L:L,'IMS Data'!C:C,'TRx Tracker vs AOP'!G:G),IF($F$7=\"Copaxone 20\",SUMIFS('IMS Data'!J:J,'IMS Data'!C:C,'TRx Tracker vs AOP'!G:G),IF($F$7=\"Zecuity\",SUMIFS('IMS Data'!M:M,'IMS Data'!C:C,'TRx Tracker vs LBE'!G:G)))))))))))","v":0},{"$f":"IF($F$7=\"Zecuity\",SUMIFS('Zecuity Weekly Forecast'!B:B,'Zecuity Weekly Forecast'!A:A,'TRx Tracker vs AOP'!G:G),IF($F$7=\"Nuvigil\",SUMIFS('NUVIGIL Goals'!$E:$E,'NUVIGIL Goals'!$B:$B,'TRx Tracker vs AOP'!$F:$F),SUMIFS($15:$15,$9:$9,$E:$E)/SUMIFS($18:$18,$9:$9,$E:$E)))","v":2311.2951572307693},-2311.2951572307693]
[null,null,null,null,6,24,"2017-06-16",{"$f":"IF($F$7=\"Nuvigil\",SUMIFS('IMS Data'!D:D,'IMS Data'!C:C,'TRx Tracker vs AOP'!G:G),IF('TRx Tracker vs AOP'!$F$7=\"Fentora\",SUMIFS('IMS Data'!F:F,'IMS Data'!C:C,'TRx Tracker vs AOP'!G:G),IF('TRx Tracker vs AOP'!$F$7=\"Amrix\",SUMIFS('IMS Data'!E:E,'IMS Data'!C:C,'TRx Tracker vs AOP'!G:G),IF('TRx Tracker vs AOP'!$F$7=\"Provigil\",SUMIFS('IMS Data'!I:I,'IMS Data'!C:C,'TRx Tracker vs AOP'!G:G),IF('TRx Tracker vs AOP'!$F$7=\"Gabitril\",SUMIFS('IMS Data'!H:H,'IMS Data'!C:C,'TRx Tracker vs AOP'!G:G),IF('TRx Tracker vs AOP'!$F$7=\"Actiq\",SUMIFS('IMS Data'!G:G,'IMS Data'!C:C,'TRx Tracker vs AOP'!G:G),IF($F$7=\"Copaxone 40\",SUMIFS('IMS Data'!K:K,'IMS Data'!C:C,'TRx Tracker vs AOP'!G:G),IF($F$7=\"Azilect\",SUMIFS('IMS Data'!L:L,'IMS Data'!C:C,'TRx Tracker vs AOP'!G:G),IF($F$7=\"Copaxone 20\",SUMIFS('IMS Data'!J:J,'IMS Data'!C:C,'TRx Tracker vs AOP'!G:G),IF($F$7=\"Zecuity\",SUMIFS('IMS Data'!M:M,'IMS Data'!C:C,'TRx Tracker vs LBE'!G:G)))))))))))","v":0},{"$f":"IF($F$7=\"Zecuity\",SUMIFS('Zecuity Weekly Forecast'!B:B,'Zecuity Weekly Forecast'!A:A,'TRx Tracker vs AOP'!G:G),IF($F$7=\"Nuvigil\",SUMIFS('NUVIGIL Goals'!$E:$E,'NUVIGIL Goals'!$B:$B,'TRx Tracker vs AOP'!$F:$F),SUMIFS($15:$15,$9:$9,$E:$E)/SUMIFS($18:$18,$9:$9,$E:$E)))","v":2311.2951572307693},-2311.2951572307693]
[null,null,null,null,6,25,"2017-06-23",{"$f":"IF($F$7=\"Nuvigil\",SUMIFS('IMS Data'!D:D,'IMS Data'!C:C,'TRx Tracker vs AOP'!G:G),IF('TRx Tracker vs AOP'!$F$7=\"Fentora\",SUMIFS('IMS Data'!F:F,'IMS Data'!C:C,'TRx Tracker vs AOP'!G:G),IF('TRx Tracker vs AOP'!$F$7=\"Amrix\",SUMIFS('IMS Data'!E:E,'IMS Data'!C:C,'TRx Tracker vs AOP'!G:G),IF('TRx Tracker vs AOP'!$F$7=\"Provigil\",SUMIFS('IMS Data'!I:I,'IMS Data'!C:C,'TRx Tracker vs AOP'!G:G),IF('TRx Tracker vs AOP'!$F$7=\"Gabitril\",SUMIFS('IMS Data'!H:H,'IMS Data'!C:C,'TRx Tracker vs AOP'!G:G),IF('TRx Tracker vs AOP'!$F$7=\"Actiq\",SUMIFS('IMS Data'!G:G,'IMS Data'!C:C,'TRx Tracker vs AOP'!G:G),IF($F$7=\"Copaxone 40\",SUMIFS('IMS Data'!K:K,'IMS Data'!C:C,'TRx Tracker vs AOP'!G:G),IF($F$7=\"Azilect\",SUMIFS('IMS Data'!L:L,'IMS Data'!C:C,'TRx Tracker vs AOP'!G:G),IF($F$7=\"Copaxone 20\",SUMIFS('IMS Data'!J:J,'IMS Data'!C:C,'TRx Tracker vs AOP'!G:G),IF($F$7=\"Zecuity\",SUMIFS('IMS Data'!M:M,'IMS Data'!C:C,'TRx Tracker vs LBE'!G:G)))))))))))","v":0},{"$f":"IF($F$7=\"Zecuity\",SUMIFS('Zecuity Weekly Forecast'!B:B,'Zecuity Weekly Forecast'!A:A,'TRx Tracker vs AOP'!G:G),IF($F$7=\"Nuvigil\",SUMIFS('NUVIGIL Goals'!$E:$E,'NUVIGIL Goals'!$B:$B,'TRx Tracker vs AOP'!$F:$F),SUMIFS($15:$15,$9:$9,$E:$E)/SUMIFS($18:$18,$9:$9,$E:$E)))","v":2311.2951572307693},-2311.2951572307693]
[null,null,null,null,6,26,"2017-06-30",{"$f":"IF($F$7=\"Nuvigil\",SUMIFS('IMS Data'!D:D,'IMS Data'!C:C,'TRx Tracker vs AOP'!G:G),IF('TRx Tracker vs AOP'!$F$7=\"Fentora\",SUMIFS('IMS Data'!F:F,'IMS Data'!C:C,'TRx Tracker vs AOP'!G:G),IF('TRx Tracker vs AOP'!$F$7=\"Amrix\",SUMIFS('IMS Data'!E:E,'IMS Data'!C:C,'TRx Tracker vs AOP'!G:G),IF('TRx Tracker vs AOP'!$F$7=\"Provigil\",SUMIFS('IMS Data'!I:I,'IMS Data'!C:C,'TRx Tracker vs AOP'!G:G),IF('TRx Tracker vs AOP'!$F$7=\"Gabitril\",SUMIFS('IMS Data'!H:H,'IMS Data'!C:C,'TRx Tracker vs AOP'!G:G),IF('TRx Tracker vs AOP'!$F$7=\"Actiq\",SUMIFS('IMS Data'!G:G,'IMS Data'!C:C,'TRx Tracker vs AOP'!G:G),IF($F$7=\"Copaxone 40\",SUMIFS('IMS Data'!K:K,'IMS Data'!C:C,'TRx Tracker vs AOP'!G:G),IF($F$7=\"Azilect\",SUMIFS('IMS Data'!L:L,'IMS Data'!C:C,'TRx Tracker vs AOP'!G:G),IF($F$7=\"Copaxone 20\",SUMIFS('IMS Data'!J:J,'IMS Data'!C:C,'TRx Tracker vs AOP'!G:G),IF($F$7=\"Zecuity\",SUMIFS('IMS Data'!M:M,'IMS Data'!C:C,'TRx Tracker vs LBE'!G:G)))))))))))","v":0},{"$f":"IF($F$7=\"Zecuity\",SUMIFS('Zecuity Weekly Forecast'!B:B,'Zecuity Weekly Forecast'!A:A,'TRx Tracker vs AOP'!G:G),IF($F$7=\"Nuvigil\",SUMIFS('NUVIGIL Goals'!$E:$E,'NUVIGIL Goals'!$B:$B,'TRx Tracker vs AOP'!$F:$F),SUMIFS($15:$15,$9:$9,$E:$E)/SUMIFS($18:$18,$9:$9,$E:$E)))","v":2311.2951572307693},-2311.2951572307693]
[null,null,null,null,7,27,"2017-07-07",{"$f":"IF($F$7=\"Nuvigil\",SUMIFS('IMS Data'!D:D,'IMS Data'!C:C,'TRx Tracker vs AOP'!G:G),IF('TRx Tracker vs AOP'!$F$7=\"Fentora\",SUMIFS('IMS Data'!F:F,'IMS Data'!C:C,'TRx Tracker vs AOP'!G:G),IF('TRx Tracker vs AOP'!$F$7=\"Amrix\",SUMIFS('IMS Data'!E:E,'IMS Data'!C:C,'TRx Tracker vs AOP'!G:G),IF('TRx Tracker vs AOP'!$F$7=\"Provigil\",SUMIFS('IMS Data'!I:I,'IMS Data'!C:C,'TRx Tracker vs AOP'!G:G),IF('TRx Tracker vs AOP'!$F$7=\"Gabitril\",SUMIFS('IMS Data'!H:H,'IMS Data'!C:C,'TRx Tracker vs AOP'!G:G),IF('TRx Tracker vs AOP'!$F$7=\"Actiq\",SUMIFS('IMS Data'!G:G,'IMS Data'!C:C,'TRx Tracker vs AOP'!G:G),IF($F$7=\"Copaxone 40\",SUMIFS('IMS Data'!K:K,'IMS Data'!C:C,'TRx Tracker vs AOP'!G:G),IF($F$7=\"Azilect\",SUMIFS('IMS Data'!L:L,'IMS Data'!C:C,'TRx Tracker vs AOP'!G:G),IF($F$7=\"Copaxone 20\",SUMIFS('IMS Data'!J:J,'IMS Data'!C:C,'TRx Tracker vs AOP'!G:G),IF($F$7=\"Zecuity\",SUMIFS('IMS Data'!M:M,'IMS Data'!C:C,'TRx Tracker vs LBE'!G:G)))))))))))","v":0},{"$f":"IF($F$7=\"Zecuity\",SUMIFS('Zecuity Weekly Forecast'!B:B,'Zecuity Weekly Forecast'!A:A,'TRx Tracker vs AOP'!G:G),IF($F$7=\"Nuvigil\",SUMIFS('NUVIGIL Goals'!$E:$E,'NUVIGIL Goals'!$B:$B,'TRx Tracker vs AOP'!$F:$F),SUMIFS($15:$15,$9:$9,$E:$E)/SUMIFS($18:$18,$9:$9,$E:$E)))","v":2328.5601941538462},-2328.5601941538462]
[null,null,null,null,7,28,"2017-07-14",{"$f":"IF($F$7=\"Nuvigil\",SUMIFS('IMS Data'!D:D,'IMS Data'!C:C,'TRx Tracker vs AOP'!G:G),IF('TRx Tracker vs AOP'!$F$7=\"Fentora\",SUMIFS('IMS Data'!F:F,'IMS Data'!C:C,'TRx Tracker vs AOP'!G:G),IF('TRx Tracker vs AOP'!$F$7=\"Amrix\",SUMIFS('IMS Data'!E:E,'IMS Data'!C:C,'TRx Tracker vs AOP'!G:G),IF('TRx Tracker vs AOP'!$F$7=\"Provigil\",SUMIFS('IMS Data'!I:I,'IMS Data'!C:C,'TRx Tracker vs AOP'!G:G),IF('TRx Tracker vs AOP'!$F$7=\"Gabitril\",SUMIFS('IMS Data'!H:H,'IMS Data'!C:C,'TRx Tracker vs AOP'!G:G),IF('TRx Tracker vs AOP'!$F$7=\"Actiq\",SUMIFS('IMS Data'!G:G,'IMS Data'!C:C,'TRx Tracker vs AOP'!G:G),IF($F$7=\"Copaxone 40\",SUMIFS('IMS Data'!K:K,'IMS Data'!C:C,'TRx Tracker vs AOP'!G:G),IF($F$7=\"Azilect\",SUMIFS('IMS Data'!L:L,'IMS Data'!C:C,'TRx Tracker vs AOP'!G:G),IF($F$7=\"Copaxone 20\",SUMIFS('IMS Data'!J:J,'IMS Data'!C:C,'TRx Tracker vs AOP'!G:G),IF($F$7=\"Zecuity\",SUMIFS('IMS Data'!M:M,'IMS Data'!C:C,'TRx Tracker vs LBE'!G:G)))))))))))","v":0},{"$f":"IF($F$7=\"Zecuity\",SUMIFS('Zecuity Weekly Forecast'!B:B,'Zecuity Weekly Forecast'!A:A,'TRx Tracker vs AOP'!G:G),IF($F$7=\"Nuvigil\",SUMIFS('NUVIGIL Goals'!$E:$E,'NUVIGIL Goals'!$B:$B,'TRx Tracker vs AOP'!$F:$F),SUMIFS($15:$15,$9:$9,$E:$E)/SUMIFS($18:$18,$9:$9,$E:$E)))","v":2328.5601941538462},-2328.5601941538462]
[null,null,null,null,7,29,"2017-07-21",{"$f":"IF($F$7=\"Nuvigil\",SUMIFS('IMS Data'!D:D,'IMS Data'!C:C,'TRx Tracker vs AOP'!G:G),IF('TRx Tracker vs AOP'!$F$7=\"Fentora\",SUMIFS('IMS Data'!F:F,'IMS Data'!C:C,'TRx Tracker vs AOP'!G:G),IF('TRx Tracker vs AOP'!$F$7=\"Amrix\",SUMIFS('IMS Data'!E:E,'IMS Data'!C:C,'TRx Tracker vs AOP'!G:G),IF('TRx Tracker vs AOP'!$F$7=\"Provigil\",SUMIFS('IMS Data'!I:I,'IMS Data'!C:C,'TRx Tracker vs AOP'!G:G),IF('TRx Tracker vs AOP'!$F$7=\"Gabitril\",SUMIFS('IMS Data'!H:H,'IMS Data'!C:C,'TRx Tracker vs AOP'!G:G),IF('TRx Tracker vs AOP'!$F$7=\"Actiq\",SUMIFS('IMS Data'!G:G,'IMS Data'!C:C,'TRx Tracker vs AOP'!G:G),IF($F$7=\"Copaxone 40\",SUMIFS('IMS Data'!K:K,'IMS Data'!C:C,'TRx Tracker vs AOP'!G:G),IF($F$7=\"Azilect\",SUMIFS('IMS Data'!L:L,'IMS Data'!C:C,'TRx Tracker vs AOP'!G:G),IF($F$7=\"Copaxone 20\",SUMIFS('IMS Data'!J:J,'IMS Data'!C:C,'TRx Tracker vs AOP'!G:G),IF($F$7=\"Zecuity\",SUMIFS('IMS Data'!M:M,'IMS Data'!C:C,'TRx Tracker vs LBE'!G:G)))))))))))","v":0},{"$f":"IF($F$7=\"Zecuity\",SUMIFS('Zecuity Weekly Forecast'!B:B,'Zecuity Weekly Forecast'!A:A,'TRx Tracker vs AOP'!G:G),IF($F$7=\"Nuvigil\",SUMIFS('NUVIGIL Goals'!$E:$E,'NUVIGIL Goals'!$B:$B,'TRx Tracker vs AOP'!$F:$F),SUMIFS($15:$15,$9:$9,$E:$E)/SUMIFS($18:$18,$9:$9,$E:$E)))","v":2328.5601941538462},-2328.5601941538462]
[null,null,null,null,7,30,"2017-07-28",{"$f":"IF($F$7=\"Nuvigil\",SUMIFS('IMS Data'!D:D,'IMS Data'!C:C,'TRx Tracker vs AOP'!G:G),IF('TRx Tracker vs AOP'!$F$7=\"Fentora\",SUMIFS('IMS Data'!F:F,'IMS Data'!C:C,'TRx Tracker vs AOP'!G:G),IF('TRx Tracker vs AOP'!$F$7=\"Amrix\",SUMIFS('IMS Data'!E:E,'IMS Data'!C:C,'TRx Tracker vs AOP'!G:G),IF('TRx Tracker vs AOP'!$F$7=\"Provigil\",SUMIFS('IMS Data'!I:I,'IMS Data'!C:C,'TRx Tracker vs AOP'!G:G),IF('TRx Tracker vs AOP'!$F$7=\"Gabitril\",SUMIFS('IMS Data'!H:H,'IMS Data'!C:C,'TRx Tracker vs AOP'!G:G),IF('TRx Tracker vs AOP'!$F$7=\"Actiq\",SUMIFS('IMS Data'!G:G,'IMS Data'!C:C,'TRx Tracker vs AOP'!G:G),IF($F$7=\"Copaxone 40\",SUMIFS('IMS Data'!K:K,'IMS Data'!C:C,'TRx Tracker vs AOP'!G:G),IF($F$7=\"Azilect\",SUMIFS('IMS Data'!L:L,'IMS Data'!C:C,'TRx Tracker vs AOP'!G:G),IF($F$7=\"Copaxone 20\",SUMIFS('IMS Data'!J:J,'IMS Data'!C:C,'TRx Tracker vs AOP'!G:G),IF($F$7=\"Zecuity\",SUMIFS('IMS Data'!M:M,'IMS Data'!C:C,'TRx Tracker vs LBE'!G:G)))))))))))","v":0},{"$f":"IF($F$7=\"Zecuity\",SUMIFS('Zecuity Weekly Forecast'!B:B,'Zecuity Weekly Forecast'!A:A,'TRx Tracker vs AOP'!G:G),IF($F$7=\"Nuvigil\",SUMIFS('NUVIGIL Goals'!$E:$E,'NUVIGIL Goals'!$B:$B,'TRx Tracker vs AOP'!$F:$F),SUMIFS($15:$15,$9:$9,$E:$E)/SUMIFS($18:$18,$9:$9,$E:$E)))","v":2328.5601941538462},-2328.5601941538462]
[null,null,null,null,8,31,"2017-08-04",{"$f":"IF($F$7=\"Nuvigil\",SUMIFS('IMS Data'!D:D,'IMS Data'!C:C,'TRx Tracker vs AOP'!G:G),IF('TRx Tracker vs AOP'!$F$7=\"Fentora\",SUMIFS('IMS Data'!F:F,'IMS Data'!C:C,'TRx Tracker vs AOP'!G:G),IF('TRx Tracker vs AOP'!$F$7=\"Amrix\",SUMIFS('IMS Data'!E:E,'IMS Data'!C:C,'TRx Tracker vs AOP'!G:G),IF('TRx Tracker vs AOP'!$F$7=\"Provigil\",SUMIFS('IMS Data'!I:I,'IMS Data'!C:C,'TRx Tracker vs AOP'!G:G),IF('TRx Tracker vs AOP'!$F$7=\"Gabitril\",SUMIFS('IMS Data'!H:H,'IMS Data'!C:C,'TRx Tracker vs AOP'!G:G),IF('TRx Tracker vs AOP'!$F$7=\"Actiq\",SUMIFS('IMS Data'!G:G,'IMS Data'!C:C,'TRx Tracker vs AOP'!G:G),IF($F$7=\"Copaxone 40\",SUMIFS('IMS Data'!K:K,'IMS Data'!C:C,'TRx Tracker vs AOP'!G:G),IF($F$7=\"Azilect\",SUMIFS('IMS Data'!L:L,'IMS Data'!C:C,'TRx Tracker vs AOP'!G:G),IF($F$7=\"Copaxone 20\",SUMIFS('IMS Data'!J:J,'IMS Data'!C:C,'TRx Tracker vs AOP'!G:G),IF($F$7=\"Zecuity\",SUMIFS('IMS Data'!M:M,'IMS Data'!C:C,'TRx Tracker vs LBE'!G:G)))))))))))","v":0},{"$f":"IF($F$7=\"Zecuity\",SUMIFS('Zecuity Weekly Forecast'!B:B,'Zecuity Weekly Forecast'!A:A,'TRx Tracker vs AOP'!G:G),IF($F$7=\"Nuvigil\",SUMIFS('NUVIGIL Goals'!$E:$E,'NUVIGIL Goals'!$B:$B,'TRx Tracker vs AOP'!$F:$F),SUMIFS($15:$15,$9:$9,$E:$E)/SUMIFS($18:$18,$9:$9,$E:$E)))","v":2322.3965759723078},-2322.3965759723078]
[null,null,null,null,8,32,"2017-08-11",{"$f":"IF($F$7=\"Nuvigil\",SUMIFS('IMS Data'!D:D,'IMS Data'!C:C,'TRx Tracker vs AOP'!G:G),IF('TRx Tracker vs AOP'!$F$7=\"Fentora\",SUMIFS('IMS Data'!F:F,'IMS Data'!C:C,'TRx Tracker vs AOP'!G:G),IF('TRx Tracker vs AOP'!$F$7=\"Amrix\",SUMIFS('IMS Data'!E:E,'IMS Data'!C:C,'TRx Tracker vs AOP'!G:G),IF('TRx Tracker vs AOP'!$F$7=\"Provigil\",SUMIFS('IMS Data'!I:I,'IMS Data'!C:C,'TRx Tracker vs AOP'!G:G),IF('TRx Tracker vs AOP'!$F$7=\"Gabitril\",SUMIFS('IMS Data'!H:H,'IMS Data'!C:C,'TRx Tracker vs AOP'!G:G),IF('TRx Tracker vs AOP'!$F$7=\"Actiq\",SUMIFS('IMS Data'!G:G,'IMS Data'!C:C,'TRx Tracker vs AOP'!G:G),IF($F$7=\"Copaxone 40\",SUMIFS('IMS Data'!K:K,'IMS Data'!C:C,'TRx Tracker vs AOP'!G:G),IF($F$7=\"Azilect\",SUMIFS('IMS Data'!L:L,'IMS Data'!C:C,'TRx Tracker vs AOP'!G:G),IF($F$7=\"Copaxone 20\",SUMIFS('IMS Data'!J:J,'IMS Data'!C:C,'TRx Tracker vs AOP'!G:G),IF($F$7=\"Zecuity\",SUMIFS('IMS Data'!M:M,'IMS Data'!C:C,'TRx Tracker vs LBE'!G:G)))))))))))","v":0},{"$f":"IF($F$7=\"Zecuity\",SUMIFS('Zecuity Weekly Forecast'!B:B,'Zecuity Weekly Forecast'!A:A,'TRx Tracker vs AOP'!G:G),IF($F$7=\"Nuvigil\",SUMIFS('NUVIGIL Goals'!$E:$E,'NUVIGIL Goals'!$B:$B,'TRx Tracker vs AOP'!$F:$F),SUMIFS($15:$15,$9:$9,$E:$E)/SUMIFS($18:$18,$9:$9,$E:$E)))","v":2322.3965759723078},-2322.3965759723078]
[null,null,null,null,8,33,"2017-08-18",{"$f":"IF($F$7=\"Nuvigil\",SUMIFS('IMS Data'!D:D,'IMS Data'!C:C,'TRx Tracker vs AOP'!G:G),IF('TRx Tracker vs AOP'!$F$7=\"Fentora\",SUMIFS('IMS Data'!F:F,'IMS Data'!C:C,'TRx Tracker vs AOP'!G:G),IF('TRx Tracker vs AOP'!$F$7=\"Amrix\",SUMIFS('IMS Data'!E:E,'IMS Data'!C:C,'TRx Tracker vs AOP'!G:G),IF('TRx Tracker vs AOP'!$F$7=\"Provigil\",SUMIFS('IMS Data'!I:I,'IMS Data'!C:C,'TRx Tracker vs AOP'!G:G),IF('TRx Tracker vs AOP'!$F$7=\"Gabitril\",SUMIFS('IMS Data'!H:H,'IMS Data'!C:C,'TRx Tracker vs AOP'!G:G),IF('TRx Tracker vs AOP'!$F$7=\"Actiq\",SUMIFS('IMS Data'!G:G,'IMS Data'!C:C,'TRx Tracker vs AOP'!G:G),IF($F$7=\"Copaxone 40\",SUMIFS('IMS Data'!K:K,'IMS Data'!C:C,'TRx Tracker vs AOP'!G:G),IF($F$7=\"Azilect\",SUMIFS('IMS Data'!L:L,'IMS Data'!C:C,'TRx Tracker vs AOP'!G:G),IF($F$7=\"Copaxone 20\",SUMIFS('IMS Data'!J:J,'IMS Data'!C:C,'TRx Tracker vs AOP'!G:G),IF($F$7=\"Zecuity\",SUMIFS('IMS Data'!M:M,'IMS Data'!C:C,'TRx Tracker vs LBE'!G:G)))))))))))","v":0},{"$f":"IF($F$7=\"Zecuity\",SUMIFS('Zecuity Weekly Forecast'!B:B,'Zecuity Weekly Forecast'!A:A,'TRx Tracker vs AOP'!G:G),IF($F$7=\"Nuvigil\",SUMIFS('NUVIGIL Goals'!$E:$E,'NUVIGIL Goals'!$B:$B,'TRx Tracker vs AOP'!$F:$F),SUMIFS($15:$15,$9:$9,$E:$E)/SUMIFS($18:$18,$9:$9,$E:$E)))","v":2322.3965759723078},-2322.3965759723078]
[null,null,null,null,8,34,"2017-08-25",{"$f":"IF($F$7=\"Nuvigil\",SUMIFS('IMS Data'!D:D,'IMS Data'!C:C,'TRx Tracker vs AOP'!G:G),IF('TRx Tracker vs AOP'!$F$7=\"Fentora\",SUMIFS('IMS Data'!F:F,'IMS Data'!C:C,'TRx Tracker vs AOP'!G:G),IF('TRx Tracker vs AOP'!$F$7=\"Amrix\",SUMIFS('IMS Data'!E:E,'IMS Data'!C:C,'TRx Tracker vs AOP'!G:G),IF('TRx Tracker vs AOP'!$F$7=\"Provigil\",SUMIFS('IMS Data'!I:I,'IMS Data'!C:C,'TRx Tracker vs AOP'!G:G),IF('TRx Tracker vs AOP'!$F$7=\"Gabitril\",SUMIFS('IMS Data'!H:H,'IMS Data'!C:C,'TRx Tracker vs AOP'!G:G),IF('TRx Tracker vs AOP'!$F$7=\"Actiq\",SUMIFS('IMS Data'!G:G,'IMS Data'!C:C,'TRx Tracker vs AOP'!G:G),IF($F$7=\"Copaxone 40\",SUMIFS('IMS Data'!K:K,'IMS Data'!C:C,'TRx Tracker vs AOP'!G:G),IF($F$7=\"Azilect\",SUMIFS('IMS Data'!L:L,'IMS Data'!C:C,'TRx Tracker vs AOP'!G:G),IF($F$7=\"Copaxone 20\",SUMIFS('IMS Data'!J:J,'IMS Data'!C:C,'TRx Tracker vs AOP'!G:G),IF($F$7=\"Zecuity\",SUMIFS('IMS Data'!M:M,'IMS Data'!C:C,'TRx Tracker vs LBE'!G:G)))))))))))","v":0},{"$f":"IF($F$7=\"Zecuity\",SUMIFS('Zecuity Weekly Forecast'!B:B,'Zecuity Weekly Forecast'!A:A,'TRx Tracker vs AOP'!G:G),IF($F$7=\"Nuvigil\",SUMIFS('NUVIGIL Goals'!$E:$E,'NUVIGIL Goals'!$B:$B,'TRx Tracker vs AOP'!$F:$F),SUMIFS($15:$15,$9:$9,$E:$E)/SUMIFS($18:$18,$9:$9,$E:$E)))","v":2322.3965759723078},-2322.3965759723078]
[null,null,null,null,9,35,"2017-09-01",{"$f":"IF($F$7=\"Nuvigil\",SUMIFS('IMS Data'!D:D,'IMS Data'!C:C,'TRx Tracker vs AOP'!G:G),IF('TRx Tracker vs AOP'!$F$7=\"Fentora\",SUMIFS('IMS Data'!F:F,'IMS Data'!C:C,'TRx Tracker vs AOP'!G:G),IF('TRx Tracker vs AOP'!$F$7=\"Amrix\",SUMIFS('IMS Data'!E:E,'IMS Data'!C:C,'TRx Tracker vs AOP'!G:G),IF('TRx Tracker vs AOP'!$F$7=\"Provigil\",SUMIFS('IMS Data'!I:I,'IMS Data'!C:C,'TRx Tracker vs AOP'!G:G),IF('TRx Tracker vs AOP'!$F$7=\"Gabitril\",SUMIFS('IMS Data'!H:H,'IMS Data'!C:C,'TRx Tracker vs AOP'!G:G),IF('TRx Tracker vs AOP'!$F$7=\"Actiq\",SUMIFS('IMS Data'!G:G,'IMS Data'!C:C,'TRx Tracker vs AOP'!G:G),IF($F$7=\"Copaxone 40\",SUMIFS('IMS Data'!K:K,'IMS Data'!C:C,'TRx Tracker vs AOP'!G:G),IF($F$7=\"Azilect\",SUMIFS('IMS Data'!L:L,'IMS Data'!C:C,'TRx Tracker vs AOP'!G:G),IF($F$7=\"Copaxone 20\",SUMIFS('IMS Data'!J:J,'IMS Data'!C:C,'TRx Tracker vs AOP'!G:G),IF($F$7=\"Zecuity\",SUMIFS('IMS Data'!M:M,'IMS Data'!C:C,'TRx Tracker vs LBE'!G:G)))))))))))","v":0},{"$f":"IF($F$7=\"Zecuity\",SUMIFS('Zecuity Weekly Forecast'!B:B,'Zecuity Weekly Forecast'!A:A,'TRx Tracker vs AOP'!G:G),IF($F$7=\"Nuvigil\",SUMIFS('NUVIGIL Goals'!$E:$E,'NUVIGIL Goals'!$B:$B,'TRx Tracker vs AOP'!$F:$F),SUMIFS($15:$15,$9:$9,$E:$E)/SUMIFS($18:$18,$9:$9,$E:$E)))","v":2300.7240217661533},-2300.7240217661533]
[null,null,null,null,9,36,"2017-09-08",{"$f":"IF($F$7=\"Nuvigil\",SUMIFS('IMS Data'!D:D,'IMS Data'!C:C,'TRx Tracker vs AOP'!G:G),IF('TRx Tracker vs AOP'!$F$7=\"Fentora\",SUMIFS('IMS Data'!F:F,'IMS Data'!C:C,'TRx Tracker vs AOP'!G:G),IF('TRx Tracker vs AOP'!$F$7=\"Amrix\",SUMIFS('IMS Data'!E:E,'IMS Data'!C:C,'TRx Tracker vs AOP'!G:G),IF('TRx Tracker vs AOP'!$F$7=\"Provigil\",SUMIFS('IMS Data'!I:I,'IMS Data'!C:C,'TRx Tracker vs AOP'!G:G),IF('TRx Tracker vs AOP'!$F$7=\"Gabitril\",SUMIFS('IMS Data'!H:H,'IMS Data'!C:C,'TRx Tracker vs AOP'!G:G),IF('TRx Tracker vs AOP'!$F$7=\"Actiq\",SUMIFS('IMS Data'!G:G,'IMS Data'!C:C,'TRx Tracker vs AOP'!G:G),IF($F$7=\"Copaxone 40\",SUMIFS('IMS Data'!K:K,'IMS Data'!C:C,'TRx Tracker vs AOP'!G:G),IF($F$7=\"Azilect\",SUMIFS('IMS Data'!L:L,'IMS Data'!C:C,'TRx Tracker vs AOP'!G:G),IF($F$7=\"Copaxone 20\",SUMIFS('IMS Data'!J:J,'IMS Data'!C:C,'TRx Tracker vs AOP'!G:G),IF($F$7=\"Zecuity\",SUMIFS('IMS Data'!M:M,'IMS Data'!C:C,'TRx Tracker vs LBE'!G:G)))))))))))","v":0},{"$f":"IF($F$7=\"Zecuity\",SUMIFS('Zecuity Weekly Forecast'!B:B,'Zecuity Weekly Forecast'!A:A,'TRx Tracker vs AOP'!G:G),IF($F$7=\"Nuvigil\",SUMIFS('NUVIGIL Goals'!$E:$E,'NUVIGIL Goals'!$B:$B,'TRx Tracker vs AOP'!$F:$F),SUMIFS($15:$15,$9:$9,$E:$E)/SUMIFS($18:$18,$9:$9,$E:$E)))","v":2300.7240217661533},-2300.7240217661533]
[null,null,null,null,9,37,"2017-09-15",{"$f":"IF($F$7=\"Nuvigil\",SUMIFS('IMS Data'!D:D,'IMS Data'!C:C,'TRx Tracker vs AOP'!G:G),IF('TRx Tracker vs AOP'!$F$7=\"Fentora\",SUMIFS('IMS Data'!F:F,'IMS Data'!C:C,'TRx Tracker vs AOP'!G:G),IF('TRx Tracker vs AOP'!$F$7=\"Amrix\",SUMIFS('IMS Data'!E:E,'IMS Data'!C:C,'TRx Tracker vs AOP'!G:G),IF('TRx Tracker vs AOP'!$F$7=\"Provigil\",SUMIFS('IMS Data'!I:I,'IMS Data'!C:C,'TRx Tracker vs AOP'!G:G),IF('TRx Tracker vs AOP'!$F$7=\"Gabitril\",SUMIFS('IMS Data'!H:H,'IMS Data'!C:C,'TRx Tracker vs AOP'!G:G),IF('TRx Tracker vs AOP'!$F$7=\"Actiq\",SUMIFS('IMS Data'!G:G,'IMS Data'!C:C,'TRx Tracker vs AOP'!G:G),IF($F$7=\"Copaxone 40\",SUMIFS('IMS Data'!K:K,'IMS Data'!C:C,'TRx Tracker vs AOP'!G:G),IF($F$7=\"Azilect\",SUMIFS('IMS Data'!L:L,'IMS Data'!C:C,'TRx Tracker vs AOP'!G:G),IF($F$7=\"Copaxone 20\",SUMIFS('IMS Data'!J:J,'IMS Data'!C:C,'TRx Tracker vs AOP'!G:G),IF($F$7=\"Zecuity\",SUMIFS('IMS Data'!M:M,'IMS Data'!C:C,'TRx Tracker vs LBE'!G:G)))))))))))","v":0},{"$f":"IF($F$7=\"Zecuity\",SUMIFS('Zecuity Weekly Forecast'!B:B,'Zecuity Weekly Forecast'!A:A,'TRx Tracker vs AOP'!G:G),IF($F$7=\"Nuvigil\",SUMIFS('NUVIGIL Goals'!$E:$E,'NUVIGIL Goals'!$B:$B,'TRx Tracker vs AOP'!$F:$F),SUMIFS($15:$15,$9:$9,$E:$E)/SUMIFS($18:$18,$9:$9,$E:$E)))","v":2300.7240217661533},-2300.7240217661533]
[null,null,null,null,9,38,"2017-09-22",{"$f":"IF($F$7=\"Nuvigil\",SUMIFS('IMS Data'!D:D,'IMS Data'!C:C,'TRx Tracker vs AOP'!G:G),IF('TRx Tracker vs AOP'!$F$7=\"Fentora\",SUMIFS('IMS Data'!F:F,'IMS Data'!C:C,'TRx Tracker vs AOP'!G:G),IF('TRx Tracker vs AOP'!$F$7=\"Amrix\",SUMIFS('IMS Data'!E:E,'IMS Data'!C:C,'TRx Tracker vs AOP'!G:G),IF('TRx Tracker vs AOP'!$F$7=\"Provigil\",SUMIFS('IMS Data'!I:I,'IMS Data'!C:C,'TRx Tracker vs AOP'!G:G),IF('TRx Tracker vs AOP'!$F$7=\"Gabitril\",SUMIFS('IMS Data'!H:H,'IMS Data'!C:C,'TRx Tracker vs AOP'!G:G),IF('TRx Tracker vs AOP'!$F$7=\"Actiq\",SUMIFS('IMS Data'!G:G,'IMS Data'!C:C,'TRx Tracker vs AOP'!G:G),IF($F$7=\"Copaxone 40\",SUMIFS('IMS Data'!K:K,'IMS Data'!C:C,'TRx Tracker vs AOP'!G:G),IF($F$7=\"Azilect\",SUMIFS('IMS Data'!L:L,'IMS Data'!C:C,'TRx Tracker vs AOP'!G:G),IF($F$7=\"Copaxone 20\",SUMIFS('IMS Data'!J:J,'IMS Data'!C:C,'TRx Tracker vs AOP'!G:G),IF($F$7=\"Zecuity\",SUMIFS('IMS Data'!M:M,'IMS Data'!C:C,'TRx Tracker vs LBE'!G:G)))))))))))","v":0},{"$f":"IF($F$7=\"Zecuity\",SUMIFS('Zecuity Weekly Forecast'!B:B,'Zecuity Weekly Forecast'!A:A,'TRx Tracker vs AOP'!G:G),IF($F$7=\"Nuvigil\",SUMIFS('NUVIGIL Goals'!$E:$E,'NUVIGIL Goals'!$B:$B,'TRx Tracker vs AOP'!$F:$F),SUMIFS($15:$15,$9:$9,$E:$E)/SUMIFS($18:$18,$9:$9,$E:$E)))","v":2300.7240217661533},-2300.7240217661533]
[null,null,null,null,9,39,"2017-09-29",{"$f":"IF($F$7=\"Nuvigil\",SUMIFS('IMS Data'!D:D,'IMS Data'!C:C,'TRx Tracker vs AOP'!G:G),IF('TRx Tracker vs AOP'!$F$7=\"Fentora\",SUMIFS('IMS Data'!F:F,'IMS Data'!C:C,'TRx Tracker vs AOP'!G:G),IF('TRx Tracker vs AOP'!$F$7=\"Amrix\",SUMIFS('IMS Data'!E:E,'IMS Data'!C:C,'TRx Tracker vs AOP'!G:G),IF('TRx Tracker vs AOP'!$F$7=\"Provigil\",SUMIFS('IMS Data'!I:I,'IMS Data'!C:C,'TRx Tracker vs AOP'!G:G),IF('TRx Tracker vs AOP'!$F$7=\"Gabitril\",SUMIFS('IMS Data'!H:H,'IMS Data'!C:C,'TRx Tracker vs AOP'!G:G),IF('TRx Tracker vs AOP'!$F$7=\"Actiq\",SUMIFS('IMS Data'!G:G,'IMS Data'!C:C,'TRx Tracker vs AOP'!G:G),IF($F$7=\"Copaxone 40\",SUMIFS('IMS Data'!K:K,'IMS Data'!C:C,'TRx Tracker vs AOP'!G:G),IF($F$7=\"Azilect\",SUMIFS('IMS Data'!L:L,'IMS Data'!C:C,'TRx Tracker vs AOP'!G:G),IF($F$7=\"Copaxone 20\",SUMIFS('IMS Data'!J:J,'IMS Data'!C:C,'TRx Tracker vs AOP'!G:G),IF($F$7=\"Zecuity\",SUMIFS('IMS Data'!M:M,'IMS Data'!C:C,'TRx Tracker vs LBE'!G:G)))))))))))","v":0},{"$f":"IF($F$7=\"Zecuity\",SUMIFS('Zecuity Weekly Forecast'!B:B,'Zecuity Weekly Forecast'!A:A,'TRx Tracker vs AOP'!G:G),IF($F$7=\"Nuvigil\",SUMIFS('NUVIGIL Goals'!$E:$E,'NUVIGIL Goals'!$B:$B,'TRx Tracker vs AOP'!$F:$F),SUMIFS($15:$15,$9:$9,$E:$E)/SUMIFS($18:$18,$9:$9,$E:$E)))","v":2300.7240217661533},-2300.7240217661533]
[null,null,null,null,10,40,"2017-10-06",{"$f":"IF($F$7=\"Nuvigil\",SUMIFS('IMS Data'!D:D,'IMS Data'!C:C,'TRx Tracker vs AOP'!G:G),IF('TRx Tracker vs AOP'!$F$7=\"Fentora\",SUMIFS('IMS Data'!F:F,'IMS Data'!C:C,'TRx Tracker vs AOP'!G:G),IF('TRx Tracker vs AOP'!$F$7=\"Amrix\",SUMIFS('IMS Data'!E:E,'IMS Data'!C:C,'TRx Tracker vs AOP'!G:G),IF('TRx Tracker vs AOP'!$F$7=\"Provigil\",SUMIFS('IMS Data'!I:I,'IMS Data'!C:C,'TRx Tracker vs AOP'!G:G),IF('TRx Tracker vs AOP'!$F$7=\"Gabitril\",SUMIFS('IMS Data'!H:H,'IMS Data'!C:C,'TRx Tracker vs AOP'!G:G),IF('TRx Tracker vs AOP'!$F$7=\"Actiq\",SUMIFS('IMS Data'!G:G,'IMS Data'!C:C,'TRx Tracker vs AOP'!G:G),IF($F$7=\"Copaxone 40\",SUMIFS('IMS Data'!K:K,'IMS Data'!C:C,'TRx Tracker vs AOP'!G:G),IF($F$7=\"Azilect\",SUMIFS('IMS Data'!L:L,'IMS Data'!C:C,'TRx Tracker vs AOP'!G:G),IF($F$7=\"Copaxone 20\",SUMIFS('IMS Data'!J:J,'IMS Data'!C:C,'TRx Tracker vs AOP'!G:G),IF($F$7=\"Zecuity\",SUMIFS('IMS Data'!M:M,'IMS Data'!C:C,'TRx Tracker vs LBE'!G:G)))))))))))","v":0},{"$f":"IF($F$7=\"Zecuity\",SUMIFS('Zecuity Weekly Forecast'!B:B,'Zecuity Weekly Forecast'!A:A,'TRx Tracker vs AOP'!G:G),IF($F$7=\"Nuvigil\",SUMIFS('NUVIGIL Goals'!$E:$E,'NUVIGIL Goals'!$B:$B,'TRx Tracker vs AOP'!$F:$F),SUMIFS($15:$15,$9:$9,$E:$E)/SUMIFS($18:$18,$9:$9,$E:$E)))","v":2349.1117541769236},-2349.1117541769236]
[null,null,null,null,10,41,"2017-10-13",{"$f":"IF($F$7=\"Nuvigil\",SUMIFS('IMS Data'!D:D,'IMS Data'!C:C,'TRx Tracker vs AOP'!G:G),IF('TRx Tracker vs AOP'!$F$7=\"Fentora\",SUMIFS('IMS Data'!F:F,'IMS Data'!C:C,'TRx Tracker vs AOP'!G:G),IF('TRx Tracker vs AOP'!$F$7=\"Amrix\",SUMIFS('IMS Data'!E:E,'IMS Data'!C:C,'TRx Tracker vs AOP'!G:G),IF('TRx Tracker vs AOP'!$F$7=\"Provigil\",SUMIFS('IMS Data'!I:I,'IMS Data'!C:C,'TRx Tracker vs AOP'!G:G),IF('TRx Tracker vs AOP'!$F$7=\"Gabitril\",SUMIFS('IMS Data'!H:H,'IMS Data'!C:C,'TRx Tracker vs AOP'!G:G),IF('TRx Tracker vs AOP'!$F$7=\"Actiq\",SUMIFS('IMS Data'!G:G,'IMS Data'!C:C,'TRx Tracker vs AOP'!G:G),IF($F$7=\"Copaxone 40\",SUMIFS('IMS Data'!K:K,'IMS Data'!C:C,'TRx Tracker vs AOP'!G:G),IF($F$7=\"Azilect\",SUMIFS('IMS Data'!L:L,'IMS Data'!C:C,'TRx Tracker vs AOP'!G:G),IF($F$7=\"Copaxone 20\",SUMIFS('IMS Data'!J:J,'IMS Data'!C:C,'TRx Tracker vs AOP'!G:G),IF($F$7=\"Zecuity\",SUMIFS('IMS Data'!M:M,'IMS Data'!C:C,'TRx Tracker vs LBE'!G:G)))))))))))","v":0},{"$f":"IF($F$7=\"Zecuity\",SUMIFS('Zecuity Weekly Forecast'!B:B,'Zecuity Weekly Forecast'!A:A,'TRx Tracker vs AOP'!G:G),IF($F$7=\"Nuvigil\",SUMIFS('NUVIGIL Goals'!$E:$E,'NUVIGIL Goals'!$B:$B,'TRx Tracker vs AOP'!$F:$F),SUMIFS($15:$15,$9:$9,$E:$E)/SUMIFS($18:$18,$9:$9,$E:$E)))","v":2349.1117541769236},-2349.1117541769236]
[null,null,null,null,10,42,"2017-10-20",{"$f":"IF($F$7=\"Nuvigil\",SUMIFS('IMS Data'!D:D,'IMS Data'!C:C,'TRx Tracker vs AOP'!G:G),IF('TRx Tracker vs AOP'!$F$7=\"Fentora\",SUMIFS('IMS Data'!F:F,'IMS Data'!C:C,'TRx Tracker vs AOP'!G:G),IF('TRx Tracker vs AOP'!$F$7=\"Amrix\",SUMIFS('IMS Data'!E:E,'IMS Data'!C:C,'TRx Tracker vs AOP'!G:G),IF('TRx Tracker vs AOP'!$F$7=\"Provigil\",SUMIFS('IMS Data'!I:I,'IMS Data'!C:C,'TRx Tracker vs AOP'!G:G),IF('TRx Tracker vs AOP'!$F$7=\"Gabitril\",SUMIFS('IMS Data'!H:H,'IMS Data'!C:C,'TRx Tracker vs AOP'!G:G),IF('TRx Tracker vs AOP'!$F$7=\"Actiq\",SUMIFS('IMS Data'!G:G,'IMS Data'!C:C,'TRx Tracker vs AOP'!G:G),IF($F$7=\"Copaxone 40\",SUMIFS('IMS Data'!K:K,'IMS Data'!C:C,'TRx Tracker vs AOP'!G:G),IF($F$7=\"Azilect\",SUMIFS('IMS Data'!L:L,'IMS Data'!C:C,'TRx Tracker vs AOP'!G:G),IF($F$7=\"Copaxone 20\",SUMIFS('IMS Data'!J:J,'IMS Data'!C:C,'TRx Tracker vs AOP'!G:G),IF($F$7=\"Zecuity\",SUMIFS('IMS Data'!M:M,'IMS Data'!C:C,'TRx Tracker vs LBE'!G:G)))))))))))","v":0},{"$f":"IF($F$7=\"Zecuity\",SUMIFS('Zecuity Weekly Forecast'!B:B,'Zecuity Weekly Forecast'!A:A,'TRx Tracker vs AOP'!G:G),IF($F$7=\"Nuvigil\",SUMIFS('NUVIGIL Goals'!$E:$E,'NUVIGIL Goals'!$B:$B,'TRx Tracker vs AOP'!$F:$F),SUMIFS($15:$15,$9:$9,$E:$E)/SUMIFS($18:$18,$9:$9,$E:$E)))","v":2349.1117541769236},-2349.1117541769236]
[null,null,null,null,10,43,"2017-10-27",{"$f":"IF($F$7=\"Nuvigil\",SUMIFS('IMS Data'!D:D,'IMS Data'!C:C,'TRx Tracker vs AOP'!G:G),IF('TRx Tracker vs AOP'!$F$7=\"Fentora\",SUMIFS('IMS Data'!F:F,'IMS Data'!C:C,'TRx Tracker vs AOP'!G:G),IF('TRx Tracker vs AOP'!$F$7=\"Amrix\",SUMIFS('IMS Data'!E:E,'IMS Data'!C:C,'TRx Tracker vs AOP'!G:G),IF('TRx Tracker vs AOP'!$F$7=\"Provigil\",SUMIFS('IMS Data'!I:I,'IMS Data'!C:C,'TRx Tracker vs AOP'!G:G),IF('TRx Tracker vs AOP'!$F$7=\"Gabitril\",SUMIFS('IMS Data'!H:H,'IMS Data'!C:C,'TRx Tracker vs AOP'!G:G),IF('TRx Tracker vs AOP'!$F$7=\"Actiq\",SUMIFS('IMS Data'!G:G,'IMS Data'!C:C,'TRx Tracker vs AOP'!G:G),IF($F$7=\"Copaxone 40\",SUMIFS('IMS Data'!K:K,'IMS Data'!C:C,'TRx Tracker vs AOP'!G:G),IF($F$7=\"Azilect\",SUMIFS('IMS Data'!L:L,'IMS Data'!C:C,'TRx Tracker vs AOP'!G:G),IF($F$7=\"Copaxone 20\",SUMIFS('IMS Data'!J:J,'IMS Data'!C:C,'TRx Tracker vs AOP'!G:G),IF($F$7=\"Zecuity\",SUMIFS('IMS Data'!M:M,'IMS Data'!C:C,'TRx Tracker vs LBE'!G:G)))))))))))","v":0},{"$f":"IF($F$7=\"Zecuity\",SUMIFS('Zecuity Weekly Forecast'!B:B,'Zecuity Weekly Forecast'!A:A,'TRx Tracker vs AOP'!G:G),IF($F$7=\"Nuvigil\",SUMIFS('NUVIGIL Goals'!$E:$E,'NUVIGIL Goals'!$B:$B,'TRx Tracker vs AOP'!$F:$F),SUMIFS($15:$15,$9:$9,$E:$E)/SUMIFS($18:$18,$9:$9,$E:$E)))","v":2349.1117541769236},-2349.1117541769236]
[null,null,null,null,11,44,"2017-11-03",{"$f":"IF($F$7=\"Nuvigil\",SUMIFS('IMS Data'!D:D,'IMS Data'!C:C,'TRx Tracker vs AOP'!G:G),IF('TRx Tracker vs AOP'!$F$7=\"Fentora\",SUMIFS('IMS Data'!F:F,'IMS Data'!C:C,'TRx Tracker vs AOP'!G:G),IF('TRx Tracker vs AOP'!$F$7=\"Amrix\",SUMIFS('IMS Data'!E:E,'IMS Data'!C:C,'TRx Tracker vs AOP'!G:G),IF('TRx Tracker vs AOP'!$F$7=\"Provigil\",SUMIFS('IMS Data'!I:I,'IMS Data'!C:C,'TRx Tracker vs AOP'!G:G),IF('TRx Tracker vs AOP'!$F$7=\"Gabitril\",SUMIFS('IMS Data'!H:H,'IMS Data'!C:C,'TRx Tracker vs AOP'!G:G),IF('TRx Tracker vs AOP'!$F$7=\"Actiq\",SUMIFS('IMS Data'!G:G,'IMS Data'!C:C,'TRx Tracker vs AOP'!G:G),IF($F$7=\"Copaxone 40\",SUMIFS('IMS Data'!K:K,'IMS Data'!C:C,'TRx Tracker vs AOP'!G:G),IF($F$7=\"Azilect\",SUMIFS('IMS Data'!L:L,'IMS Data'!C:C,'TRx Tracker vs AOP'!G:G),IF($F$7=\"Copaxone 20\",SUMIFS('IMS Data'!J:J,'IMS Data'!C:C,'TRx Tracker vs AOP'!G:G),IF($F$7=\"Zecuity\",SUMIFS('IMS Data'!M:M,'IMS Data'!C:C,'TRx Tracker vs LBE'!G:G)))))))))))","v":0},{"$f":"IF($F$7=\"Zecuity\",SUMIFS('Zecuity Weekly Forecast'!B:B,'Zecuity Weekly Forecast'!A:A,'TRx Tracker vs AOP'!G:G),IF($F$7=\"Nuvigil\",SUMIFS('NUVIGIL Goals'!$E:$E,'NUVIGIL Goals'!$B:$B,'TRx Tracker vs AOP'!$F:$F),SUMIFS($15:$15,$9:$9,$E:$E)/SUMIFS($18:$18,$9:$9,$E:$E)))","v":2174.0146825707689},-2174.0146825707689]
[null,null,null,null,11,45,"2017-11-10",{"$f":"IF($F$7=\"Nuvigil\",SUMIFS('IMS Data'!D:D,'IMS Data'!C:C,'TRx Tracker vs AOP'!G:G),IF('TRx Tracker vs AOP'!$F$7=\"Fentora\",SUMIFS('IMS Data'!F:F,'IMS Data'!C:C,'TRx Tracker vs AOP'!G:G),IF('TRx Tracker vs AOP'!$F$7=\"Amrix\",SUMIFS('IMS Data'!E:E,'IMS Data'!C:C,'TRx Tracker vs AOP'!G:G),IF('TRx Tracker vs AOP'!$F$7=\"Provigil\",SUMIFS('IMS Data'!I:I,'IMS Data'!C:C,'TRx Tracker vs AOP'!G:G),IF('TRx Tracker vs AOP'!$F$7=\"Gabitril\",SUMIFS('IMS Data'!H:H,'IMS Data'!C:C,'TRx Tracker vs AOP'!G:G),IF('TRx Tracker vs AOP'!$F$7=\"Actiq\",SUMIFS('IMS Data'!G:G,'IMS Data'!C:C,'TRx Tracker vs AOP'!G:G),IF($F$7=\"Copaxone 40\",SUMIFS('IMS Data'!K:K,'IMS Data'!C:C,'TRx Tracker vs AOP'!G:G),IF($F$7=\"Azilect\",SUMIFS('IMS Data'!L:L,'IMS Data'!C:C,'TRx Tracker vs AOP'!G:G),IF($F$7=\"Copaxone 20\",SUMIFS('IMS Data'!J:J,'IMS Data'!C:C,'TRx Tracker vs AOP'!G:G),IF($F$7=\"Zecuity\",SUMIFS('IMS Data'!M:M,'IMS Data'!C:C,'TRx Tracker vs LBE'!G:G)))))))))))","v":0},{"$f":"IF($F$7=\"Zecuity\",SUMIFS('Zecuity Weekly Forecast'!B:B,'Zecuity Weekly Forecast'!A:A,'TRx Tracker vs AOP'!G:G),IF($F$7=\"Nuvigil\",SUMIFS('NUVIGIL Goals'!$E:$E,'NUVIGIL Goals'!$B:$B,'TRx Tracker vs AOP'!$F:$F),SUMIFS($15:$15,$9:$9,$E:$E)/SUMIFS($18:$18,$9:$9,$E:$E)))","v":2174.0146825707689},-2174.0146825707689]
[null,null,null,null,11,46,"2017-11-17",{"$f":"IF($F$7=\"Nuvigil\",SUMIFS('IMS Data'!D:D,'IMS Data'!C:C,'TRx Tracker vs AOP'!G:G),IF('TRx Tracker vs AOP'!$F$7=\"Fentora\",SUMIFS('IMS Data'!F:F,'IMS Data'!C:C,'TRx Tracker vs AOP'!G:G),IF('TRx Tracker vs AOP'!$F$7=\"Amrix\",SUMIFS('IMS Data'!E:E,'IMS Data'!C:C,'TRx Tracker vs AOP'!G:G),IF('TRx Tracker vs AOP'!$F$7=\"Provigil\",SUMIFS('IMS Data'!I:I,'IMS Data'!C:C,'TRx Tracker vs AOP'!G:G),IF('TRx Tracker vs AOP'!$F$7=\"Gabitril\",SUMIFS('IMS Data'!H:H,'IMS Data'!C:C,'TRx Tracker vs AOP'!G:G),IF('TRx Tracker vs AOP'!$F$7=\"Actiq\",SUMIFS('IMS Data'!G:G,'IMS Data'!C:C,'TRx Tracker vs AOP'!G:G),IF($F$7=\"Copaxone 40\",SUMIFS('IMS Data'!K:K,'IMS Data'!C:C,'TRx Tracker vs AOP'!G:G),IF($F$7=\"Azilect\",SUMIFS('IMS Data'!L:L,'IMS Data'!C:C,'TRx Tracker vs AOP'!G:G),IF($F$7=\"Copaxone 20\",SUMIFS('IMS Data'!J:J,'IMS Data'!C:C,'TRx Tracker vs AOP'!G:G),IF($F$7=\"Zecuity\",SUMIFS('IMS Data'!M:M,'IMS Data'!C:C,'TRx Tracker vs LBE'!G:G)))))))))))","v":0},{"$f":"IF($F$7=\"Zecuity\",SUMIFS('Zecuity Weekly Forecast'!B:B,'Zecuity Weekly Forecast'!A:A,'TRx Tracker vs AOP'!G:G),IF($F$7=\"Nuvigil\",SUMIFS('NUVIGIL Goals'!$E:$E,'NUVIGIL Goals'!$B:$B,'TRx Tracker vs AOP'!$F:$F),SUMIFS($15:$15,$9:$9,$E:$E)/SUMIFS($18:$18,$9:$9,$E:$E)))","v":2174.0146825707689},-2174.0146825707689]
[null,null,null,null,11,47,"2017-11-24",{"$f":"IF($F$7=\"Nuvigil\",SUMIFS('IMS Data'!D:D,'IMS Data'!C:C,'TRx Tracker vs AOP'!G:G),IF('TRx Tracker vs AOP'!$F$7=\"Fentora\",SUMIFS('IMS Data'!F:F,'IMS Data'!C:C,'TRx Tracker vs AOP'!G:G),IF('TRx Tracker vs AOP'!$F$7=\"Amrix\",SUMIFS('IMS Data'!E:E,'IMS Data'!C:C,'TRx Tracker vs AOP'!G:G),IF('TRx Tracker vs AOP'!$F$7=\"Provigil\",SUMIFS('IMS Data'!I:I,'IMS Data'!C:C,'TRx Tracker vs AOP'!G:G),IF('TRx Tracker vs AOP'!$F$7=\"Gabitril\",SUMIFS('IMS Data'!H:H,'IMS Data'!C:C,'TRx Tracker vs AOP'!G:G),IF('TRx Tracker vs AOP'!$F$7=\"Actiq\",SUMIFS('IMS Data'!G:G,'IMS Data'!C:C,'TRx Tracker vs AOP'!G:G),IF($F$7=\"Copaxone 40\",SUMIFS('IMS Data'!K:K,'IMS Data'!C:C,'TRx Tracker vs AOP'!G:G),IF($F$7=\"Azilect\",SUMIFS('IMS Data'!L:L,'IMS Data'!C:C,'TRx Tracker vs AOP'!G:G),IF($F$7=\"Copaxone 20\",SUMIFS('IMS Data'!J:J,'IMS Data'!C:C,'TRx Tracker vs AOP'!G:G),IF($F$7=\"Zecuity\",SUMIFS('IMS Data'!M:M,'IMS Data'!C:C,'TRx Tracker vs LBE'!G:G)))))))))))","v":0},{"$f":"IF($F$7=\"Zecuity\",SUMIFS('Zecuity Weekly Forecast'!B:B,'Zecuity Weekly Forecast'!A:A,'TRx Tracker vs AOP'!G:G),IF($F$7=\"Nuvigil\",SUMIFS('NUVIGIL Goals'!$E:$E,'NUVIGIL Goals'!$B:$B,'TRx Tracker vs AOP'!$F:$F),SUMIFS($15:$15,$9:$9,$E:$E)/SUMIFS($18:$18,$9:$9,$E:$E)))","v":2174.0146825707689},-2174.0146825707689]
[null,null,null,null,12,48,"2017-12-01",{"$f":"IF($F$7=\"Nuvigil\",SUMIFS('IMS Data'!D:D,'IMS Data'!C:C,'TRx Tracker vs AOP'!G:G),IF('TRx Tracker vs AOP'!$F$7=\"Fentora\",SUMIFS('IMS Data'!F:F,'IMS Data'!C:C,'TRx Tracker vs AOP'!G:G),IF('TRx Tracker vs AOP'!$F$7=\"Amrix\",SUMIFS('IMS Data'!E:E,'IMS Data'!C:C,'TRx Tracker vs AOP'!G:G),IF('TRx Tracker vs AOP'!$F$7=\"Provigil\",SUMIFS('IMS Data'!I:I,'IMS Data'!C:C,'TRx Tracker vs AOP'!G:G),IF('TRx Tracker vs AOP'!$F$7=\"Gabitril\",SUMIFS('IMS Data'!H:H,'IMS Data'!C:C,'TRx Tracker vs AOP'!G:G),IF('TRx Tracker vs AOP'!$F$7=\"Actiq\",SUMIFS('IMS Data'!G:G,'IMS Data'!C:C,'TRx Tracker vs AOP'!G:G),IF($F$7=\"Copaxone 40\",SUMIFS('IMS Data'!K:K,'IMS Data'!C:C,'TRx Tracker vs AOP'!G:G),IF($F$7=\"Azilect\",SUMIFS('IMS Data'!L:L,'IMS Data'!C:C,'TRx Tracker vs AOP'!G:G),IF($F$7=\"Copaxone 20\",SUMIFS('IMS Data'!J:J,'IMS Data'!C:C,'TRx Tracker vs AOP'!G:G),IF($F$7=\"Zecuity\",SUMIFS('IMS Data'!M:M,'IMS Data'!C:C,'TRx Tracker vs LBE'!G:G)))))))))))","v":0},{"$f":"IF($F$7=\"Zecuity\",SUMIFS('Zecuity Weekly Forecast'!B:B,'Zecuity Weekly Forecast'!A:A,'TRx Tracker vs AOP'!G:G),IF($F$7=\"Nuvigil\",SUMIFS('NUVIGIL Goals'!$E:$E,'NUVIGIL Goals'!$B:$B,'TRx Tracker vs AOP'!$F:$F),SUMIFS($15:$15,$9:$9,$E:$E)/SUMIFS($18:$18,$9:$9,$E:$E)))","v":2327.9756493323075},-2327.9756493323075]
[null,null,null,null,12,49,"2017-12-08",{"$f":"IF($F$7=\"Nuvigil\",SUMIFS('IMS Data'!D:D,'IMS Data'!C:C,'TRx Tracker vs AOP'!G:G),IF('TRx Tracker vs AOP'!$F$7=\"Fentora\",SUMIFS('IMS Data'!F:F,'IMS Data'!C:C,'TRx Tracker vs AOP'!G:G),IF('TRx Tracker vs AOP'!$F$7=\"Amrix\",SUMIFS('IMS Data'!E:E,'IMS Data'!C:C,'TRx Tracker vs AOP'!G:G),IF('TRx Tracker vs AOP'!$F$7=\"Provigil\",SUMIFS('IMS Data'!I:I,'IMS Data'!C:C,'TRx Tracker vs AOP'!G:G),IF('TRx Tracker vs AOP'!$F$7=\"Gabitril\",SUMIFS('IMS Data'!H:H,'IMS Data'!C:C,'TRx Tracker vs AOP'!G:G),IF('TRx Tracker vs AOP'!$F$7=\"Actiq\",SUMIFS('IMS Data'!G:G,'IMS Data'!C:C,'TRx Tracker vs AOP'!G:G),IF($F$7=\"Copaxone 40\",SUMIFS('IMS Data'!K:K,'IMS Data'!C:C,'TRx Tracker vs AOP'!G:G),IF($F$7=\"Azilect\",SUMIFS('IMS Data'!L:L,'IMS Data'!C:C,'TRx Tracker vs AOP'!G:G),IF($F$7=\"Copaxone 20\",SUMIFS('IMS Data'!J:J,'IMS Data'!C:C,'TRx Tracker vs AOP'!G:G),IF($F$7=\"Zecuity\",SUMIFS('IMS Data'!M:M,'IMS Data'!C:C,'TRx Tracker vs LBE'!G:G)))))))))))","v":0},{"$f":"IF($F$7=\"Zecuity\",SUMIFS('Zecuity Weekly Forecast'!B:B,'Zecuity Weekly Forecast'!A:A,'TRx Tracker vs AOP'!G:G),IF($F$7=\"Nuvigil\",SUMIFS('NUVIGIL Goals'!$E:$E,'NUVIGIL Goals'!$B:$B,'TRx Tracker vs AOP'!$F:$F),SUMIFS($15:$15,$9:$9,$E:$E)/SUMIFS($18:$18,$9:$9,$E:$E)))","v":2327.9756493323075},-2327.9756493323075]
[null,null,null,null,12,50,"2017-12-15",{"$f":"IF($F$7=\"Nuvigil\",SUMIFS('IMS Data'!D:D,'IMS Data'!C:C,'TRx Tracker vs AOP'!G:G),IF('TRx Tracker vs AOP'!$F$7=\"Fentora\",SUMIFS('IMS Data'!F:F,'IMS Data'!C:C,'TRx Tracker vs AOP'!G:G),IF('TRx Tracker vs AOP'!$F$7=\"Amrix\",SUMIFS('IMS Data'!E:E,'IMS Data'!C:C,'TRx Tracker vs AOP'!G:G),IF('TRx Tracker vs AOP'!$F$7=\"Provigil\",SUMIFS('IMS Data'!I:I,'IMS Data'!C:C,'TRx Tracker vs AOP'!G:G),IF('TRx Tracker vs AOP'!$F$7=\"Gabitril\",SUMIFS('IMS Data'!H:H,'IMS Data'!C:C,'TRx Tracker vs AOP'!G:G),IF('TRx Tracker vs AOP'!$F$7=\"Actiq\",SUMIFS('IMS Data'!G:G,'IMS Data'!C:C,'TRx Tracker vs AOP'!G:G),IF($F$7=\"Copaxone 40\",SUMIFS('IMS Data'!K:K,'IMS Data'!C:C,'TRx Tracker vs AOP'!G:G),IF($F$7=\"Azilect\",SUMIFS('IMS Data'!L:L,'IMS Data'!C:C,'TRx Tracker vs AOP'!G:G),IF($F$7=\"Copaxone 20\",SUMIFS('IMS Data'!J:J,'IMS Data'!C:C,'TRx Tracker vs AOP'!G:G),IF($F$7=\"Zecuity\",SUMIFS('IMS Data'!M:M,'IMS Data'!C:C,'TRx Tracker vs LBE'!G:G)))))))))))","v":0},{"$f":"IF($F$7=\"Zecuity\",SUMIFS('Zecuity Weekly Forecast'!B:B,'Zecuity Weekly Forecast'!A:A,'TRx Tracker vs AOP'!G:G),IF($F$7=\"Nuvigil\",SUMIFS('NUVIGIL Goals'!$E:$E,'NUVIGIL Goals'!$B:$B,'TRx Tracker vs AOP'!$F:$F),SUMIFS($15:$15,$9:$9,$E:$E)/SUMIFS($18:$18,$9:$9,$E:$E)))","v":2327.9756493323075},-2327.9756493323075]
[null,null,null,null,12,51,"2017-12-22",{"$f":"IF($F$7=\"Nuvigil\",SUMIFS('IMS Data'!D:D,'IMS Data'!C:C,'TRx Tracker vs AOP'!G:G),IF('TRx Tracker vs AOP'!$F$7=\"Fentora\",SUMIFS('IMS Data'!F:F,'IMS Data'!C:C,'TRx Tracker vs AOP'!G:G),IF('TRx Tracker vs AOP'!$F$7=\"Amrix\",SUMIFS('IMS Data'!E:E,'IMS Data'!C:C,'TRx Tracker vs AOP'!G:G),IF('TRx Tracker vs AOP'!$F$7=\"Provigil\",SUMIFS('IMS Data'!I:I,'IMS Data'!C:C,'TRx Tracker vs AOP'!G:G),IF('TRx Tracker vs AOP'!$F$7=\"Gabitril\",SUMIFS('IMS Data'!H:H,'IMS Data'!C:C,'TRx Tracker vs AOP'!G:G),IF('TRx Tracker vs AOP'!$F$7=\"Actiq\",SUMIFS('IMS Data'!G:G,'IMS Data'!C:C,'TRx Tracker vs AOP'!G:G),IF($F$7=\"Copaxone 40\",SUMIFS('IMS Data'!K:K,'IMS Data'!C:C,'TRx Tracker vs AOP'!G:G),IF($F$7=\"Azilect\",SUMIFS('IMS Data'!L:L,'IMS Data'!C:C,'TRx Tracker vs AOP'!G:G),IF($F$7=\"Copaxone 20\",SUMIFS('IMS Data'!J:J,'IMS Data'!C:C,'TRx Tracker vs AOP'!G:G),IF($F$7=\"Zecuity\",SUMIFS('IMS Data'!M:M,'IMS Data'!C:C,'TRx Tracker vs LBE'!G:G)))))))))))","v":0},{"$f":"IF($F$7=\"Zecuity\",SUMIFS('Zecuity Weekly Forecast'!B:B,'Zecuity Weekly Forecast'!A:A,'TRx Tracker vs AOP'!G:G),IF($F$7=\"Nuvigil\",SUMIFS('NUVIGIL Goals'!$E:$E,'NUVIGIL Goals'!$B:$B,'TRx Tracker vs AOP'!$F:$F),SUMIFS($15:$15,$9:$9,$E:$E)/SUMIFS($18:$18,$9:$9,$E:$E)))","v":2327.9756493323075},-2327.9756493323075]
[null,null,null,null,12,52,"2017-12-29",{"$f":"IF($F$7=\"Nuvigil\",SUMIFS('IMS Data'!D:D,'IMS Data'!C:C,'TRx Tracker vs AOP'!G:G),IF('TRx Tracker vs AOP'!$F$7=\"Fentora\",SUMIFS('IMS Data'!F:F,'IMS Data'!C:C,'TRx Tracker vs AOP'!G:G),IF('TRx Tracker vs AOP'!$F$7=\"Amrix\",SUMIFS('IMS Data'!E:E,'IMS Data'!C:C,'TRx Tracker vs AOP'!G:G),IF('TRx Tracker vs AOP'!$F$7=\"Provigil\",SUMIFS('IMS Data'!I:I,'IMS Data'!C:C,'TRx Tracker vs AOP'!G:G),IF('TRx Tracker vs AOP'!$F$7=\"Gabitril\",SUMIFS('IMS Data'!H:H,'IMS Data'!C:C,'TRx Tracker vs AOP'!G:G),IF('TRx Tracker vs AOP'!$F$7=\"Actiq\",SUMIFS('IMS Data'!G:G,'IMS Data'!C:C,'TRx Tracker vs AOP'!G:G),IF($F$7=\"Copaxone 40\",SUMIFS('IMS Data'!K:K,'IMS Data'!C:C,'TRx Tracker vs AOP'!G:G),IF($F$7=\"Azilect\",SUMIFS('IMS Data'!L:L,'IMS Data'!C:C,'TRx Tracker vs AOP'!G:G),IF($F$7=\"Copaxone 20\",SUMIFS('IMS Data'!J:J,'IMS Data'!C:C,'TRx Tracker vs AOP'!G:G),IF($F$7=\"Zecuity\",SUMIFS('IMS Data'!M:M,'IMS Data'!C:C,'TRx Tracker vs LBE'!G:G)))))))))))","v":0},{"$f":"IF($F$7=\"Zecuity\",SUMIFS('Zecuity Weekly Forecast'!B:B,'Zecuity Weekly Forecast'!A:A,'TRx Tracker vs AOP'!G:G),IF($F$7=\"Nuvigil\",SUMIFS('NUVIGIL Goals'!$E:$E,'NUVIGIL Goals'!$B:$B,'TRx Tracker vs AOP'!$F:$F),SUMIFS($15:$15,$9:$9,$E:$E)/SUMIFS($18:$18,$9:$9,$E:$E)))","v":2327.9756493323075},-2327.9756493323075]

{"sheet":"TRx Tracker vs LBE","index":2,"n_rows":73,"n_cols":15,"rows_kept":73,"cut":false,"hidden":true,"merged":[]}
[]
[]
[]
[]
[null,null,"CNS TRx Tracker"]
[]
[null,null,null,"Select Product",null,"Nuvigil"]
[]
[null,null,null,1,2,3,4,5,6,7,8,9,10,11,12]
[null,null,null,"Jan","Feb","Mar","Apr","May","Jun","Jul","Aug","Sep","Oct","Nov","Dec"]
[null,null,"Unit Forecast",{"$f":"SUMIFS('Data Inputs'!D:D,'Data Inputs'!$C:$C,'TRx Tracker vs LBE'!$F$7,'Data Inputs'!$B:$B,'TRx Tracker vs LBE'!$C:$C,'Data Inputs'!$A:$A,\"LBE\")","v":0},{"$f":"SUMIFS('Data Inputs'!E:E,'Data Inputs'!$C:$C,'TRx Tracker vs LBE'!$F$7,'Data Inputs'!$B:$B,'TRx Tracker vs LBE'!$C:$C,'Data Inputs'!$A:$A,\"LBE\")","v":0},{"$f":"SUMIFS('Data Inputs'!F:F,'Data Inputs'!$C:$C,'TRx Tracker vs LBE'!$F$7,'Data Inputs'!$B:$B,'TRx Tracker vs LBE'!$C:$C,'Data Inputs'!$A:$A,\"LBE\")","v":0},{"$f":"SUMIFS('Data Inputs'!G:G,'Data Inputs'!$C:$C,'TRx Tracker vs LBE'!$F$7,'Data Inputs'!$B:$B,'TRx Tracker vs LBE'!$C:$C,'Data Inputs'!$A:$A,\"LBE\")","v":0},{"$f":"SUMIFS('Data Inputs'!H:H,'Data Inputs'!$C:$C,'TRx Tracker vs LBE'!$F$7,'Data Inputs'!$B:$B,'TRx Tracker vs LBE'!$C:$C,'Data Inputs'!$A:$A,\"LBE\")","v":0},{"$f":"SUMIFS('Data Inputs'!I:I,'Data Inputs'!$C:$C,'TRx Tracker vs LBE'!$F$7,'Data Inputs'!$B:$B,'TRx Tracker vs LBE'!$C:$C,'Data Inputs'!$A:$A,\"LBE\")","v":0},{"$f":"SUMIFS('Data Inputs'!J:J,'Data Inputs'!$C:$C,'TRx Tracker vs LBE'!$F$7,'Data Inputs'!$B:$B,'TRx Tracker vs LBE'!$C:$C,'Data Inputs'!$A:$A,\"LBE\")","v":0},{"$f":"SUMIFS('Data Inputs'!K:K,'Data Inputs'!$C:$C,'TRx Tracker vs LBE'!$F$7,'Data Inputs'!$B:$B,'TRx Tracker vs LBE'!$C:$C,'Data Inputs'!$A:$A,\"LBE\")","v":0},{"$f":"SUMIFS('Data Inputs'!L:L,'Data Inputs'!$C:$C,'TRx Tracker vs LBE'!$F$7,'Data Inputs'!$B:$B,'TRx Tracker vs LBE'!$C:$C,'Data Inputs'!$A:$A,\"LBE\")","v":0},{"$f":"SUMIFS('Data Inputs'!M:M,'Data Inputs'!$C:$C,'TRx Tracker vs LBE'!$F$7,'Data Inputs'!$B:$B,'TRx Tracker vs LBE'!$C:$C,'Data Inputs'!$A:$A,\"LBE\")","v":0},{"$f":"SUMIFS('Data Inputs'!N:N,'Data Inputs'!$C:$C,'TRx Tracker vs LBE'!$F$7,'Data Inputs'!$B:$B,'TRx Tracker vs LBE'!$C:$C,'Data Inputs'!$A:$A,\"LBE\")","v":0},{"$f":"SUMIFS('Data Inputs'!O:O,'Data Inputs'!$C:$C,'TRx Tracker vs LBE'!$F$7,'Data Inputs'!$B:$B,'TRx Tracker vs LBE'!$C:$C,'Data Inputs'!$A:$A,\"LBE\")","v":0}]
[null,null,"Bottle Size",{"$f":"SUMIFS('Data Inputs'!D:D,'Data Inputs'!$C:$C,'TRx Tracker vs LBE'!$F$7,'Data Inputs'!$B:$B,'TRx Tracker vs LBE'!$C:$C,'Data Inputs'!$A:$A,\"LBE\")","v":30},{"$f":"SUMIFS('Data Inputs'!E:E,'Data Inputs'!$C:$C,'TRx Tracker vs LBE'!$F$7,'Data Inputs'!$B:$B,'TRx Tracker vs LBE'!$C:$C,'Data Inputs'!$A:$A,\"LBE\")","v":30},{"$f":"SUMIFS('Data Inputs'!F:F,'Data Inputs'!$C:$C,'TRx Tracker vs LBE'!$F$7,'Data Inputs'!$B:$B,'TRx Tracker vs LBE'!$C:$C,'Data Inputs'!$A:$A,\"LBE\")","v":30},{"$f":"SUMIFS('Data Inputs'!G:G,'Data Inputs'!$C:$C,'TRx Tracker vs LBE'!$F$7,'Data Inputs'!$B:$B,'TRx Tracker vs LBE'!$C:$C,'Data Inputs'!$A:$A,\"LBE\")","v":30},{"$f":"SUMIFS('Data Inputs'!H:H,'Data Inputs'!$C:$C,'TRx Tracker vs LBE'!$F$7,'Data Inputs'!$B:$B,'TRx Tracker vs LBE'!$C:$C,'Data Inputs'!$A:$A,\"LBE\")","v":30},{"$f":"SUMIFS('Data Inputs'!I:I,'Data Inputs'!$C:$C,'TRx Tracker vs LBE'!$F$7,'Data Inputs'!$B:$B,'TRx Tracker vs LBE'!$C:$C,'Data Inputs'!$A:$A,\"LBE\")","v":30},{"$f":"SUMIFS('Data Inputs'!J:J,'Data Inputs'!$C:$C,'TRx Tracker vs LBE'!$F$7,'Data Inputs'!$B:$B,'TRx Tracker vs LBE'!$C:$C,'Data Inputs'!$A:$A,\"LBE\")","v":30},{"$f":"SUMIFS('Data Inputs'!K:K,'Data Inputs'!$C:$C,'TRx Tracker vs LBE'!$F$7,'Data Inputs'!$B:$B,'TRx Tracker vs LBE'!$C:$C,'Data Inputs'!$A:$A,\"LBE\")","v":30},{"$f":"SUMIFS('Data Inputs'!L:L,'Data Inputs'!$C:$C,'TRx Tracker vs LBE'!$F$7,'Data Inputs'!$B:$B,'TRx Tracker vs LBE'!$C:$C,'Data Inputs'!$A:$A,\"LBE\")","v":30},{"$f":"SUMIFS('Data Inputs'!M:M,'Data Inputs'!$C:$C,'TRx Tracker vs LBE'!$F$7,'Data Inputs'!$B:$B,'TRx Tracker vs LBE'!$C:$C,'Data Inputs'!$A:$A,\"LBE\")","v":30},{"$f":"SUMIFS('Data Inputs'!N:N,'Data Inputs'!$C:$C,'TRx Tracker vs LBE'!$F$7,'Data Inputs'!$B:$B,'TRx Tracker vs LBE'!$C:$C,'Data Inputs'!$A:$A,\"LBE\")","v":30},{"$f":"SUMIFS('Data Inputs'!O:O,'Data Inputs'!$C:$C,'TRx Tracker vs LBE'!$F$7,'Data Inputs'!$B:$B,'TRx Tracker vs LBE'!$C:$C,'Data Inputs'!$A:$A,\"LBE\")","v":30}]
[null,null,"Avg Units per TRx",{"$f":"SUMIFS('Data Inputs'!D:D,'Data Inputs'!$C:$C,'TRx Tracker vs LBE'!$F$7,'Data Inputs'!$B:$B,'TRx Tracker vs LBE'!$C:$C,'Data Inputs'!$A:$A,\"LBE\")","v":34},{"$f":"SUMIFS('Data Inputs'!E:E,'Data Inputs'!$C:$C,'TRx Tracker vs LBE'!$F$7,'Data Inputs'!$B:$B,'TRx Tracker vs LBE'!$C:$C,'Data Inputs'!$A:$A,\"LBE\")","v":34},{"$f":"SUMIFS('Data Inputs'!F:F,'Data Inputs'!$C:$C,'TRx Tracker vs LBE'!$F$7,'Data Inputs'!$B:$B,'TRx Tracker vs LBE'!$C:$C,'Data Inputs'!$A:$A,\"LBE\")","v":34},{"$f":"SUMIFS('Data Inputs'!G:G,'Data Inputs'!$C:$C,'TRx Tracker vs LBE'!$F$7,'Data Inputs'!$B:$B,'TRx Tracker vs LBE'!$C:$C,'Data Inputs'!$A:$A,\"LBE\")","v":34},{"$f":"SUMIFS('Data Inputs'!H:H,'Data Inputs'!$C:$C,'TRx Tracker vs LBE'!$F$7,'Data Inputs'!$B:$B,'TRx Tracker vs LBE'!$C:$C,'Data Inputs'!$A:$A,\"LBE\")","v":34},{"$f":"SUMIFS('Data Inputs'!I:I,'Data Inputs'!$C:$C,'TRx Tracker vs LBE'!$F$7,'Data Inputs'!$B:$B,'TRx Tracker vs LBE'!$C:$C,'Data Inputs'!$A:$A,\"LBE\")","v":34},{"$f":"SUMIFS('Data Inputs'!J:J,'Data Inputs'!$C:$C,'TRx Tracker vs LBE'!$F$7,'Data Inputs'!$B:$B,'TRx Tracker vs LBE'!$C:$C,'Data Inputs'!$A:$A,\"LBE\")","v":34},{"$f":"SUMIFS('Data Inputs'!K:K,'Data Inputs'!$C:$C,'TRx Tracker vs LBE'!$F$7,'Data Inputs'!$B:$B,'TRx Tracker vs LBE'!$C:$C,'Data Inputs'!$A:$A,\"LBE\")","v":34},{"$f":"SUMIFS('Data Inputs'!L:L,'Data Inputs'!$C:$C,'TRx Tracker vs LBE'!$F$7,'Data Inputs'!$B:$B,'TRx Tracker vs LBE'!$C:$C,'Data Inputs'!$A:$A,\"LBE\")","v":34},{"$f":"SUMIFS('Data Inputs'!M:M,'Data Inputs'!$C:$C,'TRx Tracker vs LBE'!$F$7,'Data Inputs'!$B:$B,'TRx Tracker vs LBE'!$C:$C,'Data Inputs'!$A:$A,\"LBE\")","v":34},{"$f":"SUMIFS('Data Inputs'!N:N,'Data Inputs'!$C:$C,'TRx Tracker vs LBE'!$F$7,'Data Inputs'!$B:$B,'TRx Tracker vs LBE'!$C:$C,'Data Inputs'!$A:$A,\"LBE\")","v":34},{"$f":"SUMIFS('Data Inputs'!O:O,'Data Inputs'!$C:$C,'TRx Tracker vs LBE'!$F$7,'Data Inputs'!$B:$B,'TRx Tracker vs LBE'!$C:$C,'Data Inputs'!$A:$A,\"LBE\")","v":34}]
[null,null,"NPA Capture Rate",{"$f":"SUMIFS('Data Inputs'!D:D,'Data Inputs'!$C:$C,'TRx Tracker vs LBE'!$F$7,'Data Inputs'!$B:$B,'TRx Tracker vs LBE'!$C:$C)","v":2},{"$f":"SUMIFS('Data Inputs'!E:E,'Data Inputs'!$C:$C,'TRx Tracker vs LBE'!$F$7,'Data Inputs'!$B:$B,'TRx Tracker vs LBE'!$C:$C)","v":2},{"$f":"SUMIFS('Data Inputs'!F:F,'Data Inputs'!$C:$C,'TRx Tracker vs LBE'!$F$7,'Data Inputs'!$B:$B,'TRx Tracker vs LBE'!$C:$C)","v":2},{"$f":"SUMIFS('Data Inputs'!G:G,'Data Inputs'!$C:$C,'TRx Tracker vs LBE'!$F$7,'Data Inputs'!$B:$B,'TRx Tracker vs LBE'!$C:$C)","v":2},{"$f":"SUMIFS('Data Inputs'!H:H,'Data Inputs'!$C:$C,'TRx Tracker vs LBE'!$F$7,'Data Inputs'!$B:$B,'TRx Tracker vs LBE'!$C:$C)","v":2},{"$f":"SUMIFS('Data Inputs'!I:I,'Data Inputs'!$C:$C,'TRx Tracker vs LBE'!$F$7,'Data Inputs'!$B:$B,'TRx Tracker vs LBE'!$C:$C)","v":2},{"$f":"SUMIFS('Data Inputs'!J:J,'Data Inputs'!$C:$C,'TRx Tracker vs LBE'!$F$7,'Data Inputs'!$B:$B,'TRx Tracker vs LBE'!$C:$C)","v":2},{"$f":"SUMIFS('Data Inputs'!K:K,'Data Inputs'!$C:$C,'TRx Tracker vs LBE'!$F$7,'Data Inputs'!$B:$B,'TRx Tracker vs LBE'!$C:$C)","v":2},{"$f":"SUMIFS('Data Inputs'!L:L,'Data Inputs'!$C:$C,'TRx Tracker vs LBE'!$F$7,'Data Inputs'!$B:$B,'TRx Tracker vs LBE'!$C:$C)","v":2},{"$f":"SUMIFS('Data Inputs'!M:M,'Data Inputs'!$C:$C,'TRx Tracker vs LBE'!$F$7,'Data Inputs'!$B:$B,'TRx Tracker vs LBE'!$C:$C)","v":2},{"$f":"SUMIFS('Data Inputs'!N:N,'Data Inputs'!$C:$C,'TRx Tracker vs LBE'!$F$7,'Data Inputs'!$B:$B,'TRx Tracker vs LBE'!$C:$C)","v":2},{"$f":"SUMIFS('Data Inputs'!O:O,'Data Inputs'!$C:$C,'TRx Tracker vs LBE'!$F$7,'Data Inputs'!$B:$B,'TRx Tracker vs LBE'!$C:$C)","v":2}]
[null,null,"TRx Forecast",{"$f":"SUMIFS('Data Inputs'!D:D,'Data Inputs'!$C:$C,'TRx Tracker vs LBE'!$F$7,'Data Inputs'!$B:$B,'TRx Tracker vs LBE'!$C:$C,'Data Inputs'!$A:$A,\"LBE\")","v":0},{"$f":"SUMIFS('Data Inputs'!E:E,'Data Inputs'!$C:$C,'TRx Tracker vs LBE'!$F$7,'Data Inputs'!$B:$B,'TRx Tracker vs LBE'!$C:$C,'Data Inputs'!$A:$A,\"LBE\")","v":0},{"$f":"SUMIFS('Data Inputs'!F:F,'Data Inputs'!$C:$C,'TRx Tracker vs LBE'!$F$7,'Data Inputs'!$B:$B,'TRx Tracker vs LBE'!$C:$C,'Data Inputs'!$A:$A,\"LBE\")","v":0},{"$f":"SUMIFS('Data Inputs'!G:G,'Data Inputs'!$C:$C,'TRx Tracker vs LBE'!$F$7,'Data Inputs'!$B:$B,'TRx Tracker vs LBE'!$C:$C,'Data Inputs'!$A:$A,\"LBE\")","v":0},{"$f":"SUMIFS('Data Inputs'!H:H,'Data Inputs'!$C:$C,'TRx Tracker vs LBE'!$F$7,'Data Inputs'!$B:$B,'TRx Tracker vs LBE'!$C:$C,'Data Inputs'!$A:$A,\"LBE\")","v":0},{"$f":"SUMIFS('Data Inputs'!I:I,'Data Inputs'!$C:$C,'TRx Tracker vs LBE'!$F$7,'Data Inputs'!$B:$B,'TRx Tracker vs LBE'!$C:$C,'Data Inputs'!$A:$A,\"LBE\")","v":0},{"$f":"SUMIFS('Data Inputs'!J:J,'Data Inputs'!$C:$C,'TRx Tracker vs LBE'!$F$7,'Data Inputs'!$B:$B,'TRx Tracker vs LBE'!$C:$C,'Data Inputs'!$A:$A,\"LBE\")","v":0},{"$f":"SUMIFS('Data Inputs'!K:K,'Data Inputs'!$C:$C,'TRx Tracker vs LBE'!$F$7,'Data Inputs'!$B:$B,'TRx Tracker vs LBE'!$C:$C,'Data Inputs'!$A:$A,\"LBE\")","v":0},{"$f":"SUMIFS('Data Inputs'!L:L,'Data Inputs'!$C:$C,'TRx Tracker vs LBE'!$F$7,'Data Inputs'!$B:$B,'TRx Tracker vs LBE'!$C:$C,'Data Inputs'!$A:$A,\"LBE\")","v":0},{"$f":"SUMIFS('Data Inputs'!M:M,'Data Inputs'!$C:$C,'TRx Tracker vs LBE'!$F$7,'Data Inputs'!$B:$B,'TRx Tracker vs LBE'!$C:$C,'Data Inputs'!$A:$A,\"LBE\")","v":0},{"$f":"SUMIFS('Data Inputs'!N:N,'Data Inputs'!$C:$C,'TRx Tracker vs LBE'!$F$7,'Data Inputs'!$B:$B,'TRx Tracker vs LBE'!$C:$C,'Data Inputs'!$A:$A,\"LBE\")","v":0},{"$f":"SUMIFS('Data Inputs'!O:O,'Data Inputs'!$C:$C,'TRx Tracker vs LBE'!$F$7,'Data Inputs'!$B:$B,'TRx Tracker vs LBE'!$C:$C,'Data Inputs'!$A:$A,\"LBE\")","v":0}]
[null,null,"Actual TRxs To Date",{"$f":"IF($F$7=\"Nuvigil\",SUMIFS('Split Month Calcs'!$D:$D,'Split Month Calcs'!$A:$A,'TRx Tracker vs AOP'!D9),IF($F$7=\"amrix\",SUMIFS('Split Month Calcs'!$E:$E,'Split Month Calcs'!$A:$A,'TRx Tracker vs AOP'!D9),IF($F$7=\"Fentora\",SUMIFS('Split Month Calcs'!$F:$F,'Split Month Calcs'!$A:$A,'TRx Tracker vs AOP'!D9),IF($F$7=\"Provigil\",SUMIFS('Split Month Calcs'!$I:$I,'Split Month Calcs'!$A:$A,'TRx Tracker vs AOP'!D9),IF($F$7=\"Gabitril\",SUMIFS('Split Month Calcs'!$H:$H,'Split Month Calcs'!$A:$A,'TRx Tracker vs AOP'!D9),IF($F$7=\"Actiq\",SUMIFS('Split Month Calcs'!$G:$G,'Split Month Calcs'!$A:$A,'TRx Tracker vs AOP'!D9),IF($F$7=\"Copaxone 40\",SUMIFS('Split Month Calcs'!$K:$K,'Split Month Calcs'!$A:$A,'TRx Tracker vs AOP'!D9),IF($F$7=\"Copaxone 20\",SUMIFS('Split Month Calcs'!$J:$J,'Split Month Calcs'!$A:$A,'TRx Tracker vs AOP'!D9),IF($F$7=\"Azilect\",SUMIFS('Split Month Calcs'!$L:$L,'Split Month Calcs'!$A:$A,'TRx Tracker vs AOP'!D9),IF($F$7=\"Zecuity\",SUMIFS('Split Month Calcs'!$M:$M,'Split Month Calcs'!$A:$A,'TRx Tracker vs AOP'!D9)))))))))))","v":6125},{"$f":"IF($F$7=\"Nuvigil\",SUMIFS('Split Month Calcs'!$D:$D,'Split Month Calcs'!$A:$A,'TRx Tracker vs AOP'!E9),IF($F$7=\"amrix\",SUMIFS('Split Month Calcs'!$E:$E,'Split Month Calcs'!$A:$A,'TRx Tracker vs AOP'!E9),IF($F$7=\"Fentora\",SUMIFS('Split Month Calcs'!$F:$F,'Split Month Calcs'!$A:$A,'TRx Tracker vs AOP'!E9),IF($F$7=\"Provigil\",SUMIFS('Split Month Calcs'!$I:$I,'Split Month Calcs'!$A:$A,'TRx Tracker vs AOP'!E9),IF($F$7=\"Gabitril\",SUMIFS('Split Month Calcs'!$H:$H,'Split Month Calcs'!$A:$A,'TRx Tracker vs AOP'!E9),IF($F$7=\"Actiq\",SUMIFS('Split Month Calcs'!$G:$G,'Split Month Calcs'!$A:$A,'TRx Tracker vs AOP'!E9),IF($F$7=\"Copaxone 40\",SUMIFS('Split Month Calcs'!$K:$K,'Split Month Calcs'!$A:$A,'TRx Tracker vs AOP'!E9),IF($F$7=\"Copaxone 20\",SUMIFS('Split Month Calcs'!$J:$J,'Split Month Calcs'!$A:$A,'TRx Tracker vs AOP'!E9),IF($F$7=\"Azilect\",SUMIFS('Split Month Calcs'!$L:$L,'Split Month Calcs'!$A:$A,'TRx Tracker vs AOP'!E9),IF($F$7=\"Zecuity\",SUMIFS('Split Month Calcs'!$M:$M,'Split Month Calcs'!$A:$A,'TRx Tracker vs AOP'!E9)))))))))))","v":0},{"$f":"IF($F$7=\"Nuvigil\",SUMIFS('Split Month Calcs'!$D:$D,'Split Month Calcs'!$A:$A,'TRx Tracker vs AOP'!F9),IF($F$7=\"amrix\",SUMIFS('Split Month Calcs'!$E:$E,'Split Month Calcs'!$A:$A,'TRx Tracker vs AOP'!F9),IF($F$7=\"Fentora\",SUMIFS('Split Month Calcs'!$F:$F,'Split Month Calcs'!$A:$A,'TRx Tracker vs AOP'!F9),IF($F$7=\"Provigil\",SUMIFS('Split Month Calcs'!$I:$I,'Split Month Calcs'!$A:$A,'TRx Tracker vs AOP'!F9),IF($F$7=\"Gabitril\",SUMIFS('Split Month Calcs'!$H:$H,'Split Month Calcs'!$A:$A,'TRx Tracker vs AOP'!F9),IF($F$7=\"Actiq\",SUMIFS('Split Month Calcs'!$G:$G,'Split Month Calcs'!$A:$A,'TRx Tracker vs AOP'!F9),IF($F$7=\"Copaxone 40\",SUMIFS('Split Month Calcs'!$K:$K,'Split Month Calcs'!$A:$A,'TRx Tracker vs AOP'!F9),IF($F$7=\"Copaxone 20\",SUMIFS('Split Month Calcs'!$J:$J,'Split Month Calcs'!$A:$A,'TRx Tracker vs AOP'!F9),IF($F$7=\"Azilect\",SUMIFS('Split Month Calcs'!$L:$L,'Split Month Calcs'!$A:$A,'TRx Tracker vs AOP'!F9),IF($F$7=\"Zecuity\",SUMIFS('Split Month Calcs'!$M:$M,'Split Month Calcs'!$A:$A,'TRx Tracker vs AOP'!F9)))))))))))","v":0},{"$f":"IF($F$7=\"Nuvigil\",SUMIFS('Split Month Calcs'!$D:$D,'Split Month Calcs'!$A:$A,'TRx Tracker vs AOP'!G9),IF($F$7=\"amrix\",SUMIFS('Split Month Calcs'!$E:$E,'Split Month Calcs'!$A:$A,'TRx Tracker vs AOP'!G9),IF($F$7=\"Fentora\",SUMIFS('Split Month Calcs'!$F:$F,'Split Month Calcs'!$A:$A,'TRx Tracker vs AOP'!G9),IF($F$7=\"Provigil\",SUMIFS('Split Month Calcs'!$I:$I,'Split Month Calcs'!$A:$A,'TRx Tracker vs AOP'!G9),IF($F$7=\"Gabitril\",SUMIFS('Split Month Calcs'!$H:$H,'Split Month Calcs'!$A:$A,'TRx Tracker vs AOP'!G9),IF($F$7=\"Actiq\",SUMIFS('Split Month Calcs'!$G:$G,'Split Month Calcs'!$A:$A,'TRx Tracker vs AOP'!G9),IF($F$7=\"Copaxone 40\",SUMIFS('Split Month Calcs'!$K:$K,'Split Month Calcs'!$A:$A,'TRx Tracker vs AOP'!G9),IF($F$7=\"Copaxone 20\",SUMIFS('Split Month Calcs'!$J:$J,'Split Month Calcs'!$A:$A,'TRx Tracker vs AOP'!G9),IF($F$7=\"Azilect\",SUMIFS('Split Month Calcs'!$L:$L,'Split Month Calcs'!$A:$A,'TRx Tracker vs AOP'!G9),IF($F$7=\"Zecuity\",SUMIFS('Split Month Calcs'!$M:$M,'Split Month Calcs'!$A:$A,'TRx Tracker vs AOP'!G9)))))))))))","v":0},{"$f":"IF($F$7=\"Nuvigil\",SUMIFS('Split Month Calcs'!$D:$D,'Split Month Calcs'!$A:$A,'TRx Tracker vs AOP'!H9),IF($F$7=\"amrix\",SUMIFS('Split Month Calcs'!$E:$E,'Split Month Calcs'!$A:$A,'TRx Tracker vs AOP'!H9),IF($F$7=\"Fentora\",SUMIFS('Split Month Calcs'!$F:$F,'Split Month Calcs'!$A:$A,'TRx Tracker vs AOP'!H9),IF($F$7=\"Provigil\",SUMIFS('Split Month Calcs'!$I:$I,'Split Month Calcs'!$A:$A,'TRx Tracker vs AOP'!H9),IF($F$7=\"Gabitril\",SUMIFS('Split Month Calcs'!$H:$H,'Split Month Calcs'!$A:$A,'TRx Tracker vs AOP'!H9),IF($F$7=\"Actiq\",SUMIFS('Split Month Calcs'!$G:$G,'Split Month Calcs'!$A:$A,'TRx Tracker vs AOP'!H9),IF($F$7=\"Copaxone 40\",SUMIFS('Split Month Calcs'!$K:$K,'Split Month Calcs'!$A:$A,'TRx Tracker vs AOP'!H9),IF($F$7=\"Copaxone 20\",SUMIFS('Split Month Calcs'!$J:$J,'Split Month Calcs'!$A:$A,'TRx Tracker vs AOP'!H9),IF($F$7=\"Azilect\",SUMIFS('Split Month Calcs'!$L:$L,'Split Month Calcs'!$A:$A,'TRx Tracker vs AOP'!H9),IF($F$7=\"Zecuity\",SUMIFS('Split Month Calcs'!$M:$M,'Split Month Calcs'!$A:$A,'TRx Tracker vs AOP'!H9)))))))))))","v":0},{"$f":"IF($F$7=\"Nuvigil\",SUMIFS('Split Month Calcs'!$D:$D,'Split Month Calcs'!$A:$A,'TRx Tracker vs AOP'!I9),IF($F$7=\"amrix\",SUMIFS('Split Month Calcs'!$E:$E,'Split Month Calcs'!$A:$A,'TRx Tracker vs AOP'!I9),IF($F$7=\"Fentora\",SUMIFS('Split Month Calcs'!$F:$F,'Split Month Calcs'!$A:$A,'TRx Tracker vs AOP'!I9),IF($F$7=\"Provigil\",SUMIFS('Split Month Calcs'!$I:$I,'Split Month Calcs'!$A:$A,'TRx Tracker vs AOP'!I9),IF($F$7=\"Gabitril\",SUMIFS('Split Month Calcs'!$H:$H,'Split Month Calcs'!$A:$A,'TRx Tracker vs AOP'!I9),IF($F$7=\"Actiq\",SUMIFS('Split Month Calcs'!$G:$G,'Split Month Calcs'!$A:$A,'TRx Tracker vs AOP'!I9),IF($F$7=\"Copaxone 40\",SUMIFS('Split Month Calcs'!$K:$K,'Split Month Calcs'!$A:$A,'TRx Tracker vs AOP'!I9),IF($F$7=\"Copaxone 20\",SUMIFS('Split Month Calcs'!$J:$J,'Split Month Calcs'!$A:$A,'TRx Tracker vs AOP'!I9),IF($F$7=\"Azilect\",SUMIFS('Split Month Calcs'!$L:$L,'Split Month Calcs'!$A:$A,'TRx Tracker vs AOP'!I9),IF($F$7=\"Zecuity\",SUMIFS('Split Month Calcs'!$M:$M,'Split Month Calcs'!$A:$A,'TRx Tracker vs AOP'!I9)))))))))))","v":0},{"$f":"IF($F$7=\"Nuvigil\",SUMIFS('Split Month Calcs'!$D:$D,'Split Month Calcs'!$A:$A,'TRx Tracker vs AOP'!J9),IF($F$7=\"amrix\",SUMIFS('Split Month Calcs'!$E:$E,'Split Month Calcs'!$A:$A,'TRx Tracker vs AOP'!J9),IF($F$7=\"Fentora\",SUMIFS('Split Month Calcs'!$F:$F,'Split Month Calcs'!$A:$A,'TRx Tracker vs AOP'!J9),IF($F$7=\"Provigil\",SUMIFS('Split Month Calcs'!$I:$I,'Split Month Calcs'!$A:$A,'TRx Tracker vs AOP'!J9),IF($F$7=\"Gabitril\",SUMIFS('Split Month Calcs'!$H:$H,'Split Month Calcs'!$A:$A,'TRx Tracker vs AOP'!J9),IF($F$7=\"Actiq\",SUMIFS('Split Month Calcs'!$G:$G,'Split Month Calcs'!$A:$A,'TRx Tracker vs AOP'!J9),IF($F$7=\"Copaxone 40\",SUMIFS('Split Month Calcs'!$K:$K,'Split Month Calcs'!$A:$A,'TRx Tracker vs AOP'!J9),IF($F$7=\"Copaxone 20\",SUMIFS('Split Month Calcs'!$J:$J,'Split Month Calcs'!$A:$A,'TRx Tracker vs AOP'!J9),IF($F$7=\"Azilect\",SUMIFS('Split Month Calcs'!$L:$L,'Split Month Calcs'!$A:$A,'TRx Tracker vs AOP'!J9),IF($F$7=\"Zecuity\",SUMIFS('Split Month Calcs'!$M:$M,'Split Month Calcs'!$A:$A,'TRx Tracker vs AOP'!J9)))))))))))","v":0},{"$f":"IF($F$7=\"Nuvigil\",SUMIFS('Split Month Calcs'!$D:$D,'Split Month Calcs'!$A:$A,'TRx Tracker vs AOP'!K9),IF($F$7=\"amrix\",SUMIFS('Split Month Calcs'!$E:$E,'Split Month Calcs'!$A:$A,'TRx Tracker vs AOP'!K9),IF($F$7=\"Fentora\",SUMIFS('Split Month Calcs'!$F:$F,'Split Month Calcs'!$A:$A,'TRx Tracker vs AOP'!K9),IF($F$7=\"Provigil\",SUMIFS('Split Month Calcs'!$I:$I,'Split Month Calcs'!$A:$A,'TRx Tracker vs AOP'!K9),IF($F$7=\"Gabitril\",SUMIFS('Split Month Calcs'!$H:$H,'Split Month Calcs'!$A:$A,'TRx Tracker vs AOP'!K9),IF($F$7=\"Actiq\",SUMIFS('Split Month Calcs'!$G:$G,'Split Month Calcs'!$A:$A,'TRx Tracker vs AOP'!K9),IF($F$7=\"Copaxone 40\",SUMIFS('Split Month Calcs'!$K:$K,'Split Month Calcs'!$A:$A,'TRx Tracker vs AOP'!K9),IF($F$7=\"Copaxone 20\",SUMIFS('Split Month Calcs'!$J:$J,'Split Month Calcs'!$A:$A,'TRx Tracker vs AOP'!K9),IF($F$7=\"Azilect\",SUMIFS('Split Month Calcs'!$L:$L,'Split Month Calcs'!$A:$A,'TRx Tracker vs AOP'!K9),IF($F$7=\"Zecuity\",SUMIFS('Split Month Calcs'!$M:$M,'Split Month Calcs'!$A:$A,'TRx Tracker vs AOP'!K9)))))))))))","v":0},{"$f":"IF($F$7=\"Nuvigil\",SUMIFS('Split Month Calcs'!$D:$D,'Split Month Calcs'!$A:$A,'TRx Tracker vs AOP'!L9),IF($F$7=\"amrix\",SUMIFS('Split Month Calcs'!$E:$E,'Split Month Calcs'!$A:$A,'TRx Tracker vs AOP'!L9),IF($F$7=\"Fentora\",SUMIFS('Split Month Calcs'!$F:$F,'Split Month Calcs'!$A:$A,'TRx Tracker vs AOP'!L9),IF($F$7=\"Provigil\",SUMIFS('Split Month Calcs'!$I:$I,'Split Month Calcs'!$A:$A,'TRx Tracker vs AOP'!L9),IF($F$7=\"Gabitril\",SUMIFS('Split Month Calcs'!$H:$H,'Split Month Calcs'!$A:$A,'TRx Tracker vs AOP'!L9),IF($F$7=\"Actiq\",SUMIFS('Split Month Calcs'!$G:$G,'Split Month Calcs'!$A:$A,'TRx Tracker vs AOP'!L9),IF($F$7=\"Copaxone 40\",SUMIFS('Split Month Calcs'!$K:$K,'Split Month Calcs'!$A:$A,'TRx Tracker vs AOP'!L9),IF($F$7=\"Copaxone 20\",SUMIFS('Split Month Calcs'!$J:$J,'Split Month Calcs'!$A:$A,'TRx Tracker vs AOP'!L9),IF($F$7=\"Azilect\",SUMIFS('Split Month Calcs'!$L:$L,'Split Month Calcs'!$A:$A,'TRx Tracker vs AOP'!L9),IF($F$7=\"Zecuity\",SUMIFS('Split Month Calcs'!$M:$M,'Split Month Calcs'!$A:$A,'TRx Tracker vs AOP'!L9)))))))))))","v":0},{"$f":"IF($F$7=\"Nuvigil\",SUMIFS('Split Month Calcs'!$D:$D,'Split Month Calcs'!$A:$A,'TRx Tracker vs AOP'!M9),IF($F$7=\"amrix\",SUMIFS('Split Month Calcs'!$E:$E,'Split Month Calcs'!$A:$A,'TRx Tracker vs AOP'!M9),IF($F$7=\"Fentora\",SUMIFS('Split Month Calcs'!$F:$F,'Split Month Calcs'!$A:$A,'TRx Tracker vs AOP'!M9),IF($F$7=\"Provigil\",SUMIFS('Split Month Calcs'!$I:$I,'Split Month Calcs'!$A:$A,'TRx Tracker vs AOP'!M9),IF($F$7=\"Gabitril\",SUMIFS('Split Month Calcs'!$H:$H,'Split Month Calcs'!$A:$A,'TRx Tracker vs AOP'!M9),IF($F$7=\"Actiq\",SUMIFS('Split Month Calcs'!$G:$G,'Split Month Calcs'!$A:$A,'TRx Tracker vs AOP'!M9),IF($F$7=\"Copaxone 40\",SUMIFS('Split Month Calcs'!$K:$K,'Split Month Calcs'!$A:$A,'TRx Tracker vs AOP'!M9),IF($F$7=\"Copaxone 20\",SUMIFS('Split Month Calcs'!$J:$J,'Split Month Calcs'!$A:$A,'TRx Tracker vs AOP'!M9),IF($F$7=\"Azilect\",SUMIFS('Split Month Calcs'!$L:$L,'Split Month Calcs'!$A:$A,'TRx Tracker vs AOP'!M9),IF($F$7=\"Zecuity\",SUMIFS('Split Month Calcs'!$M:$M,'Split Month Calcs'!$A:$A,'TRx Tracker vs AOP'!M9)))))))))))","v":0},{"$f":"IF($F$7=\"Nuvigil\",SUMIFS('Split Month Calcs'!$D:$D,'Split Month Calcs'!$A:$A,'TRx Tracker vs AOP'!N9),IF($F$7=\"amrix\",SUMIFS('Split Month Calcs'!$E:$E,'Split Month Calcs'!$A:$A,'TRx Tracker vs AOP'!N9),IF($F$7=\"Fentora\",SUMIFS('Split Month Calcs'!$F:$F,'Split Month Calcs'!$A:$A,'TRx Tracker vs AOP'!N9),IF($F$7=\"Provigil\",SUMIFS('Split Month Calcs'!$I:$I,'Split Month Calcs'!$A:$A,'TRx Tracker vs AOP'!N9),IF($F$7=\"Gabitril\",SUMIFS('Split Month Calcs'!$H:$H,'Split Month Calcs'!$A:$A,'TRx Tracker vs AOP'!N9),IF($F$7=\"Actiq\",SUMIFS('Split Month Calcs'!$G:$G,'Split Month Calcs'!$A:$A,'TRx Tracker vs AOP'!N9),IF($F$7=\"Copaxone 40\",SUMIFS('Split Month Calcs'!$K:$K,'Split Month Calcs'!$A:$A,'TRx Tracker vs AOP'!N9),IF($F$7=\"Copaxone 20\",SUMIFS('Split Month Calcs'!$J:$J,'Split Month Calcs'!$A:$A,'TRx Tracker vs AOP'!N9),IF($F$7=\"Azilect\",SUMIFS('Split Month Calcs'!$L:$L,'Split Month Calcs'!$A:$A,'TRx Tracker vs AOP'!N9),IF($F$7=\"Zecuity\",SUMIFS('Split Month Calcs'!$M:$M,'Split Month Calcs'!$A:$A,'TRx Tracker vs AOP'!N9)))))))))))","v":0},{"$f":"IF($F$7=\"Nuvigil\",SUMIFS('Split Month Calcs'!$D:$D,'Split Month Calcs'!$A:$A,'TRx Tracker vs AOP'!O9),IF($F$7=\"amrix\",SUMIFS('Split Month Calcs'!$E:$E,'Split Month Calcs'!$A:$A,'TRx Tracker vs AOP'!O9),IF($F$7=\"Fentora\",SUMIFS('Split Month Calcs'!$F:$F,'Split Month Calcs'!$A:$A,'TRx Tracker vs AOP'!O9),IF($F$7=\"Provigil\",SUMIFS('Split Month Calcs'!$I:$I,'Split Month Calcs'!$A:$A,'TRx Tracker vs AOP'!O9),IF($F$7=\"Gabitril\",SUMIFS('Split Month Calcs'!$H:$H,'Split Month Calcs'!$A:$A,'TRx Tracker vs AOP'!O9),IF($F$7=\"Actiq\",SUMIFS('Split Month Calcs'!$G:$G,'Split Month Calcs'!$A:$A,'TRx Tracker vs AOP'!O9),IF($F$7=\"Copaxone 40\",SUMIFS('Split Month Calcs'!$K:$K,'Split Month Calcs'!$A:$A,'TRx Tracker vs AOP'!O9),IF($F$7=\"Copaxone 20\",SUMIFS('Split Month Calcs'!$J:$J,'Split Month Calcs'!$A:$A,'TRx Tracker vs AOP'!O9),IF($F$7=\"Azilect\",SUMIFS('Split Month Calcs'!$L:$L,'Split Month Calcs'!$A:$A,'TRx Tracker vs AOP'!O9),IF($F$7=\"Zecuity\",SUMIFS('Split Month Calcs'!$M:$M,'Split Month Calcs'!$A:$A,'TRx Tracker vs AOP'!O9)))))))))))","v":0}]
[null,null,"% to Plan",{"$f":"D16/D15","v":{"$error":"#DIV/0!"}},{"$f":"E16/E15","v":{"$error":"#DIV/0!"}},{"$error":"#DIV/0!"},{"$error":"#DIV/0!"},{"$error":"#DIV/0!"},{"$error":"#DIV/0!"},{"$error":"#DIV/0!"},{"$error":"#DIV/0!"},{"$error":"#DIV/0!"},{"$error":"#DIV/0!"},{"$error":"#DIV/0!"},{"$error":"#DIV/0!"}]
[null,null,"Weeks",{"$f":"52/12","v":4.333333333333333},{"$f":"52/12","v":4.333333333333333},4.333333333333333,4.333333333333333,4.333333333333333,4.333333333333333,4.333333333333333,4.333333333333333,4.333333333333333,4.333333333333333,4.333333333333333,4.333333333333333]
[null,null,"Source: IMS NPA Audit"]
[]
[null,null,null,null,"Month","Week #","Week Ending","Actual TRxs","Goal","Variance"]
[null,null,null,null,{"$f":"MONTH(G22)","v":1},1,"2016-01-08",{"$f":"IF($F$7=\"Nuvigil\",SUMIFS('IMS Data'!D:D,'IMS Data'!C:C,'TRx Tracker vs LBE'!G:G),IF('TRx Tracker vs LBE'!$F$7=\"Fentora\",SUMIFS('IMS Data'!F:F,'IMS Data'!C:C,'TRx Tracker vs LBE'!G:G),IF('TRx Tracker vs LBE'!$F$7=\"Amrix\",SUMIFS('IMS Data'!E:E,'IMS Data'!C:C,'TRx Tracker vs LBE'!G:G),IF('TRx Tracker vs LBE'!$F$7=\"Provigil\",SUMIFS('IMS Data'!I:I,'IMS Data'!C:C,'TRx Tracker vs LBE'!G:G),IF('TRx Tracker vs LBE'!$F$7=\"Gabitril\",SUMIFS('IMS Data'!H:H,'IMS Data'!C:C,'TRx Tracker vs LBE'!G:G),IF('TRx Tracker vs LBE'!$F$7=\"Actiq\",SUMIFS('IMS Data'!G:G,'IMS Data'!C:C,'TRx Tracker vs LBE'!G:G),IF($F$7=\"Copaxone 20\",SUMIFS('IMS Data'!J:J,'IMS Data'!C:C,'TRx Tracker vs AOP'!G:G),IF($F$7=\"Copaxone 40\",SUMIFS('IMS Data'!K:K,'IMS Data'!C:C,'TRx Tracker vs AOP'!G:G),IF($F$7=\"Azilect\",SUMIFS('IMS Data'!L:L,'IMS Data'!C:C,'TRx Tracker vs LBE'!G:G),IF($F$7=\"Zecuity\",SUMIFS('IMS Data'!M:M,'IMS Data'!C:C,'TRx Tracker vs AOP'!G:G)))))))))))","v":0},{"$f":"IF($F$7=\"Zecuity\",SUMIFS('Zecuity Weekly Forecast'!D:D,'Zecuity Weekly Forecast'!A:A,'TRx Tracker vs LBE'!G:G),IF($F$7=\"Nuvigil\",SUMIFS('NUVIGIL Goals'!$D:$D,'NUVIGIL Goals'!$B:$B,'TRx Tracker vs LBE'!$F:$F),SUMIFS($15:$15,$9:$9,$E:$E)/SUMIFS($18:$18,$9:$9,$E:$E)))","v":1356.9432446168398},{"$f":"H22-I22","v":-1356.9432446168398}]
[null,null,null,null,{"$f":"MONTH(G23)","v":1},2,{"$f":"G22+7","v":"2016-01-15"},{"$f":"IF($F$7=\"Nuvigil\",SUMIFS('IMS Data'!D:D,'IMS Data'!C:C,'TRx Tracker vs LBE'!G:G),IF('TRx Tracker vs LBE'!$F$7=\"Fentora\",SUMIFS('IMS Data'!F:F,'IMS Data'!C:C,'TRx Tracker vs LBE'!G:G),IF('TRx Tracker vs LBE'!$F$7=\"Amrix\",SUMIFS('IMS Data'!E:E,'IMS Data'!C:C,'TRx Tracker vs LBE'!G:G),IF('TRx Tracker vs LBE'!$F$7=\"Provigil\",SUMIFS('IMS Data'!I:I,'IMS Data'!C:C,'TRx Tracker vs LBE'!G:G),IF('TRx Tracker vs LBE'!$F$7=\"Gabitril\",SUMIFS('IMS Data'!H:H,'IMS Data'!C:C,'TRx Tracker vs LBE'!G:G),IF('TRx Tracker vs LBE'!$F$7=\"Actiq\",SUMIFS('IMS Data'!G:G,'IMS Data'!C:C,'TRx Tracker vs LBE'!G:G),IF($F$7=\"Copaxone 20\",SUMIFS('IMS Data'!J:J,'IMS Data'!C:C,'TRx Tracker vs AOP'!G:G),IF($F$7=\"Copaxone 40\",SUMIFS('IMS Data'!K:K,'IMS Data'!C:C,'TRx Tracker vs AOP'!G:G),IF($F$7=\"Azilect\",SUMIFS('IMS Data'!L:L,'IMS Data'!C:C,'TRx Tracker vs LBE'!G:G),IF($F$7=\"Zecuity\",SUMIFS('IMS Data'!M:M,'IMS Data'!C:C,'TRx Tracker vs AOP'!G:G)))))))))))","v":0},{"$f":"IF($F$7=\"Zecuity\",SUMIFS('Zecuity Weekly Forecast'!D:D,'Zecuity Weekly Forecast'!A:A,'TRx Tracker vs LBE'!G:G),IF($F$7=\"Nuvigil\",SUMIFS('NUVIGIL Goals'!$D:$D,'NUVIGIL Goals'!$B:$B,'TRx Tracker vs LBE'!$F:$F),SUMIFS($15:$15,$9:$9,$E:$E)/SUMIFS($18:$18,$9:$9,$E:$E)))","v":1273.379145563561},{"$f":"H23-I23","v":-1273.379145563561}]
[null,null,null,null,1,3,{"$f":"G23+7","v":"2016-01-22"},{"$f":"IF($F$7=\"Nuvigil\",SUMIFS('IMS Data'!D:D,'IMS Data'!C:C,'TRx Tracker vs LBE'!G:G),IF('TRx Tracker vs LBE'!$F$7=\"Fentora\",SUMIFS('IMS Data'!F:F,'IMS Data'!C:C,'TRx Tracker vs LBE'!G:G),IF('TRx Tracker vs LBE'!$F$7=\"Amrix\",SUMIFS('IMS Data'!E:E,'IMS Data'!C:C,'TRx Tracker vs LBE'!G:G),IF('TRx Tracker vs LBE'!$F$7=\"Provigil\",SUMIFS('IMS Data'!I:I,'IMS Data'!C:C,'TRx Tracker vs LBE'!G:G),IF('TRx Tracker vs LBE'!$F$7=\"Gabitril\",SUMIFS('IMS Data'!H:H,'IMS Data'!C:C,'TRx Tracker vs LBE'!G:G),IF('TRx Tracker vs LBE'!$F$7=\"Actiq\",SUMIFS('IMS Data'!G:G,'IMS Data'!C:C,'TRx Tracker vs LBE'!G:G),IF($F$7=\"Copaxone 20\",SUMIFS('IMS Data'!J:J,'IMS Data'!C:C,'TRx Tracker vs AOP'!G:G),IF($F$7=\"Copaxone 40\",SUMIFS('IMS Data'!K:K,'IMS Data'!C:C,'TRx Tracker vs AOP'!G:G),IF($F$7=\"Azilect\",SUMIFS('IMS Data'!L:L,'IMS Data'!C:C,'TRx Tracker vs LBE'!G:G),IF($F$7=\"Zecuity\",SUMIFS('IMS Data'!M:M,'IMS Data'!C:C,'TRx Tracker vs AOP'!G:G)))))))))))","v":0},{"$f":"IF($F$7=\"Zecuity\",SUMIFS('Zecuity Weekly Forecast'!D:D,'Zecuity Weekly Forecast'!A:A,'TRx Tracker vs LBE'!G:G),IF($F$7=\"Nuvigil\",SUMIFS('NUVIGIL Goals'!$D:$D,'NUVIGIL Goals'!$B:$B,'TRx Tracker vs LBE'!$F:$F),SUMIFS($15:$15,$9:$9,$E:$E)/SUMIFS($18:$18,$9:$9,$E:$E)))","v":1189.1328584208741},-1189.1328584208741]
[null,null,null,null,1,4,"2016-01-29",{"$f":"IF($F$7=\"Nuvigil\",SUMIFS('IMS Data'!D:D,'IMS Data'!C:C,'TRx Tracker vs LBE'!G:G),IF('TRx Tracker vs LBE'!$F$7=\"Fentora\",SUMIFS('IMS Data'!F:F,'IMS Data'!C:C,'TRx Tracker vs LBE'!G:G),IF('TRx Tracker vs LBE'!$F$7=\"Amrix\",SUMIFS('IMS Data'!E:E,'IMS Data'!C:C,'TRx Tracker vs LBE'!G:G),IF('TRx Tracker vs LBE'!$F$7=\"Provigil\",SUMIFS('IMS Data'!I:I,'IMS Data'!C:C,'TRx Tracker vs LBE'!G:G),IF('TRx Tracker vs LBE'!$F$7=\"Gabitril\",SUMIFS('IMS Data'!H:H,'IMS Data'!C:C,'TRx Tracker vs LBE'!G:G),IF('TRx Tracker vs LBE'!$F$7=\"Actiq\",SUMIFS('IMS Data'!G:G,'IMS Data'!C:C,'TRx Tracker vs LBE'!G:G),IF($F$7=\"Copaxone 20\",SUMIFS('IMS Data'!J:J,'IMS Data'!C:C,'TRx Tracker vs AOP'!G:G),IF($F$7=\"Copaxone 40\",SUMIFS('IMS Data'!K:K,'IMS Data'!C:C,'TRx Tracker vs AOP'!G:G),IF($F$7=\"Azilect\",SUMIFS('IMS Data'!L:L,'IMS Data'!C:C,'TRx Tracker vs LBE'!G:G),IF($F$7=\"Zecuity\",SUMIFS('IMS Data'!M:M,'IMS Data'!C:C,'TRx Tracker vs AOP'!G:G)))))))))))","v":0},{"$f":"IF($F$7=\"Zecuity\",SUMIFS('Zecuity Weekly Forecast'!D:D,'Zecuity Weekly Forecast'!A:A,'TRx Tracker vs LBE'!G:G),IF($F$7=\"Nuvigil\",SUMIFS('NUVIGIL Goals'!$D:$D,'NUVIGIL Goals'!$B:$B,'TRx Tracker vs LBE'!$F:$F),SUMIFS($15:$15,$9:$9,$E:$E)/SUMIFS($18:$18,$9:$9,$E:$E)))","v":1108.2982248951218},-1108.2982248951218]
[null,null,null,null,2,5,"2016-02-05",{"$f":"IF($F$7=\"Nuvigil\",SUMIFS('IMS Data'!D:D,'IMS Data'!C:C,'TRx Tracker vs LBE'!G:G),IF('TRx Tracker vs LBE'!$F$7=\"Fentora\",SUMIFS('IMS Data'!F:F,'IMS Data'!C:C,'TRx Tracker vs LBE'!G:G),IF('TRx Tracker vs LBE'!$F$7=\"Amrix\",SUMIFS('IMS Data'!E:E,'IMS Data'!C:C,'TRx Tracker vs LBE'!G:G),IF('TRx Tracker vs LBE'!$F$7=\"Provigil\",SUMIFS('IMS Data'!I:I,'IMS Data'!C:C,'TRx Tracker vs LBE'!G:G),IF('TRx Tracker vs LBE'!$F$7=\"Gabitril\",SUMIFS('IMS Data'!H:H,'IMS Data'!C:C,'TRx Tracker vs LBE'!G:G),IF('TRx Tracker vs LBE'!$F$7=\"Actiq\",SUMIFS('IMS Data'!G:G,'IMS Data'!C:C,'TRx Tracker vs LBE'!G:G),IF($F$7=\"Copaxone 20\",SUMIFS('IMS Data'!J:J,'IMS Data'!C:C,'TRx Tracker vs AOP'!G:G),IF($F$7=\"Copaxone 40\",SUMIFS('IMS Data'!K:K,'IMS Data'!C:C,'TRx Tracker vs AOP'!G:G),IF($F$7=\"Azilect\",SUMIFS('IMS Data'!L:L,'IMS Data'!C:C,'TRx Tracker vs LBE'!G:G),IF($F$7=\"Zecuity\",SUMIFS('IMS Data'!M:M,'IMS Data'!C:C,'TRx Tracker vs AOP'!G:G)))))))))))","v":0},{"$f":"IF($F$7=\"Zecuity\",SUMIFS('Zecuity Weekly Forecast'!D:D,'Zecuity Weekly Forecast'!A:A,'TRx Tracker vs LBE'!G:G),IF($F$7=\"Nuvigil\",SUMIFS('NUVIGIL Goals'!$D:$D,'NUVIGIL Goals'!$B:$B,'TRx Tracker vs LBE'!$F:$F),SUMIFS($15:$15,$9:$9,$E:$E)/SUMIFS($18:$18,$9:$9,$E:$E)))","v":1034.9691477278025},-1034.9691477278025]
[null,null,null,null,2,6,"2016-02-12",{"$f":"IF($F$7=\"Nuvigil\",SUMIFS('IMS Data'!D:D,'IMS Data'!C:C,'TRx Tracker vs LBE'!G:G),IF('TRx Tracker vs LBE'!$F$7=\"Fentora\",SUMIFS('IMS Data'!F:F,'IMS Data'!C:C,'TRx Tracker vs LBE'!G:G),IF('TRx Tracker vs LBE'!$F$7=\"Amrix\",SUMIFS('IMS Data'!E:E,'IMS Data'!C:C,'TRx Tracker vs LBE'!G:G),IF('TRx Tracker vs LBE'!$F$7=\"Provigil\",SUMIFS('IMS Data'!I:I,'IMS Data'!C:C,'TRx Tracker vs LBE'!G:G),IF('TRx Tracker vs LBE'!$F$7=\"Gabitril\",SUMIFS('IMS Data'!H:H,'IMS Data'!C:C,'TRx Tracker vs LBE'!G:G),IF('TRx Tracker vs LBE'!$F$7=\"Actiq\",SUMIFS('IMS Data'!G:G,'IMS Data'!C:C,'TRx Tracker vs LBE'!G:G),IF($F$7=\"Copaxone 20\",SUMIFS('IMS Data'!J:J,'IMS Data'!C:C,'TRx Tracker vs AOP'!G:G),IF($F$7=\"Copaxone 40\",SUMIFS('IMS Data'!K:K,'IMS Data'!C:C,'TRx Tracker vs AOP'!G:G),IF($F$7=\"Azilect\",SUMIFS('IMS Data'!L:L,'IMS Data'!C:C,'TRx Tracker vs LBE'!G:G),IF($F$7=\"Zecuity\",SUMIFS('IMS Data'!M:M,'IMS Data'!C:C,'TRx Tracker vs AOP'!G:G)))))))))))","v":0},{"$f":"IF($F$7=\"Zecuity\",SUMIFS('Zecuity Weekly Forecast'!D:D,'Zecuity Weekly Forecast'!A:A,'TRx Tracker vs LBE'!G:G),IF($F$7=\"Nuvigil\",SUMIFS('NUVIGIL Goals'!$D:$D,'NUVIGIL Goals'!$B:$B,'TRx Tracker vs LBE'!$F:$F),SUMIFS($15:$15,$9:$9,$E:$E)/SUMIFS($18:$18,$9:$9,$E:$E)))","v":973.23952966041384},-973.23952966041384]
[null,null,null,null,2,7,"2016-02-19",{"$f":"IF($F$7=\"Nuvigil\",SUMIFS('IMS Data'!D:D,'IMS Data'!C:C,'TRx Tracker vs LBE'!G:G),IF('TRx Tracker vs LBE'!$F$7=\"Fentora\",SUMIFS('IMS Data'!F:F,'IMS Data'!C:C,'TRx Tracker vs LBE'!G:G),IF('TRx Tracker vs LBE'!$F$7=\"Amrix\",SUMIFS('IMS Data'!E:E,'IMS Data'!C:C,'TRx Tracker vs LBE'!G:G),IF('TRx Tracker vs LBE'!$F$7=\"Provigil\",SUMIFS('IMS Data'!I:I,'IMS Data'!C:C,'TRx Tracker vs LBE'!G:G),IF('TRx Tracker vs LBE'!$F$7=\"Gabitril\",SUMIFS('IMS Data'!H:H,'IMS Data'!C:C,'TRx Tracker vs LBE'!G:G),IF('TRx Tracker vs LBE'!$F$7=\"Actiq\",SUMIFS('IMS Data'!G:G,'IMS Data'!C:C,'TRx Tracker vs LBE'!G:G),IF($F$7=\"Copaxone 20\",SUMIFS('IMS Data'!J:J,'IMS Data'!C:C,'TRx Tracker vs AOP'!G:G),IF($F$7=\"Copaxone 40\",SUMIFS('IMS Data'!K:K,'IMS Data'!C:C,'TRx Tracker vs AOP'!G:G),IF($F$7=\"Azilect\",SUMIFS('IMS Data'!L:L,'IMS Data'!C:C,'TRx Tracker vs LBE'!G:G),IF($F$7=\"Zecuity\",SUMIFS('IMS Data'!M:M,'IMS Data'!C:C,'TRx Tracker vs AOP'!G:G)))))))))))","v":0},{"$f":"IF($F$7=\"Zecuity\",SUMIFS('Zecuity Weekly Forecast'!D:D,'Zecuity Weekly Forecast'!A:A,'TRx Tracker vs LBE'!G:G),IF($F$7=\"Nuvigil\",SUMIFS('NUVIGIL Goals'!$D:$D,'NUVIGIL Goals'!$B:$B,'TRx Tracker vs LBE'!$F:$F),SUMIFS($15:$15,$9:$9,$E:$E)/SUMIFS($18:$18,$9:$9,$E:$E)))","v":926.99696370428762},-926.99696370428762]
[null,null,null,null,2,8,"2016-02-26",{"$f":"IF($F$7=\"Nuvigil\",SUMIFS('IMS Data'!D:D,'IMS Data'!C:C,'TRx Tracker vs LBE'!G:G),IF('TRx Tracker vs LBE'!$F$7=\"Fentora\",SUMIFS('IMS Data'!F:F,'IMS Data'!C:C,'TRx Tracker vs LBE'!G:G),IF('TRx Tracker vs LBE'!$F$7=\"Amrix\",SUMIFS('IMS Data'!E:E,'IMS Data'!C:C,'TRx Tracker vs LBE'!G:G),IF('TRx Tracker vs LBE'!$F$7=\"Provigil\",SUMIFS('IMS Data'!I:I,'IMS Data'!C:C,'TRx Tracker vs LBE'!G:G),IF('TRx Tracker vs LBE'!$F$7=\"Gabitril\",SUMIFS('IMS Data'!H:H,'IMS Data'!C:C,'TRx Tracker vs LBE'!G:G),IF('TRx Tracker vs LBE'!$F$7=\"Actiq\",SUMIFS('IMS Data'!G:G,'IMS Data'!C:C,'TRx Tracker vs LBE'!G:G),IF($F$7=\"Copaxone 20\",SUMIFS('IMS Data'!J:J,'IMS Data'!C:C,'TRx Tracker vs AOP'!G:G),IF($F$7=\"Copaxone 40\",SUMIFS('IMS Data'!K:K,'IMS Data'!C:C,'TRx Tracker vs AOP'!G:G),IF($F$7=\"Azilect\",SUMIFS('IMS Data'!L:L,'IMS Data'!C:C,'TRx Tracker vs LBE'!G:G),IF($F$7=\"Zecuity\",SUMIFS('IMS Data'!M:M,'IMS Data'!C:C,'TRx Tracker vs AOP'!G:G)))))))))))","v":0},{"$f":"IF($F$7=\"Zecuity\",SUMIFS('Zecuity Weekly Forecast'!D:D,'Zecuity Weekly Forecast'!A:A,'TRx Tracker vs LBE'!G:G),IF($F$7=\"Nuvigil\",SUMIFS('NUVIGIL Goals'!$D:$D,'NUVIGIL Goals'!$B:$B,'TRx Tracker vs LBE'!$F:$F),SUMIFS($15:$15,$9:$9,$E:$E)/SUMIFS($18:$18,$9:$9,$E:$E)))","v":895.38576107511642},-895.38576107511642]
[null,null,null,null,3,9,"2016-03-04",{"$f":"IF($F$7=\"Nuvigil\",SUMIFS('IMS Data'!D:D,'IMS Data'!C:C,'TRx Tracker vs LBE'!G:G),IF('TRx Tracker vs LBE'!$F$7=\"Fentora\",SUMIFS('IMS Data'!F:F,'IMS Data'!C:C,'TRx Tracker vs LBE'!G:G),IF('TRx Tracker vs LBE'!$F$7=\"Amrix\",SUMIFS('IMS Data'!E:E,'IMS Data'!C:C,'TRx Tracker vs LBE'!G:G),IF('TRx Tracker vs LBE'!$F$7=\"Provigil\",SUMIFS('IMS Data'!I:I,'IMS Data'!C:C,'TRx Tracker vs LBE'!G:G),IF('TRx Tracker vs LBE'!$F$7=\"Gabitril\",SUMIFS('IMS Data'!H:H,'IMS Data'!C:C,'TRx Tracker vs LBE'!G:G),IF('TRx Tracker vs LBE'!$F$7=\"Actiq\",SUMIFS('IMS Data'!G:G,'IMS Data'!C:C,'TRx Tracker vs LBE'!G:G),IF($F$7=\"Copaxone 20\",SUMIFS('IMS Data'!J:J,'IMS Data'!C:C,'TRx Tracker vs AOP'!G:G),IF($F$7=\"Copaxone 40\",SUMIFS('IMS Data'!K:K,'IMS Data'!C:C,'TRx Tracker vs AOP'!G:G),IF($F$7=\"Azilect\",SUMIFS('IMS Data'!L:L,'IMS Data'!C:C,'TRx Tracker vs LBE'!G:G),IF($F$7=\"Zecuity\",SUMIFS('IMS Data'!M:M,'IMS Data'!C:C,'TRx Tracker vs AOP'!G:G)))))))))))","v":0},{"$f":"IF($F$7=\"Zecuity\",SUMIFS('Zecuity Weekly Forecast'!D:D,'Zecuity Weekly Forecast'!A:A,'TRx Tracker vs LBE'!G:G),IF($F$7=\"Nuvigil\",SUMIFS('NUVIGIL Goals'!$D:$D,'NUVIGIL Goals'!$B:$B,'TRx Tracker vs LBE'!$F:$F),SUMIFS($15:$15,$9:$9,$E:$E)/SUMIFS($18:$18,$9:$9,$E:$E)))","v":872.80673317445644},-872.80673317445644]
[null,null,null,null,3,10,"2016-03-11",{"$f":"IF($F$7=\"Nuvigil\",SUMIFS('IMS Data'!D:D,'IMS Data'!C:C,'TRx Tracker vs LBE'!G:G),IF('TRx Tracker vs LBE'!$F$7=\"Fentora\",SUMIFS('IMS Data'!F:F,'IMS Data'!C:C,'TRx Tracker vs LBE'!G:G),IF('TRx Tracker vs LBE'!$F$7=\"Amrix\",SUMIFS('IMS Data'!E:E,'IMS Data'!C:C,'TRx Tracker vs LBE'!G:G),IF('TRx Tracker vs LBE'!$F$7=\"Provigil\",SUMIFS('IMS Data'!I:I,'IMS Data'!C:C,'TRx Tracker vs LBE'!G:G),IF('TRx Tracker vs LBE'!$F$7=\"Gabitril\",SUMIFS('IMS Data'!H:H,'IMS Data'!C:C,'TRx Tracker vs LBE'!G:G),IF('TRx Tracker vs LBE'!$F$7=\"Actiq\",SUMIFS('IMS Data'!G:G,'IMS Data'!C:C,'TRx Tracker vs LBE'!G:G),IF($F$7=\"Copaxone 20\",SUMIFS('IMS Data'!J:J,'IMS Data'!C:C,'TRx Tracker vs AOP'!G:G),IF($F$7=\"Copaxone 40\",SUMIFS('IMS Data'!K:K,'IMS Data'!C:C,'TRx Tracker vs AOP'!G:G),IF($F$7=\"Azilect\",SUMIFS('IMS Data'!L:L,'IMS Data'!C:C,'TRx Tracker vs LBE'!G:G),IF($F$7=\"Zecuity\",SUMIFS('IMS Data'!M:M,'IMS Data'!C:C,'TRx Tracker vs AOP'!G:G)))))))))))","v":0},{"$f":"IF($F$7=\"Zecuity\",SUMIFS('Zecuity Weekly Forecast'!D:D,'Zecuity Weekly Forecast'!A:A,'TRx Tracker vs LBE'!G:G),IF($F$7=\"Nuvigil\",SUMIFS('NUVIGIL Goals'!$D:$D,'NUVIGIL Goals'!$B:$B,'TRx Tracker vs LBE'!$F:$F),SUMIFS($15:$15,$9:$9,$E:$E)/SUMIFS($18:$18,$9:$9,$E:$E)))","v":853.45463038191008},-853.45463038191008]
[null,null,null,null,3,11,"2016-03-18",{"$f":"IF($F$7=\"Nuvigil\",SUMIFS('IMS Data'!D:D,'IMS Data'!C:C,'TRx Tracker vs LBE'!G:G),IF('TRx Tracker vs LBE'!$F$7=\"Fentora\",SUMIFS('IMS Data'!F:F,'IMS Data'!C:C,'TRx Tracker vs LBE'!G:G),IF('TRx Tracker vs LBE'!$F$7=\"Amrix\",SUMIFS('IMS Data'!E:E,'IMS Data'!C:C,'TRx Tracker vs LBE'!G:G),IF('TRx Tracker vs LBE'!$F$7=\"Provigil\",SUMIFS('IMS Data'!I:I,'IMS Data'!C:C,'TRx Tracker vs LBE'!G:G),IF('TRx Tracker vs LBE'!$F$7=\"Gabitril\",SUMIFS('IMS Data'!H:H,'IMS Data'!C:C,'TRx Tracker vs LBE'!G:G),IF('TRx Tracker vs LBE'!$F$7=\"Actiq\",SUMIFS('IMS Data'!G:G,'IMS Data'!C:C,'TRx Tracker vs LBE'!G:G),IF($F$7=\"Copaxone 20\",SUMIFS('IMS Data'!J:J,'IMS Data'!C:C,'TRx Tracker vs AOP'!G:G),IF($F$7=\"Copaxone 40\",SUMIFS('IMS Data'!K:K,'IMS Data'!C:C,'TRx Tracker vs AOP'!G:G),IF($F$7=\"Azilect\",SUMIFS('IMS Data'!L:L,'IMS Data'!C:C,'TRx Tracker vs LBE'!G:G),IF($F$7=\"Zecuity\",SUMIFS('IMS Data'!M:M,'IMS Data'!C:C,'TRx Tracker vs AOP'!G:G)))))))))))","v":0},{"$f":"IF($F$7=\"Zecuity\",SUMIFS('Zecuity Weekly Forecast'!D:D,'Zecuity Weekly Forecast'!A:A,'TRx Tracker vs LBE'!G:G),IF($F$7=\"Nuvigil\",SUMIFS('NUVIGIL Goals'!$D:$D,'NUVIGIL Goals'!$B:$B,'TRx Tracker vs LBE'!$F:$F),SUMIFS($15:$15,$9:$9,$E:$E)/SUMIFS($18:$18,$9:$9,$E:$E)))","v":831.5321399661151},-831.5321399661151]
[null,null,null,null,3,12,"2016-03-25",{"$f":"IF($F$7=\"Nuvigil\",SUMIFS('IMS Data'!D:D,'IMS Data'!C:C,'TRx Tracker vs LBE'!G:G),IF('TRx Tracker vs LBE'!$F$7=\"Fentora\",SUMIFS('IMS Data'!F:F,'IMS Data'!C:C,'TRx Tracker vs LBE'!G:G),IF('TRx Tracker vs LBE'!$F$7=\"Amrix\",SUMIFS('IMS Data'!E:E,'IMS Data'!C:C,'TRx Tracker vs LBE'!G:G),IF('TRx Tracker vs LBE'!$F$7=\"Provigil\",SUMIFS('IMS Data'!I:I,'IMS Data'!C:C,'TRx Tracker vs LBE'!G:G),IF('TRx Tracker vs LBE'!$F$7=\"Gabitril\",SUMIFS('IMS Data'!H:H,'IMS Data'!C:C,'TRx Tracker vs LBE'!G:G),IF('TRx Tracker vs LBE'!$F$7=\"Actiq\",SUMIFS('IMS Data'!G:G,'IMS Data'!C:C,'TRx Tracker vs LBE'!G:G),IF($F$7=\"Copaxone 20\",SUMIFS('IMS Data'!J:J,'IMS Data'!C:C,'TRx Tracker vs AOP'!G:G),IF($F$7=\"Copaxone 40\",SUMIFS('IMS Data'!K:K,'IMS Data'!C:C,'TRx Tracker vs AOP'!G:G),IF($F$7=\"Azilect\",SUMIFS('IMS Data'!L:L,'IMS Data'!C:C,'TRx Tracker vs LBE'!G:G),IF($F$7=\"Zecuity\",SUMIFS('IMS Data'!M:M,'IMS Data'!C:C,'TRx Tracker vs AOP'!G:G)))))))))))","v":0},{"$f":"IF($F$7=\"Zecuity\",SUMIFS('Zecuity Weekly Forecast'!D:D,'Zecuity Weekly Forecast'!A:A,'TRx Tracker vs LBE'!G:G),IF($F$7=\"Nuvigil\",SUMIFS('NUVIGIL Goals'!$D:$D,'NUVIGIL Goals'!$B:$B,'TRx Tracker vs LBE'!$F:$F),SUMIFS($15:$15,$9:$9,$E:$E)/SUMIFS($18:$18,$9:$9,$E:$E)))","v":803.9512263274288},-803.9512263274288]
[null,null,null,null,4,13,"2016-04-01",{"$f":"IF($F$7=\"Nuvigil\",SUMIFS('IMS Data'!D:D,'IMS Data'!C:C,'TRx Tracker vs LBE'!G:G),IF('TRx Tracker vs LBE'!$F$7=\"Fentora\",SUMIFS('IMS Data'!F:F,'IMS Data'!C:C,'TRx Tracker vs LBE'!G:G),IF('TRx Tracker vs LBE'!$F$7=\"Amrix\",SUMIFS('IMS Data'!E:E,'IMS Data'!C:C,'TRx Tracker vs LBE'!G:G),IF('TRx Tracker vs LBE'!$F$7=\"Provigil\",SUMIFS('IMS Data'!I:I,'IMS Data'!C:C,'TRx Tracker vs LBE'!G:G),IF('TRx Tracker vs LBE'!$F$7=\"Gabitril\",SUMIFS('IMS Data'!H:H,'IMS Data'!C:C,'TRx Tracker vs LBE'!G:G),IF('TRx Tracker vs LBE'!$F$7=\"Actiq\",SUMIFS('IMS Data'!G:G,'IMS Data'!C:C,'TRx Tracker vs LBE'!G:G),IF($F$7=\"Copaxone 20\",SUMIFS('IMS Data'!J:J,'IMS Data'!C:C,'TRx Tracker vs AOP'!G:G),IF($F$7=\"Copaxone 40\",SUMIFS('IMS Data'!K:K,'IMS Data'!C:C,'TRx Tracker vs AOP'!G:G),IF($F$7=\"Azilect\",SUMIFS('IMS Data'!L:L,'IMS Data'!C:C,'TRx Tracker vs LBE'!G:G),IF($F$7=\"Zecuity\",SUMIFS('IMS Data'!M:M,'IMS Data'!C:C,'TRx Tracker vs AOP'!G:G)))))))))))","v":0},{"$f":"IF($F$7=\"Zecuity\",SUMIFS('Zecuity Weekly Forecast'!D:D,'Zecuity Weekly Forecast'!A:A,'TRx Tracker vs LBE'!G:G),IF($F$7=\"Nuvigil\",SUMIFS('NUVIGIL Goals'!$D:$D,'NUVIGIL Goals'!$B:$B,'TRx Tracker vs LBE'!$F:$F),SUMIFS($15:$15,$9:$9,$E:$E)/SUMIFS($18:$18,$9:$9,$E:$E)))","v":774.26502885615173},-774.26502885615173]
[null,null,null,null,4,14,"2016-04-08",{"$f":"IF($F$7=\"Nuvigil\",SUMIFS('IMS Data'!D:D,'IMS Data'!C:C,'TRx Tracker vs LBE'!G:G),IF('TRx Tracker vs LBE'!$F$7=\"Fentora\",SUMIFS('IMS Data'!F:F,'IMS Data'!C:C,'TRx Tracker vs LBE'!G:G),IF('TRx Tracker vs LBE'!$F$7=\"Amrix\",SUMIFS('IMS Data'!E:E,'IMS Data'!C:C,'TRx Tracker vs LBE'!G:G),IF('TRx Tracker vs LBE'!$F$7=\"Provigil\",SUMIFS('IMS Data'!I:I,'IMS Data'!C:C,'TRx Tracker vs LBE'!G:G),IF('TRx Tracker vs LBE'!$F$7=\"Gabitril\",SUMIFS('IMS Data'!H:H,'IMS Data'!C:C,'TRx Tracker vs LBE'!G:G),IF('TRx Tracker vs LBE'!$F$7=\"Actiq\",SUMIFS('IMS Data'!G:G,'IMS Data'!C:C,'TRx Tracker vs LBE'!G:G),IF($F$7=\"Copaxone 20\",SUMIFS('IMS Data'!J:J,'IMS Data'!C:C,'TRx Tracker vs AOP'!G:G),IF($F$7=\"Copaxone 40\",SUMIFS('IMS Data'!K:K,'IMS Data'!C:C,'TRx Tracker vs AOP'!G:G),IF($F$7=\"Azilect\",SUMIFS('IMS Data'!L:L,'IMS Data'!C:C,'TRx Tracker vs LBE'!G:G),IF($F$7=\"Zecuity\",SUMIFS('IMS Data'!M:M,'IMS Data'!C:C,'TRx Tracker vs AOP'!G:G)))))))))))","v":0},{"$f":"IF($F$7=\"Zecuity\",SUMIFS('Zecuity Weekly Forecast'!D:D,'Zecuity Weekly Forecast'!A:A,'TRx Tracker vs LBE'!G:G),IF($F$7=\"Nuvigil\",SUMIFS('NUVIGIL Goals'!$D:$D,'NUVIGIL Goals'!$B:$B,'TRx Tracker vs LBE'!$F:$F),SUMIFS($15:$15,$9:$9,$E:$E)/SUMIFS($18:$18,$9:$9,$E:$E)))","v":747.02539380422115},-747.02539380422115]
[null,null,null,null,4,15,"2016-04-15",{"$f":"IF($F$7=\"Nuvigil\",SUMIFS('IMS Data'!D:D,'IMS Data'!C:C,'TRx Tracker vs LBE'!G:G),IF('TRx Tracker vs LBE'!$F$7=\"Fentora\",SUMIFS('IMS Data'!F:F,'IMS Data'!C:C,'TRx Tracker vs LBE'!G:G),IF('TRx Tracker vs LBE'!$F$7=\"Amrix\",SUMIFS('IMS Data'!E:E,'IMS Data'!C:C,'TRx Tracker vs LBE'!G:G),IF('TRx Tracker vs LBE'!$F$7=\"Provigil\",SUMIFS('IMS Data'!I:I,'IMS Data'!C:C,'TRx Tracker vs LBE'!G:G),IF('TRx Tracker vs LBE'!$F$7=\"Gabitril\",SUMIFS('IMS Data'!H:H,'IMS Data'!C:C,'TRx Tracker vs LBE'!G:G),IF('TRx Tracker vs LBE'!$F$7=\"Actiq\",SUMIFS('IMS Data'!G:G,'IMS Data'!C:C,'TRx Tracker vs LBE'!G:G),IF($F$7=\"Copaxone 20\",SUMIFS('IMS Data'!J:J,'IMS Data'!C:C,'TRx Tracker vs AOP'!G:G),IF($F$7=\"Copaxone 40\",SUMIFS('IMS Data'!K:K,'IMS Data'!C:C,'TRx Tracker vs AOP'!G:G),IF($F$7=\"Azilect\",SUMIFS('IMS Data'!L:L,'IMS Data'!C:C,'TRx Tracker vs LBE'!G:G),IF($F$7=\"Zecuity\",SUMIFS('IMS Data'!M:M,'IMS Data'!C:C,'TRx Tracker vs AOP'!G:G)))))))))))","v":0},{"$f":"IF($F$7=\"Zecuity\",SUMIFS('Zecuity Weekly Forecast'!D:D,'Zecuity Weekly Forecast'!A:A,'TRx Tracker vs LBE'!G:G),IF($F$7=\"Nuvigil\",SUMIFS('NUVIGIL Goals'!$D:$D,'NUVIGIL Goals'!$B:$B,'TRx Tracker vs LBE'!$F:$F),SUMIFS($15:$15,$9:$9,$E:$E)/SUMIFS($18:$18,$9:$9,$E:$E)))","v":726.78432488082854},-726.78432488082854]
[null,null,null,null,4,16,"2016-04-22",{"$f":"IF($F$7=\"Nuvigil\",SUMIFS('IMS Data'!D:D,'IMS Data'!C:C,'TRx Tracker vs LBE'!G:G),IF('TRx Tracker vs LBE'!$F$7=\"Fentora\",SUMIFS('IMS Data'!F:F,'IMS Data'!C:C,'TRx Tracker vs LBE'!G:G),IF('TRx Tracker vs LBE'!$F$7=\"Amrix\",SUMIFS('IMS Data'!E:E,'IMS Data'!C:C,'TRx Tracker vs LBE'!G:G),IF('TRx Tracker vs LBE'!$F$7=\"Provigil\",SUMIFS('IMS Data'!I:I,'IMS Data'!C:C,'TRx Tracker vs LBE'!G:G),IF('TRx Tracker vs LBE'!$F$7=\"Gabitril\",SUMIFS('IMS Data'!H:H,'IMS Data'!C:C,'TRx Tracker vs LBE'!G:G),IF('TRx Tracker vs LBE'!$F$7=\"Actiq\",SUMIFS('IMS Data'!G:G,'IMS Data'!C:C,'TRx Tracker vs LBE'!G:G),IF($F$7=\"Copaxone 20\",SUMIFS('IMS Data'!J:J,'IMS Data'!C:C,'TRx Tracker vs AOP'!G:G),IF($F$7=\"Copaxone 40\",SUMIFS('IMS Data'!K:K,'IMS Data'!C:C,'TRx Tracker vs AOP'!G:G),IF($F$7=\"Azilect\",SUMIFS('IMS Data'!L:L,'IMS Data'!C:C,'TRx Tracker vs LBE'!G:G),IF($F$7=\"Zecuity\",SUMIFS('IMS Data'!M:M,'IMS Data'!C:C,'TRx Tracker vs AOP'!G:G)))))))))))","v":0},{"$f":"IF($F$7=\"Zecuity\",SUMIFS('Zecuity Weekly Forecast'!D:D,'Zecuity Weekly Forecast'!A:A,'TRx Tracker vs LBE'!G:G),IF($F$7=\"Nuvigil\",SUMIFS('NUVIGIL Goals'!$D:$D,'NUVIGIL Goals'!$B:$B,'TRx Tracker vs LBE'!$F:$F),SUMIFS($15:$15,$9:$9,$E:$E)/SUMIFS($18:$18,$9:$9,$E:$E)))","v":717.33273292391732},-717.33273292391732]
[null,null,null,null,4,17,"2016-04-29",{"$f":"IF($F$7=\"Nuvigil\",SUMIFS('IMS Data'!D:D,'IMS Data'!C:C,'TRx Tracker vs LBE'!G:G),IF('TRx Tracker vs LBE'!$F$7=\"Fentora\",SUMIFS('IMS Data'!F:F,'IMS Data'!C:C,'TRx Tracker vs LBE'!G:G),IF('TRx Tracker vs LBE'!$F$7=\"Amrix\",SUMIFS('IMS Data'!E:E,'IMS Data'!C:C,'TRx Tracker vs LBE'!G:G),IF('TRx Tracker vs LBE'!$F$7=\"Provigil\",SUMIFS('IMS Data'!I:I,'IMS Data'!C:C,'TRx Tracker vs LBE'!G:G),IF('TRx Tracker vs LBE'!$F$7=\"Gabitril\",SUMIFS('IMS Data'!H:H,'IMS Data'!C:C,'TRx Tracker vs LBE'!G:G),IF('TRx Tracker vs LBE'!$F$7=\"Actiq\",SUMIFS('IMS Data'!G:G,'IMS Data'!C:C,'TRx Tracker vs LBE'!G:G),IF($F$7=\"Copaxone 20\",SUMIFS('IMS Data'!J:J,'IMS Data'!C:C,'TRx Tracker vs AOP'!G:G),IF($F$7=\"Copaxone 40\",SUMIFS('IMS Data'!K:K,'IMS Data'!C:C,'TRx Tracker vs AOP'!G:G),IF($F$7=\"Azilect\",SUMIFS('IMS Data'!L:L,'IMS Data'!C:C,'TRx Tracker vs LBE'!G:G),IF($F$7=\"Zecuity\",SUMIFS('IMS Data'!M:M,'IMS Data'!C:C,'TRx Tracker vs AOP'!G:G)))))))))))","v":0},{"$f":"IF($F$7=\"Zecuity\",SUMIFS('Zecuity Weekly Forecast'!D:D,'Zecuity Weekly Forecast'!A:A,'TRx Tracker vs LBE'!G:G),IF($F$7=\"Nuvigil\",SUMIFS('NUVIGIL Goals'!$D:$D,'NUVIGIL Goals'!$B:$B,'TRx Tracker vs LBE'!$F:$F),SUMIFS($15:$15,$9:$9,$E:$E)/SUMIFS($18:$18,$9:$9,$E:$E)))","v":717.40208573309155},-717.40208573309155]
[null,null,null,null,5,18,"2016-05-06",{"$f":"IF($F$7=\"Nuvigil\",SUMIFS('IMS Data'!D:D,'IMS Data'!C:C,'TRx Tracker vs LBE'!G:G),IF('TRx Tracker vs LBE'!$F$7=\"Fentora\",SUMIFS('IMS Data'!F:F,'IMS Data'!C:C,'TRx Tracker vs LBE'!G:G),IF('TRx Tracker vs LBE'!$F$7=\"Amrix\",SUMIFS('IMS Data'!E:E,'IMS Data'!C:C,'TRx Tracker vs LBE'!G:G),IF('TRx Tracker vs LBE'!$F$7=\"Provigil\",SUMIFS('IMS Data'!I:I,'IMS Data'!C:C,'TRx Tracker vs LBE'!G:G),IF('TRx Tracker vs LBE'!$F$7=\"Gabitril\",SUMIFS('IMS Data'!H:H,'IMS Data'!C:C,'TRx Tracker vs LBE'!G:G),IF('TRx Tracker vs LBE'!$F$7=\"Actiq\",SUMIFS('IMS Data'!G:G,'IMS Data'!C:C,'TRx Tracker vs LBE'!G:G),IF($F$7=\"Copaxone 20\",SUMIFS('IMS Data'!J:J,'IMS Data'!C:C,'TRx Tracker vs AOP'!G:G),IF($F$7=\"Copaxone 40\",SUMIFS('IMS Data'!K:K,'IMS Data'!C:C,'TRx Tracker vs AOP'!G:G),IF($F$7=\"Azilect\",SUMIFS('IMS Data'!L:L,'IMS Data'!C:C,'TRx Tracker vs LBE'!G:G),IF($F$7=\"Zecuity\",SUMIFS('IMS Data'!M:M,'IMS Data'!C:C,'TRx Tracker vs AOP'!G:G)))))))))))","v":0},{"$f":"IF($F$7=\"Zecuity\",SUMIFS('Zecuity Weekly Forecast'!D:D,'Zecuity Weekly Forecast'!A:A,'TRx Tracker vs LBE'!G:G),IF($F$7=\"Nuvigil\",SUMIFS('NUVIGIL Goals'!$D:$D,'NUVIGIL Goals'!$B:$B,'TRx Tracker vs LBE'!$F:$F),SUMIFS($15:$15,$9:$9,$E:$E)/SUMIFS($18:$18,$9:$9,$E:$E)))","v":723.66029029392166},-723.66029029392166]
[null,null,null,null,5,19,"2016-05-13",{"$f":"IF($F$7=\"Nuvigil\",SUMIFS('IMS Data'!D:D,'IMS Data'!C:C,'TRx Tracker vs LBE'!G:G),IF('TRx Tracker vs LBE'!$F$7=\"Fentora\",SUMIFS('IMS Data'!F:F,'IMS Data'!C:C,'TRx Tracker vs LBE'!G:G),IF('TRx Tracker vs LBE'!$F$7=\"Amrix\",SUMIFS('IMS Data'!E:E,'IMS Data'!C:C,'TRx Tracker vs LBE'!G:G),IF('TRx Tracker vs LBE'!$F$7=\"Provigil\",SUMIFS('IMS Data'!I:I,'IMS Data'!C:C,'TRx Tracker vs LBE'!G:G),IF('TRx Tracker vs LBE'!$F$7=\"Gabitril\",SUMIFS('IMS Data'!H:H,'IMS Data'!C:C,'TRx Tracker vs LBE'!G:G),IF('TRx Tracker vs LBE'!$F$7=\"Actiq\",SUMIFS('IMS Data'!G:G,'IMS Data'!C:C,'TRx Tracker vs LBE'!G:G),IF($F$7=\"Copaxone 20\",SUMIFS('IMS Data'!J:J,'IMS Data'!C:C,'TRx Tracker vs AOP'!G:G),IF($F$7=\"Copaxone 40\",SUMIFS('IMS Data'!K:K,'IMS Data'!C:C,'TRx Tracker vs AOP'!G:G),IF($F$7=\"Azilect\",SUMIFS('IMS Data'!L:L,'IMS Data'!C:C,'TRx Tracker vs LBE'!G:G),IF($F$7=\"Zecuity\",SUMIFS('IMS Data'!M:M,'IMS Data'!C:C,'TRx Tracker vs AOP'!G:G)))))))))))","v":0},{"$f":"IF($F$7=\"Zecuity\",SUMIFS('Zecuity Weekly Forecast'!D:D,'Zecuity Weekly Forecast'!A:A,'TRx Tracker vs LBE'!G:G),IF($F$7=\"Nuvigil\",SUMIFS('NUVIGIL Goals'!$D:$D,'NUVIGIL Goals'!$B:$B,'TRx Tracker vs LBE'!$F:$F),SUMIFS($15:$15,$9:$9,$E:$E)/SUMIFS($18:$18,$9:$9,$E:$E)))","v":732.76890499152762},-732.76890499152762]
[null,null,null,null,5,20,"2016-05-20",{"$f":"IF($F$7=\"Nuvigil\",SUMIFS('IMS Data'!D:D,'IMS Data'!C:C,'TRx Tracker vs LBE'!G:G),IF('TRx Tracker vs LBE'!$F$7=\"Fentora\",SUMIFS('IMS Data'!F:F,'IMS Data'!C:C,'TRx Tracker vs LBE'!G:G),IF('TRx Tracker vs LBE'!$F$7=\"Amrix\",SUMIFS('IMS Data'!E:E,'IMS Data'!C:C,'TRx Tracker vs LBE'!G:G),IF('TRx Tracker vs LBE'!$F$7=\"Provigil\",SUMIFS('IMS Data'!I:I,'IMS Data'!C:C,'TRx Tracker vs LBE'!G:G),IF('TRx Tracker vs LBE'!$F$7=\"Gabitril\",SUMIFS('IMS Data'!H:H,'IMS Data'!C:C,'TRx Tracker vs LBE'!G:G),IF('TRx Tracker vs LBE'!$F$7=\"Actiq\",SUMIFS('IMS Data'!G:G,'IMS Data'!C:C,'TRx Tracker vs LBE'!G:G),IF($F$7=\"Copaxone 20\",SUMIFS('IMS Data'!J:J,'IMS Data'!C:C,'TRx Tracker vs AOP'!G:G),IF($F$7=\"Copaxone 40\",SUMIFS('IMS Data'!K:K,'IMS Data'!C:C,'TRx Tracker vs AOP'!G:G),IF($F$7=\"Azilect\",SUMIFS('IMS Data'!L:L,'IMS Data'!C:C,'TRx Tracker vs LBE'!G:G),IF($F$7=\"Zecuity\",SUMIFS('IMS Data'!M:M,'IMS Data'!C:C,'TRx Tracker vs AOP'!G:G)))))))))))","v":0},{"$f":"IF($F$7=\"Zecuity\",SUMIFS('Zecuity Weekly Forecast'!D:D,'Zecuity Weekly Forecast'!A:A,'TRx Tracker vs LBE'!G:G),IF($F$7=\"Nuvigil\",SUMIFS('NUVIGIL Goals'!$D:$D,'NUVIGIL Goals'!$B:$B,'TRx Tracker vs LBE'!$F:$F),SUMIFS($15:$15,$9:$9,$E:$E)/SUMIFS($18:$18,$9:$9,$E:$E)))","v":741.44823633059139},-741.44823633059139]
[null,null,null,null,5,21,"2016-05-27",{"$f":"IF($F$7=\"Nuvigil\",SUMIFS('IMS Data'!D:D,'IMS Data'!C:C,'TRx Tracker vs LBE'!G:G),IF('TRx Tracker vs LBE'!$F$7=\"Fentora\",SUMIFS('IMS Data'!F:F,'IMS Data'!C:C,'TRx Tracker vs LBE'!G:G),IF('TRx Tracker vs LBE'!$F$7=\"Amrix\",SUMIFS('IMS Data'!E:E,'IMS Data'!C:C,'TRx Tracker vs LBE'!G:G),IF('TRx Tracker vs LBE'!$F$7=\"Provigil\",SUMIFS('IMS Data'!I:I,'IMS Data'!C:C,'TRx Tracker vs LBE'!G:G),IF('TRx Tracker vs LBE'!$F$7=\"Gabitril\",SUMIFS('IMS Data'!H:H,'IMS Data'!C:C,'TRx Tracker vs LBE'!G:G),IF('TRx Tracker vs LBE'!$F$7=\"Actiq\",SUMIFS('IMS Data'!G:G,'IMS Data'!C:C,'TRx Tracker vs LBE'!G:G),IF($F$7=\"Copaxone 20\",SUMIFS('IMS Data'!J:J,'IMS Data'!C:C,'TRx Tracker vs AOP'!G:G),IF($F$7=\"Copaxone 40\",SUMIFS('IMS Data'!K:K,'IMS Data'!C:C,'TRx Tracker vs AOP'!G:G),IF($F$7=\"Azilect\",SUMIFS('IMS Data'!L:L,'IMS Data'!C:C,'TRx Tracker vs LBE'!G:G),IF($F$7=\"Zecuity\",SUMIFS('IMS Data'!M:M,'IMS Data'!C:C,'TRx Tracker vs AOP'!G:G)))))))))))","v":0},{"$f":"IF($F$7=\"Zecuity\",SUMIFS('Zecuity Weekly Forecast'!D:D,'Zecuity Weekly Forecast'!A:A,'TRx Tracker vs LBE'!G:G),IF($F$7=\"Nuvigil\",SUMIFS('NUVIGIL Goals'!$D:$D,'NUVIGIL Goals'!$B:$B,'TRx Tracker vs LBE'!$F:$F),SUMIFS($15:$15,$9:$9,$E:$E)/SUMIFS($18:$18,$9:$9,$E:$E)))","v":747.76582755664424},-747.76582755664424]
[null,null,null,null,6,22,"2016-06-03",{"$f":"IF($F$7=\"Nuvigil\",SUMIFS('IMS Data'!D:D,'IMS Data'!C:C,'TRx Tracker vs LBE'!G:G),IF('TRx Tracker vs LBE'!$F$7=\"Fentora\",SUMIFS('IMS Data'!F:F,'IMS Data'!C:C,'TRx Tracker vs LBE'!G:G),IF('TRx Tracker vs LBE'!$F$7=\"Amrix\",SUMIFS('IMS Data'!E:E,'IMS Data'!C:C,'TRx Tracker vs LBE'!G:G),IF('TRx Tracker vs LBE'!$F$7=\"Provigil\",SUMIFS('IMS Data'!I:I,'IMS Data'!C:C,'TRx Tracker vs LBE'!G:G),IF('TRx Tracker vs LBE'!$F$7=\"Gabitril\",SUMIFS('IMS Data'!H:H,'IMS Data'!C:C,'TRx Tracker vs LBE'!G:G),IF('TRx Tracker vs LBE'!$F$7=\"Actiq\",SUMIFS('IMS Data'!G:G,'IMS Data'!C:C,'TRx Tracker vs LBE'!G:G),IF($F$7=\"Copaxone 20\",SUMIFS('IMS Data'!J:J,'IMS Data'!C:C,'TRx Tracker vs AOP'!G:G),IF($F$7=\"Copaxone 40\",SUMIFS('IMS Data'!K:K,'IMS Data'!C:C,'TRx Tracker vs AOP'!G:G),IF($F$7=\"Azilect\",SUMIFS('IMS Data'!L:L,'IMS Data'!C:C,'TRx Tracker vs LBE'!G:G),IF($F$7=\"Zecuity\",SUMIFS('IMS Data'!M:M,'IMS Data'!C:C,'TRx Tracker vs AOP'!G:G)))))))))))","v":0},{"$f":"IF($F$7=\"Zecuity\",SUMIFS('Zecuity Weekly Forecast'!D:D,'Zecuity Weekly Forecast'!A:A,'TRx Tracker vs LBE'!G:G),IF($F$7=\"Nuvigil\",SUMIFS('NUVIGIL Goals'!$D:$D,'NUVIGIL Goals'!$B:$B,'TRx Tracker vs LBE'!$F:$F),SUMIFS($15:$15,$9:$9,$E:$E)/SUMIFS($18:$18,$9:$9,$E:$E)))","v":751.13649120545006},-751.13649120545006]
[null,null,null,null,6,23,"2016-06-10",{"$f":"IF($F$7=\"Nuvigil\",SUMIFS('IMS Data'!D:D,'IMS Data'!C:C,'TRx Tracker vs LBE'!G:G),IF('TRx Tracker vs LBE'!$F$7=\"Fentora\",SUMIFS('IMS Data'!F:F,'IMS Data'!C:C,'TRx Tracker vs LBE'!G:G),IF('TRx Tracker vs LBE'!$F$7=\"Amrix\",SUMIFS('IMS Data'!E:E,'IMS Data'!C:C,'TRx Tracker vs LBE'!G:G),IF('TRx Tracker vs LBE'!$F$7=\"Provigil\",SUMIFS('IMS Data'!I:I,'IMS Data'!C:C,'TRx Tracker vs LBE'!G:G),IF('TRx Tracker vs LBE'!$F$7=\"Gabitril\",SUMIFS('IMS Data'!H:H,'IMS Data'!C:C,'TRx Tracker vs LBE'!G:G),IF('TRx Tracker vs LBE'!$F$7=\"Actiq\",SUMIFS('IMS Data'!G:G,'IMS Data'!C:C,'TRx Tracker vs LBE'!G:G),IF($F$7=\"Copaxone 20\",SUMIFS('IMS Data'!J:J,'IMS Data'!C:C,'TRx Tracker vs AOP'!G:G),IF($F$7=\"Copaxone 40\",SUMIFS('IMS Data'!K:K,'IMS Data'!C:C,'TRx Tracker vs AOP'!G:G),IF($F$7=\"Azilect\",SUMIFS('IMS Data'!L:L,'IMS Data'!C:C,'TRx Tracker vs LBE'!G:G),IF($F$7=\"Zecuity\",SUMIFS('IMS Data'!M:M,'IMS Data'!C:C,'TRx Tracker vs AOP'!G:G)))))))))))","v":0},{"$f":"IF($F$7=\"Zecuity\",SUMIFS('Zecuity Weekly Forecast'!D:D,'Zecuity Weekly Forecast'!A:A,'TRx Tracker vs LBE'!G:G),IF($F$7=\"Nuvigil\",SUMIFS('NUVIGIL Goals'!$D:$D,'NUVIGIL Goals'!$B:$B,'TRx Tracker vs LBE'!$F:$F),SUMIFS($15:$15,$9:$9,$E:$E)/SUMIFS($18:$18,$9:$9,$E:$E)))","v":751.03359032102708},-751.03359032102708]
[null,null,null,null,6,24,"2016-06-17",{"$f":"IF($F$7=\"Nuvigil\",SUMIFS('IMS Data'!D:D,'IMS Data'!C:C,'TRx Tracker vs LBE'!G:G),IF('TRx Tracker vs LBE'!$F$7=\"Fentora\",SUMIFS('IMS Data'!F:F,'IMS Data'!C:C,'TRx Tracker vs LBE'!G:G),IF('TRx Tracker vs LBE'!$F$7=\"Amrix\",SUMIFS('IMS Data'!E:E,'IMS Data'!C:C,'TRx Tracker vs LBE'!G:G),IF('TRx Tracker vs LBE'!$F$7=\"Provigil\",SUMIFS('IMS Data'!I:I,'IMS Data'!C:C,'TRx Tracker vs LBE'!G:G),IF('TRx Tracker vs LBE'!$F$7=\"Gabitril\",SUMIFS('IMS Data'!H:H,'IMS Data'!C:C,'TRx Tracker vs LBE'!G:G),IF('TRx Tracker vs LBE'!$F$7=\"Actiq\",SUMIFS('IMS Data'!G:G,'IMS Data'!C:C,'TRx Tracker vs LBE'!G:G),IF($F$7=\"Copaxone 20\",SUMIFS('IMS Data'!J:J,'IMS Data'!C:C,'TRx Tracker vs AOP'!G:G),IF($F$7=\"Copaxone 40\",SUMIFS('IMS Data'!K:K,'IMS Data'!C:C,'TRx Tracker vs AOP'!G:G),IF($F$7=\"Azilect\",SUMIFS('IMS Data'!L:L,'IMS Data'!C:C,'TRx Tracker vs LBE'!G:G),IF($F$7=\"Zecuity\",SUMIFS('IMS Data'!M:M,'IMS Data'!C:C,'TRx Tracker vs AOP'!G:G)))))))))))","v":0},{"$f":"IF($F$7=\"Zecuity\",SUMIFS('Zecuity Weekly Forecast'!D:D,'Zecuity Weekly Forecast'!A:A,'TRx Tracker vs LBE'!G:G),IF($F$7=\"Nuvigil\",SUMIFS('NUVIGIL Goals'!$D:$D,'NUVIGIL Goals'!$B:$B,'TRx Tracker vs LBE'!$F:$F),SUMIFS($15:$15,$9:$9,$E:$E)/SUMIFS($18:$18,$9:$9,$E:$E)))","v":746.93301078335685},-746.93301078335685]
[null,null,null,null,6,25,"2016-06-24",{"$f":"IF($F$7=\"Nuvigil\",SUMIFS('IMS Data'!D:D,'IMS Data'!C:C,'TRx Tracker vs LBE'!G:G),IF('TRx Tracker vs LBE'!$F$7=\"Fentora\",SUMIFS('IMS Data'!F:F,'IMS Data'!C:C,'TRx Tracker vs LBE'!G:G),IF('TRx Tracker vs LBE'!$F$7=\"Amrix\",SUMIFS('IMS Data'!E:E,'IMS Data'!C:C,'TRx Tracker vs LBE'!G:G),IF('TRx Tracker vs LBE'!$F$7=\"Provigil\",SUMIFS('IMS Data'!I:I,'IMS Data'!C:C,'TRx Tracker vs LBE'!G:G),IF('TRx Tracker vs LBE'!$F$7=\"Gabitril\",SUMIFS('IMS Data'!H:H,'IMS Data'!C:C,'TRx Tracker vs LBE'!G:G),IF('TRx Tracker vs LBE'!$F$7=\"Actiq\",SUMIFS('IMS Data'!G:G,'IMS Data'!C:C,'TRx Tracker vs LBE'!G:G),IF($F$7=\"Copaxone 20\",SUMIFS('IMS Data'!J:J,'IMS Data'!C:C,'TRx Tracker vs AOP'!G:G),IF($F$7=\"Copaxone 40\",SUMIFS('IMS Data'!K:K,'IMS Data'!C:C,'TRx Tracker vs AOP'!G:G),IF($F$7=\"Azilect\",SUMIFS('IMS Data'!L:L,'IMS Data'!C:C,'TRx Tracker vs LBE'!G:G),IF($F$7=\"Zecuity\",SUMIFS('IMS Data'!M:M,'IMS Data'!C:C,'TRx Tracker vs AOP'!G:G)))))))))))","v":0},{"$f":"IF($F$7=\"Zecuity\",SUMIFS('Zecuity Weekly Forecast'!D:D,'Zecuity Weekly Forecast'!A:A,'TRx Tracker vs LBE'!G:G),IF($F$7=\"Nuvigil\",SUMIFS('NUVIGIL Goals'!$D:$D,'NUVIGIL Goals'!$B:$B,'TRx Tracker vs LBE'!$F:$F),SUMIFS($15:$15,$9:$9,$E:$E)/SUMIFS($18:$18,$9:$9,$E:$E)))","v":739.14961273222616},-739.14961273222616]
[null,null,null,null,7,26,"2016-07-01",{"$f":"IF($F$7=\"Nuvigil\",SUMIFS('IMS Data'!D:D,'IMS Data'!C:C,'TRx Tracker vs LBE'!G:G),IF('TRx Tracker vs LBE'!$F$7=\"Fentora\",SUMIFS('IMS Data'!F:F,'IMS Data'!C:C,'TRx Tracker vs LBE'!G:G),IF('TRx Tracker vs LBE'!$F$7=\"Amrix\",SUMIFS('IMS Data'!E:E,'IMS Data'!C:C,'TRx Tracker vs LBE'!G:G),IF('TRx Tracker vs LBE'!$F$7=\"Provigil\",SUMIFS('IMS Data'!I:I,'IMS Data'!C:C,'TRx Tracker vs LBE'!G:G),IF('TRx Tracker vs LBE'!$F$7=\"Gabitril\",SUMIFS('IMS Data'!H:H,'IMS Data'!C:C,'TRx Tracker vs LBE'!G:G),IF('TRx Tracker vs LBE'!$F$7=\"Actiq\",SUMIFS('IMS Data'!G:G,'IMS Data'!C:C,'TRx Tracker vs LBE'!G:G),IF($F$7=\"Copaxone 20\",SUMIFS('IMS Data'!J:J,'IMS Data'!C:C,'TRx Tracker vs AOP'!G:G),IF($F$7=\"Copaxone 40\",SUMIFS('IMS Data'!K:K,'IMS Data'!C:C,'TRx Tracker vs AOP'!G:G),IF($F$7=\"Azilect\",SUMIFS('IMS Data'!L:L,'IMS Data'!C:C,'TRx Tracker vs LBE'!G:G),IF($F$7=\"Zecuity\",SUMIFS('IMS Data'!M:M,'IMS Data'!C:C,'TRx Tracker vs AOP'!G:G)))))))))))","v":0},{"$f":"IF($F$7=\"Zecuity\",SUMIFS('Zecuity Weekly Forecast'!D:D,'Zecuity Weekly Forecast'!A:A,'TRx Tracker vs LBE'!G:G),IF($F$7=\"Nuvigil\",SUMIFS('NUVIGIL Goals'!$D:$D,'NUVIGIL Goals'!$B:$B,'TRx Tracker vs LBE'!$F:$F),SUMIFS($15:$15,$9:$9,$E:$E)/SUMIFS($18:$18,$9:$9,$E:$E)))","v":730.05480911253073},-730.05480911253073]
[null,null,null,null,7,27,"2016-07-08",{"$f":"IF($F$7=\"Nuvigil\",SUMIFS('IMS Data'!D:D,'IMS Data'!C:C,'TRx Tracker vs LBE'!G:G),IF('TRx Tracker vs LBE'!$F$7=\"Fentora\",SUMIFS('IMS Data'!F:F,'IMS Data'!C:C,'TRx Tracker vs LBE'!G:G),IF('TRx Tracker vs LBE'!$F$7=\"Amrix\",SUMIFS('IMS Data'!E:E,'IMS Data'!C:C,'TRx Tracker vs LBE'!G:G),IF('TRx Tracker vs LBE'!$F$7=\"Provigil\",SUMIFS('IMS Data'!I:I,'IMS Data'!C:C,'TRx Tracker vs LBE'!G:G),IF('TRx Tracker vs LBE'!$F$7=\"Gabitril\",SUMIFS('IMS Data'!H:H,'IMS Data'!C:C,'TRx Tracker vs LBE'!G:G),IF('TRx Tracker vs LBE'!$F$7=\"Actiq\",SUMIFS('IMS Data'!G:G,'IMS Data'!C:C,'TRx Tracker vs LBE'!G:G),IF($F$7=\"Copaxone 20\",SUMIFS('IMS Data'!J:J,'IMS Data'!C:C,'TRx Tracker vs AOP'!G:G),IF($F$7=\"Copaxone 40\",SUMIFS('IMS Data'!K:K,'IMS Data'!C:C,'TRx Tracker vs AOP'!G:G),IF($F$7=\"Azilect\",SUMIFS('IMS Data'!L:L,'IMS Data'!C:C,'TRx Tracker vs LBE'!G:G),IF($F$7=\"Zecuity\",SUMIFS('IMS Data'!M:M,'IMS Data'!C:C,'TRx Tracker vs AOP'!G:G)))))))))))","v":0},{"$f":"IF($F$7=\"Zecuity\",SUMIFS('Zecuity Weekly Forecast'!D:D,'Zecuity Weekly Forecast'!A:A,'TRx Tracker vs LBE'!G:G),IF($F$7=\"Nuvigil\",SUMIFS('NUVIGIL Goals'!$D:$D,'NUVIGIL Goals'!$B:$B,'TRx Tracker vs LBE'!$F:$F),SUMIFS($15:$15,$9:$9,$E:$E)/SUMIFS($18:$18,$9:$9,$E:$E)))","v":722.32945660729467},-722.32945660729467]
[null,null,null,null,7,28,"2016-07-15",{"$f":"IF($F$7=\"Nuvigil\",SUMIFS('IMS Data'!D:D,'IMS Data'!C:C,'TRx Tracker vs LBE'!G:G),IF('TRx Tracker vs LBE'!$F$7=\"Fentora\",SUMIFS('IMS Data'!F:F,'IMS Data'!C:C,'TRx Tracker vs LBE'!G:G),IF('TRx Tracker vs LBE'!$F$7=\"Amrix\",SUMIFS('IMS Data'!E:E,'IMS Data'!C:C,'TRx Tracker vs LBE'!G:G),IF('TRx Tracker vs LBE'!$F$7=\"Provigil\",SUMIFS('IMS Data'!I:I,'IMS Data'!C:C,'TRx Tracker vs LBE'!G:G),IF('TRx Tracker vs LBE'!$F$7=\"Gabitril\",SUMIFS('IMS Data'!H:H,'IMS Data'!C:C,'TRx Tracker vs LBE'!G:G),IF('TRx Tracker vs LBE'!$F$7=\"Actiq\",SUMIFS('IMS Data'!G:G,'IMS Data'!C:C,'TRx Tracker vs LBE'!G:G),IF($F$7=\"Copaxone 20\",SUMIFS('IMS Data'!J:J,'IMS Data'!C:C,'TRx Tracker vs AOP'!G:G),IF($F$7=\"Copaxone 40\",SUMIFS('IMS Data'!K:K,'IMS Data'!C:C,'TRx Tracker vs AOP'!G:G),IF($F$7=\"Azilect\",SUMIFS('IMS Data'!L:L,'IMS Data'!C:C,'TRx Tracker vs LBE'!G:G),IF($F$7=\"Zecuity\",SUMIFS('IMS Data'!M:M,'IMS Data'!C:C,'TRx Tracker vs AOP'!G:G)))))))))))","v":0},{"$f":"IF($F$7=\"Zecuity\",SUMIFS('Zecuity Weekly Forecast'!D:D,'Zecuity Weekly Forecast'!A:A,'TRx Tracker vs LBE'!G:G),IF($F$7=\"Nuvigil\",SUMIFS('NUVIGIL Goals'!$D:$D,'NUVIGIL Goals'!$B:$B,'TRx Tracker vs LBE'!$F:$F),SUMIFS($15:$15,$9:$9,$E:$E)/SUMIFS($18:$18,$9:$9,$E:$E)))","v":718.65430260601306},-718.65430260601306]
[null,null,null,null,7,29,"2016-07-22",{"$f":"IF($F$7=\"Nuvigil\",SUMIFS('IMS Data'!D:D,'IMS Data'!C:C,'TRx Tracker vs LBE'!G:G),IF('TRx Tracker vs LBE'!$F$7=\"Fentora\",SUMIFS('IMS Data'!F:F,'IMS Data'!C:C,'TRx Tracker vs LBE'!G:G),IF('TRx Tracker vs LBE'!$F$7=\"Amrix\",SUMIFS('IMS Data'!E:E,'IMS Data'!C:C,'TRx Tracker vs LBE'!G:G),IF('TRx Tracker vs LBE'!$F$7=\"Provigil\",SUMIFS('IMS Data'!I:I,'IMS Data'!C:C,'TRx Tracker vs LBE'!G:G),IF('TRx Tracker vs LBE'!$F$7=\"Gabitril\",SUMIFS('IMS Data'!H:H,'IMS Data'!C:C,'TRx Tracker vs LBE'!G:G),IF('TRx Tracker vs LBE'!$F$7=\"Actiq\",SUMIFS('IMS Data'!G:G,'IMS Data'!C:C,'TRx Tracker vs LBE'!G:G),IF($F$7=\"Copaxone 20\",SUMIFS('IMS Data'!J:J,'IMS Data'!C:C,'TRx Tracker vs AOP'!G:G),IF($F$7=\"Copaxone 40\",SUMIFS('IMS Data'!K:K,'IMS Data'!C:C,'TRx Tracker vs AOP'!G:G),IF($F$7=\"Azilect\",SUMIFS('IMS Data'!L:L,'IMS Data'!C:C,'TRx Tracker vs LBE'!G:G),IF($F$7=\"Zecuity\",SUMIFS('IMS Data'!M:M,'IMS Data'!C:C,'TRx Tracker vs AOP'!G:G)))))))))))","v":0},{"$f":"IF($F$7=\"Zecuity\",SUMIFS('Zecuity Weekly Forecast'!D:D,'Zecuity Weekly Forecast'!A:A,'TRx Tracker vs LBE'!G:G),IF($F$7=\"Nuvigil\",SUMIFS('NUVIGIL Goals'!$D:$D,'NUVIGIL Goals'!$B:$B,'TRx Tracker vs LBE'!$F:$F),SUMIFS($15:$15,$9:$9,$E:$E)/SUMIFS($18:$18,$9:$9,$E:$E)))","v":721.17603869169318},-721.17603869169318]
[null,null,null,null,7,30,"2016-07-29",{"$f":"IF($F$7=\"Nuvigil\",SUMIFS('IMS Data'!D:D,'IMS Data'!C:C,'TRx Tracker vs LBE'!G:G),IF('TRx Tracker vs LBE'!$F$7=\"Fentora\",SUMIFS('IMS Data'!F:F,'IMS Data'!C:C,'TRx Tracker vs LBE'!G:G),IF('TRx Tracker vs LBE'!$F$7=\"Amrix\",SUMIFS('IMS Data'!E:E,'IMS Data'!C:C,'TRx Tracker vs LBE'!G:G),IF('TRx Tracker vs LBE'!$F$7=\"Provigil\",SUMIFS('IMS Data'!I:I,'IMS Data'!C:C,'TRx Tracker vs LBE'!G:G),IF('TRx Tracker vs LBE'!$F$7=\"Gabitril\",SUMIFS('IMS Data'!H:H,'IMS Data'!C:C,'TRx Tracker vs LBE'!G:G),IF('TRx Tracker vs LBE'!$F$7=\"Actiq\",SUMIFS('IMS Data'!G:G,'IMS Data'!C:C,'TRx Tracker vs LBE'!G:G),IF($F$7=\"Copaxone 20\",SUMIFS('IMS Data'!J:J,'IMS Data'!C:C,'TRx Tracker vs AOP'!G:G),IF($F$7=\"Copaxone 40\",SUMIFS('IMS Data'!K:K,'IMS Data'!C:C,'TRx Tracker vs AOP'!G:G),IF($F$7=\"Azilect\",SUMIFS('IMS Data'!L:L,'IMS Data'!C:C,'TRx Tracker vs LBE'!G:G),IF($F$7=\"Zecuity\",SUMIFS('IMS Data'!M:M,'IMS Data'!C:C,'TRx Tracker vs AOP'!G:G)))))))))))","v":0},{"$f":"IF($F$7=\"Zecuity\",SUMIFS('Zecuity Weekly Forecast'!D:D,'Zecuity Weekly Forecast'!A:A,'TRx Tracker vs LBE'!G:G),IF($F$7=\"Nuvigil\",SUMIFS('NUVIGIL Goals'!$D:$D,'NUVIGIL Goals'!$B:$B,'TRx Tracker vs LBE'!$F:$F),SUMIFS($15:$15,$9:$9,$E:$E)/SUMIFS($18:$18,$9:$9,$E:$E)))","v":728.49093944485844},-728.49093944485844]
[null,null,null,null,8,31,"2016-08-05",{"$f":"IF($F$7=\"Nuvigil\",SUMIFS('IMS Data'!D:D,'IMS Data'!C:C,'TRx Tracker vs LBE'!G:G),IF('TRx Tracker vs LBE'!$F$7=\"Fentora\",SUMIFS('IMS Data'!F:F,'IMS Data'!C:C,'TRx Tracker vs LBE'!G:G),IF('TRx Tracker vs LBE'!$F$7=\"Amrix\",SUMIFS('IMS Data'!E:E,'IMS Data'!C:C,'TRx Tracker vs LBE'!G:G),IF('TRx Tracker vs LBE'!$F$7=\"Provigil\",SUMIFS('IMS Data'!I:I,'IMS Data'!C:C,'TRx Tracker vs LBE'!G:G),IF('TRx Tracker vs LBE'!$F$7=\"Gabitril\",SUMIFS('IMS Data'!H:H,'IMS Data'!C:C,'TRx Tracker vs LBE'!G:G),IF('TRx Tracker vs LBE'!$F$7=\"Actiq\",SUMIFS('IMS Data'!G:G,'IMS Data'!C:C,'TRx Tracker vs LBE'!G:G),IF($F$7=\"Copaxone 20\",SUMIFS('IMS Data'!J:J,'IMS Data'!C:C,'TRx Tracker vs AOP'!G:G),IF($F$7=\"Copaxone 40\",SUMIFS('IMS Data'!K:K,'IMS Data'!C:C,'TRx Tracker vs AOP'!G:G),IF($F$7=\"Azilect\",SUMIFS('IMS Data'!L:L,'IMS Data'!C:C,'TRx Tracker vs LBE'!G:G),IF($F$7=\"Zecuity\",SUMIFS('IMS Data'!M:M,'IMS Data'!C:C,'TRx Tracker vs AOP'!G:G)))))))))))","v":0},{"$f":"IF($F$7=\"Zecuity\",SUMIFS('Zecuity Weekly Forecast'!D:D,'Zecuity Weekly Forecast'!A:A,'TRx Tracker vs LBE'!G:G),IF($F$7=\"Nuvigil\",SUMIFS('NUVIGIL Goals'!$D:$D,'NUVIGIL Goals'!$B:$B,'TRx Tracker vs LBE'!$F:$F),SUMIFS($15:$15,$9:$9,$E:$E)/SUMIFS($18:$18,$9:$9,$E:$E)))","v":737.74668711038362},-737.74668711038362]
[null,null,null,null,8,32,"2016-08-12",{"$f":"IF($F$7=\"Nuvigil\",SUMIFS('IMS Data'!D:D,'IMS Data'!C:C,'TRx Tracker vs LBE'!G:G),IF('TRx Tracker vs LBE'!$F$7=\"Fentora\",SUMIFS('IMS Data'!F:F,'IMS Data'!C:C,'TRx Tracker vs LBE'!G:G),IF('TRx Tracker vs LBE'!$F$7=\"Amrix\",SUMIFS('IMS Data'!E:E,'IMS Data'!C:C,'TRx Tracker vs LBE'!G:G),IF('TRx Tracker vs LBE'!$F$7=\"Provigil\",SUMIFS('IMS Data'!I:I,'IMS Data'!C:C,'TRx Tracker vs LBE'!G:G),IF('TRx Tracker vs LBE'!$F$7=\"Gabitril\",SUMIFS('IMS Data'!H:H,'IMS Data'!C:C,'TRx Tracker vs LBE'!G:G),IF('TRx Tracker vs LBE'!$F$7=\"Actiq\",SUMIFS('IMS Data'!G:G,'IMS Data'!C:C,'TRx Tracker vs LBE'!G:G),IF($F$7=\"Copaxone 20\",SUMIFS('IMS Data'!J:J,'IMS Data'!C:C,'TRx Tracker vs AOP'!G:G),IF($F$7=\"Copaxone 40\",SUMIFS('IMS Data'!K:K,'IMS Data'!C:C,'TRx Tracker vs AOP'!G:G),IF($F$7=\"Azilect\",SUMIFS('IMS Data'!L:L,'IMS Data'!C:C,'TRx Tracker vs LBE'!G:G),IF($F$7=\"Zecuity\",SUMIFS('IMS Data'!M:M,'IMS Data'!C:C,'TRx Tracker vs AOP'!G:G)))))))))))","v":0},{"$f":"IF($F$7=\"Zecuity\",SUMIFS('Zecuity Weekly Forecast'!D:D,'Zecuity Weekly Forecast'!A:A,'TRx Tracker vs LBE'!G:G),IF($F$7=\"Nuvigil\",SUMIFS('NUVIGIL Goals'!$D:$D,'NUVIGIL Goals'!$B:$B,'TRx Tracker vs LBE'!$F:$F),SUMIFS($15:$15,$9:$9,$E:$E)/SUMIFS($18:$18,$9:$9,$E:$E)))","v":746.08695359699209},-746.08695359699209]
[null,null,null,null,8,33,"2016-08-19",{"$f":"IF($F$7=\"Nuvigil\",SUMIFS('IMS Data'!D:D,'IMS Data'!C:C,'TRx Tracker vs LBE'!G:G),IF('TRx Tracker vs LBE'!$F$7=\"Fentora\",SUMIFS('IMS Data'!F:F,'IMS Data'!C:C,'TRx Tracker vs LBE'!G:G),IF('TRx Tracker vs LBE'!$F$7=\"Amrix\",SUMIFS('IMS Data'!E:E,'IMS Data'!C:C,'TRx Tracker vs LBE'!G:G),IF('TRx Tracker vs LBE'!$F$7=\"Provigil\",SUMIFS('IMS Data'!I:I,'IMS Data'!C:C,'TRx Tracker vs LBE'!G:G),IF('TRx Tracker vs LBE'!$F$7=\"Gabitril\",SUMIFS('IMS Data'!H:H,'IMS Data'!C:C,'TRx Tracker vs LBE'!G:G),IF('TRx Tracker vs LBE'!$F$7=\"Actiq\",SUMIFS('IMS Data'!G:G,'IMS Data'!C:C,'TRx Tracker vs LBE'!G:G),IF($F$7=\"Copaxone 20\",SUMIFS('IMS Data'!J:J,'IMS Data'!C:C,'TRx Tracker vs AOP'!G:G),IF($F$7=\"Copaxone 40\",SUMIFS('IMS Data'!K:K,'IMS Data'!C:C,'TRx Tracker vs AOP'!G:G),IF($F$7=\"Azilect\",SUMIFS('IMS Data'!L:L,'IMS Data'!C:C,'TRx Tracker vs LBE'!G:G),IF($F$7=\"Zecuity\",SUMIFS('IMS Data'!M:M,'IMS Data'!C:C,'TRx Tracker vs AOP'!G:G)))))))))))","v":0},{"$f":"IF($F$7=\"Zecuity\",SUMIFS('Zecuity Weekly Forecast'!D:D,'Zecuity Weekly Forecast'!A:A,'TRx Tracker vs LBE'!G:G),IF($F$7=\"Nuvigil\",SUMIFS('NUVIGIL Goals'!$D:$D,'NUVIGIL Goals'!$B:$B,'TRx Tracker vs LBE'!$F:$F),SUMIFS($15:$15,$9:$9,$E:$E)/SUMIFS($18:$18,$9:$9,$E:$E)))","v":750.76243625190023},-750.76243625190023]
[null,null,null,null,8,34,"2016-08-26",{"$f":"IF($F$7=\"Nuvigil\",SUMIFS('IMS Data'!D:D,'IMS Data'!C:C,'TRx Tracker vs LBE'!G:G),IF('TRx Tracker vs LBE'!$F$7=\"Fentora\",SUMIFS('IMS Data'!F:F,'IMS Data'!C:C,'TRx Tracker vs LBE'!G:G),IF('TRx Tracker vs LBE'!$F$7=\"Amrix\",SUMIFS('IMS Data'!E:E,'IMS Data'!C:C,'TRx Tracker vs LBE'!G:G),IF('TRx Tracker vs LBE'!$F$7=\"Provigil\",SUMIFS('IMS Data'!I:I,'IMS Data'!C:C,'TRx Tracker vs LBE'!G:G),IF('TRx Tracker vs LBE'!$F$7=\"Gabitril\",SUMIFS('IMS Data'!H:H,'IMS Data'!C:C,'TRx Tracker vs LBE'!G:G),IF('TRx Tracker vs LBE'!$F$7=\"Actiq\",SUMIFS('IMS Data'!G:G,'IMS Data'!C:C,'TRx Tracker vs LBE'!G:G),IF($F$7=\"Copaxone 20\",SUMIFS('IMS Data'!J:J,'IMS Data'!C:C,'TRx Tracker vs AOP'!G:G),IF($F$7=\"Copaxone 40\",SUMIFS('IMS Data'!K:K,'IMS Data'!C:C,'TRx Tracker vs AOP'!G:G),IF($F$7=\"Azilect\",SUMIFS('IMS Data'!L:L,'IMS Data'!C:C,'TRx Tracker vs LBE'!G:G),IF($F$7=\"Zecuity\",SUMIFS('IMS Data'!M:M,'IMS Data'!C:C,'TRx Tracker vs AOP'!G:G)))))))))))","v":0},{"$f":"IF($F$7=\"Zecuity\",SUMIFS('Zecuity Weekly Forecast'!D:D,'Zecuity Weekly Forecast'!A:A,'TRx Tracker vs LBE'!G:G),IF($F$7=\"Nuvigil\",SUMIFS('NUVIGIL Goals'!$D:$D,'NUVIGIL Goals'!$B:$B,'TRx Tracker vs LBE'!$F:$F),SUMIFS($15:$15,$9:$9,$E:$E)/SUMIFS($18:$18,$9:$9,$E:$E)))","v":751.48843590229114},-751.48843590229114]
[null,null,null,null,9,35,"2016-09-02",{"$f":"IF($F$7=\"Nuvigil\",SUMIFS('IMS Data'!D:D,'IMS Data'!C:C,'TRx Tracker vs LBE'!G:G),IF('TRx Tracker vs LBE'!$F$7=\"Fentora\",SUMIFS('IMS Data'!F:F,'IMS Data'!C:C,'TRx Tracker vs LBE'!G:G),IF('TRx Tracker vs LBE'!$F$7=\"Amrix\",SUMIFS('IMS Data'!E:E,'IMS Data'!C:C,'TRx Tracker vs LBE'!G:G),IF('TRx Tracker vs LBE'!$F$7=\"Provigil\",SUMIFS('IMS Data'!I:I,'IMS Data'!C:C,'TRx Tracker vs LBE'!G:G),IF('TRx Tracker vs LBE'!$F$7=\"Gabitril\",SUMIFS('IMS Data'!H:H,'IMS Data'!C:C,'TRx Tracker vs LBE'!G:G),IF('TRx Tracker vs LBE'!$F$7=\"Actiq\",SUMIFS('IMS Data'!G:G,'IMS Data'!C:C,'TRx Tracker vs LBE'!G:G),IF($F$7=\"Copaxone 20\",SUMIFS('IMS Data'!J:J,'IMS Data'!C:C,'TRx Tracker vs AOP'!G:G),IF($F$7=\"Copaxone 40\",SUMIFS('IMS Data'!K:K,'IMS Data'!C:C,'TRx Tracker vs AOP'!G:G),IF($F$7=\"Azilect\",SUMIFS('IMS Data'!L:L,'IMS Data'!C:C,'TRx Tracker vs LBE'!G:G),IF($F$7=\"Zecuity\",SUMIFS('IMS Data'!M:M,'IMS Data'!C:C,'TRx Tracker vs AOP'!G:G)))))))))))","v":0},{"$f":"IF($F$7=\"Zecuity\",SUMIFS('Zecuity Weekly Forecast'!D:D,'Zecuity Weekly Forecast'!A:A,'TRx Tracker vs LBE'!G:G),IF($F$7=\"Nuvigil\",SUMIFS('NUVIGIL Goals'!$D:$D,'NUVIGIL Goals'!$B:$B,'TRx Tracker vs LBE'!$F:$F),SUMIFS($15:$15,$9:$9,$E:$E)/SUMIFS($18:$18,$9:$9,$E:$E)))","v":750.44477104106898},-750.44477104106898]
[null,null,null,null,9,36,"2016-09-09",{"$f":"IF($F$7=\"Nuvigil\",SUMIFS('IMS Data'!D:D,'IMS Data'!C:C,'TRx Tracker vs LBE'!G:G),IF('TRx Tracker vs LBE'!$F$7=\"Fentora\",SUMIFS('IMS Data'!F:F,'IMS Data'!C:C,'TRx Tracker vs LBE'!G:G),IF('TRx Tracker vs LBE'!$F$7=\"Amrix\",SUMIFS('IMS Data'!E:E,'IMS Data'!C:C,'TRx Tracker vs LBE'!G:G),IF('TRx Tracker vs LBE'!$F$7=\"Provigil\",SUMIFS('IMS Data'!I:I,'IMS Data'!C:C,'TRx Tracker vs LBE'!G:G),IF('TRx Tracker vs LBE'!$F$7=\"Gabitril\",SUMIFS('IMS Data'!H:H,'IMS Data'!C:C,'TRx Tracker vs LBE'!G:G),IF('TRx Tracker vs LBE'!$F$7=\"Actiq\",SUMIFS('IMS Data'!G:G,'IMS Data'!C:C,'TRx Tracker vs LBE'!G:G),IF($F$7=\"Copaxone 20\",SUMIFS('IMS Data'!J:J,'IMS Data'!C:C,'TRx Tracker vs AOP'!G:G),IF($F$7=\"Copaxone 40\",SUMIFS('IMS Data'!K:K,'IMS Data'!C:C,'TRx Tracker vs AOP'!G:G),IF($F$7=\"Azilect\",SUMIFS('IMS Data'!L:L,'IMS Data'!C:C,'TRx Tracker vs LBE'!G:G),IF($F$7=\"Zecuity\",SUMIFS('IMS Data'!M:M,'IMS Data'!C:C,'TRx Tracker vs AOP'!G:G)))))))))))","v":0},{"$f":"IF($F$7=\"Zecuity\",SUMIFS('Zecuity Weekly Forecast'!D:D,'Zecuity Weekly Forecast'!A:A,'TRx Tracker vs LBE'!G:G),IF($F$7=\"Nuvigil\",SUMIFS('NUVIGIL Goals'!$D:$D,'NUVIGIL Goals'!$B:$B,'TRx Tracker vs LBE'!$F:$F),SUMIFS($15:$15,$9:$9,$E:$E)/SUMIFS($18:$18,$9:$9,$E:$E)))","v":749.91842129790928},-749.91842129790928]
[null,null,null,null,9,37,"2016-09-16",{"$f":"IF($F$7=\"Nuvigil\",SUMIFS('IMS Data'!D:D,'IMS Data'!C:C,'TRx Tracker vs LBE'!G:G),IF('TRx Tracker vs LBE'!$F$7=\"Fentora\",SUMIFS('IMS Data'!F:F,'IMS Data'!C:C,'TRx Tracker vs LBE'!G:G),IF('TRx Tracker vs LBE'!$F$7=\"Amrix\",SUMIFS('IMS Data'!E:E,'IMS Data'!C:C,'TRx Tracker vs LBE'!G:G),IF('TRx Tracker vs LBE'!$F$7=\"Provigil\",SUMIFS('IMS Data'!I:I,'IMS Data'!C:C,'TRx Tracker vs LBE'!G:G),IF('TRx Tracker vs LBE'!$F$7=\"Gabitril\",SUMIFS('IMS Data'!H:H,'IMS Data'!C:C,'TRx Tracker vs LBE'!G:G),IF('TRx Tracker vs LBE'!$F$7=\"Actiq\",SUMIFS('IMS Data'!G:G,'IMS Data'!C:C,'TRx Tracker vs LBE'!G:G),IF($F$7=\"Copaxone 20\",SUMIFS('IMS Data'!J:J,'IMS Data'!C:C,'TRx Tracker vs AOP'!G:G),IF($F$7=\"Copaxone 40\",SUMIFS('IMS Data'!K:K,'IMS Data'!C:C,'TRx Tracker vs AOP'!G:G),IF($F$7=\"Azilect\",SUMIFS('IMS Data'!L:L,'IMS Data'!C:C,'TRx Tracker vs LBE'!G:G),IF($F$7=\"Zecuity\",SUMIFS('IMS Data'!M:M,'IMS Data'!C:C,'TRx Tracker vs AOP'!G:G)))))))))))","v":0},{"$f":"IF($F$7=\"Zecuity\",SUMIFS('Zecuity Weekly Forecast'!D:D,'Zecuity Weekly Forecast'!A:A,'TRx Tracker vs LBE'!G:G),IF($F$7=\"Nuvigil\",SUMIFS('NUVIGIL Goals'!$D:$D,'NUVIGIL Goals'!$B:$B,'TRx Tracker vs LBE'!$F:$F),SUMIFS($15:$15,$9:$9,$E:$E)/SUMIFS($18:$18,$9:$9,$E:$E)))","v":752.19215849766636},-752.19215849766636]
[null,null,null,null,9,38,"2016-09-23",{"$f":"IF($F$7=\"Nuvigil\",SUMIFS('IMS Data'!D:D,'IMS Data'!C:C,'TRx Tracker vs LBE'!G:G),IF('TRx Tracker vs LBE'!$F$7=\"Fentora\",SUMIFS('IMS Data'!F:F,'IMS Data'!C:C,'TRx Tracker vs LBE'!G:G),IF('TRx Tracker vs LBE'!$F$7=\"Amrix\",SUMIFS('IMS Data'!E:E,'IMS Data'!C:C,'TRx Tracker vs LBE'!G:G),IF('TRx Tracker vs LBE'!$F$7=\"Provigil\",SUMIFS('IMS Data'!I:I,'IMS Data'!C:C,'TRx Tracker vs LBE'!G:G),IF('TRx Tracker vs LBE'!$F$7=\"Gabitril\",SUMIFS('IMS Data'!H:H,'IMS Data'!C:C,'TRx Tracker vs LBE'!G:G),IF('TRx Tracker vs LBE'!$F$7=\"Actiq\",SUMIFS('IMS Data'!G:G,'IMS Data'!C:C,'TRx Tracker vs LBE'!G:G),IF($F$7=\"Copaxone 20\",SUMIFS('IMS Data'!J:J,'IMS Data'!C:C,'TRx Tracker vs AOP'!G:G),IF($F$7=\"Copaxone 40\",SUMIFS('IMS Data'!K:K,'IMS Data'!C:C,'TRx Tracker vs AOP'!G:G),IF($F$7=\"Azilect\",SUMIFS('IMS Data'!L:L,'IMS Data'!C:C,'TRx Tracker vs LBE'!G:G),IF($F$7=\"Zecuity\",SUMIFS('IMS Data'!M:M,'IMS Data'!C:C,'TRx Tracker vs AOP'!G:G)))))))))))","v":0},{"$f":"IF($F$7=\"Zecuity\",SUMIFS('Zecuity Weekly Forecast'!D:D,'Zecuity Weekly Forecast'!A:A,'TRx Tracker vs LBE'!G:G),IF($F$7=\"Nuvigil\",SUMIFS('NUVIGIL Goals'!$D:$D,'NUVIGIL Goals'!$B:$B,'TRx Tracker vs LBE'!$F:$F),SUMIFS($15:$15,$9:$9,$E:$E)/SUMIFS($18:$18,$9:$9,$E:$E)))","v":758.16722276856683},-758.16722276856683]
[null,null,null,null,9,39,"2016-09-30",{"$f":"IF($F$7=\"Nuvigil\",SUMIFS('IMS Data'!D:D,'IMS Data'!C:C,'TRx Tracker vs LBE'!G:G),IF('TRx Tracker vs LBE'!$F$7=\"Fentora\",SUMIFS('IMS Data'!F:F,'IMS Data'!C:C,'TRx Tracker vs LBE'!G:G),IF('TRx Tracker vs LBE'!$F$7=\"Amrix\",SUMIFS('IMS Data'!E:E,'IMS Data'!C:C,'TRx Tracker vs LBE'!G:G),IF('TRx Tracker vs LBE'!$F$7=\"Provigil\",SUMIFS('IMS Data'!I:I,'IMS Data'!C:C,'TRx Tracker vs LBE'!G:G),IF('TRx Tracker vs LBE'!$F$7=\"Gabitril\",SUMIFS('IMS Data'!H:H,'IMS Data'!C:C,'TRx Tracker vs LBE'!G:G),IF('TRx Tracker vs LBE'!$F$7=\"Actiq\",SUMIFS('IMS Data'!G:G,'IMS Data'!C:C,'TRx Tracker vs LBE'!G:G),IF($F$7=\"Copaxone 20\",SUMIFS('IMS Data'!J:J,'IMS Data'!C:C,'TRx Tracker vs AOP'!G:G),IF($F$7=\"Copaxone 40\",SUMIFS('IMS Data'!K:K,'IMS Data'!C:C,'TRx Tracker vs AOP'!G:G),IF($F$7=\"Azilect\",SUMIFS('IMS Data'!L:L,'IMS Data'!C:C,'TRx Tracker vs LBE'!G:G),IF($F$7=\"Zecuity\",SUMIFS('IMS Data'!M:M,'IMS Data'!C:C,'TRx Tracker vs AOP'!G:G)))))))))))","v":0},{"$f":"IF($F$7=\"Zecuity\",SUMIFS('Zecuity Weekly Forecast'!D:D,'Zecuity Weekly Forecast'!A:A,'TRx Tracker vs LBE'!G:G),IF($F$7=\"Nuvigil\",SUMIFS('NUVIGIL Goals'!$D:$D,'NUVIGIL Goals'!$B:$B,'TRx Tracker vs LBE'!$F:$F),SUMIFS($15:$15,$9:$9,$E:$E)/SUMIFS($18:$18,$9:$9,$E:$E)))","v":765.35727836974672},-765.35727836974672]
[null,null,null,null,10,40,"2016-10-07",{"$f":"IF($F$7=\"Nuvigil\",SUMIFS('IMS Data'!D:D,'IMS Data'!C:C,'TRx Tracker vs LBE'!G:G),IF('TRx Tracker vs LBE'!$F$7=\"Fentora\",SUMIFS('IMS Data'!F:F,'IMS Data'!C:C,'TRx Tracker vs LBE'!G:G),IF('TRx Tracker vs LBE'!$F$7=\"Amrix\",SUMIFS('IMS Data'!E:E,'IMS Data'!C:C,'TRx Tracker vs LBE'!G:G),IF('TRx Tracker vs LBE'!$F$7=\"Provigil\",SUMIFS('IMS Data'!I:I,'IMS Data'!C:C,'TRx Tracker vs LBE'!G:G),IF('TRx Tracker vs LBE'!$F$7=\"Gabitril\",SUMIFS('IMS Data'!H:H,'IMS Data'!C:C,'TRx Tracker vs LBE'!G:G),IF('TRx Tracker vs LBE'!$F$7=\"Actiq\",SUMIFS('IMS Data'!G:G,'IMS Data'!C:C,'TRx Tracker vs LBE'!G:G),IF($F$7=\"Copaxone 20\",SUMIFS('IMS Data'!J:J,'IMS Data'!C:C,'TRx Tracker vs AOP'!G:G),IF($F$7=\"Copaxone 40\",SUMIFS('IMS Data'!K:K,'IMS Data'!C:C,'TRx Tracker vs AOP'!G:G),IF($F$7=\"Azilect\",SUMIFS('IMS Data'!L:L,'IMS Data'!C:C,'TRx Tracker vs LBE'!G:G),IF($F$7=\"Zecuity\",SUMIFS('IMS Data'!M:M,'IMS Data'!C:C,'TRx Tracker vs AOP'!G:G)))))))))))","v":0},{"$f":"IF($F$7=\"Zecuity\",SUMIFS('Zecuity Weekly Forecast'!D:D,'Zecuity Weekly Forecast'!A:A,'TRx Tracker vs LBE'!G:G),IF($F$7=\"Nuvigil\",SUMIFS('NUVIGIL Goals'!$D:$D,'NUVIGIL Goals'!$B:$B,'TRx Tracker vs LBE'!$F:$F),SUMIFS($15:$15,$9:$9,$E:$E)/SUMIFS($18:$18,$9:$9,$E:$E)))","v":770.76694751196214},-770.76694751196214]
[null,null,null,null,10,41,"2016-10-14",{"$f":"IF($F$7=\"Nuvigil\",SUMIFS('IMS Data'!D:D,'IMS Data'!C:C,'TRx Tracker vs LBE'!G:G),IF('TRx Tracker vs LBE'!$F$7=\"Fentora\",SUMIFS('IMS Data'!F:F,'IMS Data'!C:C,'TRx Tracker vs LBE'!G:G),IF('TRx Tracker vs LBE'!$F$7=\"Amrix\",SUMIFS('IMS Data'!E:E,'IMS Data'!C:C,'TRx Tracker vs LBE'!G:G),IF('TRx Tracker vs LBE'!$F$7=\"Provigil\",SUMIFS('IMS Data'!I:I,'IMS Data'!C:C,'TRx Tracker vs LBE'!G:G),IF('TRx Tracker vs LBE'!$F$7=\"Gabitril\",SUMIFS('IMS Data'!H:H,'IMS Data'!C:C,'TRx Tracker vs LBE'!G:G),IF('TRx Tracker vs LBE'!$F$7=\"Actiq\",SUMIFS('IMS Data'!G:G,'IMS Data'!C:C,'TRx Tracker vs LBE'!G:G),IF($F$7=\"Copaxone 20\",SUMIFS('IMS Data'!J:J,'IMS Data'!C:C,'TRx Tracker vs AOP'!G:G),IF($F$7=\"Copaxone 40\",SUMIFS('IMS Data'!K:K,'IMS Data'!C:C,'TRx Tracker vs AOP'!G:G),IF($F$7=\"Azilect\",SUMIFS('IMS Data'!L:L,'IMS Data'!C:C,'TRx Tracker vs LBE'!G:G),IF($F$7=\"Zecuity\",SUMIFS('IMS Data'!M:M,'IMS Data'!C:C,'TRx Tracker vs AOP'!G:G)))))))))))","v":0},{"$f":"IF($F$7=\"Zecuity\",SUMIFS('Zecuity Weekly Forecast'!D:D,'Zecuity Weekly Forecast'!A:A,'TRx Tracker vs LBE'!G:G),IF($F$7=\"Nuvigil\",SUMIFS('NUVIGIL Goals'!$D:$D,'NUVIGIL Goals'!$B:$B,'TRx Tracker vs LBE'!$F:$F),SUMIFS($15:$15,$9:$9,$E:$E)/SUMIFS($18:$18,$9:$9,$E:$E)))","v":771.40059386139399},-771.40059386139399]
[null,null,null,null,10,42,"2016-10-21",{"$f":"IF($F$7=\"Nuvigil\",SUMIFS('IMS Data'!D:D,'IMS Data'!C:C,'TRx Tracker vs LBE'!G:G),IF('TRx Tracker vs LBE'!$F$7=\"Fentora\",SUMIFS('IMS Data'!F:F,'IMS Data'!C:C,'TRx Tracker vs LBE'!G:G),IF('TRx Tracker vs LBE'!$F$7=\"Amrix\",SUMIFS('IMS Data'!E:E,'IMS Data'!C:C,'TRx Tracker vs LBE'!G:G),IF('TRx Tracker vs LBE'!$F$7=\"Provigil\",SUMIFS('IMS Data'!I:I,'IMS Data'!C:C,'TRx Tracker vs LBE'!G:G),IF('TRx Tracker vs LBE'!$F$7=\"Gabitril\",SUMIFS('IMS Data'!H:H,'IMS Data'!C:C,'TRx Tracker vs LBE'!G:G),IF('TRx Tracker vs LBE'!$F$7=\"Actiq\",SUMIFS('IMS Data'!G:G,'IMS Data'!C:C,'TRx Tracker vs LBE'!G:G),IF($F$7=\"Copaxone 20\",SUMIFS('IMS Data'!J:J,'IMS Data'!C:C,'TRx Tracker vs AOP'!G:G),IF($F$7=\"Copaxone 40\",SUMIFS('IMS Data'!K:K,'IMS Data'!C:C,'TRx Tracker vs AOP'!G:G),IF($F$7=\"Azilect\",SUMIFS('IMS Data'!L:L,'IMS Data'!C:C,'TRx Tracker vs LBE'!G:G),IF($F$7=\"Zecuity\",SUMIFS('IMS Data'!M:M,'IMS Data'!C:C,'TRx Tracker vs AOP'!G:G)))))))))))","v":0},{"$f":"IF($F$7=\"Zecuity\",SUMIFS('Zecuity Weekly Forecast'!D:D,'Zecuity Weekly Forecast'!A:A,'TRx Tracker vs LBE'!G:G),IF($F$7=\"Nuvigil\",SUMIFS('NUVIGIL Goals'!$D:$D,'NUVIGIL Goals'!$B:$B,'TRx Tracker vs LBE'!$F:$F),SUMIFS($15:$15,$9:$9,$E:$E)/SUMIFS($18:$18,$9:$9,$E:$E)))","v":764.97014912151383},-764.97014912151383]
[null,null,null,null,10,43,"2016-10-28",{"$f":"IF($F$7=\"Nuvigil\",SUMIFS('IMS Data'!D:D,'IMS Data'!C:C,'TRx Tracker vs LBE'!G:G),IF('TRx Tracker vs LBE'!$F$7=\"Fentora\",SUMIFS('IMS Data'!F:F,'IMS Data'!C:C,'TRx Tracker vs LBE'!G:G),IF('TRx Tracker vs LBE'!$F$7=\"Amrix\",SUMIFS('IMS Data'!E:E,'IMS Data'!C:C,'TRx Tracker vs LBE'!G:G),IF('TRx Tracker vs LBE'!$F$7=\"Provigil\",SUMIFS('IMS Data'!I:I,'IMS Data'!C:C,'TRx Tracker vs LBE'!G:G),IF('TRx Tracker vs LBE'!$F$7=\"Gabitril\",SUMIFS('IMS Data'!H:H,'IMS Data'!C:C,'TRx Tracker vs LBE'!G:G),IF('TRx Tracker vs LBE'!$F$7=\"Actiq\",SUMIFS('IMS Data'!G:G,'IMS Data'!C:C,'TRx Tracker vs LBE'!G:G),IF($F$7=\"Copaxone 20\",SUMIFS('IMS Data'!J:J,'IMS Data'!C:C,'TRx Tracker vs AOP'!G:G),IF($F$7=\"Copaxone 40\",SUMIFS('IMS Data'!K:K,'IMS Data'!C:C,'TRx Tracker vs AOP'!G:G),IF($F$7=\"Azilect\",SUMIFS('IMS Data'!L:L,'IMS Data'!C:C,'TRx Tracker vs LBE'!G:G),IF($F$7=\"Zecuity\",SUMIFS('IMS Data'!M:M,'IMS Data'!C:C,'TRx Tracker vs AOP'!G:G)))))))))))","v":0},{"$f":"IF($F$7=\"Zecuity\",SUMIFS('Zecuity Weekly Forecast'!D:D,'Zecuity Weekly Forecast'!A:A,'TRx Tracker vs LBE'!G:G),IF($F$7=\"Nuvigil\",SUMIFS('NUVIGIL Goals'!$D:$D,'NUVIGIL Goals'!$B:$B,'TRx Tracker vs LBE'!$F:$F),SUMIFS($15:$15,$9:$9,$E:$E)/SUMIFS($18:$18,$9:$9,$E:$E)))","v":753.89060135033253},-753.89060135033253]
[null,null,null,null,11,44,"2016-11-04",{"$f":"IF($F$7=\"Nuvigil\",SUMIFS('IMS Data'!D:D,'IMS Data'!C:C,'TRx Tracker vs LBE'!G:G),IF('TRx Tracker vs LBE'!$F$7=\"Fentora\",SUMIFS('IMS Data'!F:F,'IMS Data'!C:C,'TRx Tracker vs LBE'!G:G),IF('TRx Tracker vs LBE'!$F$7=\"Amrix\",SUMIFS('IMS Data'!E:E,'IMS Data'!C:C,'TRx Tracker vs LBE'!G:G),IF('TRx Tracker vs LBE'!$F$7=\"Provigil\",SUMIFS('IMS Data'!I:I,'IMS Data'!C:C,'TRx Tracker vs LBE'!G:G),IF('TRx Tracker vs LBE'!$F$7=\"Gabitril\",SUMIFS('IMS Data'!H:H,'IMS Data'!C:C,'TRx Tracker vs LBE'!G:G),IF('TRx Tracker vs LBE'!$F$7=\"Actiq\",SUMIFS('IMS Data'!G:G,'IMS Data'!C:C,'TRx Tracker vs LBE'!G:G),IF($F$7=\"Copaxone 20\",SUMIFS('IMS Data'!J:J,'IMS Data'!C:C,'TRx Tracker vs AOP'!G:G),IF($F$7=\"Copaxone 40\",SUMIFS('IMS Data'!K:K,'IMS Data'!C:C,'TRx Tracker vs AOP'!G:G),IF($F$7=\"Azilect\",SUMIFS('IMS Data'!L:L,'IMS Data'!C:C,'TRx Tracker vs LBE'!G:G),IF($F$7=\"Zecuity\",SUMIFS('IMS Data'!M:M,'IMS Data'!C:C,'TRx Tracker vs AOP'!G:G)))))))))))","v":0},{"$f":"IF($F$7=\"Zecuity\",SUMIFS('Zecuity Weekly Forecast'!D:D,'Zecuity Weekly Forecast'!A:A,'TRx Tracker vs LBE'!G:G),IF($F$7=\"Nuvigil\",SUMIFS('NUVIGIL Goals'!$D:$D,'NUVIGIL Goals'!$B:$B,'TRx Tracker vs LBE'!$F:$F),SUMIFS($15:$15,$9:$9,$E:$E)/SUMIFS($18:$18,$9:$9,$E:$E)))","v":742.49547693892885},-742.49547693892885]
[null,null,null,null,11,45,"2016-11-11",{"$f":"IF($F$7=\"Nuvigil\",SUMIFS('IMS Data'!D:D,'IMS Data'!C:C,'TRx Tracker vs LBE'!G:G),IF('TRx Tracker vs LBE'!$F$7=\"Fentora\",SUMIFS('IMS Data'!F:F,'IMS Data'!C:C,'TRx Tracker vs LBE'!G:G),IF('TRx Tracker vs LBE'!$F$7=\"Amrix\",SUMIFS('IMS Data'!E:E,'IMS Data'!C:C,'TRx Tracker vs LBE'!G:G),IF('TRx Tracker vs LBE'!$F$7=\"Provigil\",SUMIFS('IMS Data'!I:I,'IMS Data'!C:C,'TRx Tracker vs LBE'!G:G),IF('TRx Tracker vs LBE'!$F$7=\"Gabitril\",SUMIFS('IMS Data'!H:H,'IMS Data'!C:C,'TRx Tracker vs LBE'!G:G),IF('TRx Tracker vs LBE'!$F$7=\"Actiq\",SUMIFS('IMS Data'!G:G,'IMS Data'!C:C,'TRx Tracker vs LBE'!G:G),IF($F$7=\"Copaxone 20\",SUMIFS('IMS Data'!J:J,'IMS Data'!C:C,'TRx Tracker vs AOP'!G:G),IF($F$7=\"Copaxone 40\",SUMIFS('IMS Data'!K:K,'IMS Data'!C:C,'TRx Tracker vs AOP'!G:G),IF($F$7=\"Azilect\",SUMIFS('IMS Data'!L:L,'IMS Data'!C:C,'TRx Tracker vs LBE'!G:G),IF($F$7=\"Zecuity\",SUMIFS('IMS Data'!M:M,'IMS Data'!C:C,'TRx Tracker vs AOP'!G:G)))))))))))","v":0},{"$f":"IF($F$7=\"Zecuity\",SUMIFS('Zecuity Weekly Forecast'!D:D,'Zecuity Weekly Forecast'!A:A,'TRx Tracker vs LBE'!G:G),IF($F$7=\"Nuvigil\",SUMIFS('NUVIGIL Goals'!$D:$D,'NUVIGIL Goals'!$B:$B,'TRx Tracker vs LBE'!$F:$F),SUMIFS($15:$15,$9:$9,$E:$E)/SUMIFS($18:$18,$9:$9,$E:$E)))","v":735.12386311582941},-735.12386311582941]
[null,null,null,null,11,46,"2016-11-18",{"$f":"IF($F$7=\"Nuvigil\",SUMIFS('IMS Data'!D:D,'IMS Data'!C:C,'TRx Tracker vs LBE'!G:G),IF('TRx Tracker vs LBE'!$F$7=\"Fentora\",SUMIFS('IMS Data'!F:F,'IMS Data'!C:C,'TRx Tracker vs LBE'!G:G),IF('TRx Tracker vs LBE'!$F$7=\"Amrix\",SUMIFS('IMS Data'!E:E,'IMS Data'!C:C,'TRx Tracker vs LBE'!G:G),IF('TRx Tracker vs LBE'!$F$7=\"Provigil\",SUMIFS('IMS Data'!I:I,'IMS Data'!C:C,'TRx Tracker vs LBE'!G:G),IF('TRx Tracker vs LBE'!$F$7=\"Gabitril\",SUMIFS('IMS Data'!H:H,'IMS Data'!C:C,'TRx Tracker vs LBE'!G:G),IF('TRx Tracker vs LBE'!$F$7=\"Actiq\",SUMIFS('IMS Data'!G:G,'IMS Data'!C:C,'TRx Tracker vs LBE'!G:G),IF($F$7=\"Copaxone 20\",SUMIFS('IMS Data'!J:J,'IMS Data'!C:C,'TRx Tracker vs AOP'!G:G),IF($F$7=\"Copaxone 40\",SUMIFS('IMS Data'!K:K,'IMS Data'!C:C,'TRx Tracker vs AOP'!G:G),IF($F$7=\"Azilect\",SUMIFS('IMS Data'!L:L,'IMS Data'!C:C,'TRx Tracker vs LBE'!G:G),IF($F$7=\"Zecuity\",SUMIFS('IMS Data'!M:M,'IMS Data'!C:C,'TRx Tracker vs AOP'!G:G)))))))))))","v":0},{"$f":"IF($F$7=\"Zecuity\",SUMIFS('Zecuity Weekly Forecast'!D:D,'Zecuity Weekly Forecast'!A:A,'TRx Tracker vs LBE'!G:G),IF($F$7=\"Nuvigil\",SUMIFS('NUVIGIL Goals'!$D:$D,'NUVIGIL Goals'!$B:$B,'TRx Tracker vs LBE'!$F:$F),SUMIFS($15:$15,$9:$9,$E:$E)/SUMIFS($18:$18,$9:$9,$E:$E)))","v":735.97389211079951},-735.97389211079951]
[null,null,null,null,11,47,"2016-11-25",{"$f":"IF($F$7=\"Nuvigil\",SUMIFS('IMS Data'!D:D,'IMS Data'!C:C,'TRx Tracker vs LBE'!G:G),IF('TRx Tracker vs LBE'!$F$7=\"Fentora\",SUMIFS('IMS Data'!F:F,'IMS Data'!C:C,'TRx Tracker vs LBE'!G:G),IF('TRx Tracker vs LBE'!$F$7=\"Amrix\",SUMIFS('IMS Data'!E:E,'IMS Data'!C:C,'TRx Tracker vs LBE'!G:G),IF('TRx Tracker vs LBE'!$F$7=\"Provigil\",SUMIFS('IMS Data'!I:I,'IMS Data'!C:C,'TRx Tracker vs LBE'!G:G),IF('TRx Tracker vs LBE'!$F$7=\"Gabitril\",SUMIFS('IMS Data'!H:H,'IMS Data'!C:C,'TRx Tracker vs LBE'!G:G),IF('TRx Tracker vs LBE'!$F$7=\"Actiq\",SUMIFS('IMS Data'!G:G,'IMS Data'!C:C,'TRx Tracker vs LBE'!G:G),IF($F$7=\"Copaxone 20\",SUMIFS('IMS Data'!J:J,'IMS Data'!C:C,'TRx Tracker vs AOP'!G:G),IF($F$7=\"Copaxone 40\",SUMIFS('IMS Data'!K:K,'IMS Data'!C:C,'TRx Tracker vs AOP'!G:G),IF($F$7=\"Azilect\",SUMIFS('IMS Data'!L:L,'IMS Data'!C:C,'TRx Tracker vs LBE'!G:G),IF($F$7=\"Zecuity\",SUMIFS('IMS Data'!M:M,'IMS Data'!C:C,'TRx Tracker vs AOP'!G:G)))))))))))","v":0},{"$f":"IF($F$7=\"Zecuity\",SUMIFS('Zecuity Weekly Forecast'!D:D,'Zecuity Weekly Forecast'!A:A,'TRx Tracker vs LBE'!G:G),IF($F$7=\"Nuvigil\",SUMIFS('NUVIGIL Goals'!$D:$D,'NUVIGIL Goals'!$B:$B,'TRx Tracker vs LBE'!$F:$F),SUMIFS($15:$15,$9:$9,$E:$E)/SUMIFS($18:$18,$9:$9,$E:$E)))","v":745.99974723590549},-745.99974723590549]
[null,null,null,null,12,48,"2016-12-02",{"$f":"IF($F$7=\"Nuvigil\",SUMIFS('IMS Data'!D:D,'IMS Data'!C:C,'TRx Tracker vs LBE'!G:G),IF('TRx Tracker vs LBE'!$F$7=\"Fentora\",SUMIFS('IMS Data'!F:F,'IMS Data'!C:C,'TRx Tracker vs LBE'!G:G),IF('TRx Tracker vs LBE'!$F$7=\"Amrix\",SUMIFS('IMS Data'!E:E,'IMS Data'!C:C,'TRx Tracker vs LBE'!G:G),IF('TRx Tracker vs LBE'!$F$7=\"Provigil\",SUMIFS('IMS Data'!I:I,'IMS Data'!C:C,'TRx Tracker vs LBE'!G:G),IF('TRx Tracker vs LBE'!$F$7=\"Gabitril\",SUMIFS('IMS Data'!H:H,'IMS Data'!C:C,'TRx Tracker vs LBE'!G:G),IF('TRx Tracker vs LBE'!$F$7=\"Actiq\",SUMIFS('IMS Data'!G:G,'IMS Data'!C:C,'TRx Tracker vs LBE'!G:G),IF($F$7=\"Copaxone 20\",SUMIFS('IMS Data'!J:J,'IMS Data'!C:C,'TRx Tracker vs AOP'!G:G),IF($F$7=\"Copaxone 40\",SUMIFS('IMS Data'!K:K,'IMS Data'!C:C,'TRx Tracker vs AOP'!G:G),IF($F$7=\"Azilect\",SUMIFS('IMS Data'!L:L,'IMS Data'!C:C,'TRx Tracker vs LBE'!G:G),IF($F$7=\"Zecuity\",SUMIFS('IMS Data'!M:M,'IMS Data'!C:C,'TRx Tracker vs AOP'!G:G)))))))))))","v":0},{"$f":"IF($F$7=\"Zecuity\",SUMIFS('Zecuity Weekly Forecast'!D:D,'Zecuity Weekly Forecast'!A:A,'TRx Tracker vs LBE'!G:G),IF($F$7=\"Nuvigil\",SUMIFS('NUVIGIL Goals'!$D:$D,'NUVIGIL Goals'!$B:$B,'TRx Tracker vs LBE'!$F:$F),SUMIFS($15:$15,$9:$9,$E:$E)/SUMIFS($18:$18,$9:$9,$E:$E)))","v":762.91205162345091},-762.91205162345091]
[null,null,null,null,12,49,"2016-12-09",{"$f":"IF($F$7=\"Nuvigil\",SUMIFS('IMS Data'!D:D,'IMS Data'!C:C,'TRx Tracker vs LBE'!G:G),IF('TRx Tracker vs LBE'!$F$7=\"Fentora\",SUMIFS('IMS Data'!F:F,'IMS Data'!C:C,'TRx Tracker vs LBE'!G:G),IF('TRx Tracker vs LBE'!$F$7=\"Amrix\",SUMIFS('IMS Data'!E:E,'IMS Data'!C:C,'TRx Tracker vs LBE'!G:G),IF('TRx Tracker vs LBE'!$F$7=\"Provigil\",SUMIFS('IMS Data'!I:I,'IMS Data'!C:C,'TRx Tracker vs LBE'!G:G),IF('TRx Tracker vs LBE'!$F$7=\"Gabitril\",SUMIFS('IMS Data'!H:H,'IMS Data'!C:C,'TRx Tracker vs LBE'!G:G),IF('TRx Tracker vs LBE'!$F$7=\"Actiq\",SUMIFS('IMS Data'!G:G,'IMS Data'!C:C,'TRx Tracker vs LBE'!G:G),IF($F$7=\"Copaxone 20\",SUMIFS('IMS Data'!J:J,'IMS Data'!C:C,'TRx Tracker vs AOP'!G:G),IF($F$7=\"Copaxone 40\",SUMIFS('IMS Data'!K:K,'IMS Data'!C:C,'TRx Tracker vs AOP'!G:G),IF($F$7=\"Azilect\",SUMIFS('IMS Data'!L:L,'IMS Data'!C:C,'TRx Tracker vs LBE'!G:G),IF($F$7=\"Zecuity\",SUMIFS('IMS Data'!M:M,'IMS Data'!C:C,'TRx Tracker vs AOP'!G:G)))))))))))","v":0},{"$f":"IF($F$7=\"Zecuity\",SUMIFS('Zecuity Weekly Forecast'!D:D,'Zecuity Weekly Forecast'!A:A,'TRx Tracker vs LBE'!G:G),IF($F$7=\"Nuvigil\",SUMIFS('NUVIGIL Goals'!$D:$D,'NUVIGIL Goals'!$B:$B,'TRx Tracker vs LBE'!$F:$F),SUMIFS($15:$15,$9:$9,$E:$E)/SUMIFS($18:$18,$9:$9,$E:$E)))","v":784.28022370799545},-784.28022370799545]
[null,null,null,null,12,50,"2016-12-16",{"$f":"IF($F$7=\"Nuvigil\",SUMIFS('IMS Data'!D:D,'IMS Data'!C:C,'TRx Tracker vs LBE'!G:G),IF('TRx Tracker vs LBE'!$F$7=\"Fentora\",SUMIFS('IMS Data'!F:F,'IMS Data'!C:C,'TRx Tracker vs LBE'!G:G),IF('TRx Tracker vs LBE'!$F$7=\"Amrix\",SUMIFS('IMS Data'!E:E,'IMS Data'!C:C,'TRx Tracker vs LBE'!G:G),IF('TRx Tracker vs LBE'!$F$7=\"Provigil\",SUMIFS('IMS Data'!I:I,'IMS Data'!C:C,'TRx Tracker vs LBE'!G:G),IF('TRx Tracker vs LBE'!$F$7=\"Gabitril\",SUMIFS('IMS Data'!H:H,'IMS Data'!C:C,'TRx Tracker vs LBE'!G:G),IF('TRx Tracker vs LBE'!$F$7=\"Actiq\",SUMIFS('IMS Data'!G:G,'IMS Data'!C:C,'TRx Tracker vs LBE'!G:G),IF($F$7=\"Copaxone 20\",SUMIFS('IMS Data'!J:J,'IMS Data'!C:C,'TRx Tracker vs AOP'!G:G),IF($F$7=\"Copaxone 40\",SUMIFS('IMS Data'!K:K,'IMS Data'!C:C,'TRx Tracker vs AOP'!G:G),IF($F$7=\"Azilect\",SUMIFS('IMS Data'!L:L,'IMS Data'!C:C,'TRx Tracker vs LBE'!G:G),IF($F$7=\"Zecuity\",SUMIFS('IMS Data'!M:M,'IMS Data'!C:C,'TRx Tracker vs AOP'!G:G)))))))))))","v":0},{"$f":"IF($F$7=\"Zecuity\",SUMIFS('Zecuity Weekly Forecast'!D:D,'Zecuity Weekly Forecast'!A:A,'TRx Tracker vs LBE'!G:G),IF($F$7=\"Nuvigil\",SUMIFS('NUVIGIL Goals'!$D:$D,'NUVIGIL Goals'!$B:$B,'TRx Tracker vs LBE'!$F:$F),SUMIFS($15:$15,$9:$9,$E:$E)/SUMIFS($18:$18,$9:$9,$E:$E)))","v":807.67375677122868},-807.67375677122868]
[null,null,null,null,12,51,"2016-12-23",{"$f":"IF($F$7=\"Nuvigil\",SUMIFS('IMS Data'!D:D,'IMS Data'!C:C,'TRx Tracker vs LBE'!G:G),IF('TRx Tracker vs LBE'!$F$7=\"Fentora\",SUMIFS('IMS Data'!F:F,'IMS Data'!C:C,'TRx Tracker vs LBE'!G:G),IF('TRx Tracker vs LBE'!$F$7=\"Amrix\",SUMIFS('IMS Data'!E:E,'IMS Data'!C:C,'TRx Tracker vs LBE'!G:G),IF('TRx Tracker vs LBE'!$F$7=\"Provigil\",SUMIFS('IMS Data'!I:I,'IMS Data'!C:C,'TRx Tracker vs LBE'!G:G),IF('TRx Tracker vs LBE'!$F$7=\"Gabitril\",SUMIFS('IMS Data'!H:H,'IMS Data'!C:C,'TRx Tracker vs LBE'!G:G),IF('TRx Tracker vs LBE'!$F$7=\"Actiq\",SUMIFS('IMS Data'!G:G,'IMS Data'!C:C,'TRx Tracker vs LBE'!G:G),IF($F$7=\"Copaxone 20\",SUMIFS('IMS Data'!J:J,'IMS Data'!C:C,'TRx Tracker vs AOP'!G:G),IF($F$7=\"Copaxone 40\",SUMIFS('IMS Data'!K:K,'IMS Data'!C:C,'TRx Tracker vs AOP'!G:G),IF($F$7=\"Azilect\",SUMIFS('IMS Data'!L:L,'IMS Data'!C:C,'TRx Tracker vs LBE'!G:G),IF($F$7=\"Zecuity\",SUMIFS('IMS Data'!M:M,'IMS Data'!C:C,'TRx Tracker vs AOP'!G:G)))))))))))","v":0},{"$f":"IF($F$7=\"Zecuity\",SUMIFS('Zecuity Weekly Forecast'!D:D,'Zecuity Weekly Forecast'!A:A,'TRx Tracker vs LBE'!G:G),IF($F$7=\"Nuvigil\",SUMIFS('NUVIGIL Goals'!$D:$D,'NUVIGIL Goals'!$B:$B,'TRx Tracker vs LBE'!$F:$F),SUMIFS($15:$15,$9:$9,$E:$E)/SUMIFS($18:$18,$9:$9,$E:$E)))","v":830.66217290205145},-830.66217290205145]
[null,null,null,null,12,52,"2016-12-30",{"$f":"IF($F$7=\"Nuvigil\",SUMIFS('IMS Data'!D:D,'IMS Data'!C:C,'TRx Tracker vs LBE'!G:G),IF('TRx Tracker vs LBE'!$F$7=\"Fentora\",SUMIFS('IMS Data'!F:F,'IMS Data'!C:C,'TRx Tracker vs LBE'!G:G),IF('TRx Tracker vs LBE'!$F$7=\"Amrix\",SUMIFS('IMS Data'!E:E,'IMS Data'!C:C,'TRx Tracker vs LBE'!G:G),IF('TRx Tracker vs LBE'!$F$7=\"Provigil\",SUMIFS('IMS Data'!I:I,'IMS Data'!C:C,'TRx Tracker vs LBE'!G:G),IF('TRx Tracker vs LBE'!$F$7=\"Gabitril\",SUMIFS('IMS Data'!H:H,'IMS Data'!C:C,'TRx Tracker vs LBE'!G:G),IF('TRx Tracker vs LBE'!$F$7=\"Actiq\",SUMIFS('IMS Data'!G:G,'IMS Data'!C:C,'TRx Tracker vs LBE'!G:G),IF($F$7=\"Copaxone 20\",SUMIFS('IMS Data'!J:J,'IMS Data'!C:C,'TRx Tracker vs AOP'!G:G),IF($F$7=\"Copaxone 40\",SUMIFS('IMS Data'!K:K,'IMS Data'!C:C,'TRx Tracker vs AOP'!G:G),IF($F$7=\"Azilect\",SUMIFS('IMS Data'!L:L,'IMS Data'!C:C,'TRx Tracker vs LBE'!G:G),IF($F$7=\"Zecuity\",SUMIFS('IMS Data'!M:M,'IMS Data'!C:C,'TRx Tracker vs AOP'!G:G)))))))))))","v":0},{"$f":"IF($F$7=\"Zecuity\",SUMIFS('Zecuity Weekly Forecast'!D:D,'Zecuity Weekly Forecast'!A:A,'TRx Tracker vs LBE'!G:G),IF($F$7=\"Nuvigil\",SUMIFS('NUVIGIL Goals'!$D:$D,'NUVIGIL Goals'!$B:$B,'TRx Tracker vs LBE'!$F:$F),SUMIFS($15:$15,$9:$9,$E:$E)/SUMIFS($18:$18,$9:$9,$E:$E)))","v":850.81497269768033},-850.81497269768033]

{"sheet":"Fentora Tracker","index":3,"n_rows":75,"n_cols":15,"rows_kept":75,"cut":false,"hidden":false,"merged":[]}
[]
[]
[]
[null,null,"Fentora TRx Tracker"]
[]
[null,null,null,null,null,null,null,null,null,null,"Baseline","Current Volume"]
[null,null,null,"Select Product",null,"Fentora",null,null,"Rolling 12 Weeks",null,295399,{"$f":"SUM('Fentora 2017'!K114:K125)","v":287375}]
[]
[null,null,null,1,2,3,4,5,6,7,8,9,10,11,12]
[null,null,null,"Jan","Feb","Mar","Apr","May","Jun","Jul","Aug","Sep","Oct","Nov","Dec"]
[null,null,"Unit Forecast",{"$f":"SUMIFS('Data Inputs'!D:D,'Data Inputs'!$C:$C,'Fentora Tracker'!$F$7,'Data Inputs'!$B:$B,'Fentora Tracker'!$C:$C,'Data Inputs'!$A:$A,\"LBE\")","v":0},{"$f":"SUMIFS('Data Inputs'!E:E,'Data Inputs'!$C:$C,'Fentora Tracker'!$F$7,'Data Inputs'!$B:$B,'Fentora Tracker'!$C:$C,'Data Inputs'!$A:$A,\"LBE\")","v":0},{"$f":"SUMIFS('Data Inputs'!F:F,'Data Inputs'!$C:$C,'Fentora Tracker'!$F$7,'Data Inputs'!$B:$B,'Fentora Tracker'!$C:$C,'Data Inputs'!$A:$A,\"LBE\")","v":0},{"$f":"SUMIFS('Data Inputs'!G:G,'Data Inputs'!$C:$C,'Fentora Tracker'!$F$7,'Data Inputs'!$B:$B,'Fentora Tracker'!$C:$C,'Data Inputs'!$A:$A,\"LBE\")","v":0},{"$f":"SUMIFS('Data Inputs'!H:H,'Data Inputs'!$C:$C,'Fentora Tracker'!$F$7,'Data Inputs'!$B:$B,'Fentora Tracker'!$C:$C,'Data Inputs'!$A:$A,\"LBE\")","v":0},{"$f":"SUMIFS('Data Inputs'!I:I,'Data Inputs'!$C:$C,'Fentora Tracker'!$F$7,'Data Inputs'!$B:$B,'Fentora Tracker'!$C:$C,'Data Inputs'!$A:$A,\"LBE\")","v":0},{"$f":"SUMIFS('Data Inputs'!J:J,'Data Inputs'!$C:$C,'Fentora Tracker'!$F$7,'Data Inputs'!$B:$B,'Fentora Tracker'!$C:$C,'Data Inputs'!$A:$A,\"LBE\")","v":0},{"$f":"SUMIFS('Data Inputs'!K:K,'Data Inputs'!$C:$C,'Fentora Tracker'!$F$7,'Data Inputs'!$B:$B,'Fentora Tracker'!$C:$C,'Data Inputs'!$A:$A,\"LBE\")","v":0},{"$f":"SUMIFS('Data Inputs'!L:L,'Data Inputs'!$C:$C,'Fentora Tracker'!$F$7,'Data Inputs'!$B:$B,'Fentora Tracker'!$C:$C,'Data Inputs'!$A:$A,\"LBE\")","v":0},{"$f":"SUMIFS('Data Inputs'!M:M,'Data Inputs'!$C:$C,'Fentora Tracker'!$F$7,'Data Inputs'!$B:$B,'Fentora Tracker'!$C:$C,'Data Inputs'!$A:$A,\"LBE\")","v":0},{"$f":"SUMIFS('Data Inputs'!N:N,'Data Inputs'!$C:$C,'Fentora Tracker'!$F$7,'Data Inputs'!$B:$B,'Fentora Tracker'!$C:$C,'Data Inputs'!$A:$A,\"LBE\")","v":0},{"$f":"SUMIFS('Data Inputs'!O:O,'Data Inputs'!$C:$C,'Fentora Tracker'!$F$7,'Data Inputs'!$B:$B,'Fentora Tracker'!$C:$C,'Data Inputs'!$A:$A,\"LBE\")","v":0}]
[null,null,"Bottle Size",{"$f":"SUMIFS('Data Inputs'!D:D,'Data Inputs'!$C:$C,'Fentora Tracker'!$F$7,'Data Inputs'!$B:$B,'Fentora Tracker'!$C:$C,'Data Inputs'!$A:$A,\"LBE\")","v":28},{"$f":"SUMIFS('Data Inputs'!E:E,'Data Inputs'!$C:$C,'Fentora Tracker'!$F$7,'Data Inputs'!$B:$B,'Fentora Tracker'!$C:$C,'Data Inputs'!$A:$A,\"LBE\")","v":28},{"$f":"SUMIFS('Data Inputs'!F:F,'Data Inputs'!$C:$C,'Fentora Tracker'!$F$7,'Data Inputs'!$B:$B,'Fentora Tracker'!$C:$C,'Data Inputs'!$A:$A,\"LBE\")","v":28},{"$f":"SUMIFS('Data Inputs'!G:G,'Data Inputs'!$C:$C,'Fentora Tracker'!$F$7,'Data Inputs'!$B:$B,'Fentora Tracker'!$C:$C,'Data Inputs'!$A:$A,\"LBE\")","v":28},{"$f":"SUMIFS('Data Inputs'!H:H,'Data Inputs'!$C:$C,'Fentora Tracker'!$F$7,'Data Inputs'!$B:$B,'Fentora Tracker'!$C:$C,'Data Inputs'!$A:$A,\"LBE\")","v":28},{"$f":"SUMIFS('Data Inputs'!I:I,'Data Inputs'!$C:$C,'Fentora Tracker'!$F$7,'Data Inputs'!$B:$B,'Fentora Tracker'!$C:$C,'Data Inputs'!$A:$A,\"LBE\")","v":28},{"$f":"SUMIFS('Data Inputs'!J:J,'Data Inputs'!$C:$C,'Fentora Tracker'!$F$7,'Data Inputs'!$B:$B,'Fentora Tracker'!$C:$C,'Data Inputs'!$A:$A,\"LBE\")","v":28},{"$f":"SUMIFS('Data Inputs'!K:K,'Data Inputs'!$C:$C,'Fentora Tracker'!$F$7,'Data Inputs'!$B:$B,'Fentora Tracker'!$C:$C,'Data Inputs'!$A:$A,\"LBE\")","v":28},{"$f":"SUMIFS('Data Inputs'!L:L,'Data Inputs'!$C:$C,'Fentora Tracker'!$F$7,'Data Inputs'!$B:$B,'Fentora Tracker'!$C:$C,'Data Inputs'!$A:$A,\"LBE\")","v":28},{"$f":"SUMIFS('Data Inputs'!M:M,'Data Inputs'!$C:$C,'Fentora Tracker'!$F$7,'Data Inputs'!$B:$B,'Fentora Tracker'!$C:$C,'Data Inputs'!$A:$A,\"LBE\")","v":28},{"$f":"SUMIFS('Data Inputs'!N:N,'Data Inputs'!$C:$C,'Fentora Tracker'!$F$7,'Data Inputs'!$B:$B,'Fentora Tracker'!$C:$C,'Data Inputs'!$A:$A,\"LBE\")","v":28},{"$f":"SUMIFS('Data Inputs'!O:O,'Data Inputs'!$C:$C,'Fentora Tracker'!$F$7,'Data Inputs'!$B:$B,'Fentora Tracker'!$C:$C,'Data Inputs'!$A:$A,\"LBE\")","v":28}]
[null,null,"Avg Units per TRx",{"$f":"SUMIFS('Data Inputs'!D:D,'Data Inputs'!$C:$C,'Fentora Tracker'!$F$7,'Data Inputs'!$B:$B,'Fentora Tracker'!$C:$C,'Data Inputs'!$A:$A,\"LBE\")","v":94},{"$f":"SUMIFS('Data Inputs'!E:E,'Data Inputs'!$C:$C,'Fentora Tracker'!$F$7,'Data Inputs'!$B:$B,'Fentora Tracker'!$C:$C,'Data Inputs'!$A:$A,\"LBE\")","v":94},{"$f":"SUMIFS('Data Inputs'!F:F,'Data Inputs'!$C:$C,'Fentora Tracker'!$F$7,'Data Inputs'!$B:$B,'Fentora Tracker'!$C:$C,'Data Inputs'!$A:$A,\"LBE\")","v":94},{"$f":"SUMIFS('Data Inputs'!G:G,'Data Inputs'!$C:$C,'Fentora Tracker'!$F$7,'Data Inputs'!$B:$B,'Fentora Tracker'!$C:$C,'Data Inputs'!$A:$A,\"LBE\")","v":94},{"$f":"SUMIFS('Data Inputs'!H:H,'Data Inputs'!$C:$C,'Fentora Tracker'!$F$7,'Data Inputs'!$B:$B,'Fentora Tracker'!$C:$C,'Data Inputs'!$A:$A,\"LBE\")","v":94},{"$f":"SUMIFS('Data Inputs'!I:I,'Data Inputs'!$C:$C,'Fentora Tracker'!$F$7,'Data Inputs'!$B:$B,'Fentora Tracker'!$C:$C,'Data Inputs'!$A:$A,\"LBE\")","v":94},{"$f":"SUMIFS('Data Inputs'!J:J,'Data Inputs'!$C:$C,'Fentora Tracker'!$F$7,'Data Inputs'!$B:$B,'Fentora Tracker'!$C:$C,'Data Inputs'!$A:$A,\"LBE\")","v":94},{"$f":"SUMIFS('Data Inputs'!K:K,'Data Inputs'!$C:$C,'Fentora Tracker'!$F$7,'Data Inputs'!$B:$B,'Fentora Tracker'!$C:$C,'Data Inputs'!$A:$A,\"LBE\")","v":94},{"$f":"SUMIFS('Data Inputs'!L:L,'Data Inputs'!$C:$C,'Fentora Tracker'!$F$7,'Data Inputs'!$B:$B,'Fentora Tracker'!$C:$C,'Data Inputs'!$A:$A,\"LBE\")","v":94},{"$f":"SUMIFS('Data Inputs'!M:M,'Data Inputs'!$C:$C,'Fentora Tracker'!$F$7,'Data Inputs'!$B:$B,'Fentora Tracker'!$C:$C,'Data Inputs'!$A:$A,\"LBE\")","v":94},{"$f":"SUMIFS('Data Inputs'!N:N,'Data Inputs'!$C:$C,'Fentora Tracker'!$F$7,'Data Inputs'!$B:$B,'Fentora Tracker'!$C:$C,'Data Inputs'!$A:$A,\"LBE\")","v":94},{"$f":"SUMIFS('Data Inputs'!O:O,'Data Inputs'!$C:$C,'Fentora Tracker'!$F$7,'Data Inputs'!$B:$B,'Fentora Tracker'!$C:$C,'Data Inputs'!$A:$A,\"LBE\")","v":94}]
[null,null,"NPA Capture Rate",{"$f":"SUMIFS('Data Inputs'!D:D,'Data Inputs'!$C:$C,'Fentora Tracker'!$F$7,'Data Inputs'!$B:$B,'Fentora Tracker'!$C:$C)","v":2},{"$f":"SUMIFS('Data Inputs'!E:E,'Data Inputs'!$C:$C,'Fentora Tracker'!$F$7,'Data Inputs'!$B:$B,'Fentora Tracker'!$C:$C)","v":2},{"$f":"SUMIFS('Data Inputs'!F:F,'Data Inputs'!$C:$C,'Fentora Tracker'!$F$7,'Data Inputs'!$B:$B,'Fentora Tracker'!$C:$C)","v":2},{"$f":"SUMIFS('Data Inputs'!G:G,'Data Inputs'!$C:$C,'Fentora Tracker'!$F$7,'Data Inputs'!$B:$B,'Fentora Tracker'!$C:$C)","v":2},{"$f":"SUMIFS('Data Inputs'!H:H,'Data Inputs'!$C:$C,'Fentora Tracker'!$F$7,'Data Inputs'!$B:$B,'Fentora Tracker'!$C:$C)","v":2},{"$f":"SUMIFS('Data Inputs'!I:I,'Data Inputs'!$C:$C,'Fentora Tracker'!$F$7,'Data Inputs'!$B:$B,'Fentora Tracker'!$C:$C)","v":2},{"$f":"SUMIFS('Data Inputs'!J:J,'Data Inputs'!$C:$C,'Fentora Tracker'!$F$7,'Data Inputs'!$B:$B,'Fentora Tracker'!$C:$C)","v":2},{"$f":"SUMIFS('Data Inputs'!K:K,'Data Inputs'!$C:$C,'Fentora Tracker'!$F$7,'Data Inputs'!$B:$B,'Fentora Tracker'!$C:$C)","v":2},{"$f":"SUMIFS('Data Inputs'!L:L,'Data Inputs'!$C:$C,'Fentora Tracker'!$F$7,'Data Inputs'!$B:$B,'Fentora Tracker'!$C:$C)","v":2},{"$f":"SUMIFS('Data Inputs'!M:M,'Data Inputs'!$C:$C,'Fentora Tracker'!$F$7,'Data Inputs'!$B:$B,'Fentora Tracker'!$C:$C)","v":2},{"$f":"SUMIFS('Data Inputs'!N:N,'Data Inputs'!$C:$C,'Fentora Tracker'!$F$7,'Data Inputs'!$B:$B,'Fentora Tracker'!$C:$C)","v":2},{"$f":"SUMIFS('Data Inputs'!O:O,'Data Inputs'!$C:$C,'Fentora Tracker'!$F$7,'Data Inputs'!$B:$B,'Fentora Tracker'!$C:$C)","v":2}]
[null,null,"TRx Forecast",{"$f":"SUMIFS('Data Inputs'!D:D,'Data Inputs'!$C:$C,'Fentora Tracker'!$F$7,'Data Inputs'!$B:$B,'Fentora Tracker'!$C:$C,'Data Inputs'!$A:$A,\"AOP\")","v":1007.5090755},{"$f":"SUMIFS('Data Inputs'!E:E,'Data Inputs'!$C:$C,'Fentora Tracker'!$F$7,'Data Inputs'!$B:$B,'Fentora Tracker'!$C:$C,'Data Inputs'!$A:$A,\"AOP\")","v":984.98721907986101},{"$f":"SUMIFS('Data Inputs'!F:F,'Data Inputs'!$C:$C,'Fentora Tracker'!$F$7,'Data Inputs'!$B:$B,'Fentora Tracker'!$C:$C,'Data Inputs'!$A:$A,\"AOP\")","v":1003.2603946666665},{"$f":"SUMIFS('Data Inputs'!G:G,'Data Inputs'!$C:$C,'Fentora Tracker'!$F$7,'Data Inputs'!$B:$B,'Fentora Tracker'!$C:$C,'Data Inputs'!$A:$A,\"AOP\")","v":882.45666640624995},{"$f":"SUMIFS('Data Inputs'!H:H,'Data Inputs'!$C:$C,'Fentora Tracker'!$F$7,'Data Inputs'!$B:$B,'Fentora Tracker'!$C:$C,'Data Inputs'!$A:$A,\"AOP\")","v":889.59932708333326},{"$f":"SUMIFS('Data Inputs'!I:I,'Data Inputs'!$C:$C,'Fentora Tracker'!$F$7,'Data Inputs'!$B:$B,'Fentora Tracker'!$C:$C,'Data Inputs'!$A:$A,\"AOP\")","v":845.98425415625002},{"$f":"SUMIFS('Data Inputs'!J:J,'Data Inputs'!$C:$C,'Fentora Tracker'!$F$7,'Data Inputs'!$B:$B,'Fentora Tracker'!$C:$C,'Data Inputs'!$A:$A,\"AOP\")","v":729.82799999999997},{"$f":"SUMIFS('Data Inputs'!K:K,'Data Inputs'!$C:$C,'Fentora Tracker'!$F$7,'Data Inputs'!$B:$B,'Fentora Tracker'!$C:$C,'Data Inputs'!$A:$A,\"AOP\")","v":838.71438000000001},{"$f":"SUMIFS('Data Inputs'!L:L,'Data Inputs'!$C:$C,'Fentora Tracker'!$F$7,'Data Inputs'!$B:$B,'Fentora Tracker'!$C:$C,'Data Inputs'!$A:$A,\"AOP\")","v":856.45827959999986},{"$f":"SUMIFS('Data Inputs'!M:M,'Data Inputs'!$C:$C,'Fentora Tracker'!$F$7,'Data Inputs'!$B:$B,'Fentora Tracker'!$C:$C,'Data Inputs'!$A:$A,\"AOP\")","v":720.58909527150001},{"$f":"SUMIFS('Data Inputs'!N:N,'Data Inputs'!$C:$C,'Fentora Tracker'!$F$7,'Data Inputs'!$B:$B,'Fentora Tracker'!$C:$C,'Data Inputs'!$A:$A,\"AOP\")","v":545.23391666099997},{"$f":"SUMIFS('Data Inputs'!O:O,'Data Inputs'!$C:$C,'Fentora Tracker'!$F$7,'Data Inputs'!$B:$B,'Fentora Tracker'!$C:$C,'Data Inputs'!$A:$A,\"AOP\")","v":485.12803238549998}]
[null,null,"Actual TRxs To Date",{"$f":"IF($F$7=\"Nuvigil\",SUMIFS('Split Month Calcs'!$D:$D,'Split Month Calcs'!$A:$A,'TRx Tracker vs AOP'!D9),IF($F$7=\"amrix\",SUMIFS('Split Month Calcs'!$E:$E,'Split Month Calcs'!$A:$A,'TRx Tracker vs AOP'!D9),IF($F$7=\"Fentora\",SUMIFS('Split Month Calcs'!$F:$F,'Split Month Calcs'!$A:$A,'TRx Tracker vs AOP'!D9),IF($F$7=\"Provigil\",SUMIFS('Split Month Calcs'!$I:$I,'Split Month Calcs'!$A:$A,'TRx Tracker vs AOP'!D9),IF($F$7=\"Gabitril\",SUMIFS('Split Month Calcs'!$H:$H,'Split Month Calcs'!$A:$A,'TRx Tracker vs AOP'!D9),IF($F$7=\"Actiq\",SUMIFS('Split Month Calcs'!$G:$G,'Split Month Calcs'!$A:$A,'TRx Tracker vs AOP'!D9),IF($F$7=\"Copaxone 40\",SUMIFS('Split Month Calcs'!$K:$K,'Split Month Calcs'!$A:$A,'TRx Tracker vs AOP'!D9),IF($F$7=\"Copaxone 20\",SUMIFS('Split Month Calcs'!$J:$J,'Split Month Calcs'!$A:$A,'TRx Tracker vs AOP'!D9),IF($F$7=\"Azilect\",SUMIFS('Split Month Calcs'!$L:$L,'Split Month Calcs'!$A:$A,'TRx Tracker vs AOP'!D9))))))))))","v":417},{"$f":"IF($F$7=\"Nuvigil\",SUMIFS('Split Month Calcs'!$D:$D,'Split Month Calcs'!$A:$A,'TRx Tracker vs AOP'!E9),IF($F$7=\"amrix\",SUMIFS('Split Month Calcs'!$E:$E,'Split Month Calcs'!$A:$A,'TRx Tracker vs AOP'!E9),IF($F$7=\"Fentora\",SUMIFS('Split Month Calcs'!$F:$F,'Split Month Calcs'!$A:$A,'TRx Tracker vs AOP'!E9),IF($F$7=\"Provigil\",SUMIFS('Split Month Calcs'!$I:$I,'Split Month Calcs'!$A:$A,'TRx Tracker vs AOP'!E9),IF($F$7=\"Gabitril\",SUMIFS('Split Month Calcs'!$H:$H,'Split Month Calcs'!$A:$A,'TRx Tracker vs AOP'!E9),IF($F$7=\"Actiq\",SUMIFS('Split Month Calcs'!$G:$G,'Split Month Calcs'!$A:$A,'TRx Tracker vs AOP'!E9),IF($F$7=\"Copaxone 40\",SUMIFS('Split Month Calcs'!$K:$K,'Split Month Calcs'!$A:$A,'TRx Tracker vs AOP'!E9),IF($F$7=\"Copaxone 20\",SUMIFS('Split Month Calcs'!$J:$J,'Split Month Calcs'!$A:$A,'TRx Tracker vs AOP'!E9),IF($F$7=\"Azilect\",SUMIFS('Split Month Calcs'!$L:$L,'Split Month Calcs'!$A:$A,'TRx Tracker vs AOP'!E9))))))))))","v":0},{"$f":"IF($F$7=\"Nuvigil\",SUMIFS('Split Month Calcs'!$D:$D,'Split Month Calcs'!$A:$A,'TRx Tracker vs AOP'!F9),IF($F$7=\"amrix\",SUMIFS('Split Month Calcs'!$E:$E,'Split Month Calcs'!$A:$A,'TRx Tracker vs AOP'!F9),IF($F$7=\"Fentora\",SUMIFS('Split Month Calcs'!$F:$F,'Split Month Calcs'!$A:$A,'TRx Tracker vs AOP'!F9),IF($F$7=\"Provigil\",SUMIFS('Split Month Calcs'!$I:$I,'Split Month Calcs'!$A:$A,'TRx Tracker vs AOP'!F9),IF($F$7=\"Gabitril\",SUMIFS('Split Month Calcs'!$H:$H,'Split Month Calcs'!$A:$A,'TRx Tracker vs AOP'!F9),IF($F$7=\"Actiq\",SUMIFS('Split Month Calcs'!$G:$G,'Split Month Calcs'!$A:$A,'TRx Tracker vs AOP'!F9),IF($F$7=\"Copaxone 40\",SUMIFS('Split Month Calcs'!$K:$K,'Split Month Calcs'!$A:$A,'TRx Tracker vs AOP'!F9),IF($F$7=\"Copaxone 20\",SUMIFS('Split Month Calcs'!$J:$J,'Split Month Calcs'!$A:$A,'TRx Tracker vs AOP'!F9),IF($F$7=\"Azilect\",SUMIFS('Split Month Calcs'!$L:$L,'Split Month Calcs'!$A:$A,'TRx Tracker vs AOP'!F9))))))))))","v":0},{"$f":"IF($F$7=\"Nuvigil\",SUMIFS('Split Month Calcs'!$D:$D,'Split Month Calcs'!$A:$A,'TRx Tracker vs AOP'!G9),IF($F$7=\"amrix\",SUMIFS('Split Month Calcs'!$E:$E,'Split Month Calcs'!$A:$A,'TRx Tracker vs AOP'!G9),IF($F$7=\"Fentora\",SUMIFS('Split Month Calcs'!$F:$F,'Split Month Calcs'!$A:$A,'TRx Tracker vs AOP'!G9),IF($F$7=\"Provigil\",SUMIFS('Split Month Calcs'!$I:$I,'Split Month Calcs'!$A:$A,'TRx Tracker vs AOP'!G9),IF($F$7=\"Gabitril\",SUMIFS('Split Month Calcs'!$H:$H,'Split Month Calcs'!$A:$A,'TRx Tracker vs AOP'!G9),IF($F$7=\"Actiq\",SUMIFS('Split Month Calcs'!$G:$G,'Split Month Calcs'!$A:$A,'TRx Tracker vs AOP'!G9),IF($F$7=\"Copaxone 40\",SUMIFS('Split Month Calcs'!$K:$K,'Split Month Calcs'!$A:$A,'TRx Tracker vs AOP'!G9),IF($F$7=\"Copaxone 20\",SUMIFS('Split Month Calcs'!$J:$J,'Split Month Calcs'!$A:$A,'TRx Tracker vs AOP'!G9),IF($F$7=\"Azilect\",SUMIFS('Split Month Calcs'!$L:$L,'Split Month Calcs'!$A:$A,'TRx Tracker vs AOP'!G9))))))))))","v":0},{"$f":"IF($F$7=\"Nuvigil\",SUMIFS('Split Month Calcs'!$D:$D,'Split Month Calcs'!$A:$A,'TRx Tracker vs AOP'!H9),IF($F$7=\"amrix\",SUMIFS('Split Month Calcs'!$E:$E,'Split Month Calcs'!$A:$A,'TRx Tracker vs AOP'!H9),IF($F$7=\"Fentora\",SUMIFS('Split Month Calcs'!$F:$F,'Split Month Calcs'!$A:$A,'TRx Tracker vs AOP'!H9),IF($F$7=\"Provigil\",SUMIFS('Split Month Calcs'!$I:$I,'Split Month Calcs'!$A:$A,'TRx Tracker vs AOP'!H9),IF($F$7=\"Gabitril\",SUMIFS('Split Month Calcs'!$H:$H,'Split Month Calcs'!$A:$A,'TRx Tracker vs AOP'!H9),IF($F$7=\"Actiq\",SUMIFS('Split Month Calcs'!$G:$G,'Split Month Calcs'!$A:$A,'TRx Tracker vs AOP'!H9),IF($F$7=\"Copaxone 40\",SUMIFS('Split Month Calcs'!$K:$K,'Split Month Calcs'!$A:$A,'TRx Tracker vs AOP'!H9),IF($F$7=\"Copaxone 20\",SUMIFS('Split Month Calcs'!$J:$J,'Split Month Calcs'!$A:$A,'TRx Tracker vs AOP'!H9),IF($F$7=\"Azilect\",SUMIFS('Split Month Calcs'!$L:$L,'Split Month Calcs'!$A:$A,'TRx Tracker vs AOP'!H9))))))))))","v":0},{"$f":"IF($F$7=\"Nuvigil\",SUMIFS('Split Month Calcs'!$D:$D,'Split Month Calcs'!$A:$A,'TRx Tracker vs AOP'!I9),IF($F$7=\"amrix\",SUMIFS('Split Month Calcs'!$E:$E,'Split Month Calcs'!$A:$A,'TRx Tracker vs AOP'!I9),IF($F$7=\"Fentora\",SUMIFS('Split Month Calcs'!$F:$F,'Split Month Calcs'!$A:$A,'TRx Tracker vs AOP'!I9),IF($F$7=\"Provigil\",SUMIFS('Split Month Calcs'!$I:$I,'Split Month Calcs'!$A:$A,'TRx Tracker vs AOP'!I9),IF($F$7=\"Gabitril\",SUMIFS('Split Month Calcs'!$H:$H,'Split Month Calcs'!$A:$A,'TRx Tracker vs AOP'!I9),IF($F$7=\"Actiq\",SUMIFS('Split Month Calcs'!$G:$G,'Split Month Calcs'!$A:$A,'TRx Tracker vs AOP'!I9),IF($F$7=\"Copaxone 40\",SUMIFS('Split Month Calcs'!$K:$K,'Split Month Calcs'!$A:$A,'TRx Tracker vs AOP'!I9),IF($F$7=\"Copaxone 20\",SUMIFS('Split Month Calcs'!$J:$J,'Split Month Calcs'!$A:$A,'TRx Tracker vs AOP'!I9),IF($F$7=\"Azilect\",SUMIFS('Split Month Calcs'!$L:$L,'Split Month Calcs'!$A:$A,'TRx Tracker vs AOP'!I9))))))))))","v":0},{"$f":"IF($F$7=\"Nuvigil\",SUMIFS('Split Month Calcs'!$D:$D,'Split Month Calcs'!$A:$A,'TRx Tracker vs AOP'!J9),IF($F$7=\"amrix\",SUMIFS('Split Month Calcs'!$E:$E,'Split Month Calcs'!$A:$A,'TRx Tracker vs AOP'!J9),IF($F$7=\"Fentora\",SUMIFS('Split Month Calcs'!$F:$F,'Split Month Calcs'!$A:$A,'TRx Tracker vs AOP'!J9),IF($F$7=\"Provigil\",SUMIFS('Split Month Calcs'!$I:$I,'Split Month Calcs'!$A:$A,'TRx Tracker vs AOP'!J9),IF($F$7=\"Gabitril\",SUMIFS('Split Month Calcs'!$H:$H,'Split Month Calcs'!$A:$A,'TRx Tracker vs AOP'!J9),IF($F$7=\"Actiq\",SUMIFS('Split Month Calcs'!$G:$G,'Split Month Calcs'!$A:$A,'TRx Tracker vs AOP'!J9),IF($F$7=\"Copaxone 40\",SUMIFS('Split Month Calcs'!$K:$K,'Split Month Calcs'!$A:$A,'TRx Tracker vs AOP'!J9),IF($F$7=\"Copaxone 20\",SUMIFS('Split Month Calcs'!$J:$J,'Split Month Calcs'!$A:$A,'TRx Tracker vs AOP'!J9),IF($F$7=\"Azilect\",SUMIFS('Split Month Calcs'!$L:$L,'Split Month Calcs'!$A:$A,'TRx Tracker vs AOP'!J9))))))))))","v":0},{"$f":"IF($F$7=\"Nuvigil\",SUMIFS('Split Month Calcs'!$D:$D,'Split Month Calcs'!$A:$A,'TRx Tracker vs AOP'!K9),IF($F$7=\"amrix\",SUMIFS('Split Month Calcs'!$E:$E,'Split Month Calcs'!$A:$A,'TRx Tracker vs AOP'!K9),IF($F$7=\"Fentora\",SUMIFS('Split Month Calcs'!$F:$F,'Split Month Calcs'!$A:$A,'TRx Tracker vs AOP'!K9),IF($F$7=\"Provigil\",SUMIFS('Split Month Calcs'!$I:$I,'Split Month Calcs'!$A:$A,'TRx Tracker vs AOP'!K9),IF($F$7=\"Gabitril\",SUMIFS('Split Month Calcs'!$H:$H,'Split Month Calcs'!$A:$A,'TRx Tracker vs AOP'!K9),IF($F$7=\"Actiq\",SUMIFS('Split Month Calcs'!$G:$G,'Split Month Calcs'!$A:$A,'TRx Tracker vs AOP'!K9),IF($F$7=\"Copaxone 40\",SUMIFS('Split Month Calcs'!$K:$K,'Split Month Calcs'!$A:$A,'TRx Tracker vs AOP'!K9),IF($F$7=\"Copaxone 20\",SUMIFS('Split Month Calcs'!$J:$J,'Split Month Calcs'!$A:$A,'TRx Tracker vs AOP'!K9),IF($F$7=\"Azilect\",SUMIFS('Split Month Calcs'!$L:$L,'Split Month Calcs'!$A:$A,'TRx Tracker vs AOP'!K9))))))))))","v":0},{"$f":"IF($F$7=\"Nuvigil\",SUMIFS('Split Month Calcs'!$D:$D,'Split Month Calcs'!$A:$A,'TRx Tracker vs AOP'!L9),IF($F$7=\"amrix\",SUMIFS('Split Month Calcs'!$E:$E,'Split Month Calcs'!$A:$A,'TRx Tracker vs AOP'!L9),IF($F$7=\"Fentora\",SUMIFS('Split Month Calcs'!$F:$F,'Split Month Calcs'!$A:$A,'TRx Tracker vs AOP'!L9),IF($F$7=\"Provigil\",SUMIFS('Split Month Calcs'!$I:$I,'Split Month Calcs'!$A:$A,'TRx Tracker vs AOP'!L9),IF($F$7=\"Gabitril\",SUMIFS('Split Month Calcs'!$H:$H,'Split Month Calcs'!$A:$A,'TRx Tracker vs AOP'!L9),IF($F$7=\"Actiq\",SUMIFS('Split Month Calcs'!$G:$G,'Split Month Calcs'!$A:$A,'TRx Tracker vs AOP'!L9),IF($F$7=\"Copaxone 40\",SUMIFS('Split Month Calcs'!$K:$K,'Split Month Calcs'!$A:$A,'TRx Tracker vs AOP'!L9),IF($F$7=\"Copaxone 20\",SUMIFS('Split Month Calcs'!$J:$J,'Split Month Calcs'!$A:$A,'TRx Tracker vs AOP'!L9),IF($F$7=\"Azilect\",SUMIFS('Split Month Calcs'!$L:$L,'Split Month Calcs'!$A:$A,'TRx Tracker vs AOP'!L9))))))))))","v":0},{"$f":"IF($F$7=\"Nuvigil\",SUMIFS('Split Month Calcs'!$D:$D,'Split Month Calcs'!$A:$A,'TRx Tracker vs AOP'!M9),IF($F$7=\"amrix\",SUMIFS('Split Month Calcs'!$E:$E,'Split Month Calcs'!$A:$A,'TRx Tracker vs AOP'!M9),IF($F$7=\"Fentora\",SUMIFS('Split Month Calcs'!$F:$F,'Split Month Calcs'!$A:$A,'TRx Tracker vs AOP'!M9),IF($F$7=\"Provigil\",SUMIFS('Split Month Calcs'!$I:$I,'Split Month Calcs'!$A:$A,'TRx Tracker vs AOP'!M9),IF($F$7=\"Gabitril\",SUMIFS('Split Month Calcs'!$H:$H,'Split Month Calcs'!$A:$A,'TRx Tracker vs AOP'!M9),IF($F$7=\"Actiq\",SUMIFS('Split Month Calcs'!$G:$G,'Split Month Calcs'!$A:$A,'TRx Tracker vs AOP'!M9),IF($F$7=\"Copaxone 40\",SUMIFS('Split Month Calcs'!$K:$K,'Split Month Calcs'!$A:$A,'TRx Tracker vs AOP'!M9),IF($F$7=\"Copaxone 20\",SUMIFS('Split Month Calcs'!$J:$J,'Split Month Calcs'!$A:$A,'TRx Tracker vs AOP'!M9),IF($F$7=\"Azilect\",SUMIFS('Split Month Calcs'!$L:$L,'Split Month Calcs'!$A:$A,'TRx Tracker vs AOP'!M9))))))))))","v":0},{"$f":"IF($F$7=\"Nuvigil\",SUMIFS('Split Month Calcs'!$D:$D,'Split Month Calcs'!$A:$A,'TRx Tracker vs AOP'!N9),IF($F$7=\"amrix\",SUMIFS('Split Month Calcs'!$E:$E,'Split Month Calcs'!$A:$A,'TRx Tracker vs AOP'!N9),IF($F$7=\"Fentora\",SUMIFS('Split Month Calcs'!$F:$F,'Split Month Calcs'!$A:$A,'TRx Tracker vs AOP'!N9),IF($F$7=\"Provigil\",SUMIFS('Split Month Calcs'!$I:$I,'Split Month Calcs'!$A:$A,'TRx Tracker vs AOP'!N9),IF($F$7=\"Gabitril\",SUMIFS('Split Month Calcs'!$H:$H,'Split Month Calcs'!$A:$A,'TRx Tracker vs AOP'!N9),IF($F$7=\"Actiq\",SUMIFS('Split Month Calcs'!$G:$G,'Split Month Calcs'!$A:$A,'TRx Tracker vs AOP'!N9),IF($F$7=\"Copaxone 40\",SUMIFS('Split Month Calcs'!$K:$K,'Split Month Calcs'!$A:$A,'TRx Tracker vs AOP'!N9),IF($F$7=\"Copaxone 20\",SUMIFS('Split Month Calcs'!$J:$J,'Split Month Calcs'!$A:$A,'TRx Tracker vs AOP'!N9),IF($F$7=\"Azilect\",SUMIFS('Split Month Calcs'!$L:$L,'Split Month Calcs'!$A:$A,'TRx Tracker vs AOP'!N9))))))))))","v":0},{"$f":"IF($F$7=\"Nuvigil\",SUMIFS('Split Month Calcs'!$D:$D,'Split Month Calcs'!$A:$A,'TRx Tracker vs AOP'!O9),IF($F$7=\"amrix\",SUMIFS('Split Month Calcs'!$E:$E,'Split Month Calcs'!$A:$A,'TRx Tracker vs AOP'!O9),IF($F$7=\"Fentora\",SUMIFS('Split Month Calcs'!$F:$F,'Split Month Calcs'!$A:$A,'TRx Tracker vs AOP'!O9),IF($F$7=\"Provigil\",SUMIFS('Split Month Calcs'!$I:$I,'Split Month Calcs'!$A:$A,'TRx Tracker vs AOP'!O9),IF($F$7=\"Gabitril\",SUMIFS('Split Month Calcs'!$H:$H,'Split Month Calcs'!$A:$A,'TRx Tracker vs AOP'!O9),IF($F$7=\"Actiq\",SUMIFS('Split Month Calcs'!$G:$G,'Split Month Calcs'!$A:$A,'TRx Tracker vs AOP'!O9),IF($F$7=\"Copaxone 40\",SUMIFS('Split Month Calcs'!$K:$K,'Split Month Calcs'!$A:$A,'TRx Tracker vs AOP'!O9),IF($F$7=\"Copaxone 20\",SUMIFS('Split Month Calcs'!$J:$J,'Split Month Calcs'!$A:$A,'TRx Tracker vs AOP'!O9),IF($F$7=\"Azilect\",SUMIFS('Split Month Calcs'!$L:$L,'Split Month Calcs'!$A:$A,'TRx Tracker vs AOP'!O9))))))))))","v":0}]
[null,null,"% to Plan",{"$f":"D16/D15","v":0.41389205332274948},{"$f":"E16/E15","v":0},0,0,0,0,0,0,0,0,0,0]
[null,null,"Weeks",{"$f":"52/12","v":4.333333333333333},{"$f":"52/12","v":4.333333333333333},4.333333333333333,4.333333333333333,4.333333333333333,4.333333333333333,4.333333333333333,4.333333333333333,4.333333333333333,4.333333333333333,4.333333333333333,4.333333333333333]
[]
[]
[null,null,null,null,"Month","Week #","Week Ending","Actual TRxs","Goal","Variance","EUTRx","Baseline Target","Variance","Rolling 12 Weeks","12 Week Baseline"]
[null,null,null,null,{"$f":"MONTH(G22)","v":1},1,"2017-01-06",{"$f":"IF($F$7=\"Nuvigil\",SUMIFS('IMS Data'!D:D,'IMS Data'!C:C,'Fentora Tracker'!G:G),IF('Fentora Tracker'!$F$7=\"Fentora\",SUMIFS('IMS Data'!F:F,'IMS Data'!C:C,'Fentora Tracker'!G:G),IF('Fentora Tracker'!$F$7=\"Amrix\",SUMIFS('IMS Data'!E:E,'IMS Data'!C:C,'Fentora Tracker'!G:G),IF('Fentora Tracker'!$F$7=\"Provigil\",SUMIFS('IMS Data'!I:I,'IMS Data'!C:C,'Fentora Tracker'!G:G),IF('Fentora Tracker'!$F$7=\"Gabitril\",SUMIFS('IMS Data'!H:H,'IMS Data'!C:C,'Fentora Tracker'!G:G),IF('Fentora Tracker'!$F$7=\"Actiq\",SUMIFS('IMS Data'!G:G,'IMS Data'!C:C,'Fentora Tracker'!G:G),IF($F$7=\"Copaxone 20\",SUMIFS('IMS Data'!J:J,'IMS Data'!C:C,'TRx Tracker vs AOP'!G:G),IF($F$7=\"Copaxone 40\",SUMIFS('IMS Data'!K:K,'IMS Data'!C:C,'TRx Tracker vs AOP'!G:G),IF($F$7=\"Azilect\",SUMIFS('IMS Data'!L:L,'IMS Data'!C:C,'Fentora Tracker'!G:G))))))))))","v":204},{"$f":"SUMIFS($15:$15,$9:$9,$E$22:$E$73)/SUMIFS($18:$18,$9:$9,$E$22:$E$73)","v":232.50209434615385},{"$f":"H22-I22","v":-28.502094346153854},{"$f":"SUMIFS('IMS Data'!O:O,'IMS Data'!C:C,'Fentora Tracker'!G:G)","v":20084},{"$f":"$K$7/12","v":24616.583333333332},{"$f":"K22-L22","v":-4532.5833333333321},{"$f":"'Fentora 2017'!N75","v":403300},{"$f":"$K$7","v":295399}]
[null,null,null,null,{"$f":"MONTH(G23)","v":1},2,{"$f":"G22+7","v":"2017-01-13"},{"$f":"IF($F$7=\"Nuvigil\",SUMIFS('IMS Data'!D:D,'IMS Data'!C:C,'Fentora Tracker'!G:G),IF('Fentora Tracker'!$F$7=\"Fentora\",SUMIFS('IMS Data'!F:F,'IMS Data'!C:C,'Fentora Tracker'!G:G),IF('Fentora Tracker'!$F$7=\"Amrix\",SUMIFS('IMS Data'!E:E,'IMS Data'!C:C,'Fentora Tracker'!G:G),IF('Fentora Tracker'!$F$7=\"Provigil\",SUMIFS('IMS Data'!I:I,'IMS Data'!C:C,'Fentora Tracker'!G:G),IF('Fentora Tracker'!$F$7=\"Gabitril\",SUMIFS('IMS Data'!H:H,'IMS Data'!C:C,'Fentora Tracker'!G:G),IF('Fentora Tracker'!$F$7=\"Actiq\",SUMIFS('IMS Data'!G:G,'IMS Data'!C:C,'Fentora Tracker'!G:G),IF($F$7=\"Copaxone 20\",SUMIFS('IMS Data'!J:J,'IMS Data'!C:C,'TRx Tracker vs AOP'!G:G),IF($F$7=\"Copaxone 40\",SUMIFS('IMS Data'!K:K,'IMS Data'!C:C,'TRx Tracker vs AOP'!G:G),IF($F$7=\"Azilect\",SUMIFS('IMS Data'!L:L,'IMS Data'!C:C,'Fentora Tracker'!G:G))))))))))","v":213},{"$f":"SUMIFS($15:$15,$9:$9,$E$22:$E$73)/SUMIFS($18:$18,$9:$9,$E$22:$E$73)","v":232.50209434615385},-19.502094346153854,{"$f":"SUMIFS('IMS Data'!O:O,'IMS Data'!C:C,'Fentora Tracker'!G:G)","v":20862},{"$f":"$K$7/12","v":24616.583333333332},-3754.5833333333321,{"$f":"'Fentora 2017'!N76","v":399192},{"$f":"$K$7","v":295399}]
[null,null,null,null,1,3,{"$f":"G23+7","v":"2017-01-20"},{"$f":"IF($F$7=\"Nuvigil\",SUMIFS('IMS Data'!D:D,'IMS Data'!C:C,'Fentora Tracker'!G:G),IF('Fentora Tracker'!$F$7=\"Fentora\",SUMIFS('IMS Data'!F:F,'IMS Data'!C:C,'Fentora Tracker'!G:G),IF('Fentora Tracker'!$F$7=\"Amrix\",SUMIFS('IMS Data'!E:E,'IMS Data'!C:C,'Fentora Tracker'!G:G),IF('Fentora Tracker'!$F$7=\"Provigil\",SUMIFS('IMS Data'!I:I,'IMS Data'!C:C,'Fentora Tracker'!G:G),IF('Fentora Tracker'!$F$7=\"Gabitril\",SUMIFS('IMS Data'!H:H,'IMS Data'!C:C,'Fentora Tracker'!G:G),IF('Fentora Tracker'!$F$7=\"Actiq\",SUMIFS('IMS Data'!G:G,'IMS Data'!C:C,'Fentora Tracker'!G:G),IF($F$7=\"Copaxone 20\",SUMIFS('IMS Data'!J:J,'IMS Data'!C:C,'TRx Tracker vs AOP'!G:G),IF($F$7=\"Copaxone 40\",SUMIFS('IMS Data'!K:K,'IMS Data'!C:C,'TRx Tracker vs AOP'!G:G),IF($F$7=\"Azilect\",SUMIFS('IMS Data'!L:L,'IMS Data'!C:C,'Fentora Tracker'!G:G))))))))))","v":0},232.50209434615385,-232.50209434615385,{"$f":"SUMIFS('IMS Data'!O:O,'IMS Data'!C:C,'Fentora Tracker'!G:G)","v":0},24616.583333333332,-24616.583333333332,{"$f":"'Fentora 2017'!N77","v":397736},295399]
[null,null,null,null,1,4,"2017-01-27",{"$f":"IF($F$7=\"Nuvigil\",SUMIFS('IMS Data'!D:D,'IMS Data'!C:C,'Fentora Tracker'!G:G),IF('Fentora Tracker'!$F$7=\"Fentora\",SUMIFS('IMS Data'!F:F,'IMS Data'!C:C,'Fentora Tracker'!G:G),IF('Fentora Tracker'!$F$7=\"Amrix\",SUMIFS('IMS Data'!E:E,'IMS Data'!C:C,'Fentora Tracker'!G:G),IF('Fentora Tracker'!$F$7=\"Provigil\",SUMIFS('IMS Data'!I:I,'IMS Data'!C:C,'Fentora Tracker'!G:G),IF('Fentora Tracker'!$F$7=\"Gabitril\",SUMIFS('IMS Data'!H:H,'IMS Data'!C:C,'Fentora Tracker'!G:G),IF('Fentora Tracker'!$F$7=\"Actiq\",SUMIFS('IMS Data'!G:G,'IMS Data'!C:C,'Fentora Tracker'!G:G),IF($F$7=\"Copaxone 20\",SUMIFS('IMS Data'!J:J,'IMS Data'!C:C,'TRx Tracker vs AOP'!G:G),IF($F$7=\"Copaxone 40\",SUMIFS('IMS Data'!K:K,'IMS Data'!C:C,'TRx Tracker vs AOP'!G:G),IF($F$7=\"Azilect\",SUMIFS('IMS Data'!L:L,'IMS Data'!C:C,'Fentora Tracker'!G:G))))))))))","v":0},232.50209434615385,-232.50209434615385,{"$f":"SUMIFS('IMS Data'!O:O,'IMS Data'!C:C,'Fentora Tracker'!G:G)","v":0},24616.583333333332,-24616.583333333332,{"$f":"'Fentora 2017'!N78","v":391908},295399]
[null,null,null,null,2,5,"2017-02-03",{"$f":"IF($F$7=\"Nuvigil\",SUMIFS('IMS Data'!D:D,'IMS Data'!C:C,'Fentora Tracker'!G:G),IF('Fentora Tracker'!$F$7=\"Fentora\",SUMIFS('IMS Data'!F:F,'IMS Data'!C:C,'Fentora Tracker'!G:G),IF('Fentora Tracker'!$F$7=\"Amrix\",SUMIFS('IMS Data'!E:E,'IMS Data'!C:C,'Fentora Tracker'!G:G),IF('Fentora Tracker'!$F$7=\"Provigil\",SUMIFS('IMS Data'!I:I,'IMS Data'!C:C,'Fentora Tracker'!G:G),IF('Fentora Tracker'!$F$7=\"Gabitril\",SUMIFS('IMS Data'!H:H,'IMS Data'!C:C,'Fentora Tracker'!G:G),IF('Fentora Tracker'!$F$7=\"Actiq\",SUMIFS('IMS Data'!G:G,'IMS Data'!C:C,'Fentora Tracker'!G:G),IF($F$7=\"Copaxone 20\",SUMIFS('IMS Data'!J:J,'IMS Data'!C:C,'TRx Tracker vs AOP'!G:G),IF($F$7=\"Copaxone 40\",SUMIFS('IMS Data'!K:K,'IMS Data'!C:C,'TRx Tracker vs AOP'!G:G),IF($F$7=\"Azilect\",SUMIFS('IMS Data'!L:L,'IMS Data'!C:C,'Fentora Tracker'!G:G))))))))))","v":0},227.30474286458332,-227.30474286458332,{"$f":"SUMIFS('IMS Data'!O:O,'IMS Data'!C:C,'Fentora Tracker'!G:G)","v":0},24616.583333333332,-24616.583333333332,{"$f":"'Fentora 2017'!N79","v":390723},295399]
[null,null,null,null,2,6,"2017-02-10",{"$f":"IF($F$7=\"Nuvigil\",SUMIFS('IMS Data'!D:D,'IMS Data'!C:C,'Fentora Tracker'!G:G),IF('Fentora Tracker'!$F$7=\"Fentora\",SUMIFS('IMS Data'!F:F,'IMS Data'!C:C,'Fentora Tracker'!G:G),IF('Fentora Tracker'!$F$7=\"Amrix\",SUMIFS('IMS Data'!E:E,'IMS Data'!C:C,'Fentora Tracker'!G:G),IF('Fentora Tracker'!$F$7=\"Provigil\",SUMIFS('IMS Data'!I:I,'IMS Data'!C:C,'Fentora Tracker'!G:G),IF('Fentora Tracker'!$F$7=\"Gabitril\",SUMIFS('IMS Data'!H:H,'IMS Data'!C:C,'Fentora Tracker'!G:G),IF('Fentora Tracker'!$F$7=\"Actiq\",SUMIFS('IMS Data'!G:G,'IMS Data'!C:C,'Fentora Tracker'!G:G),IF($F$7=\"Copaxone 20\",SUMIFS('IMS Data'!J:J,'IMS Data'!C:C,'TRx Tracker vs AOP'!G:G),IF($F$7=\"Copaxone 40\",SUMIFS('IMS Data'!K:K,'IMS Data'!C:C,'TRx Tracker vs AOP'!G:G),IF($F$7=\"Azilect\",SUMIFS('IMS Data'!L:L,'IMS Data'!C:C,'Fentora Tracker'!G:G))))))))))","v":0},227.30474286458332,-227.30474286458332,{"$f":"SUMIFS('IMS Data'!O:O,'IMS Data'!C:C,'Fentora Tracker'!G:G)","v":0},24616.583333333332,-24616.583333333332,{"$f":"'Fentora 2017'!N80","v":391414},295399]
[null,null,null,null,2,7,"2017-02-17",{"$f":"IF($F$7=\"Nuvigil\",SUMIFS('IMS Data'!D:D,'IMS Data'!C:C,'Fentora Tracker'!G:G),IF('Fentora Tracker'!$F$7=\"Fentora\",SUMIFS('IMS Data'!F:F,'IMS Data'!C:C,'Fentora Tracker'!G:G),IF('Fentora Tracker'!$F$7=\"Amrix\",SUMIFS('IMS Data'!E:E,'IMS Data'!C:C,'Fentora Tracker'!G:G),IF('Fentora Tracker'!$F$7=\"Provigil\",SUMIFS('IMS Data'!I:I,'IMS Data'!C:C,'Fentora Tracker'!G:G),IF('Fentora Tracker'!$F$7=\"Gabitril\",SUMIFS('IMS Data'!H:H,'IMS Data'!C:C,'Fentora Tracker'!G:G),IF('Fentora Tracker'!$F$7=\"Actiq\",SUMIFS('IMS Data'!G:G,'IMS Data'!C:C,'Fentora Tracker'!G:G),IF($F$7=\"Copaxone 20\",SUMIFS('IMS Data'!J:J,'IMS Data'!C:C,'TRx Tracker vs AOP'!G:G),IF($F$7=\"Copaxone 40\",SUMIFS('IMS Data'!K:K,'IMS Data'!C:C,'TRx Tracker vs AOP'!G:G),IF($F$7=\"Azilect\",SUMIFS('IMS Data'!L:L,'IMS Data'!C:C,'Fentora Tracker'!G:G))))))))))","v":0},227.30474286458332,-227.30474286458332,{"$f":"SUMIFS('IMS Data'!O:O,'IMS Data'!C:C,'Fentora Tracker'!G:G)","v":0},24616.583333333332,-24616.583333333332,{"$f":"'Fentora 2017'!N81","v":387021},295399]
[null,null,null,null,2,8,"2017-02-24",{"$f":"IF($F$7=\"Nuvigil\",SUMIFS('IMS Data'!D:D,'IMS Data'!C:C,'Fentora Tracker'!G:G),IF('Fentora Tracker'!$F$7=\"Fentora\",SUMIFS('IMS Data'!F:F,'IMS Data'!C:C,'Fentora Tracker'!G:G),IF('Fentora Tracker'!$F$7=\"Amrix\",SUMIFS('IMS Data'!E:E,'IMS Data'!C:C,'Fentora Tracker'!G:G),IF('Fentora Tracker'!$F$7=\"Provigil\",SUMIFS('IMS Data'!I:I,'IMS Data'!C:C,'Fentora Tracker'!G:G),IF('Fentora Tracker'!$F$7=\"Gabitril\",SUMIFS('IMS Data'!H:H,'IMS Data'!C:C,'Fentora Tracker'!G:G),IF('Fentora Tracker'!$F$7=\"Actiq\",SUMIFS('IMS Data'!G:G,'IMS Data'!C:C,'Fentora Tracker'!G:G),IF($F$7=\"Copaxone 20\",SUMIFS('IMS Data'!J:J,'IMS Data'!C:C,'TRx Tracker vs AOP'!G:G),IF($F$7=\"Copaxone 40\",SUMIFS('IMS Data'!K:K,'IMS Data'!C:C,'TRx Tracker vs AOP'!G:G),IF($F$7=\"Azilect\",SUMIFS('IMS Data'!L:L,'IMS Data'!C:C,'Fentora Tracker'!G:G))))))))))","v":0},227.30474286458332,-227.30474286458332,{"$f":"SUMIFS('IMS Data'!O:O,'IMS Data'!C:C,'Fentora Tracker'!G:G)","v":0},24616.583333333332,-24616.583333333332,{"$f":"'Fentora 2017'!N82","v":377823},295399]
[null,null,null,null,3,9,"2017-03-03",{"$f":"IF($F$7=\"Nuvigil\",SUMIFS('IMS Data'!D:D,'IMS Data'!C:C,'Fentora Tracker'!G:G),IF('Fentora Tracker'!$F$7=\"Fentora\",SUMIFS('IMS Data'!F:F,'IMS Data'!C:C,'Fentora Tracker'!G:G),IF('Fentora Tracker'!$F$7=\"Amrix\",SUMIFS('IMS Data'!E:E,'IMS Data'!C:C,'Fentora Tracker'!G:G),IF('Fentora Tracker'!$F$7=\"Provigil\",SUMIFS('IMS Data'!I:I,'IMS Data'!C:C,'Fentora Tracker'!G:G),IF('Fentora Tracker'!$F$7=\"Gabitril\",SUMIFS('IMS Data'!H:H,'IMS Data'!C:C,'Fentora Tracker'!G:G),IF('Fentora Tracker'!$F$7=\"Actiq\",SUMIFS('IMS Data'!G:G,'IMS Data'!C:C,'Fentora Tracker'!G:G),IF($F$7=\"Copaxone 20\",SUMIFS('IMS Data'!J:J,'IMS Data'!C:C,'TRx Tracker vs AOP'!G:G),IF($F$7=\"Copaxone 40\",SUMIFS('IMS Data'!K:K,'IMS Data'!C:C,'TRx Tracker vs AOP'!G:G),IF($F$7=\"Azilect\",SUMIFS('IMS Data'!L:L,'IMS Data'!C:C,'Fentora Tracker'!G:G))))))))))","v":0},231.5216295384615,-231.5216295384615,{"$f":"SUMIFS('IMS Data'!O:O,'IMS Data'!C:C,'Fentora Tracker'!G:G)","v":0},24616.583333333332,-24616.583333333332,{"$f":"'Fentora 2017'!N83","v":384076},295399]
[null,null,null,null,3,10,"2017-03-10",{"$f":"IF($F$7=\"Nuvigil\",SUMIFS('IMS Data'!D:D,'IMS Data'!C:C,'Fentora Tracker'!G:G),IF('Fentora Tracker'!$F$7=\"Fentora\",SUMIFS('IMS Data'!F:F,'IMS Data'!C:C,'Fentora Tracker'!G:G),IF('Fentora Tracker'!$F$7=\"Amrix\",SUMIFS('IMS Data'!E:E,'IMS Data'!C:C,'Fentora Tracker'!G:G),IF('Fentora Tracker'!$F$7=\"Provigil\",SUMIFS('IMS Data'!I:I,'IMS Data'!C:C,'Fentora Tracker'!G:G),IF('Fentora Tracker'!$F$7=\"Gabitril\",SUMIFS('IMS Data'!H:H,'IMS Data'!C:C,'Fentora Tracker'!G:G),IF('Fentora Tracker'!$F$7=\"Actiq\",SUMIFS('IMS Data'!G:G,'IMS Data'!C:C,'Fentora Tracker'!G:G),IF($F$7=\"Copaxone 20\",SUMIFS('IMS Data'!J:J,'IMS Data'!C:C,'TRx Tracker vs AOP'!G:G),IF($F$7=\"Copaxone 40\",SUMIFS('IMS Data'!K:K,'IMS Data'!C:C,'TRx Tracker vs AOP'!G:G),IF($F$7=\"Azilect\",SUMIFS('IMS Data'!L:L,'IMS Data'!C:C,'Fentora Tracker'!G:G))))))))))","v":0},231.5216295384615,-231.5216295384615,{"$f":"SUMIFS('IMS Data'!O:O,'IMS Data'!C:C,'Fentora Tracker'!G:G)","v":0},24616.583333333332,-24616.583333333332,{"$f":"'Fentora 2017'!N84","v":381385},295399]
[null,null,null,null,3,11,"2017-03-17",{"$f":"IF($F$7=\"Nuvigil\",SUMIFS('IMS Data'!D:D,'IMS Data'!C:C,'Fentora Tracker'!G:G),IF('Fentora Tracker'!$F$7=\"Fentora\",SUMIFS('IMS Data'!F:F,'IMS Data'!C:C,'Fentora Tracker'!G:G),IF('Fentora Tracker'!$F$7=\"Amrix\",SUMIFS('IMS Data'!E:E,'IMS Data'!C:C,'Fentora Tracker'!G:G),IF('Fentora Tracker'!$F$7=\"Provigil\",SUMIFS('IMS Data'!I:I,'IMS Data'!C:C,'Fentora Tracker'!G:G),IF('Fentora Tracker'!$F$7=\"Gabitril\",SUMIFS('IMS Data'!H:H,'IMS Data'!C:C,'Fentora Tracker'!G:G),IF('Fentora Tracker'!$F$7=\"Actiq\",SUMIFS('IMS Data'!G:G,'IMS Data'!C:C,'Fentora Tracker'!G:G),IF($F$7=\"Copaxone 20\",SUMIFS('IMS Data'!J:J,'IMS Data'!C:C,'TRx Tracker vs AOP'!G:G),IF($F$7=\"Copaxone 40\",SUMIFS('IMS Data'!K:K,'IMS Data'!C:C,'TRx Tracker vs AOP'!G:G),IF($F$7=\"Azilect\",SUMIFS('IMS Data'!L:L,'IMS Data'!C:C,'Fentora Tracker'!G:G))))))))))","v":0},231.5216295384615,-231.5216295384615,{"$f":"SUMIFS('IMS Data'!O:O,'IMS Data'!C:C,'Fentora Tracker'!G:G)","v":0},24616.583333333332,-24616.583333333332,{"$f":"'Fentora 2017'!N85","v":379008},295399]
[null,null,null,null,3,12,"2017-03-24",{"$f":"IF($F$7=\"Nuvigil\",SUMIFS('IMS Data'!D:D,'IMS Data'!C:C,'Fentora Tracker'!G:G),IF('Fentora Tracker'!$F$7=\"Fentora\",SUMIFS('IMS Data'!F:F,'IMS Data'!C:C,'Fentora Tracker'!G:G),IF('Fentora Tracker'!$F$7=\"Amrix\",SUMIFS('IMS Data'!E:E,'IMS Data'!C:C,'Fentora Tracker'!G:G),IF('Fentora Tracker'!$F$7=\"Provigil\",SUMIFS('IMS Data'!I:I,'IMS Data'!C:C,'Fentora Tracker'!G:G),IF('Fentora Tracker'!$F$7=\"Gabitril\",SUMIFS('IMS Data'!H:H,'IMS Data'!C:C,'Fentora Tracker'!G:G),IF('Fentora Tracker'!$F$7=\"Actiq\",SUMIFS('IMS Data'!G:G,'IMS Data'!C:C,'Fentora Tracker'!G:G),IF($F$7=\"Copaxone 20\",SUMIFS('IMS Data'!J:J,'IMS Data'!C:C,'TRx Tracker vs AOP'!G:G),IF($F$7=\"Copaxone 40\",SUMIFS('IMS Data'!K:K,'IMS Data'!C:C,'TRx Tracker vs AOP'!G:G),IF($F$7=\"Azilect\",SUMIFS('IMS Data'!L:L,'IMS Data'!C:C,'Fentora Tracker'!G:G))))))))))","v":0},231.5216295384615,-231.5216295384615,{"$f":"SUMIFS('IMS Data'!O:O,'IMS Data'!C:C,'Fentora Tracker'!G:G)","v":0},24616.583333333332,-24616.583333333332,{"$f":"'Fentora 2017'!N86","v":372120},295399]
[null,null,null,null,3,13,"2017-03-31",{"$f":"IF($F$7=\"Nuvigil\",SUMIFS('IMS Data'!D:D,'IMS Data'!C:C,'Fentora Tracker'!G:G),IF('Fentora Tracker'!$F$7=\"Fentora\",SUMIFS('IMS Data'!F:F,'IMS Data'!C:C,'Fentora Tracker'!G:G),IF('Fentora Tracker'!$F$7=\"Amrix\",SUMIFS('IMS Data'!E:E,'IMS Data'!C:C,'Fentora Tracker'!G:G),IF('Fentora Tracker'!$F$7=\"Provigil\",SUMIFS('IMS Data'!I:I,'IMS Data'!C:C,'Fentora Tracker'!G:G),IF('Fentora Tracker'!$F$7=\"Gabitril\",SUMIFS('IMS Data'!H:H,'IMS Data'!C:C,'Fentora Tracker'!G:G),IF('Fentora Tracker'!$F$7=\"Actiq\",SUMIFS('IMS Data'!G:G,'IMS Data'!C:C,'Fentora Tracker'!G:G),IF($F$7=\"Copaxone 20\",SUMIFS('IMS Data'!J:J,'IMS Data'!C:C,'TRx Tracker vs AOP'!G:G),IF($F$7=\"Copaxone 40\",SUMIFS('IMS Data'!K:K,'IMS Data'!C:C,'TRx Tracker vs AOP'!G:G),IF($F$7=\"Azilect\",SUMIFS('IMS Data'!L:L,'IMS Data'!C:C,'Fentora Tracker'!G:G))))))))))","v":0},231.5216295384615,-231.5216295384615,{"$f":"SUMIFS('IMS Data'!O:O,'IMS Data'!C:C,'Fentora Tracker'!G:G)","v":0},24616.583333333332,-24616.583333333332,{"$f":"'Fentora 2017'!N87","v":369127},295399]
[null,null,null,null,4,14,"2017-04-07",{"$f":"IF($F$7=\"Nuvigil\",SUMIFS('IMS Data'!D:D,'IMS Data'!C:C,'Fentora Tracker'!G:G),IF('Fentora Tracker'!$F$7=\"Fentora\",SUMIFS('IMS Data'!F:F,'IMS Data'!C:C,'Fentora Tracker'!G:G),IF('Fentora Tracker'!$F$7=\"Amrix\",SUMIFS('IMS Data'!E:E,'IMS Data'!C:C,'Fentora Tracker'!G:G),IF('Fentora Tracker'!$F$7=\"Provigil\",SUMIFS('IMS Data'!I:I,'IMS Data'!C:C,'Fentora Tracker'!G:G),IF('Fentora Tracker'!$F$7=\"Gabitril\",SUMIFS('IMS Data'!H:H,'IMS Data'!C:C,'Fentora Tracker'!G:G),IF('Fentora Tracker'!$F$7=\"Actiq\",SUMIFS('IMS Data'!G:G,'IMS Data'!C:C,'Fentora Tracker'!G:G),IF($F$7=\"Copaxone 20\",SUMIFS('IMS Data'!J:J,'IMS Data'!C:C,'TRx Tracker vs AOP'!G:G),IF($F$7=\"Copaxone 40\",SUMIFS('IMS Data'!K:K,'IMS Data'!C:C,'TRx Tracker vs AOP'!G:G),IF($F$7=\"Azilect\",SUMIFS('IMS Data'!L:L,'IMS Data'!C:C,'Fentora Tracker'!G:G))))))))))","v":0},203.64384609375,-203.64384609375,{"$f":"SUMIFS('IMS Data'!O:O,'IMS Data'!C:C,'Fentora Tracker'!G:G)","v":0},24616.583333333332,-24616.583333333332,{"$f":"'Fentora 2017'!N88","v":366820},295399]
[null,null,null,null,4,15,"2017-04-14",{"$f":"IF($F$7=\"Nuvigil\",SUMIFS('IMS Data'!D:D,'IMS Data'!C:C,'Fentora Tracker'!G:G),IF('Fentora Tracker'!$F$7=\"Fentora\",SUMIFS('IMS Data'!F:F,'IMS Data'!C:C,'Fentora Tracker'!G:G),IF('Fentora Tracker'!$F$7=\"Amrix\",SUMIFS('IMS Data'!E:E,'IMS Data'!C:C,'Fentora Tracker'!G:G),IF('Fentora Tracker'!$F$7=\"Provigil\",SUMIFS('IMS Data'!I:I,'IMS Data'!C:C,'Fentora Tracker'!G:G),IF('Fentora Tracker'!$F$7=\"Gabitril\",SUMIFS('IMS Data'!H:H,'IMS Data'!C:C,'Fentora Tracker'!G:G),IF('Fentora Tracker'!$F$7=\"Actiq\",SUMIFS('IMS Data'!G:G,'IMS Data'!C:C,'Fentora Tracker'!G:G),IF($F$7=\"Copaxone 20\",SUMIFS('IMS Data'!J:J,'IMS Data'!C:C,'TRx Tracker vs AOP'!G:G),IF($F$7=\"Copaxone 40\",SUMIFS('IMS Data'!K:K,'IMS Data'!C:C,'TRx Tracker vs AOP'!G:G),IF($F$7=\"Azilect\",SUMIFS('IMS Data'!L:L,'IMS Data'!C:C,'Fentora Tracker'!G:G))))))))))","v":0},203.64384609375,-203.64384609375,{"$f":"SUMIFS('IMS Data'!O:O,'IMS Data'!C:C,'Fentora Tracker'!G:G)","v":0},24616.583333333332,-24616.583333333332,{"$f":"'Fentora 2017'!N89","v":359785},295399]
[null,null,null,null,4,16,"2017-04-21",{"$f":"IF($F$7=\"Nuvigil\",SUMIFS('IMS Data'!D:D,'IMS Data'!C:C,'Fentora Tracker'!G:G),IF('Fentora Tracker'!$F$7=\"Fentora\",SUMIFS('IMS Data'!F:F,'IMS Data'!C:C,'Fentora Tracker'!G:G),IF('Fentora Tracker'!$F$7=\"Amrix\",SUMIFS('IMS Data'!E:E,'IMS Data'!C:C,'Fentora Tracker'!G:G),IF('Fentora Tracker'!$F$7=\"Provigil\",SUMIFS('IMS Data'!I:I,'IMS Data'!C:C,'Fentora Tracker'!G:G),IF('Fentora Tracker'!$F$7=\"Gabitril\",SUMIFS('IMS Data'!H:H,'IMS Data'!C:C,'Fentora Tracker'!G:G),IF('Fentora Tracker'!$F$7=\"Actiq\",SUMIFS('IMS Data'!G:G,'IMS Data'!C:C,'Fentora Tracker'!G:G),IF($F$7=\"Copaxone 20\",SUMIFS('IMS Data'!J:J,'IMS Data'!C:C,'TRx Tracker vs AOP'!G:G),IF($F$7=\"Copaxone 40\",SUMIFS('IMS Data'!K:K,'IMS Data'!C:C,'TRx Tracker vs AOP'!G:G),IF($F$7=\"Azilect\",SUMIFS('IMS Data'!L:L,'IMS Data'!C:C,'Fentora Tracker'!G:G))))))))))","v":0},203.64384609375,-203.64384609375,{"$f":"SUMIFS('IMS Data'!O:O,'IMS Data'!C:C,'Fentora Tracker'!G:G)","v":0},24616.583333333332,-24616.583333333332,{"$f":"'Fentora 2017'!N90","v":361320},295399]
[null,null,null,null,4,17,"2017-04-28",{"$f":"IF($F$7=\"Nuvigil\",SUMIFS('IMS Data'!D:D,'IMS Data'!C:C,'Fentora Tracker'!G:G),IF('Fentora Tracker'!$F$7=\"Fentora\",SUMIFS('IMS Data'!F:F,'IMS Data'!C:C,'Fentora Tracker'!G:G),IF('Fentora Tracker'!$F$7=\"Amrix\",SUMIFS('IMS Data'!E:E,'IMS Data'!C:C,'Fentora Tracker'!G:G),IF('Fentora Tracker'!$F$7=\"Provigil\",SUMIFS('IMS Data'!I:I,'IMS Data'!C:C,'Fentora Tracker'!G:G),IF('Fentora Tracker'!$F$7=\"Gabitril\",SUMIFS('IMS Data'!H:H,'IMS Data'!C:C,'Fentora Tracker'!G:G),IF('Fentora Tracker'!$F$7=\"Actiq\",SUMIFS('IMS Data'!G:G,'IMS Data'!C:C,'Fentora Tracker'!G:G),IF($F$7=\"Copaxone 20\",SUMIFS('IMS Data'!J:J,'IMS Data'!C:C,'TRx Tracker vs AOP'!G:G),IF($F$7=\"Copaxone 40\",SUMIFS('IMS Data'!K:K,'IMS Data'!C:C,'TRx Tracker vs AOP'!G:G),IF($F$7=\"Azilect\",SUMIFS('IMS Data'!L:L,'IMS Data'!C:C,'Fentora Tracker'!G:G))))))))))","v":0},203.64384609375,-203.64384609375,{"$f":"SUMIFS('IMS Data'!O:O,'IMS Data'!C:C,'Fentora Tracker'!G:G)","v":0},24616.583333333332,-24616.583333333332,{"$f":"'Fentora 2017'!N91","v":354998},295399]
[null,null,null,null,5,18,"2017-05-05",{"$f":"IF($F$7=\"Nuvigil\",SUMIFS('IMS Data'!D:D,'IMS Data'!C:C,'Fentora Tracker'!G:G),IF('Fentora Tracker'!$F$7=\"Fentora\",SUMIFS('IMS Data'!F:F,'IMS Data'!C:C,'Fentora Tracker'!G:G),IF('Fentora Tracker'!$F$7=\"Amrix\",SUMIFS('IMS Data'!E:E,'IMS Data'!C:C,'Fentora Tracker'!G:G),IF('Fentora Tracker'!$F$7=\"Provigil\",SUMIFS('IMS Data'!I:I,'IMS Data'!C:C,'Fentora Tracker'!G:G),IF('Fentora Tracker'!$F$7=\"Gabitril\",SUMIFS('IMS Data'!H:H,'IMS Data'!C:C,'Fentora Tracker'!G:G),IF('Fentora Tracker'!$F$7=\"Actiq\",SUMIFS('IMS Data'!G:G,'IMS Data'!C:C,'Fentora Tracker'!G:G),IF($F$7=\"Copaxone 20\",SUMIFS('IMS Data'!J:J,'IMS Data'!C:C,'TRx Tracker vs AOP'!G:G),IF($F$7=\"Copaxone 40\",SUMIFS('IMS Data'!K:K,'IMS Data'!C:C,'TRx Tracker vs AOP'!G:G),IF($F$7=\"Azilect\",SUMIFS('IMS Data'!L:L,'IMS Data'!C:C,'Fentora Tracker'!G:G))))))))))","v":0},205.29215240384616,-205.29215240384616,{"$f":"SUMIFS('IMS Data'!O:O,'IMS Data'!C:C,'Fentora Tracker'!G:G)","v":0},24616.583333333332,-24616.583333333332,{"$f":"'Fentora 2017'!N92","v":350268},295399]
[null,null,null,null,5,19,"2017-05-12",{"$f":"IF($F$7=\"Nuvigil\",SUMIFS('IMS Data'!D:D,'IMS Data'!C:C,'Fentora Tracker'!G:G),IF('Fentora Tracker'!$F$7=\"Fentora\",SUMIFS('IMS Data'!F:F,'IMS Data'!C:C,'Fentora Tracker'!G:G),IF('Fentora Tracker'!$F$7=\"Amrix\",SUMIFS('IMS Data'!E:E,'IMS Data'!C:C,'Fentora Tracker'!G:G),IF('Fentora Tracker'!$F$7=\"Provigil\",SUMIFS('IMS Data'!I:I,'IMS Data'!C:C,'Fentora Tracker'!G:G),IF('Fentora Tracker'!$F$7=\"Gabitril\",SUMIFS('IMS Data'!H:H,'IMS Data'!C:C,'Fentora Tracker'!G:G),IF('Fentora Tracker'!$F$7=\"Actiq\",SUMIFS('IMS Data'!G:G,'IMS Data'!C:C,'Fentora Tracker'!G:G),IF($F$7=\"Copaxone 20\",SUMIFS('IMS Data'!J:J,'IMS Data'!C:C,'TRx Tracker vs AOP'!G:G),IF($F$7=\"Copaxone 40\",SUMIFS('IMS Data'!K:K,'IMS Data'!C:C,'TRx Tracker vs AOP'!G:G),IF($F$7=\"Azilect\",SUMIFS('IMS Data'!L:L,'IMS Data'!C:C,'Fentora Tracker'!G:G))))))))))","v":0},205.29215240384616,-205.29215240384616,{"$f":"SUMIFS('IMS Data'!O:O,'IMS Data'!C:C,'Fentora Tracker'!G:G)","v":0},24616.583333333332,-24616.583333333332,{"$f":"'Fentora 2017'!N93","v":355178},295399]
[null,null,null,null,5,20,"2017-05-19",{"$f":"IF($F$7=\"Nuvigil\",SUMIFS('IMS Data'!D:D,'IMS Data'!C:C,'Fentora Tracker'!G:G),IF('Fentora Tracker'!$F$7=\"Fentora\",SUMIFS('IMS Data'!F:F,'IMS Data'!C:C,'Fentora Tracker'!G:G),IF('Fentora Tracker'!$F$7=\"Amrix\",SUMIFS('IMS Data'!E:E,'IMS Data'!C:C,'Fentora Tracker'!G:G),IF('Fentora Tracker'!$F$7=\"Provigil\",SUMIFS('IMS Data'!I:I,'IMS Data'!C:C,'Fentora Tracker'!G:G),IF('Fentora Tracker'!$F$7=\"Gabitril\",SUMIFS('IMS Data'!H:H,'IMS Data'!C:C,'Fentora Tracker'!G:G),IF('Fentora Tracker'!$F$7=\"Actiq\",SUMIFS('IMS Data'!G:G,'IMS Data'!C:C,'Fentora Tracker'!G:G),IF($F$7=\"Copaxone 20\",SUMIFS('IMS Data'!J:J,'IMS Data'!C:C,'TRx Tracker vs AOP'!G:G),IF($F$7=\"Copaxone 40\",SUMIFS('IMS Data'!K:K,'IMS Data'!C:C,'TRx Tracker vs AOP'!G:G),IF($F$7=\"Azilect\",SUMIFS('IMS Data'!L:L,'IMS Data'!C:C,'Fentora Tracker'!G:G))))))))))","v":0},205.29215240384616,-205.29215240384616,{"$f":"SUMIFS('IMS Data'!O:O,'IMS Data'!C:C,'Fentora Tracker'!G:G)","v":0},24616.583333333332,-24616.583333333332,{"$f":"'Fentora 2017'!N94","v":352975},295399]
[null,null,null,null,5,21,"2017-05-26",{"$f":"IF($F$7=\"Nuvigil\",SUMIFS('IMS Data'!D:D,'IMS Data'!C:C,'Fentora Tracker'!G:G),IF('Fentora Tracker'!$F$7=\"Fentora\",SUMIFS('IMS Data'!F:F,'IMS Data'!C:C,'Fentora Tracker'!G:G),IF('Fentora Tracker'!$F$7=\"Amrix\",SUMIFS('IMS Data'!E:E,'IMS Data'!C:C,'Fentora Tracker'!G:G),IF('Fentora Tracker'!$F$7=\"Provigil\",SUMIFS('IMS Data'!I:I,'IMS Data'!C:C,'Fentora Tracker'!G:G),IF('Fentora Tracker'!$F$7=\"Gabitril\",SUMIFS('IMS Data'!H:H,'IMS Data'!C:C,'Fentora Tracker'!G:G),IF('Fentora Tracker'!$F$7=\"Actiq\",SUMIFS('IMS Data'!G:G,'IMS Data'!C:C,'Fentora Tracker'!G:G),IF($F$7=\"Copaxone 20\",SUMIFS('IMS Data'!J:J,'IMS Data'!C:C,'TRx Tracker vs AOP'!G:G),IF($F$7=\"Copaxone 40\",SUMIFS('IMS Data'!K:K,'IMS Data'!C:C,'TRx Tracker vs AOP'!G:G),IF($F$7=\"Azilect\",SUMIFS('IMS Data'!L:L,'IMS Data'!C:C,'Fentora Tracker'!G:G))))))))))","v":0},205.29215240384616,-205.29215240384616,{"$f":"SUMIFS('IMS Data'!O:O,'IMS Data'!C:C,'Fentora Tracker'!G:G)","v":0},24616.583333333332,-24616.583333333332,{"$f":"'Fentora 2017'!N95","v":348984},295399]
[null,null,null,null,6,22,"2017-06-02",{"$f":"IF($F$7=\"Nuvigil\",SUMIFS('IMS Data'!D:D,'IMS Data'!C:C,'Fentora Tracker'!G:G),IF('Fentora Tracker'!$F$7=\"Fentora\",SUMIFS('IMS Data'!F:F,'IMS Data'!C:C,'Fentora Tracker'!G:G),IF('Fentora Tracker'!$F$7=\"Amrix\",SUMIFS('IMS Data'!E:E,'IMS Data'!C:C,'Fentora Tracker'!G:G),IF('Fentora Tracker'!$F$7=\"Provigil\",SUMIFS('IMS Data'!I:I,'IMS Data'!C:C,'Fentora Tracker'!G:G),IF('Fentora Tracker'!$F$7=\"Gabitril\",SUMIFS('IMS Data'!H:H,'IMS Data'!C:C,'Fentora Tracker'!G:G),IF('Fentora Tracker'!$F$7=\"Actiq\",SUMIFS('IMS Data'!G:G,'IMS Data'!C:C,'Fentora Tracker'!G:G),IF($F$7=\"Copaxone 20\",SUMIFS('IMS Data'!J:J,'IMS Data'!C:C,'TRx Tracker vs AOP'!G:G),IF($F$7=\"Copaxone 40\",SUMIFS('IMS Data'!K:K,'IMS Data'!C:C,'TRx Tracker vs AOP'!G:G),IF($F$7=\"Azilect\",SUMIFS('IMS Data'!L:L,'IMS Data'!C:C,'Fentora Tracker'!G:G))))))))))","v":0},195.22713557451925,-195.22713557451925,{"$f":"SUMIFS('IMS Data'!O:O,'IMS Data'!C:C,'Fentora Tracker'!G:G)","v":0},24616.583333333332,-24616.583333333332,{"$f":"'Fentora 2017'!N96","v":342531},295399]
[null,null,null,null,6,23,"2017-06-09",{"$f":"IF($F$7=\"Nuvigil\",SUMIFS('IMS Data'!D:D,'IMS Data'!C:C,'Fentora Tracker'!G:G),IF('Fentora Tracker'!$F$7=\"Fentora\",SUMIFS('IMS Data'!F:F,'IMS Data'!C:C,'Fentora Tracker'!G:G),IF('Fentora Tracker'!$F$7=\"Amrix\",SUMIFS('IMS Data'!E:E,'IMS Data'!C:C,'Fentora Tracker'!G:G),IF('Fentora Tracker'!$F$7=\"Provigil\",SUMIFS('IMS Data'!I:I,'IMS Data'!C:C,'Fentora Tracker'!G:G),IF('Fentora Tracker'!$F$7=\"Gabitril\",SUMIFS('IMS Data'!H:H,'IMS Data'!C:C,'Fentora Tracker'!G:G),IF('Fentora Tracker'!$F$7=\"Actiq\",SUMIFS('IMS Data'!G:G,'IMS Data'!C:C,'Fentora Tracker'!G:G),IF($F$7=\"Copaxone 20\",SUMIFS('IMS Data'!J:J,'IMS Data'!C:C,'TRx Tracker vs AOP'!G:G),IF($F$7=\"Copaxone 40\",SUMIFS('IMS Data'!K:K,'IMS Data'!C:C,'TRx Tracker vs AOP'!G:G),IF($F$7=\"Azilect\",SUMIFS('IMS Data'!L:L,'IMS Data'!C:C,'Fentora Tracker'!G:G))))))))))","v":0},195.22713557451925,-195.22713557451925,{"$f":"SUMIFS('IMS Data'!O:O,'IMS Data'!C:C,'Fentora Tracker'!G:G)","v":0},24616.583333333332,-24616.583333333332,{"$f":"'Fentora 2017'!N97","v":344662},295399]
[null,null,null,null,6,24,"2017-06-16",{"$f":"IF($F$7=\"Nuvigil\",SUMIFS('IMS Data'!D:D,'IMS Data'!C:C,'Fentora Tracker'!G:G),IF('Fentora Tracker'!$F$7=\"Fentora\",SUMIFS('IMS Data'!F:F,'IMS Data'!C:C,'Fentora Tracker'!G:G),IF('Fentora Tracker'!$F$7=\"Amrix\",SUMIFS('IMS Data'!E:E,'IMS Data'!C:C,'Fentora Tracker'!G:G),IF('Fentora Tracker'!$F$7=\"Provigil\",SUMIFS('IMS Data'!I:I,'IMS Data'!C:C,'Fentora Tracker'!G:G),IF('Fentora Tracker'!$F$7=\"Gabitril\",SUMIFS('IMS Data'!H:H,'IMS Data'!C:C,'Fentora Tracker'!G:G),IF('Fentora Tracker'!$F$7=\"Actiq\",SUMIFS('IMS Data'!G:G,'IMS Data'!C:C,'Fentora Tracker'!G:G),IF($F$7=\"Copaxone 20\",SUMIFS('IMS Data'!J:J,'IMS Data'!C:C,'TRx Tracker vs AOP'!G:G),IF($F$7=\"Copaxone 40\",SUMIFS('IMS Data'!K:K,'IMS Data'!C:C,'TRx Tracker vs AOP'!G:G),IF($F$7=\"Azilect\",SUMIFS('IMS Data'!L:L,'IMS Data'!C:C,'Fentora Tracker'!G:G))))))))))","v":0},195.22713557451925,-195.22713557451925,{"$f":"SUMIFS('IMS Data'!O:O,'IMS Data'!C:C,'Fentora Tracker'!G:G)","v":0},24616.583333333332,-24616.583333333332,{"$f":"'Fentora 2017'!N98","v":344577},295399]
[null,null,null,null,6,25,"2017-06-23",{"$f":"IF($F$7=\"Nuvigil\",SUMIFS('IMS Data'!D:D,'IMS Data'!C:C,'Fentora Tracker'!G:G),IF('Fentora Tracker'!$F$7=\"Fentora\",SUMIFS('IMS Data'!F:F,'IMS Data'!C:C,'Fentora Tracker'!G:G),IF('Fentora Tracker'!$F$7=\"Amrix\",SUMIFS('IMS Data'!E:E,'IMS Data'!C:C,'Fentora Tracker'!G:G),IF('Fentora Tracker'!$F$7=\"Provigil\",SUMIFS('IMS Data'!I:I,'IMS Data'!C:C,'Fentora Tracker'!G:G),IF('Fentora Tracker'!$F$7=\"Gabitril\",SUMIFS('IMS Data'!H:H,'IMS Data'!C:C,'Fentora Tracker'!G:G),IF('Fentora Tracker'!$F$7=\"Actiq\",SUMIFS('IMS Data'!G:G,'IMS Data'!C:C,'Fentora Tracker'!G:G),IF($F$7=\"Copaxone 20\",SUMIFS('IMS Data'!J:J,'IMS Data'!C:C,'TRx Tracker vs AOP'!G:G),IF($F$7=\"Copaxone 40\",SUMIFS('IMS Data'!K:K,'IMS Data'!C:C,'TRx Tracker vs AOP'!G:G),IF($F$7=\"Azilect\",SUMIFS('IMS Data'!L:L,'IMS Data'!C:C,'Fentora Tracker'!G:G))))))))))","v":0},195.22713557451925,-195.22713557451925,{"$f":"SUMIFS('IMS Data'!O:O,'IMS Data'!C:C,'Fentora Tracker'!G:G)","v":0},24616.583333333332,-24616.583333333332,{"$f":"'Fentora 2017'!N99","v":344652},295399]
[null,null,null,null,6,26,"2017-06-30",{"$f":"IF($F$7=\"Nuvigil\",SUMIFS('IMS Data'!D:D,'IMS Data'!C:C,'Fentora Tracker'!G:G),IF('Fentora Tracker'!$F$7=\"Fentora\",SUMIFS('IMS Data'!F:F,'IMS Data'!C:C,'Fentora Tracker'!G:G),IF('Fentora Tracker'!$F$7=\"Amrix\",SUMIFS('IMS Data'!E:E,'IMS Data'!C:C,'Fentora Tracker'!G:G),IF('Fentora Tracker'!$F$7=\"Provigil\",SUMIFS('IMS Data'!I:I,'IMS Data'!C:C,'Fentora Tracker'!G:G),IF('Fentora Tracker'!$F$7=\"Gabitril\",SUMIFS('IMS Data'!H:H,'IMS Data'!C:C,'Fentora Tracker'!G:G),IF('Fentora Tracker'!$F$7=\"Actiq\",SUMIFS('IMS Data'!G:G,'IMS Data'!C:C,'Fentora Tracker'!G:G),IF($F$7=\"Copaxone 20\",SUMIFS('IMS Data'!J:J,'IMS Data'!C:C,'TRx Tracker vs AOP'!G:G),IF($F$7=\"Copaxone 40\",SUMIFS('IMS Data'!K:K,'IMS Data'!C:C,'TRx Tracker vs AOP'!G:G),IF($F$7=\"Azilect\",SUMIFS('IMS Data'!L:L,'IMS Data'!C:C,'Fentora Tracker'!G:G))))))))))","v":0},195.22713557451925,-195.22713557451925,{"$f":"SUMIFS('IMS Data'!O:O,'IMS Data'!C:C,'Fentora Tracker'!G:G)","v":0},24616.583333333332,-24616.583333333332,{"$f":"'Fentora 2017'!N100","v":343037},295399]
[null,null,null,null,7,27,"2017-07-07",{"$f":"IF($F$7=\"Nuvigil\",SUMIFS('IMS Data'!D:D,'IMS Data'!C:C,'Fentora Tracker'!G:G),IF('Fentora Tracker'!$F$7=\"Fentora\",SUMIFS('IMS Data'!F:F,'IMS Data'!C:C,'Fentora Tracker'!G:G),IF('Fentora Tracker'!$F$7=\"Amrix\",SUMIFS('IMS Data'!E:E,'IMS Data'!C:C,'Fentora Tracker'!G:G),IF('Fentora Tracker'!$F$7=\"Provigil\",SUMIFS('IMS Data'!I:I,'IMS Data'!C:C,'Fentora Tracker'!G:G),IF('Fentora Tracker'!$F$7=\"Gabitril\",SUMIFS('IMS Data'!H:H,'IMS Data'!C:C,'Fentora Tracker'!G:G),IF('Fentora Tracker'!$F$7=\"Actiq\",SUMIFS('IMS Data'!G:G,'IMS Data'!C:C,'Fentora Tracker'!G:G),IF($F$7=\"Copaxone 20\",SUMIFS('IMS Data'!J:J,'IMS Data'!C:C,'TRx Tracker vs AOP'!G:G),IF($F$7=\"Copaxone 40\",SUMIFS('IMS Data'!K:K,'IMS Data'!C:C,'TRx Tracker vs AOP'!G:G),IF($F$7=\"Azilect\",SUMIFS('IMS Data'!L:L,'IMS Data'!C:C,'Fentora Tracker'!G:G))))))))))","v":0},168.42184615384616,-168.42184615384616,{"$f":"SUMIFS('IMS Data'!O:O,'IMS Data'!C:C,'Fentora Tracker'!G:G)","v":0},24616.583333333332,-24616.583333333332,{"$f":"'Fentora 2017'!N101","v":340618},295399]
[null,null,null,null,7,28,"2017-07-14",{"$f":"IF($F$7=\"Nuvigil\",SUMIFS('IMS Data'!D:D,'IMS Data'!C:C,'Fentora Tracker'!G:G),IF('Fentora Tracker'!$F$7=\"Fentora\",SUMIFS('IMS Data'!F:F,'IMS Data'!C:C,'Fentora Tracker'!G:G),IF('Fentora Tracker'!$F$7=\"Amrix\",SUMIFS('IMS Data'!E:E,'IMS Data'!C:C,'Fentora Tracker'!G:G),IF('Fentora Tracker'!$F$7=\"Provigil\",SUMIFS('IMS Data'!I:I,'IMS Data'!C:C,'Fentora Tracker'!G:G),IF('Fentora Tracker'!$F$7=\"Gabitril\",SUMIFS('IMS Data'!H:H,'IMS Data'!C:C,'Fentora Tracker'!G:G),IF('Fentora Tracker'!$F$7=\"Actiq\",SUMIFS('IMS Data'!G:G,'IMS Data'!C:C,'Fentora Tracker'!G:G),IF($F$7=\"Copaxone 20\",SUMIFS('IMS Data'!J:J,'IMS Data'!C:C,'TRx Tracker vs AOP'!G:G),IF($F$7=\"Copaxone 40\",SUMIFS('IMS Data'!K:K,'IMS Data'!C:C,'TRx Tracker vs AOP'!G:G),IF($F$7=\"Azilect\",SUMIFS('IMS Data'!L:L,'IMS Data'!C:C,'Fentora Tracker'!G:G))))))))))","v":0},168.42184615384616,-168.42184615384616,{"$f":"SUMIFS('IMS Data'!O:O,'IMS Data'!C:C,'Fentora Tracker'!G:G)","v":0},24616.583333333332,-24616.583333333332,{"$f":"'Fentora 2017'!N102","v":339759},295399]
[null,null,null,null,7,29,"2017-07-21",{"$f":"IF($F$7=\"Nuvigil\",SUMIFS('IMS Data'!D:D,'IMS Data'!C:C,'Fentora Tracker'!G:G),IF('Fentora Tracker'!$F$7=\"Fentora\",SUMIFS('IMS Data'!F:F,'IMS Data'!C:C,'Fentora Tracker'!G:G),IF('Fentora Tracker'!$F$7=\"Amrix\",SUMIFS('IMS Data'!E:E,'IMS Data'!C:C,'Fentora Tracker'!G:G),IF('Fentora Tracker'!$F$7=\"Provigil\",SUMIFS('IMS Data'!I:I,'IMS Data'!C:C,'Fentora Tracker'!G:G),IF('Fentora Tracker'!$F$7=\"Gabitril\",SUMIFS('IMS Data'!H:H,'IMS Data'!C:C,'Fentora Tracker'!G:G),IF('Fentora Tracker'!$F$7=\"Actiq\",SUMIFS('IMS Data'!G:G,'IMS Data'!C:C,'Fentora Tracker'!G:G),IF($F$7=\"Copaxone 20\",SUMIFS('IMS Data'!J:J,'IMS Data'!C:C,'TRx Tracker vs AOP'!G:G),IF($F$7=\"Copaxone 40\",SUMIFS('IMS Data'!K:K,'IMS Data'!C:C,'TRx Tracker vs AOP'!G:G),IF($F$7=\"Azilect\",SUMIFS('IMS Data'!L:L,'IMS Data'!C:C,'Fentora Tracker'!G:G))))))))))","v":0},168.42184615384616,-168.42184615384616,{"$f":"SUMIFS('IMS Data'!O:O,'IMS Data'!C:C,'Fentora Tracker'!G:G)","v":0},24616.583333333332,-24616.583333333332,{"$f":"'Fentora 2017'!N103","v":341963},295399]
[null,null,null,null,7,30,"2017-07-28",{"$f":"IF($F$7=\"Nuvigil\",SUMIFS('IMS Data'!D:D,'IMS Data'!C:C,'Fentora Tracker'!G:G),IF('Fentora Tracker'!$F$7=\"Fentora\",SUMIFS('IMS Data'!F:F,'IMS Data'!C:C,'Fentora Tracker'!G:G),IF('Fentora Tracker'!$F$7=\"Amrix\",SUMIFS('IMS Data'!E:E,'IMS Data'!C:C,'Fentora Tracker'!G:G),IF('Fentora Tracker'!$F$7=\"Provigil\",SUMIFS('IMS Data'!I:I,'IMS Data'!C:C,'Fentora Tracker'!G:G),IF('Fentora Tracker'!$F$7=\"Gabitril\",SUMIFS('IMS Data'!H:H,'IMS Data'!C:C,'Fentora Tracker'!G:G),IF('Fentora Tracker'!$F$7=\"Actiq\",SUMIFS('IMS Data'!G:G,'IMS Data'!C:C,'Fentora Tracker'!G:G),IF($F$7=\"Copaxone 20\",SUMIFS('IMS Data'!J:J,'IMS Data'!C:C,'TRx Tracker vs AOP'!G:G),IF($F$7=\"Copaxone 40\",SUMIFS('IMS Data'!K:K,'IMS Data'!C:C,'TRx Tracker vs AOP'!G:G),IF($F$7=\"Azilect\",SUMIFS('IMS Data'!L:L,'IMS Data'!C:C,'Fentora Tracker'!G:G))))))))))","v":0},168.42184615384616,-168.42184615384616,{"$f":"SUMIFS('IMS Data'!O:O,'IMS Data'!C:C,'Fentora Tracker'!G:G)","v":0},24616.583333333332,-24616.583333333332,{"$f":"'Fentora 2017'!N104","v":335657},295399]
[null,null,null,null,8,31,"2017-08-04",{"$f":"IF($F$7=\"Nuvigil\",SUMIFS('IMS Data'!D:D,'IMS Data'!C:C,'Fentora Tracker'!G:G),IF('Fentora Tracker'!$F$7=\"Fentora\",SUMIFS('IMS Data'!F:F,'IMS Data'!C:C,'Fentora Tracker'!G:G),IF('Fentora Tracker'!$F$7=\"Amrix\",SUMIFS('IMS Data'!E:E,'IMS Data'!C:C,'Fentora Tracker'!G:G),IF('Fentora Tracker'!$F$7=\"Provigil\",SUMIFS('IMS Data'!I:I,'IMS Data'!C:C,'Fentora Tracker'!G:G),IF('Fentora Tracker'!$F$7=\"Gabitril\",SUMIFS('IMS Data'!H:H,'IMS Data'!C:C,'Fentora Tracker'!G:G),IF('Fentora Tracker'!$F$7=\"Actiq\",SUMIFS('IMS Data'!G:G,'IMS Data'!C:C,'Fentora Tracker'!G:G),IF($F$7=\"Copaxone 20\",SUMIFS('IMS Data'!J:J,'IMS Data'!C:C,'TRx Tracker vs AOP'!G:G),IF($F$7=\"Copaxone 40\",SUMIFS('IMS Data'!K:K,'IMS Data'!C:C,'TRx Tracker vs AOP'!G:G),IF($F$7=\"Azilect\",SUMIFS('IMS Data'!L:L,'IMS Data'!C:C,'Fentora Tracker'!G:G))))))))))","v":0},193.54947230769233,-193.54947230769233,{"$f":"SUMIFS('IMS Data'!O:O,'IMS Data'!C:C,'Fentora Tracker'!G:G)","v":0},24616.583333333332,-24616.583333333332,{"$f":"'Fentora 2017'!N105","v":333966},295399]
[null,null,null,null,8,32,"2017-08-11",{"$f":"IF($F$7=\"Nuvigil\",SUMIFS('IMS Data'!D:D,'IMS Data'!C:C,'Fentora Tracker'!G:G),IF('Fentora Tracker'!$F$7=\"Fentora\",SUMIFS('IMS Data'!F:F,'IMS Data'!C:C,'Fentora Tracker'!G:G),IF('Fentora Tracker'!$F$7=\"Amrix\",SUMIFS('IMS Data'!E:E,'IMS Data'!C:C,'Fentora Tracker'!G:G),IF('Fentora Tracker'!$F$7=\"Provigil\",SUMIFS('IMS Data'!I:I,'IMS Data'!C:C,'Fentora Tracker'!G:G),IF('Fentora Tracker'!$F$7=\"Gabitril\",SUMIFS('IMS Data'!H:H,'IMS Data'!C:C,'Fentora Tracker'!G:G),IF('Fentora Tracker'!$F$7=\"Actiq\",SUMIFS('IMS Data'!G:G,'IMS Data'!C:C,'Fentora Tracker'!G:G),IF($F$7=\"Copaxone 20\",SUMIFS('IMS Data'!J:J,'IMS Data'!C:C,'TRx Tracker vs AOP'!G:G),IF($F$7=\"Copaxone 40\",SUMIFS('IMS Data'!K:K,'IMS Data'!C:C,'TRx Tracker vs AOP'!G:G),IF($F$7=\"Azilect\",SUMIFS('IMS Data'!L:L,'IMS Data'!C:C,'Fentora Tracker'!G:G))))))))))","v":0},193.54947230769233,-193.54947230769233,{"$f":"SUMIFS('IMS Data'!O:O,'IMS Data'!C:C,'Fentora Tracker'!G:G)","v":0},24616.583333333332,-24616.583333333332,{"$f":"'Fentora 2017'!N106","v":330318},295399]
[null,null,null,null,8,33,"2017-08-18",{"$f":"IF($F$7=\"Nuvigil\",SUMIFS('IMS Data'!D:D,'IMS Data'!C:C,'Fentora Tracker'!G:G),IF('Fentora Tracker'!$F$7=\"Fentora\",SUMIFS('IMS Data'!F:F,'IMS Data'!C:C,'Fentora Tracker'!G:G),IF('Fentora Tracker'!$F$7=\"Amrix\",SUMIFS('IMS Data'!E:E,'IMS Data'!C:C,'Fentora Tracker'!G:G),IF('Fentora Tracker'!$F$7=\"Provigil\",SUMIFS('IMS Data'!I:I,'IMS Data'!C:C,'Fentora Tracker'!G:G),IF('Fentora Tracker'!$F$7=\"Gabitril\",SUMIFS('IMS Data'!H:H,'IMS Data'!C:C,'Fentora Tracker'!G:G),IF('Fentora Tracker'!$F$7=\"Actiq\",SUMIFS('IMS Data'!G:G,'IMS Data'!C:C,'Fentora Tracker'!G:G),IF($F$7=\"Copaxone 20\",SUMIFS('IMS Data'!J:J,'IMS Data'!C:C,'TRx Tracker vs AOP'!G:G),IF($F$7=\"Copaxone 40\",SUMIFS('IMS Data'!K:K,'IMS Data'!C:C,'TRx Tracker vs AOP'!G:G),IF($F$7=\"Azilect\",SUMIFS('IMS Data'!L:L,'IMS Data'!C:C,'Fentora Tracker'!G:G))))))))))","v":0},193.54947230769233,-193.54947230769233,{"$f":"SUMIFS('IMS Data'!O:O,'IMS Data'!C:C,'Fentora Tracker'!G:G)","v":0},24616.583333333332,{"$f":"K54-L54","v":-24616.583333333332},{"$f":"'Fentora 2017'!N107","v":324315},295399]
[null,null,null,null,8,34,"2017-08-25",{"$f":"IF($F$7=\"Nuvigil\",SUMIFS('IMS Data'!D:D,'IMS Data'!C:C,'Fentora Tracker'!G:G),IF('Fentora Tracker'!$F$7=\"Fentora\",SUMIFS('IMS Data'!F:F,'IMS Data'!C:C,'Fentora Tracker'!G:G),IF('Fentora Tracker'!$F$7=\"Amrix\",SUMIFS('IMS Data'!E:E,'IMS Data'!C:C,'Fentora Tracker'!G:G),IF('Fentora Tracker'!$F$7=\"Provigil\",SUMIFS('IMS Data'!I:I,'IMS Data'!C:C,'Fentora Tracker'!G:G),IF('Fentora Tracker'!$F$7=\"Gabitril\",SUMIFS('IMS Data'!H:H,'IMS Data'!C:C,'Fentora Tracker'!G:G),IF('Fentora Tracker'!$F$7=\"Actiq\",SUMIFS('IMS Data'!G:G,'IMS Data'!C:C,'Fentora Tracker'!G:G),IF($F$7=\"Copaxone 20\",SUMIFS('IMS Data'!J:J,'IMS Data'!C:C,'TRx Tracker vs AOP'!G:G),IF($F$7=\"Copaxone 40\",SUMIFS('IMS Data'!K:K,'IMS Data'!C:C,'TRx Tracker vs AOP'!G:G),IF($F$7=\"Azilect\",SUMIFS('IMS Data'!L:L,'IMS Data'!C:C,'Fentora Tracker'!G:G))))))))))","v":0},193.54947230769233,-193.54947230769233,{"$f":"SUMIFS('IMS Data'!O:O,'IMS Data'!C:C,'Fentora Tracker'!G:G)","v":0},24616.583333333332,-24616.583333333332,{"$f":"'Fentora 2017'!N108","v":326005},295399]
[null,null,null,null,9,35,"2017-09-01",{"$f":"IF($F$7=\"Nuvigil\",SUMIFS('IMS Data'!D:D,'IMS Data'!C:C,'Fentora Tracker'!G:G),IF('Fentora Tracker'!$F$7=\"Fentora\",SUMIFS('IMS Data'!F:F,'IMS Data'!C:C,'Fentora Tracker'!G:G),IF('Fentora Tracker'!$F$7=\"Amrix\",SUMIFS('IMS Data'!E:E,'IMS Data'!C:C,'Fentora Tracker'!G:G),IF('Fentora Tracker'!$F$7=\"Provigil\",SUMIFS('IMS Data'!I:I,'IMS Data'!C:C,'Fentora Tracker'!G:G),IF('Fentora Tracker'!$F$7=\"Gabitril\",SUMIFS('IMS Data'!H:H,'IMS Data'!C:C,'Fentora Tracker'!G:G),IF('Fentora Tracker'!$F$7=\"Actiq\",SUMIFS('IMS Data'!G:G,'IMS Data'!C:C,'Fentora Tracker'!G:G),IF($F$7=\"Copaxone 20\",SUMIFS('IMS Data'!J:J,'IMS Data'!C:C,'TRx Tracker vs AOP'!G:G),IF($F$7=\"Copaxone 40\",SUMIFS('IMS Data'!K:K,'IMS Data'!C:C,'TRx Tracker vs AOP'!G:G),IF($F$7=\"Azilect\",SUMIFS('IMS Data'!L:L,'IMS Data'!C:C,'Fentora Tracker'!G:G))))))))))","v":0},197.64421836923074,-197.64421836923074,{"$f":"SUMIFS('IMS Data'!O:O,'IMS Data'!C:C,'Fentora Tracker'!G:G)","v":0},24616.583333333332,-24616.583333333332,{"$f":"'Fentora 2017'!N109","v":320141},295399]
[null,null,null,null,9,36,"2017-09-08",{"$f":"IF($F$7=\"Nuvigil\",SUMIFS('IMS Data'!D:D,'IMS Data'!C:C,'Fentora Tracker'!G:G),IF('Fentora Tracker'!$F$7=\"Fentora\",SUMIFS('IMS Data'!F:F,'IMS Data'!C:C,'Fentora Tracker'!G:G),IF('Fentora Tracker'!$F$7=\"Amrix\",SUMIFS('IMS Data'!E:E,'IMS Data'!C:C,'Fentora Tracker'!G:G),IF('Fentora Tracker'!$F$7=\"Provigil\",SUMIFS('IMS Data'!I:I,'IMS Data'!C:C,'Fentora Tracker'!G:G),IF('Fentora Tracker'!$F$7=\"Gabitril\",SUMIFS('IMS Data'!H:H,'IMS Data'!C:C,'Fentora Tracker'!G:G),IF('Fentora Tracker'!$F$7=\"Actiq\",SUMIFS('IMS Data'!G:G,'IMS Data'!C:C,'Fentora Tracker'!G:G),IF($F$7=\"Copaxone 20\",SUMIFS('IMS Data'!J:J,'IMS Data'!C:C,'TRx Tracker vs AOP'!G:G),IF($F$7=\"Copaxone 40\",SUMIFS('IMS Data'!K:K,'IMS Data'!C:C,'TRx Tracker vs AOP'!G:G),IF($F$7=\"Azilect\",SUMIFS('IMS Data'!L:L,'IMS Data'!C:C,'Fentora Tracker'!G:G))))))))))","v":0},197.64421836923074,-197.64421836923074,{"$f":"SUMIFS('IMS Data'!O:O,'IMS Data'!C:C,'Fentora Tracker'!G:G)","v":0},24616.583333333332,-24616.583333333332,{"$f":"'Fentora 2017'!N110","v":313321},295399]
[null,null,null,null,9,37,"2017-09-15",{"$f":"IF($F$7=\"Nuvigil\",SUMIFS('IMS Data'!D:D,'IMS Data'!C:C,'Fentora Tracker'!G:G),IF('Fentora Tracker'!$F$7=\"Fentora\",SUMIFS('IMS Data'!F:F,'IMS Data'!C:C,'Fentora Tracker'!G:G),IF('Fentora Tracker'!$F$7=\"Amrix\",SUMIFS('IMS Data'!E:E,'IMS Data'!C:C,'Fentora Tracker'!G:G),IF('Fentora Tracker'!$F$7=\"Provigil\",SUMIFS('IMS Data'!I:I,'IMS Data'!C:C,'Fentora Tracker'!G:G),IF('Fentora Tracker'!$F$7=\"Gabitril\",SUMIFS('IMS Data'!H:H,'IMS Data'!C:C,'Fentora Tracker'!G:G),IF('Fentora Tracker'!$F$7=\"Actiq\",SUMIFS('IMS Data'!G:G,'IMS Data'!C:C,'Fentora Tracker'!G:G),IF($F$7=\"Copaxone 20\",SUMIFS('IMS Data'!J:J,'IMS Data'!C:C,'TRx Tracker vs AOP'!G:G),IF($F$7=\"Copaxone 40\",SUMIFS('IMS Data'!K:K,'IMS Data'!C:C,'TRx Tracker vs AOP'!G:G),IF($F$7=\"Azilect\",SUMIFS('IMS Data'!L:L,'IMS Data'!C:C,'Fentora Tracker'!G:G))))))))))","v":0},197.64421836923074,-197.64421836923074,{"$f":"SUMIFS('IMS Data'!O:O,'IMS Data'!C:C,'Fentora Tracker'!G:G)","v":0},24616.583333333332,-24616.583333333332,{"$f":"'Fentora 2017'!N111","v":308937},295399]
[null,null,null,null,9,38,"2017-09-22",{"$f":"IF($F$7=\"Nuvigil\",SUMIFS('IMS Data'!D:D,'IMS Data'!C:C,'Fentora Tracker'!G:G),IF('Fentora Tracker'!$F$7=\"Fentora\",SUMIFS('IMS Data'!F:F,'IMS Data'!C:C,'Fentora Tracker'!G:G),IF('Fentora Tracker'!$F$7=\"Amrix\",SUMIFS('IMS Data'!E:E,'IMS Data'!C:C,'Fentora Tracker'!G:G),IF('Fentora Tracker'!$F$7=\"Provigil\",SUMIFS('IMS Data'!I:I,'IMS Data'!C:C,'Fentora Tracker'!G:G),IF('Fentora Tracker'!$F$7=\"Gabitril\",SUMIFS('IMS Data'!H:H,'IMS Data'!C:C,'Fentora Tracker'!G:G),IF('Fentora Tracker'!$F$7=\"Actiq\",SUMIFS('IMS Data'!G:G,'IMS Data'!C:C,'Fentora Tracker'!G:G),IF($F$7=\"Copaxone 20\",SUMIFS('IMS Data'!J:J,'IMS Data'!C:C,'TRx Tracker vs AOP'!G:G),IF($F$7=\"Copaxone 40\",SUMIFS('IMS Data'!K:K,'IMS Data'!C:C,'TRx Tracker vs AOP'!G:G),IF($F$7=\"Azilect\",SUMIFS('IMS Data'!L:L,'IMS Data'!C:C,'Fentora Tracker'!G:G))))))))))","v":0},197.64421836923074,-197.64421836923074,{"$f":"SUMIFS('IMS Data'!O:O,'IMS Data'!C:C,'Fentora Tracker'!G:G)","v":0},24616.583333333332,-24616.583333333332,{"$f":"'Fentora 2017'!N112","v":304371},295399]
[null,null,null,null,9,39,"2017-09-29",{"$f":"IF($F$7=\"Nuvigil\",SUMIFS('IMS Data'!D:D,'IMS Data'!C:C,'Fentora Tracker'!G:G),IF('Fentora Tracker'!$F$7=\"Fentora\",SUMIFS('IMS Data'!F:F,'IMS Data'!C:C,'Fentora Tracker'!G:G),IF('Fentora Tracker'!$F$7=\"Amrix\",SUMIFS('IMS Data'!E:E,'IMS Data'!C:C,'Fentora Tracker'!G:G),IF('Fentora Tracker'!$F$7=\"Provigil\",SUMIFS('IMS Data'!I:I,'IMS Data'!C:C,'Fentora Tracker'!G:G),IF('Fentora Tracker'!$F$7=\"Gabitril\",SUMIFS('IMS Data'!H:H,'IMS Data'!C:C,'Fentora Tracker'!G:G),IF('Fentora Tracker'!$F$7=\"Actiq\",SUMIFS('IMS Data'!G:G,'IMS Data'!C:C,'Fentora Tracker'!G:G),IF($F$7=\"Copaxone 20\",SUMIFS('IMS Data'!J:J,'IMS Data'!C:C,'TRx Tracker vs AOP'!G:G),IF($F$7=\"Copaxone 40\",SUMIFS('IMS Data'!K:K,'IMS Data'!C:C,'TRx Tracker vs AOP'!G:G),IF($F$7=\"Azilect\",SUMIFS('IMS Data'!L:L,'IMS Data'!C:C,'Fentora Tracker'!G:G))))))))))","v":0},197.64421836923074,-197.64421836923074,{"$f":"SUMIFS('IMS Data'!O:O,'IMS Data'!C:C,'Fentora Tracker'!G:G)","v":0},24616.583333333332,-24616.583333333332,{"$f":"'Fentora 2017'!N113","v":304397},295399]
[null,null,null,null,10,40,"2017-10-06",{"$f":"IF($F$7=\"Nuvigil\",SUMIFS('IMS Data'!D:D,'IMS Data'!C:C,'Fentora Tracker'!G:G),IF('Fentora Tracker'!$F$7=\"Fentora\",SUMIFS('IMS Data'!F:F,'IMS Data'!C:C,'Fentora Tracker'!G:G),IF('Fentora Tracker'!$F$7=\"Amrix\",SUMIFS('IMS Data'!E:E,'IMS Data'!C:C,'Fentora Tracker'!G:G),IF('Fentora Tracker'!$F$7=\"Provigil\",SUMIFS('IMS Data'!I:I,'IMS Data'!C:C,'Fentora Tracker'!G:G),IF('Fentora Tracker'!$F$7=\"Gabitril\",SUMIFS('IMS Data'!H:H,'IMS Data'!C:C,'Fentora Tracker'!G:G),IF('Fentora Tracker'!$F$7=\"Actiq\",SUMIFS('IMS Data'!G:G,'IMS Data'!C:C,'Fentora Tracker'!G:G),IF($F$7=\"Copaxone 20\",SUMIFS('IMS Data'!J:J,'IMS Data'!C:C,'TRx Tracker vs AOP'!G:G),IF($F$7=\"Copaxone 40\",SUMIFS('IMS Data'!K:K,'IMS Data'!C:C,'TRx Tracker vs AOP'!G:G),IF($F$7=\"Azilect\",SUMIFS('IMS Data'!L:L,'IMS Data'!C:C,'Fentora Tracker'!G:G))))))))))","v":0},166.28979121650002,-166.28979121650002,{"$f":"SUMIFS('IMS Data'!O:O,'IMS Data'!C:C,'Fentora Tracker'!G:G)","v":0},24616.583333333332,-24616.583333333332,{"$f":"'Fentora 2017'!N114","v":300359},295399]
[null,null,null,null,10,41,"2017-10-13",{"$f":"IF($F$7=\"Nuvigil\",SUMIFS('IMS Data'!D:D,'IMS Data'!C:C,'Fentora Tracker'!G:G),IF('Fentora Tracker'!$F$7=\"Fentora\",SUMIFS('IMS Data'!F:F,'IMS Data'!C:C,'Fentora Tracker'!G:G),IF('Fentora Tracker'!$F$7=\"Amrix\",SUMIFS('IMS Data'!E:E,'IMS Data'!C:C,'Fentora Tracker'!G:G),IF('Fentora Tracker'!$F$7=\"Provigil\",SUMIFS('IMS Data'!I:I,'IMS Data'!C:C,'Fentora Tracker'!G:G),IF('Fentora Tracker'!$F$7=\"Gabitril\",SUMIFS('IMS Data'!H:H,'IMS Data'!C:C,'Fentora Tracker'!G:G),IF('Fentora Tracker'!$F$7=\"Actiq\",SUMIFS('IMS Data'!G:G,'IMS Data'!C:C,'Fentora Tracker'!G:G),IF($F$7=\"Copaxone 20\",SUMIFS('IMS Data'!J:J,'IMS Data'!C:C,'TRx Tracker vs AOP'!G:G),IF($F$7=\"Copaxone 40\",SUMIFS('IMS Data'!K:K,'IMS Data'!C:C,'TRx Tracker vs AOP'!G:G),IF($F$7=\"Azilect\",SUMIFS('IMS Data'!L:L,'IMS Data'!C:C,'Fentora Tracker'!G:G))))))))))","v":0},166.28979121650002,-166.28979121650002,{"$f":"SUMIFS('IMS Data'!O:O,'IMS Data'!C:C,'Fentora Tracker'!G:G)","v":0},24616.583333333332,-24616.583333333332,{"$f":"'Fentora 2017'!N115","v":295590},295399]
[null,null,null,null,10,42,"2017-10-20",{"$f":"IF($F$7=\"Nuvigil\",SUMIFS('IMS Data'!D:D,'IMS Data'!C:C,'Fentora Tracker'!G:G),IF('Fentora Tracker'!$F$7=\"Fentora\",SUMIFS('IMS Data'!F:F,'IMS Data'!C:C,'Fentora Tracker'!G:G),IF('Fentora Tracker'!$F$7=\"Amrix\",SUMIFS('IMS Data'!E:E,'IMS Data'!C:C,'Fentora Tracker'!G:G),IF('Fentora Tracker'!$F$7=\"Provigil\",SUMIFS('IMS Data'!I:I,'IMS Data'!C:C,'Fentora Tracker'!G:G),IF('Fentora Tracker'!$F$7=\"Gabitril\",SUMIFS('IMS Data'!H:H,'IMS Data'!C:C,'Fentora Tracker'!G:G),IF('Fentora Tracker'!$F$7=\"Actiq\",SUMIFS('IMS Data'!G:G,'IMS Data'!C:C,'Fentora Tracker'!G:G),IF($F$7=\"Copaxone 20\",SUMIFS('IMS Data'!J:J,'IMS Data'!C:C,'TRx Tracker vs AOP'!G:G),IF($F$7=\"Copaxone 40\",SUMIFS('IMS Data'!K:K,'IMS Data'!C:C,'TRx Tracker vs AOP'!G:G),IF($F$7=\"Azilect\",SUMIFS('IMS Data'!L:L,'IMS Data'!C:C,'Fentora Tracker'!G:G))))))))))","v":0},166.28979121650002,-166.28979121650002,{"$f":"SUMIFS('IMS Data'!O:O,'IMS Data'!C:C,'Fentora Tracker'!G:G)","v":0},24616.583333333332,-24616.583333333332,{"$f":"'Fentora 2017'!N116","v":297715},295399]
[null,null,null,null,10,43,"2017-10-27",{"$f":"IF($F$7=\"Nuvigil\",SUMIFS('IMS Data'!D:D,'IMS Data'!C:C,'Fentora Tracker'!G:G),IF('Fentora Tracker'!$F$7=\"Fentora\",SUMIFS('IMS Data'!F:F,'IMS Data'!C:C,'Fentora Tracker'!G:G),IF('Fentora Tracker'!$F$7=\"Amrix\",SUMIFS('IMS Data'!E:E,'IMS Data'!C:C,'Fentora Tracker'!G:G),IF('Fentora Tracker'!$F$7=\"Provigil\",SUMIFS('IMS Data'!I:I,'IMS Data'!C:C,'Fentora Tracker'!G:G),IF('Fentora Tracker'!$F$7=\"Gabitril\",SUMIFS('IMS Data'!H:H,'IMS Data'!C:C,'Fentora Tracker'!G:G),IF('Fentora Tracker'!$F$7=\"Actiq\",SUMIFS('IMS Data'!G:G,'IMS Data'!C:C,'Fentora Tracker'!G:G),IF($F$7=\"Copaxone 20\",SUMIFS('IMS Data'!J:J,'IMS Data'!C:C,'TRx Tracker vs AOP'!G:G),IF($F$7=\"Copaxone 40\",SUMIFS('IMS Data'!K:K,'IMS Data'!C:C,'TRx Tracker vs AOP'!G:G),IF($F$7=\"Azilect\",SUMIFS('IMS Data'!L:L,'IMS Data'!C:C,'Fentora Tracker'!G:G))))))))))","v":0},166.28979121650002,-166.28979121650002,{"$f":"SUMIFS('IMS Data'!O:O,'IMS Data'!C:C,'Fentora Tracker'!G:G)","v":0},24616.583333333332,-24616.583333333332,{"$f":"'Fentora 2017'!N117","v":291483},295399]
[null,null,null,null,11,44,"2017-11-03",{"$f":"IF($F$7=\"Nuvigil\",SUMIFS('IMS Data'!D:D,'IMS Data'!C:C,'Fentora Tracker'!G:G),IF('Fentora Tracker'!$F$7=\"Fentora\",SUMIFS('IMS Data'!F:F,'IMS Data'!C:C,'Fentora Tracker'!G:G),IF('Fentora Tracker'!$F$7=\"Amrix\",SUMIFS('IMS Data'!E:E,'IMS Data'!C:C,'Fentora Tracker'!G:G),IF('Fentora Tracker'!$F$7=\"Provigil\",SUMIFS('IMS Data'!I:I,'IMS Data'!C:C,'Fentora Tracker'!G:G),IF('Fentora Tracker'!$F$7=\"Gabitril\",SUMIFS('IMS Data'!H:H,'IMS Data'!C:C,'Fentora Tracker'!G:G),IF('Fentora Tracker'!$F$7=\"Actiq\",SUMIFS('IMS Data'!G:G,'IMS Data'!C:C,'Fentora Tracker'!G:G),IF($F$7=\"Copaxone 20\",SUMIFS('IMS Data'!J:J,'IMS Data'!C:C,'TRx Tracker vs AOP'!G:G),IF($F$7=\"Copaxone 40\",SUMIFS('IMS Data'!K:K,'IMS Data'!C:C,'TRx Tracker vs AOP'!G:G),IF($F$7=\"Azilect\",SUMIFS('IMS Data'!L:L,'IMS Data'!C:C,'Fentora Tracker'!G:G))))))))))","v":0},125.82321153715385,-125.82321153715385,{"$f":"SUMIFS('IMS Data'!O:O,'IMS Data'!C:C,'Fentora Tracker'!G:G)","v":0},24616.583333333332,-24616.583333333332,{"$f":"'Fentora 2017'!N118","v":292656},295399]
[null,null,null,null,11,45,"2017-11-10",{"$f":"IF($F$7=\"Nuvigil\",SUMIFS('IMS Data'!D:D,'IMS Data'!C:C,'Fentora Tracker'!G:G),IF('Fentora Tracker'!$F$7=\"Fentora\",SUMIFS('IMS Data'!F:F,'IMS Data'!C:C,'Fentora Tracker'!G:G),IF('Fentora Tracker'!$F$7=\"Amrix\",SUMIFS('IMS Data'!E:E,'IMS Data'!C:C,'Fentora Tracker'!G:G),IF('Fentora Tracker'!$F$7=\"Provigil\",SUMIFS('IMS Data'!I:I,'IMS Data'!C:C,'Fentora Tracker'!G:G),IF('Fentora Tracker'!$F$7=\"Gabitril\",SUMIFS('IMS Data'!H:H,'IMS Data'!C:C,'Fentora Tracker'!G:G),IF('Fentora Tracker'!$F$7=\"Actiq\",SUMIFS('IMS Data'!G:G,'IMS Data'!C:C,'Fentora Tracker'!G:G),IF($F$7=\"Copaxone 20\",SUMIFS('IMS Data'!J:J,'IMS Data'!C:C,'TRx Tracker vs AOP'!G:G),IF($F$7=\"Copaxone 40\",SUMIFS('IMS Data'!K:K,'IMS Data'!C:C,'TRx Tracker vs AOP'!G:G),IF($F$7=\"Azilect\",SUMIFS('IMS Data'!L:L,'IMS Data'!C:C,'Fentora Tracker'!G:G))))))))))","v":0},125.82321153715385,-125.82321153715385,{"$f":"SUMIFS('IMS Data'!O:O,'IMS Data'!C:C,'Fentora Tracker'!G:G)","v":0},24616.583333333332,-24616.583333333332,{"$f":"'Fentora 2017'!N119","v":290938},295399]
[null,null,null,null,11,46,"2017-11-17",{"$f":"IF($F$7=\"Nuvigil\",SUMIFS('IMS Data'!D:D,'IMS Data'!C:C,'Fentora Tracker'!G:G),IF('Fentora Tracker'!$F$7=\"Fentora\",SUMIFS('IMS Data'!F:F,'IMS Data'!C:C,'Fentora Tracker'!G:G),IF('Fentora Tracker'!$F$7=\"Amrix\",SUMIFS('IMS Data'!E:E,'IMS Data'!C:C,'Fentora Tracker'!G:G),IF('Fentora Tracker'!$F$7=\"Provigil\",SUMIFS('IMS Data'!I:I,'IMS Data'!C:C,'Fentora Tracker'!G:G),IF('Fentora Tracker'!$F$7=\"Gabitril\",SUMIFS('IMS Data'!H:H,'IMS Data'!C:C,'Fentora Tracker'!G:G),IF('Fentora Tracker'!$F$7=\"Actiq\",SUMIFS('IMS Data'!G:G,'IMS Data'!C:C,'Fentora Tracker'!G:G),IF($F$7=\"Copaxone 20\",SUMIFS('IMS Data'!J:J,'IMS Data'!C:C,'TRx Tracker vs AOP'!G:G),IF($F$7=\"Copaxone 40\",SUMIFS('IMS Data'!K:K,'IMS Data'!C:C,'TRx Tracker vs AOP'!G:G),IF($F$7=\"Azilect\",SUMIFS('IMS Data'!L:L,'IMS Data'!C:C,'Fentora Tracker'!G:G))))))))))","v":0},125.82321153715385,-125.82321153715385,{"$f":"SUMIFS('IMS Data'!O:O,'IMS Data'!C:C,'Fentora Tracker'!G:G)","v":0},24616.583333333332,-24616.583333333332,{"$f":"'Fentora 2017'!N120","v":288466},295399]
[null,null,null,null,11,47,"2017-11-24",{"$f":"IF($F$7=\"Nuvigil\",SUMIFS('IMS Data'!D:D,'IMS Data'!C:C,'Fentora Tracker'!G:G),IF('Fentora Tracker'!$F$7=\"Fentora\",SUMIFS('IMS Data'!F:F,'IMS Data'!C:C,'Fentora Tracker'!G:G),IF('Fentora Tracker'!$F$7=\"Amrix\",SUMIFS('IMS Data'!E:E,'IMS Data'!C:C,'Fentora Tracker'!G:G),IF('Fentora Tracker'!$F$7=\"Provigil\",SUMIFS('IMS Data'!I:I,'IMS Data'!C:C,'Fentora Tracker'!G:G),IF('Fentora Tracker'!$F$7=\"Gabitril\",SUMIFS('IMS Data'!H:H,'IMS Data'!C:C,'Fentora Tracker'!G:G),IF('Fentora Tracker'!$F$7=\"Actiq\",SUMIFS('IMS Data'!G:G,'IMS Data'!C:C,'Fentora Tracker'!G:G),IF($F$7=\"Copaxone 20\",SUMIFS('IMS Data'!J:J,'IMS Data'!C:C,'TRx Tracker vs AOP'!G:G),IF($F$7=\"Copaxone 40\",SUMIFS('IMS Data'!K:K,'IMS Data'!C:C,'TRx Tracker vs AOP'!G:G),IF($F$7=\"Azilect\",SUMIFS('IMS Data'!L:L,'IMS Data'!C:C,'Fentora Tracker'!G:G))))))))))","v":0},125.82321153715385,-125.82321153715385,{"$f":"SUMIFS('IMS Data'!O:O,'IMS Data'!C:C,'Fentora Tracker'!G:G)","v":0},24616.583333333332,-24616.583333333332,{"$f":"'Fentora 2017'!N121","v":287606},295399]
[null,null,null,null,12,48,"2017-12-01",{"$f":"IF($F$7=\"Nuvigil\",SUMIFS('IMS Data'!D:D,'IMS Data'!C:C,'Fentora Tracker'!G:G),IF('Fentora Tracker'!$F$7=\"Fentora\",SUMIFS('IMS Data'!F:F,'IMS Data'!C:C,'Fentora Tracker'!G:G),IF('Fentora Tracker'!$F$7=\"Amrix\",SUMIFS('IMS Data'!E:E,'IMS Data'!C:C,'Fentora Tracker'!G:G),IF('Fentora Tracker'!$F$7=\"Provigil\",SUMIFS('IMS Data'!I:I,'IMS Data'!C:C,'Fentora Tracker'!G:G),IF('Fentora Tracker'!$F$7=\"Gabitril\",SUMIFS('IMS Data'!H:H,'IMS Data'!C:C,'Fentora Tracker'!G:G),IF('Fentora Tracker'!$F$7=\"Actiq\",SUMIFS('IMS Data'!G:G,'IMS Data'!C:C,'Fentora Tracker'!G:G),IF($F$7=\"Copaxone 20\",SUMIFS('IMS Data'!J:J,'IMS Data'!C:C,'TRx Tracker vs AOP'!G:G),IF($F$7=\"Copaxone 40\",SUMIFS('IMS Data'!K:K,'IMS Data'!C:C,'TRx Tracker vs AOP'!G:G),IF($F$7=\"Azilect\",SUMIFS('IMS Data'!L:L,'IMS Data'!C:C,'Fentora Tracker'!G:G))))))))))","v":0},111.95262285819231,-111.95262285819231,{"$f":"SUMIFS('IMS Data'!O:O,'IMS Data'!C:C,'Fentora Tracker'!G:G)","v":0},24616.583333333332,-24616.583333333332,{"$f":"'Fentora 2017'!N122","v":290486},295399]
[null,null,null,null,12,49,"2017-12-08",{"$f":"IF($F$7=\"Nuvigil\",SUMIFS('IMS Data'!D:D,'IMS Data'!C:C,'Fentora Tracker'!G:G),IF('Fentora Tracker'!$F$7=\"Fentora\",SUMIFS('IMS Data'!F:F,'IMS Data'!C:C,'Fentora Tracker'!G:G),IF('Fentora Tracker'!$F$7=\"Amrix\",SUMIFS('IMS Data'!E:E,'IMS Data'!C:C,'Fentora Tracker'!G:G),IF('Fentora Tracker'!$F$7=\"Provigil\",SUMIFS('IMS Data'!I:I,'IMS Data'!C:C,'Fentora Tracker'!G:G),IF('Fentora Tracker'!$F$7=\"Gabitril\",SUMIFS('IMS Data'!H:H,'IMS Data'!C:C,'Fentora Tracker'!G:G),IF('Fentora Tracker'!$F$7=\"Actiq\",SUMIFS('IMS Data'!G:G,'IMS Data'!C:C,'Fentora Tracker'!G:G),IF($F$7=\"Copaxone 20\",SUMIFS('IMS Data'!J:J,'IMS Data'!C:C,'TRx Tracker vs AOP'!G:G),IF($F$7=\"Copaxone 40\",SUMIFS('IMS Data'!K:K,'IMS Data'!C:C,'TRx Tracker vs AOP'!G:G),IF($F$7=\"Azilect\",SUMIFS('IMS Data'!L:L,'IMS Data'!C:C,'Fentora Tracker'!G:G))))))))))","v":0},111.95262285819231,-111.95262285819231,{"$f":"SUMIFS('IMS Data'!O:O,'IMS Data'!C:C,'Fentora Tracker'!G:G)","v":0},24616.583333333332,-24616.583333333332,{"$f":"'Fentora 2017'!N123","v":286608},295399]
[null,null,null,null,12,50,"2017-12-15",{"$f":"IF($F$7=\"Nuvigil\",SUMIFS('IMS Data'!D:D,'IMS Data'!C:C,'Fentora Tracker'!G:G),IF('Fentora Tracker'!$F$7=\"Fentora\",SUMIFS('IMS Data'!F:F,'IMS Data'!C:C,'Fentora Tracker'!G:G),IF('Fentora Tracker'!$F$7=\"Amrix\",SUMIFS('IMS Data'!E:E,'IMS Data'!C:C,'Fentora Tracker'!G:G),IF('Fentora Tracker'!$F$7=\"Provigil\",SUMIFS('IMS Data'!I:I,'IMS Data'!C:C,'Fentora Tracker'!G:G),IF('Fentora Tracker'!$F$7=\"Gabitril\",SUMIFS('IMS Data'!H:H,'IMS Data'!C:C,'Fentora Tracker'!G:G),IF('Fentora Tracker'!$F$7=\"Actiq\",SUMIFS('IMS Data'!G:G,'IMS Data'!C:C,'Fentora Tracker'!G:G),IF($F$7=\"Copaxone 20\",SUMIFS('IMS Data'!J:J,'IMS Data'!C:C,'TRx Tracker vs AOP'!G:G),IF($F$7=\"Copaxone 40\",SUMIFS('IMS Data'!K:K,'IMS Data'!C:C,'TRx Tracker vs AOP'!G:G),IF($F$7=\"Azilect\",SUMIFS('IMS Data'!L:L,'IMS Data'!C:C,'Fentora Tracker'!G:G))))))))))","v":0},111.95262285819231,-111.95262285819231,{"$f":"SUMIFS('IMS Data'!O:O,'IMS Data'!C:C,'Fentora Tracker'!G:G)","v":0},24616.583333333332,-24616.583333333332,{"$f":"'Fentora 2017'!N124","v":286019},295399]
[null,null,null,null,12,51,"2017-12-22",{"$f":"IF($F$7=\"Nuvigil\",SUMIFS('IMS Data'!D:D,'IMS Data'!C:C,'Fentora Tracker'!G:G),IF('Fentora Tracker'!$F$7=\"Fentora\",SUMIFS('IMS Data'!F:F,'IMS Data'!C:C,'Fentora Tracker'!G:G),IF('Fentora Tracker'!$F$7=\"Amrix\",SUMIFS('IMS Data'!E:E,'IMS Data'!C:C,'Fentora Tracker'!G:G),IF('Fentora Tracker'!$F$7=\"Provigil\",SUMIFS('IMS Data'!I:I,'IMS Data'!C:C,'Fentora Tracker'!G:G),IF('Fentora Tracker'!$F$7=\"Gabitril\",SUMIFS('IMS Data'!H:H,'IMS Data'!C:C,'Fentora Tracker'!G:G),IF('Fentora Tracker'!$F$7=\"Actiq\",SUMIFS('IMS Data'!G:G,'IMS Data'!C:C,'Fentora Tracker'!G:G),IF($F$7=\"Copaxone 20\",SUMIFS('IMS Data'!J:J,'IMS Data'!C:C,'TRx Tracker vs AOP'!G:G),IF($F$7=\"Copaxone 40\",SUMIFS('IMS Data'!K:K,'IMS Data'!C:C,'TRx Tracker vs AOP'!G:G),IF($F$7=\"Azilect\",SUMIFS('IMS Data'!L:L,'IMS Data'!C:C,'Fentora Tracker'!G:G))))))))))","v":0},111.95262285819231,-111.95262285819231,{"$f":"SUMIFS('IMS Data'!O:O,'IMS Data'!C:C,'Fentora Tracker'!G:G)","v":0},24616.583333333332,-24616.583333333332,{"$f":"'Fentora 2017'!N125","v":287375},295399]
[null,null,null,null,12,52,"2017-12-29",{"$f":"IF($F$7=\"Nuvigil\",SUMIFS('IMS Data'!D:D,'IMS Data'!C:C,'Fentora Tracker'!G:G),IF('Fentora Tracker'!$F$7=\"Fentora\",SUMIFS('IMS Data'!F:F,'IMS Data'!C:C,'Fentora Tracker'!G:G),IF('Fentora Tracker'!$F$7=\"Amrix\",SUMIFS('IMS Data'!E:E,'IMS Data'!C:C,'Fentora Tracker'!G:G),IF('Fentora Tracker'!$F$7=\"Provigil\",SUMIFS('IMS Data'!I:I,'IMS Data'!C:C,'Fentora Tracker'!G:G),IF('Fentora Tracker'!$F$7=\"Gabitril\",SUMIFS('IMS Data'!H:H,'IMS Data'!C:C,'Fentora Tracker'!G:G),IF('Fentora Tracker'!$F$7=\"Actiq\",SUMIFS('IMS Data'!G:G,'IMS Data'!C:C,'Fentora Tracker'!G:G),IF($F$7=\"Copaxone 20\",SUMIFS('IMS Data'!J:J,'IMS Data'!C:C,'TRx Tracker vs AOP'!G:G),IF($F$7=\"Copaxone 40\",SUMIFS('IMS Data'!K:K,'IMS Data'!C:C,'TRx Tracker vs AOP'!G:G),IF($F$7=\"Azilect\",SUMIFS('IMS Data'!L:L,'IMS Data'!C:C,'Fentora Tracker'!G:G))))))))))","v":0},111.95262285819231,-111.95262285819231,{"$f":"SUMIFS('IMS Data'!O:O,'IMS Data'!C:C,'Fentora Tracker'!G:G)","v":0},24616.583333333332,-24616.583333333332,{"$f":"'Fentora 2017'!N126","v":282883},295399]
[]
[null,null,null,null,null,null,null,null,null,null,null,null,null,null,{"$f":"+N62-O62","v":191}]

{"sheet":"Data Inputs","index":4,"n_rows":109,"n_cols":15,"rows_kept":109,"cut":false,"hidden":true,"merged":[]}
[]
[]
["Forecast","Input","Product","Jan","Feb","Mar","Apr","May","Jun","Jul","Aug","Sep","Oct","Nov","Dec"]
["AOP","Unit Forecast","Nuvigil",6367,4792,4225,3663,3729,3781,3634,3787,3799,3897,3712,4063]
["AOP","Unit Forecast","Amrix",5627.3606529400013,5145.6196084000003,5252.1188758299995,6269.1345107700017,5361.9955889799976,5907.1087499800005,6286.8785048400005,5405.2377651675997,5726.8716586187993,5700.087559955602,5384.0680283057982,6277.3971491582006]
["AOP","Unit Forecast","Fentora",4010.4086728172779,3375.1044628354775,3788.2480656056987,4254.6483097704831,3335.6842042279413,3439.5807358866214,2997.6023720309213,2768.1553336554616,3090.0692462999996,2004.1194715504002,1409.2809674861503,1070.9593203873749]
["AOP","Unit Forecast","Actiq",334.40000000000003,236.72,324.72000000000003,264.88,251.68,332.64,196.24,299.3941315774311,308.88112320825883,278.02184401716909,248.94448961212569,287.75594844037994]
["AOP","Unit Forecast","Gabitril",4938.12,3528.72,4071.6,4343.04,3925.44,4196.88,3633.1200000000003,3390.0254085838428,3542.4944733154689,3465.9639954799054,3305.6406473977786,3394.2177104157963]
["AOP","Unit Forecast","Provigil",4666.6156638662897,4849.1583154008067,4762.1800560066522,4567.2,4609.4399999999996,4794.24,4155.3600000000006,4443.3268567284813,4671.7663853301256,4575.4989888245691,4745.7279901299698,4364.8538699576138]
["AOP","Unit Forecast","Copaxone 20",9590.6725961984939,9436.719467259989,10740.712883513679,10097.072622863385,9482.7440460588987,9801.8994544019552,9250.7440838771308,9016.1105133442179,8923.1082063450649,8540.2836621388869,7720.0225740341775,8522.4960841611028]
["AOP","Unit Forecast","Copaxone 40",46170.781620382077,51880.782847923452,60537.657134086126,58599.079912616413,56792.932638864215,60218.288689915506,58501.17163427268,58749.665117030883,59761.687966694408,58998.923308942176,55058.744093036468,65056.592381504328]
["AOP","Unit Forecast","Azilect",542.92363260999991,12148.702327132942,10814.89254327802,5023.95304911528,7491.7553681865356,8541.2399743785318,8575.5783962136356,8487.559276858361,7974.98964375581,8461.3041349727173,7735.5156619398686,8283.3500497826371]
["AOP","Bottle Size","Nuvigil",30,30,30,30,30,30,30,30,30,30,30,30]
["AOP","Bottle Size","Amrix",60,60,60,60,60,60,60,60,60,60,60,60]
["AOP","Bottle Size","Fentora",28,28,28,28,28,28,28,28,28,28,28,28]
["AOP","Bottle Size","Actiq",30,30,30,30,30,30,30,30,30,30,30,30]
["AOP","Bottle Size","Gabitril",30,30,30,30,30,30,30,30,30,30,30,30]
["AOP","Bottle Size","Provigil",30,30,30,30,30,30,30,30,30,30,30,30]
["AOP","Bottle Size","Copaxone 20",30,30,30,30,30,30,30,30,30,30,30,30]
["AOP","Bottle Size","Copaxone 40",12,12,12,12,12,12,12,12,12,12,12,12]
["AOP","Bottle Size","Azilect",30,30,30,30,30,30,30,30,30,30,30,30]
["AOP","Avg Units per TRx","Nuvigil",34,34,34,34,34,34,34,34,34,34,34,34]
["AOP","Avg Units per TRx","Amrix",34,34,34,34,34,34,34,34,34,34,34,34]
["AOP","Avg Units per TRx","Fentora",97,97,97,97,97,97,97,97,97,97,97,97]
["AOP","Avg Units per TRx","Actiq",118,118,118,118,118,118,118,118,118,118,118,118]
["AOP","Avg Units per TRx","Gabitril",80,80,80,80,80,80,80,80,80,80,80,80]
["AOP","Avg Units per TRx","Provigil",52,52,52,52,52,52,52,52,52,52,52,52]
["AOP","Avg Units per TRx","Copaxone 20",30,30,30,30,30,30,30,30,30,30,30,30]
["AOP","Avg Units per TRx","Copaxone 40",12,12,12,12,12,12,12,12,12,12,12,12]
["AOP","Avg Units per TRx","Azilect",41.7,41.7,41.7,41.7,41.7,41.7,41.7,41.7,41.7,41.7,41.7,41.7]
["AOP","NPA Capture Rate","Nuvigil",1,1,1,1,1,1,1,1,1,1,1,1]
["AOP","NPA Capture Rate","Amrix",1,1,1,1,1,1,1,1,1,1,1,1]
["AOP","NPA Capture Rate","Fentora",1,1,1,1,1,1,1,1,1,1,1,1]
["AOP","NPA Capture Rate","Actiq",1,1,1,1,1,1,1,1,1,1,1,1]
["AOP","NPA Capture Rate","Gabitril",1,1,1,1,1,1,1,1,1,1,1,1]
["AOP","NPA Capture Rate","Provigil",1,1,1,1,1,1,1,1,1,1,1,1]
["AOP","NPA Capture Rate","Copaxone 20",1.1319043821551644,1.0356430752160461,1.0316958225163353,1.0196444691892061,1.0014551191852332,0.98446212321063276,1.0629697172138968,1.0659999037366967,0.59939716107142316,0.42519091371169632,0.26122337367324561,0.16287620170875819]
["AOP","NPA Capture Rate","Copaxone 40",0.75456589416902498,0.75942751938649666,0.76359353372492511,0.76711388609233455,0.76980410938452903,0.77181269778946693,0.77328068959868812,0.77442316495049213,0.77531194269763326,0.77575190112968873,0.77621703737866266,0.70075778795088972]
["AOP","NPA Capture Rate","Azilect",0.88500000000000001,0.88500000000000001,0.88500000000000001,0.88500000000000001,0.88500000000000001,0.88500000000000001,0.88500000000000001,0.88500000000000001,0.88500000000000001,0.88500000000000001,0.88500000000000001,0.88500000000000001]
["AOP","TRx Forecast","Nuvigil",5456.863867241972,4108.0198963771309,3620.9552237180924,3139.114664888707,3195.1780502400006,3240.9634348800009,3114.036492480001,3245.7578160000007,3256.6072521600008,3340.270157760001,3181.979176320001,3482.8600185600012]
["AOP","TRx Forecast","Amrix",9131.7246719999985,9240.7410479999999,10408.391937999997,9616.4200300000011,9790.6324739999982,10015.612347999999,10090.427507999999,10063.718495879999,9969.8040943199976,10179.484268100001,9420.7302911399984,10087.894480439998]
["AOP","TRx Forecast","Fentora",1007.5090755,984.98721907986101,1003.2603946666665,882.45666640624995,889.59932708333326,845.98425415625002,729.82799999999997,838.71438000000001,856.45827959999986,720.58909527150001,545.23391666099997,485.12803238549998]
["AOP","TRx Forecast","Actiq",87.234782608695653,61.753043478260871,84.709565217391301,69.099130434782595,65.655652173913055,86.775652173913031,51.193043478260876,78.102816933242892,80.577684315197956,72.527437569696289,64.942040768380622,75.066769158360003]
["AOP","TRx Forecast","Gabitril",1850.6055836692581,1322.420057674861,1525.8692973171474,1627.5939171382906,1471.0945020288395,1572.8191218499826,1361.5449114522239,1270.4429924558167,1327.5821673906457,1298.901671654744,1238.8190322791652,1272.0140958673662]
["AOP","TRx Forecast","Provigil",2516.7716012361275,2594.7511755214055,2480.0077146266099,2339.92,2295.92,2341.6799999999998,2112,2277.44,2158.64,2106.7200000000003,2008.16,2112]
["AOP","TRx Forecast","Copaxone 20",7405.5058416297879,7352.2600100107775,8144.1985118979974,7710.1262691770007,7338.7861997547152,7588.4259782605013,7120.9686365588323,7009.225225336806,6884.6068789109459,6715.0612527668682,5921.7217096617333,6725.9093036640706]
["AOP","TRx Forecast","Copaxone 40",40404.917655630961,41192.230233910421,46750.395903220393,45516.10409968935,44563.059582477486,47318.1821404328,45713.809178745229,46285.732220420781,46781.696036720517,46976.212083339364,42782.354306163121,49851.901305349747]
["AOP","TRx Forecast","Zecuity",0,0,0,0,0,0,0,0,0,0,0,0]
["AOP","TRx Forecast","Azilect",10188.736455595494,10410.244332444296,10061.2601129002,7259.4821285995658,5743.5078153233771,5703.7817304316013,5705.7737741714982,5667.3885391573995,5427.1944629201525,5562.8808041147577,5286.1170964768035,5436.9065602399596]
["LBE","Unit Forecast","Nuvigil"]
["LBE","Unit Forecast","Amrix"]
["LBE","Unit Forecast","Fentora"]
["LBE","Unit Forecast","Actiq"]
["LBE","Unit Forecast","Gabitril"]
["LBE","Unit Forecast","Provigil"]
["LBE","Unit Forecast","Copaxone 20"]
["LBE","Unit Forecast","Copaxone 40"]
["LBE","Unit Forecast","Azilect"]
["LBE","Bottle Size","Nuvigil",30,30,30,30,30,30,30,30,30,30,30,30]
["LBE","Bottle Size","Amrix",60,60,60,60,60,60,60,60,60,60,60,60]
["LBE","Bottle Size","Fentora",28,28,28,28,28,28,28,28,28,28,28,28]
["LBE","Bottle Size","Actiq",30,30,30,30,30,30,30,30,30,30,30,30]
["LBE","Bottle Size","Gabitril",30,30,30,30,30,30,30,30,30,30,30,30]
["LBE","Bottle Size","Provigil",30,30,30,30,30,30,30,30,30,30,30,30]
["LBE","Bottle Size","Copaxone 20",30,30,30,30,30,30,30,30,30,30,30,30]
["LBE","Bottle Size","Copaxone 40",12,12,12,12,12,12,12,12,12,12,12,12]
["LBE","Bottle Size","Azilect",30,30,30,30,30,30,30,30,30,30,30,30]
["LBE","Avg Units per TRx","Nuvigil",34,34,34,34,34,34,34,34,34,34,34,34]
["LBE","Avg Units per TRx","Amrix",33,33,33,33,33,33,33,33,33,33,33,33]
["LBE","Avg Units per TRx","Fentora",94,94,94,94,94,94,94,94,94,94,94,94]
["LBE","Avg Units per TRx","Actiq",118,118,118,118,118,118,118,118,118,118,118,118]
["LBE","Avg Units per TRx","Gabitril",80,80,80,80,80,80,80,80,80,80,80,80]
["LBE","Avg Units per TRx","Provigil",52,52,52,52,52,52,52,52,52,52,52,52]
["LBE","Avg Units per TRx","Copaxone 20",30,30,30,30,30,30,30,30,30,30,30,30]
["LBE","Avg Units per TRx","Copaxone 40",12,12,12,12,12,12,12,12,12,12,12,12]
["LBE","Avg Units per TRx","Azilect",42.26365446850884,41.662158777861258,41.928065978970452,42.098386562332728,41.7,41.7,41.7,41.7,41.7,41.7,41.7,41.7]
["LBE","NPA Capture Rate","Nuvigil",1,1,1,1,1,1,1,1,1,1,1,1]
["LBE","NPA Capture Rate","Amrix",1,1,1,1,1,1,1,1,1,1,1,1]
["LBE","NPA Capture Rate","Fentora",1,1,1,1,1,1,1,1,1,1,1,1]
["LBE","NPA Capture Rate","Actiq",1,1,1,1,1,1,1,1,1,1,1,1]
["LBE","NPA Capture Rate","Gabitril",1,1,1,1,1,1,1,1,1,1,1,1]
["LBE","NPA Capture Rate","Provigil",1,1,1,1,1,1,1,1,1,1,1,1]
["LBE","NPA Capture Rate","Copaxone 20"]
["LBE","NPA Capture Rate","Copaxone 40"]
["LBE","NPA Capture Rate","Azilect",0.9,0.9,0.9,0.9,0.9,0.9,0.9,0.9,0.9,0.9,0.9,0.9]
["LBE","TRx Forecast","Nuvigil"]
["LBE","TRx Forecast","Amrix"]
["LBE","TRx Forecast","Fentora"]
["LBE","TRx Forecast","Actiq"]
["LBE","TRx Forecast","Gabitril"]
["LBE","TRx Forecast","Provigil"]
["LBE","TRx Forecast","Copaxone 20"]
["LBE","TRx Forecast","Copaxone 40"]
["LBE","TRx Forecast","Azilect"]
["LBE","TRx Forecast","Zecuity"]
[]
[]
[]
[]
[]
[]
[]
[]
[null,null,"Trx Goals","20mg",52409,51873,42206,17802]
[null,null,null,"40mg",96196,114159,114719,128099]
[]
[]
[null,null,"Actual",18798,{"$f":"(E104-D108)/2","v":16805.5},{"$f":"F104/3","v":17291},{"$f":"G104/3","v":14068.666666666666},5934]
[null,null,null,31743,{"$f":"(E105-D109)/2","v":32226.5},{"$f":"F105/3","v":38053},{"$f":"G105/3","v":38239.666666666664},42699.666666666664]

{"sheet":"IMS Data","index":5,"n_rows":58,"n_cols":32,"rows_kept":58,"cut":false,"hidden":true,"merged":[]}
[null,null,"QTD",{"$f":"SUM(D4:D16)","v":6125},{"$f":"SUM(E4:E16)","v":5515},417,36,645,920,2909,16303,13505,0,null,null,null,null,null,null,null,null,null,null,null,null,null,"Weeks In",40,null,"Weeks Left",{"$f":"52-AB1","v":12}]
[]
[null,null,null,"Nuvigil","Amrix","Fentora","Actiq","Gabitril","Provigil","Copaxone 20","Copaxone 40","Azilect","Zecuity",null,"Fentora EUTRx",null,null,null,null,null,null,null,null,null,null,null,"Nuvigil","Amrix","Fentora","Actiq","Gabitril","Provigil"]
[null,null,"2017-01-06",3043,2653,204,18,311,467,1415,7873,8291,0,null,20084,null,null,null,null,null,null,null,null,null,null,null,{"$f":"AVERAGE(D4:D55)","v":3062.5},2757.5,208.5,18,322.5,460]
[null,null,{"$f":"C4+7","v":"2017-01-13"},3082,2862,213,18,334,453,1494,8430,5214,0,null,20862,null,null,null,null,null,null,null,null,null,null,"Units Per Trx",34,33,97,117,117,51]
[null,null,{"$f":"C5+7","v":"2017-01-20"},null,null,null,null,null,null,null,null,null,null,null,null,null,null,null,null,null,null,null,null,null,null,"Units per bottle",30,60,28,30,30,30]
[null,null,"2017-01-27",null,null,null,null,null,null,null,null,null,null,null,null,null,null,null,null,null,null,null,null,null,null,"ASP",533,1591,2242,2847,240,1104]
[null,null,"2017-02-03",null,null,null,null,null,null,null,null,null,null,null,null,null,null,null,null,null,null,null,null,null,null,"Capture",0.96,0.95,0.95,0.95,0.95,0.95]
[null,null,"2017-02-10",null,null,null,null,null,null,null,null,null,null,null,null,null,null,null,null,null,null,null,null,null,null,"Trx demand",{"$f":"AA$4*AA$5/AA$6*AA$7/AA8*51","v":98278815.104166672},{"$f":"AB$4*AB$5/AB$6*AB$7/AB8*51","v":129537335.92105263},86936457.857142866,10729294.105263157,16205115.789473685,46347082.105263159]
[null,null,"2017-02-17"]
[null,null,"2017-02-24",null,null,null,null,null,null,null,null,null,null,null,null,null,null,null,null,null,null,null,null,null,"4 week average"]
[null,null,"2017-03-03",null,null,null,null,null,null,null,null,null,null,null,null,null,null,null,null,null,null,null,null,null,null,null,null,{"$f":"SUM(E30:E33)/4*33/60/0.9","v":0},{"$f":"SUM(F30:F33)/4*95/28/0.9","v":0}]
[null,null,"2017-03-10",null,null,null,null,null,null,null,null,null,null,null,null,null,null,null,null,null,null,null,null,null,null,null,null,{"$f":"AB4*AB5/AB6","v":1516.625}]
[null,null,"2017-03-17",null,null,null,null,null,null,null,null,null,null,null,null,null,null,null,null,null,null,null,null,null,null,null,null,{"$f":"AB13*1628*21","v":51850375.5}]
[null,null,"2017-03-24"]
[null,null,"2017-03-31",null,null,null,null,null,null,null,null,null,null,null,null,null,null,null,null,null,null,null,null,null,null,null,null,1527]
[null,null,"2017-04-07",null,null,null,null,null,null,null,null,null,null,null,null,null,null,null,null,null,null,null,null,null,null,null,null,1656]
[null,null,"2017-04-14",null,null,null,null,null,null,null,null,null,null,null,null,null,null,null,null,null,null,null,null,null,null,null,null,{"$f":"AVERAGE(AB16:AB17)","v":1591.5}]
[null,null,"2017-04-21"]
[null,null,"2017-04-28"]
[null,null,"2017-05-05"]
[null,null,"2017-05-12"]
[null,null,"2017-05-19"]
[null,null,"2017-05-26"]
[null,null,"2017-06-02"]
[null,null,"2017-06-09"]
[null,null,"2017-06-16"]
[null,null,"2017-06-23"]
[null,null,"2017-06-30"]
[null,null,"2017-07-07"]
[null,null,"2017-07-14"]
[null,null,"2017-07-21"]
[null,null,"2017-07-28"]
[null,null,"2017-08-04"]
[null,null,"2017-08-11"]
[null,null,"2017-08-18"]
[null,null,"2017-08-25"]
[null,null,"2017-09-01"]
[null,null,"2017-09-08"]
[null,null,"2017-09-15"]
[null,null,"2017-09-22"]
[null,null,"2017-09-29"]
[null,null,"2017-10-06"]
[null,null,"2017-10-13"]
[null,null,"2017-10-20"]
[null,null,"2017-10-27"]
[null,null,"2017-11-03"]
[null,null,"2017-11-10"]
[null,null,"2017-11-17"]
[null,null,"2017-11-24"]
[null,null,"2017-12-01"]
[null,null,"2017-12-08"]
[null,null,"2017-12-15"]
[null,null,"2017-12-22"]
[null,null,"2017-12-29"]
[null,null,"2018-01-05"]
[]
[null,null,null,{"$f":"SUM(D43:D55)","v":0},{"$f":"SUM(E43:E55)","v":0},0,0,0,0,0,0,0]

{"sheet":"Split Month Calcs","index":6,"n_rows":62,"n_cols":13,"rows_kept":62,"cut":false,"hidden":true,"merged":[]}
[]
[]
["Month","Week",null,"Nuvigil","Amrix","Fentora","Actiq","Gabitril","Provigil","Copaxone 20","Copaxone 40","Azilect","Zecuity"]
[{"$f":"MONTH(C4)","v":1},1,"2017-01-06",{"$f":"'IMS Data'!D4","v":3043},{"$f":"'IMS Data'!E4","v":2653},{"$f":"'IMS Data'!F4","v":204},{"$f":"'IMS Data'!G4","v":18},{"$f":"'IMS Data'!H4","v":311},{"$f":"'IMS Data'!I4","v":467},{"$f":"'IMS Data'!J4","v":1415},{"$f":"'IMS Data'!K4","v":7873},{"$f":"'IMS Data'!L4","v":8291},{"$f":"'IMS Data'!M4","v":0}]
[{"$f":"MONTH(C5)","v":1},2,{"$f":"C4+7","v":"2017-01-13"},{"$f":"'IMS Data'!D5","v":3082},{"$f":"'IMS Data'!E5","v":2862},{"$f":"'IMS Data'!F5","v":213},{"$f":"'IMS Data'!G5","v":18},{"$f":"'IMS Data'!H5","v":334},{"$f":"'IMS Data'!I5","v":453},{"$f":"'IMS Data'!J5","v":1494},{"$f":"'IMS Data'!K5","v":8430},{"$f":"'IMS Data'!L5","v":5214},{"$f":"'IMS Data'!M5","v":0}]
[{"$f":"MONTH(C6)","v":1},3,{"$f":"C5+7","v":"2017-01-20"},{"$f":"'IMS Data'!D6","v":0},{"$f":"'IMS Data'!E6","v":0},{"$f":"'IMS Data'!F6","v":0},{"$f":"'IMS Data'!G6","v":0},{"$f":"'IMS Data'!H6","v":0},{"$f":"'IMS Data'!I6","v":0},{"$f":"'IMS Data'!J6","v":0},{"$f":"'IMS Data'!K6","v":0},{"$f":"'IMS Data'!L6","v":0},{"$f":"'IMS Data'!M6","v":0}]
[{"$f":"MONTH(C7)","v":1},4,"2017-01-27",{"$f":"'IMS Data'!D7","v":0},{"$f":"'IMS Data'!E7","v":0},{"$f":"'IMS Data'!F7","v":0},{"$f":"'IMS Data'!G7","v":0},{"$f":"'IMS Data'!H7","v":0},{"$f":"'IMS Data'!I7","v":0},{"$f":"'IMS Data'!J7","v":0},{"$f":"'IMS Data'!K7","v":0},{"$f":"'IMS Data'!L7","v":0},{"$f":"'IMS Data'!M7","v":0}]
[1,5,{"$f":"C7+7","v":"2017-02-03"},{"$f":"'IMS Data'!D8*0.5","v":0},{"$f":"'IMS Data'!E8*0.5","v":0},{"$f":"'IMS Data'!F8*0.5","v":0},{"$f":"'IMS Data'!G8*0.5","v":0},{"$f":"'IMS Data'!H8*0.5","v":0},{"$f":"'IMS Data'!I8*0.5","v":0},{"$f":"'IMS Data'!J8*0.5","v":0},{"$f":"'IMS Data'!K8*0.5","v":0},{"$f":"'IMS Data'!L8*0.5","v":0},{"$f":"'IMS Data'!M8*0.5","v":0}]
[{"$f":"MONTH(C9)","v":2},5,{"$f":"C7+7","v":"2017-02-03"},{"$f":"'IMS Data'!D8*0.5","v":0},{"$f":"'IMS Data'!E8*0.5","v":0},{"$f":"'IMS Data'!F8*0.5","v":0},{"$f":"'IMS Data'!G8*0.5","v":0},{"$f":"'IMS Data'!H8*0.5","v":0},{"$f":"'IMS Data'!I8*0.5","v":0},{"$f":"'IMS Data'!J8*0.5","v":0},{"$f":"'IMS Data'!K8*0.5","v":0},{"$f":"'IMS Data'!L8*0.5","v":0},{"$f":"'IMS Data'!M8*0.5","v":0}]
[{"$f":"MONTH(C10)","v":2},6,{"$f":"C8+7","v":"2017-02-10"},{"$f":"'IMS Data'!D9","v":0},{"$f":"'IMS Data'!E9","v":0},{"$f":"'IMS Data'!F9","v":0},{"$f":"'IMS Data'!G9","v":0},{"$f":"'IMS Data'!H9","v":0},{"$f":"'IMS Data'!I9","v":0},{"$f":"'IMS Data'!J9","v":0},{"$f":"'IMS Data'!K9","v":0},{"$f":"'IMS Data'!L9","v":0},{"$f":"'IMS Data'!M9","v":0}]
[{"$f":"MONTH(C11)","v":2},7,"2017-02-17",{"$f":"'IMS Data'!D10","v":0},{"$f":"'IMS Data'!E10","v":0},{"$f":"'IMS Data'!F10","v":0},{"$f":"'IMS Data'!G10","v":0},{"$f":"'IMS Data'!H10","v":0},{"$f":"'IMS Data'!I10","v":0},{"$f":"'IMS Data'!J10","v":0},{"$f":"'IMS Data'!K10","v":0},{"$f":"'IMS Data'!L10","v":0},{"$f":"'IMS Data'!M10","v":0}]
[{"$f":"MONTH(C12)","v":2},8,"2017-02-24",{"$f":"'IMS Data'!D11","v":0},{"$f":"'IMS Data'!E11","v":0},{"$f":"'IMS Data'!F11","v":0},{"$f":"'IMS Data'!G11","v":0},{"$f":"'IMS Data'!H11","v":0},{"$f":"'IMS Data'!I11","v":0},{"$f":"'IMS Data'!J11","v":0},{"$f":"'IMS Data'!K11","v":0},{"$f":"'IMS Data'!L11","v":0},{"$f":"'IMS Data'!M11","v":0}]
[2,9,"2017-03-03",{"$f":"'IMS Data'!D12*0.5","v":0},{"$f":"'IMS Data'!E12*0.5","v":0},{"$f":"'IMS Data'!F12*0.5","v":0},{"$f":"'IMS Data'!G12*0.5","v":0},{"$f":"'IMS Data'!H12*0.5","v":0},{"$f":"'IMS Data'!I12*0.5","v":0},{"$f":"'IMS Data'!J12*0.5","v":0},{"$f":"'IMS Data'!K12*0.5","v":0},{"$f":"'IMS Data'!L12*0.5","v":0},{"$f":"'IMS Data'!M12*0.5","v":0}]
[{"$f":"MONTH(C14)","v":3},9,{"$f":"C12+7","v":"2017-03-03"},{"$f":"'IMS Data'!D12*0.5","v":0},{"$f":"'IMS Data'!E12*0.5","v":0},{"$f":"'IMS Data'!F12*0.5","v":0},{"$f":"'IMS Data'!G12*0.5","v":0},{"$f":"'IMS Data'!H12*0.5","v":0},{"$f":"'IMS Data'!I12*0.5","v":0},{"$f":"'IMS Data'!J12*0.5","v":0},{"$f":"'IMS Data'!K12*0.5","v":0},{"$f":"'IMS Data'!L12*0.5","v":0},{"$f":"'IMS Data'!M12*0.5","v":0}]
[{"$f":"MONTH(C15)","v":3},10,"2017-03-10",{"$f":"'IMS Data'!D13","v":0},{"$f":"'IMS Data'!E13","v":0},{"$f":"'IMS Data'!F13","v":0},{"$f":"'IMS Data'!G13","v":0},{"$f":"'IMS Data'!H13","v":0},{"$f":"'IMS Data'!I13","v":0},{"$f":"'IMS Data'!J13","v":0},{"$f":"'IMS Data'!K13","v":0},{"$f":"'IMS Data'!L13","v":0},{"$f":"'IMS Data'!M13","v":0}]
[3,11,"2017-03-17",{"$f":"'IMS Data'!D14","v":0},{"$f":"'IMS Data'!E14","v":0},{"$f":"'IMS Data'!F14","v":0},{"$f":"'IMS Data'!G14","v":0},{"$f":"'IMS Data'!H14","v":0},{"$f":"'IMS Data'!I14","v":0},{"$f":"'IMS Data'!J14","v":0},{"$f":"'IMS Data'!J14","v":0},{"$f":"'IMS Data'!K14","v":0},{"$f":"'IMS Data'!M14","v":0}]
[3,12,"2017-03-24",{"$f":"'IMS Data'!D15","v":0},{"$f":"'IMS Data'!E15","v":0},{"$f":"'IMS Data'!F15","v":0},{"$f":"'IMS Data'!G15","v":0},{"$f":"'IMS Data'!H15","v":0},{"$f":"'IMS Data'!I15","v":0},{"$f":"'IMS Data'!J15","v":0},{"$f":"'IMS Data'!K15","v":0},{"$f":"'IMS Data'!L15","v":0},{"$f":"'IMS Data'!M15","v":0}]
[3,13,{"$f":"C17+7","v":"2017-03-31"},{"$f":"'IMS Data'!D16","v":0},{"$f":"'IMS Data'!E16","v":0},{"$f":"'IMS Data'!F16","v":0},{"$f":"'IMS Data'!G16","v":0},{"$f":"'IMS Data'!H16","v":0},{"$f":"'IMS Data'!I16","v":0},{"$f":"'IMS Data'!J16","v":0},{"$f":"'IMS Data'!K16","v":0},{"$f":"'IMS Data'!L16","v":0},{"$f":"'IMS Data'!M16","v":0}]
[4,14,"2017-04-07",{"$f":"'IMS Data'!D17","v":0},{"$f":"'IMS Data'!E17","v":0},{"$f":"'IMS Data'!F17","v":0},{"$f":"'IMS Data'!G17","v":0},{"$f":"'IMS Data'!H17","v":0},{"$f":"'IMS Data'!I17","v":0},{"$f":"'IMS Data'!J17","v":0},{"$f":"'IMS Data'!K17","v":0},{"$f":"'IMS Data'!L17","v":0},{"$f":"'IMS Data'!M17","v":0}]
[4,15,"2017-04-14",{"$f":"'IMS Data'!D18","v":0},{"$f":"'IMS Data'!E18","v":0},{"$f":"'IMS Data'!F18","v":0},{"$f":"'IMS Data'!G18","v":0},{"$f":"'IMS Data'!H18","v":0},{"$f":"'IMS Data'!I18","v":0},{"$f":"'IMS Data'!J18","v":0},{"$f":"'IMS Data'!K18","v":0},{"$f":"'IMS Data'!L18","v":0},{"$f":"'IMS Data'!M18","v":0}]
[4,16,"2017-04-21",{"$f":"'IMS Data'!D19","v":0},{"$f":"'IMS Data'!E19","v":0},{"$f":"'IMS Data'!F19","v":0},{"$f":"'IMS Data'!G19","v":0},{"$f":"'IMS Data'!H19","v":0},{"$f":"'IMS Data'!I19","v":0},{"$f":"'IMS Data'!J19","v":0},{"$f":"'IMS Data'!K19","v":0},{"$f":"'IMS Data'!L19","v":0},{"$f":"'IMS Data'!M19","v":0}]
[4,17,"2017-04-28",{"$f":"'IMS Data'!D20","v":0},{"$f":"'IMS Data'!E20","v":0},{"$f":"'IMS Data'!F20","v":0},{"$f":"'IMS Data'!G20","v":0},{"$f":"'IMS Data'!H20","v":0},{"$f":"'IMS Data'!I20","v":0},{"$f":"'IMS Data'!J20","v":0},{"$f":"'IMS Data'!K20","v":0},{"$f":"'IMS Data'!L20","v":0},{"$f":"'IMS Data'!M20","v":0}]
[5,18,{"$f":"C22+7","v":"2017-05-05"},{"$f":"'IMS Data'!D21","v":0},{"$f":"'IMS Data'!E21","v":0},{"$f":"'IMS Data'!F21","v":0},{"$f":"'IMS Data'!G21","v":0},{"$f":"'IMS Data'!H21","v":0},{"$f":"'IMS Data'!I21","v":0},{"$f":"'IMS Data'!J21","v":0},{"$f":"'IMS Data'!K21","v":0},{"$f":"'IMS Data'!L21","v":0},{"$f":"'IMS Data'!M21","v":0}]
[5,19,"2017-05-12",{"$f":"'IMS Data'!D22","v":0},{"$f":"'IMS Data'!E22","v":0},{"$f":"'IMS Data'!F22","v":0},{"$f":"'IMS Data'!G22","v":0},{"$f":"'IMS Data'!H22","v":0},{"$f":"'IMS Data'!I22","v":0},{"$f":"'IMS Data'!J22","v":0},{"$f":"'IMS Data'!K22","v":0},{"$f":"'IMS Data'!L22","v":0},{"$f":"'IMS Data'!M22","v":0}]
[5,20,"2017-05-19",{"$f":"'IMS Data'!D23","v":0},{"$f":"'IMS Data'!E23","v":0},{"$f":"'IMS Data'!F23","v":0},{"$f":"'IMS Data'!G23","v":0},{"$f":"'IMS Data'!H23","v":0},{"$f":"'IMS Data'!I23","v":0},{"$f":"'IMS Data'!J23","v":0},{"$f":"'IMS Data'!K23","v":0},{"$f":"'IMS Data'!L23","v":0},{"$f":"'IMS Data'!M23","v":0}]
[5,21,"2017-05-26",{"$f":"'IMS Data'!D24","v":0},{"$f":"'IMS Data'!E24","v":0},{"$f":"'IMS Data'!F24","v":0},{"$f":"'IMS Data'!G24","v":0},{"$f":"'IMS Data'!H24","v":0},{"$f":"'IMS Data'!I24","v":0},{"$f":"'IMS Data'!J24","v":0},{"$f":"'IMS Data'!K24","v":0},{"$f":"'IMS Data'!L24","v":0},{"$f":"'IMS Data'!M24","v":0}]
[5,22,"2017-06-02",{"$f":"'IMS Data'!D25*0.5","v":0},{"$f":"'IMS Data'!E25*0.5","v":0},{"$f":"'IMS Data'!F25*0.5","v":0},{"$f":"'IMS Data'!G25*0.5","v":0},{"$f":"'IMS Data'!H25*0.5","v":0},{"$f":"'IMS Data'!I25*0.5","v":0},{"$f":"'IMS Data'!J25*0.5","v":0},{"$f":"'IMS Data'!K25*0.5","v":0},{"$f":"'IMS Data'!L25*0.5","v":0},{"$f":"'IMS Data'!M25*0.5","v":0}]
[6,22,{"$f":"C26+7","v":"2017-06-02"},{"$f":"'IMS Data'!D25*0.5","v":0},{"$f":"'IMS Data'!E25*0.5","v":0},{"$f":"'IMS Data'!F25*0.5","v":0},{"$f":"'IMS Data'!G25*0.5","v":0},{"$f":"'IMS Data'!H25*0.5","v":0},{"$f":"'IMS Data'!I25*0.5","v":0},{"$f":"'IMS Data'!J25*0.5","v":0},{"$f":"'IMS Data'!K25*0.5","v":0},{"$f":"'IMS Data'!L25*0.5","v":0},{"$f":"'IMS Data'!M25*0.5","v":0}]
[6,23,{"$f":"C27+7","v":"2017-06-09"},{"$f":"'IMS Data'!D26","v":0},{"$f":"'IMS Data'!E26","v":0},{"$f":"'IMS Data'!F26","v":0},{"$f":"'IMS Data'!G26","v":0},{"$f":"'IMS Data'!H26","v":0},{"$f":"'IMS Data'!I26","v":0},{"$f":"'IMS Data'!J26","v":0},{"$f":"'IMS Data'!K26","v":0},{"$f":"'IMS Data'!L26","v":0},{"$f":"'IMS Data'!M26","v":0}]
[6,24,"2017-06-16",{"$f":"'IMS Data'!D27","v":0},{"$f":"'IMS Data'!E27","v":0},{"$f":"'IMS Data'!F27","v":0},{"$f":"'IMS Data'!G27","v":0},{"$f":"'IMS Data'!H27","v":0},{"$f":"'IMS Data'!I27","v":0},{"$f":"'IMS Data'!J27","v":0},{"$f":"'IMS Data'!K27","v":0},{"$f":"'IMS Data'!L27","v":0},{"$f":"'IMS Data'!M27","v":0}]
[6,25,"2017-06-23",{"$f":"'IMS Data'!D28","v":0},{"$f":"'IMS Data'!E28","v":0},{"$f":"'IMS Data'!F28","v":0},{"$f":"'IMS Data'!G28","v":0},{"$f":"'IMS Data'!H28","v":0},{"$f":"'IMS Data'!I28","v":0},{"$f":"'IMS Data'!J28","v":0},{"$f":"'IMS Data'!K28","v":0},{"$f":"'IMS Data'!L28","v":0},{"$f":"'IMS Data'!M28","v":0}]
[6,26,"2017-06-30",{"$f":"'IMS Data'!D29","v":0},{"$f":"'IMS Data'!E29","v":0},{"$f":"'IMS Data'!F29","v":0},{"$f":"'IMS Data'!G29","v":0},{"$f":"'IMS Data'!H29","v":0},{"$f":"'IMS Data'!I29","v":0},{"$f":"'IMS Data'!J29","v":0},{"$f":"'IMS Data'!K29","v":0},{"$f":"'IMS Data'!L29","v":0},{"$f":"'IMS Data'!M29","v":0}]
[7,27,"2017-07-07",{"$f":"'IMS Data'!D30","v":0},{"$f":"'IMS Data'!E30","v":0},{"$f":"'IMS Data'!F30","v":0},{"$f":"'IMS Data'!G30","v":0},{"$f":"'IMS Data'!H30","v":0},{"$f":"'IMS Data'!I30","v":0},{"$f":"'IMS Data'!J30","v":0},{"$f":"'IMS Data'!K30","v":0},{"$f":"'IMS Data'!L30","v":0},{"$f":"'IMS Data'!M30","v":0}]
[7,28,"2017-07-14",{"$f":"'IMS Data'!D31","v":0},{"$f":"'IMS Data'!E31","v":0},{"$f":"'IMS Data'!F31","v":0},{"$f":"'IMS Data'!G31","v":0},{"$f":"'IMS Data'!H31","v":0},{"$f":"'IMS Data'!I31","v":0},{"$f":"'IMS Data'!J31","v":0},{"$f":"'IMS Data'!K31","v":0},{"$f":"'IMS Data'!L31","v":0},{"$f":"'IMS Data'!M31","v":0}]
[7,29,"2017-07-21",{"$f":"'IMS Data'!D32","v":0},{"$f":"'IMS Data'!E32","v":0},{"$f":"'IMS Data'!F32","v":0},{"$f":"'IMS Data'!G32","v":0},{"$f":"'IMS Data'!H32","v":0},{"$f":"'IMS Data'!I32","v":0},{"$f":"'IMS Data'!J32","v":0},{"$f":"'IMS Data'!K32","v":0},{"$f":"'IMS Data'!L32","v":0},{"$f":"'IMS Data'!M32","v":0}]
[7,30,"2017-07-28",{"$f":"'IMS Data'!D33","v":0},{"$f":"'IMS Data'!E33","v":0},{"$f":"'IMS Data'!F33","v":0},{"$f":"'IMS Data'!G33","v":0},{"$f":"'IMS Data'!H33","v":0},{"$f":"'IMS Data'!I33","v":0},{"$f":"'IMS Data'!J33","v":0},{"$f":"'IMS Data'!K33","v":0},{"$f":"'IMS Data'!L33","v":0},{"$f":"'IMS Data'!M33","v":0}]
[7,31,"2017-08-04",{"$f":"'IMS Data'!D34*0.5","v":0},{"$f":"'IMS Data'!E34*0.5","v":0},{"$f":"'IMS Data'!F34*0.5","v":0},{"$f":"'IMS Data'!G34*0.5","v":0},{"$f":"'IMS Data'!H34*0.5","v":0},{"$f":"'IMS Data'!I34*0.5","v":0},{"$f":"'IMS Data'!J34*0.5","v":0},{"$f":"'IMS Data'!K34*0.5","v":0},{"$f":"'IMS Data'!L34*0.5","v":0},{"$f":"'IMS Data'!M34*0.5","v":0}]
[8,31,{"$f":"C36+7","v":"2017-08-04"},{"$f":"'IMS Data'!D34*0.5","v":0},{"$f":"'IMS Data'!E34*0.5","v":0},{"$f":"'IMS Data'!F34*0.5","v":0},{"$f":"'IMS Data'!G34*0.5","v":0},{"$f":"'IMS Data'!H34*0.5","v":0},{"$f":"'IMS Data'!I34*0.5","v":0},{"$f":"'IMS Data'!J34*0.5","v":0},{"$f":"'IMS Data'!K34*0.5","v":0},{"$f":"'IMS Data'!L34*0.5","v":0},{"$f":"'IMS Data'!M34*0.5","v":0}]
[8,32,{"$f":"C37+7","v":"2017-08-11"},{"$f":"'IMS Data'!D35","v":0},{"$f":"'IMS Data'!E35","v":0},{"$f":"'IMS Data'!F35","v":0},{"$f":"'IMS Data'!G35","v":0},{"$f":"'IMS Data'!H35","v":0},{"$f":"'IMS Data'!I35","v":0},{"$f":"'IMS Data'!J35","v":0},{"$f":"'IMS Data'!K35","v":0},{"$f":"'IMS Data'!L35","v":0},{"$f":"'IMS Data'!M35","v":0}]
[8,33,"2017-08-18",{"$f":"'IMS Data'!D36","v":0},{"$f":"'IMS Data'!E36","v":0},{"$f":"'IMS Data'!F36","v":0},{"$f":"'IMS Data'!G36","v":0},{"$f":"'IMS Data'!H36","v":0},{"$f":"'IMS Data'!I36","v":0},{"$f":"'IMS Data'!J36","v":0},{"$f":"'IMS Data'!K36","v":0},{"$f":"'IMS Data'!L36","v":0},{"$f":"'IMS Data'!M36","v":0}]
[8,34,"2017-08-25",{"$f":"'IMS Data'!D37","v":0},{"$f":"'IMS Data'!E37","v":0},{"$f":"'IMS Data'!F37","v":0},{"$f":"'IMS Data'!G37","v":0},{"$f":"'IMS Data'!H37","v":0},{"$f":"'IMS Data'!I37","v":0},{"$f":"'IMS Data'!J37","v":0},{"$f":"'IMS Data'!K37","v":0},{"$f":"'IMS Data'!L37","v":0},{"$f":"'IMS Data'!M37","v":0}]
[8,35,{"$f":"+C41+7","v":"2017-09-01"},{"$f":"'IMS Data'!D38*0.75","v":0},{"$f":"'IMS Data'!E38*0.75","v":0},{"$f":"'IMS Data'!F38*0.75","v":0},{"$f":"'IMS Data'!G38*0.75","v":0},{"$f":"'IMS Data'!H38*0.75","v":0},{"$f":"'IMS Data'!I38*0.75","v":0},{"$f":"'IMS Data'!J38*0.75","v":0},{"$f":"'IMS Data'!K38*0.75","v":0},{"$f":"'IMS Data'!L38*0.75","v":0},{"$f":"'IMS Data'!M38*0.75","v":0}]
[9,35,{"$f":"C41+7","v":"2017-09-01"},{"$f":"'IMS Data'!D38*0.25","v":0},{"$f":"'IMS Data'!E38*0.25","v":0},{"$f":"'IMS Data'!F38*0.25","v":0},{"$f":"'IMS Data'!G38*0.25","v":0},{"$f":"'IMS Data'!H38*0.25","v":0},{"$f":"'IMS Data'!I38*0.25","v":0},{"$f":"'IMS Data'!J38*0.25","v":0},{"$f":"'IMS Data'!K38*0.25","v":0},{"$f":"'IMS Data'!L38*0.25","v":0},{"$f":"'IMS Data'!M38*0.25","v":0}]
[9,36,"2017-09-08",{"$f":"'IMS Data'!D39","v":0},{"$f":"'IMS Data'!E39","v":0},{"$f":"'IMS Data'!F39","v":0},{"$f":"'IMS Data'!G39","v":0},{"$f":"'IMS Data'!H39","v":0},{"$f":"'IMS Data'!I39","v":0},{"$f":"'IMS Data'!J39","v":0},{"$f":"'IMS Data'!K39","v":0},{"$f":"'IMS Data'!L39","v":0},{"$f":"'IMS Data'!M39","v":0}]
[9,37,"2017-09-15",{"$f":"'IMS Data'!D40","v":0},{"$f":"'IMS Data'!E40","v":0},{"$f":"'IMS Data'!F40","v":0},{"$f":"'IMS Data'!G40","v":0},{"$f":"'IMS Data'!H40","v":0},{"$f":"'IMS Data'!I40","v":0},{"$f":"'IMS Data'!J40","v":0},{"$f":"'IMS Data'!K40","v":0},{"$f":"'IMS Data'!L40","v":0},{"$f":"'IMS Data'!M40","v":0}]
[9,38,"2017-09-22",{"$f":"'IMS Data'!D41","v":0},{"$f":"'IMS Data'!E41","v":0},{"$f":"'IMS Data'!F41","v":0},{"$f":"'IMS Data'!G41","v":0},{"$f":"'IMS Data'!H41","v":0},{"$f":"'IMS Data'!I41","v":0},{"$f":"'IMS Data'!J41","v":0},{"$f":"'IMS Data'!K41","v":0},{"$f":"'IMS Data'!L41","v":0},{"$f":"'IMS Data'!M41","v":0}]
[9,39,"2017-09-29",{"$f":"'IMS Data'!D42","v":0},{"$f":"'IMS Data'!E42","v":0},{"$f":"'IMS Data'!F42","v":0},{"$f":"'IMS Data'!G42","v":0},{"$f":"'IMS Data'!H42","v":0},{"$f":"'IMS Data'!I42","v":0},{"$f":"'IMS Data'!J42","v":0},{"$f":"'IMS Data'!K42","v":0},{"$f":"'IMS Data'!L42","v":0},{"$f":"'IMS Data'!M42","v":0}]
[10,40,"2017-10-06",{"$f":"'IMS Data'!D43","v":0},{"$f":"'IMS Data'!E43","v":0},{"$f":"'IMS Data'!F43","v":0},{"$f":"'IMS Data'!G43","v":0},{"$f":"'IMS Data'!H43","v":0},{"$f":"'IMS Data'!I43","v":0},{"$f":"'IMS Data'!J43","v":0},{"$f":"'IMS Data'!K43","v":0},{"$f":"'IMS Data'!L43","v":0},{"$f":"'IMS Data'!M43","v":0}]
[10,41,"2017-10-13",{"$f":"'IMS Data'!D44","v":0},{"$f":"'IMS Data'!E44","v":0},{"$f":"'IMS Data'!F44","v":0},{"$f":"'IMS Data'!G44","v":0},{"$f":"'IMS Data'!H44","v":0},{"$f":"'IMS Data'!I44","v":0},{"$f":"'IMS Data'!J44","v":0},{"$f":"'IMS Data'!K44","v":0},{"$f":"'IMS Data'!L44","v":0},{"$f":"'IMS Data'!M44","v":0}]
[10,42,"2017-10-20",{"$f":"'IMS Data'!D45","v":0},{"$f":"'IMS Data'!E45","v":0},{"$f":"'IMS Data'!F45","v":0},{"$f":"'IMS Data'!G45","v":0},{"$f":"'IMS Data'!H45","v":0},{"$f":"'IMS Data'!I45","v":0},{"$f":"'IMS Data'!J45","v":0},{"$f":"'IMS Data'!K45","v":0},{"$f":"'IMS Data'!L45","v":0},{"$f":"'IMS Data'!M45","v":0}]
[10,43,"2017-10-27",{"$f":"'IMS Data'!D46","v":0},{"$f":"'IMS Data'!E46","v":0},{"$f":"'IMS Data'!F46","v":0},{"$f":"'IMS Data'!G46","v":0},{"$f":"'IMS Data'!H46","v":0},{"$f":"'IMS Data'!I46","v":0},{"$f":"'IMS Data'!J46","v":0},{"$f":"'IMS Data'!K46","v":0},{"$f":"'IMS Data'!L46","v":0},{"$f":"'IMS Data'!M46","v":0}]
[10,44,{"$f":"C51+7","v":"2017-11-03"},{"$f":"'IMS Data'!D47*0.05","v":0},{"$f":"'IMS Data'!E47*0.05","v":0},{"$f":"'IMS Data'!F47*0.05","v":0},{"$f":"'IMS Data'!G47*0.05","v":0},{"$f":"'IMS Data'!H47*0.05","v":0},{"$f":"'IMS Data'!I47*0.05","v":0},{"$f":"'IMS Data'!J47*0.05","v":0},{"$f":"'IMS Data'!K47*0.05","v":0},{"$f":"'IMS Data'!L47*0.05","v":0},{"$f":"'IMS Data'!M47*0.05","v":0}]
[11,44,{"$f":"C51+7","v":"2017-11-03"},{"$f":"'IMS Data'!D47*0.05","v":0},{"$f":"'IMS Data'!E47*0.05","v":0},{"$f":"'IMS Data'!F47*0.05","v":0},{"$f":"'IMS Data'!G47*0.05","v":0},{"$f":"'IMS Data'!H47*0.05","v":0},{"$f":"'IMS Data'!I47*0.05","v":0},{"$f":"'IMS Data'!J47*0.05","v":0},{"$f":"'IMS Data'!K47*0.05","v":0},{"$f":"'IMS Data'!L47*0.05","v":0},{"$f":"'IMS Data'!M47*0.05","v":0}]
[11,45,"2017-11-10",{"$f":"'IMS Data'!D48","v":0},{"$f":"'IMS Data'!E48","v":0},{"$f":"'IMS Data'!F48","v":0},{"$f":"'IMS Data'!G48","v":0},{"$f":"'IMS Data'!H48","v":0},{"$f":"'IMS Data'!I48","v":0},{"$f":"'IMS Data'!J48","v":0},{"$f":"'IMS Data'!K48","v":0},{"$f":"'IMS Data'!L48","v":0},{"$f":"'IMS Data'!M48","v":0}]
[11,46,"2017-11-17",{"$f":"'IMS Data'!D49","v":0},{"$f":"'IMS Data'!E49","v":0},{"$f":"'IMS Data'!F49","v":0},{"$f":"'IMS Data'!G49","v":0},{"$f":"'IMS Data'!H49","v":0},{"$f":"'IMS Data'!I49","v":0},{"$f":"'IMS Data'!J49","v":0},{"$f":"'IMS Data'!K49","v":0},{"$f":"'IMS Data'!L49","v":0},{"$f":"'IMS Data'!M49","v":0}]
[11,47,"2017-11-24",{"$f":"'IMS Data'!D50","v":0},{"$f":"'IMS Data'!E50","v":0},{"$f":"'IMS Data'!F50","v":0},{"$f":"'IMS Data'!G50","v":0},{"$f":"'IMS Data'!H50","v":0},{"$f":"'IMS Data'!I50","v":0},{"$f":"'IMS Data'!J50","v":0},{"$f":"'IMS Data'!K50","v":0},{"$f":"'IMS Data'!L50","v":0},{"$f":"'IMS Data'!M50","v":0}]
[11,48,{"$f":"C56+7","v":"2017-12-01"},{"$f":"'IMS Data'!D51*0.9","v":0},{"$f":"'IMS Data'!E51*0.9","v":0},{"$f":"'IMS Data'!F51*0.9","v":0},{"$f":"'IMS Data'!G51*0.9","v":0},{"$f":"'IMS Data'!H51*0.9","v":0},{"$f":"'IMS Data'!I51*0.9","v":0},{"$f":"'IMS Data'!J51*0.9","v":0},{"$f":"'IMS Data'!K51*0.9","v":0},{"$f":"'IMS Data'!L51*0.9","v":0},{"$f":"'IMS Data'!M51*0.9","v":0}]
[12,48,{"$f":"C56+7","v":"2017-12-01"},{"$f":"'IMS Data'!D51*0.1","v":0},{"$f":"'IMS Data'!E51*0.1","v":0},{"$f":"'IMS Data'!F51*0.1","v":0},{"$f":"'IMS Data'!G51*0.1","v":0},{"$f":"'IMS Data'!H51*0.1","v":0},{"$f":"'IMS Data'!I51*0.1","v":0},{"$f":"'IMS Data'!J51*0.1","v":0},{"$f":"'IMS Data'!K51*0.1","v":0},{"$f":"'IMS Data'!L51*0.1","v":0},{"$f":"'IMS Data'!M51*0.1","v":0}]
[12,49,"2017-12-08",{"$f":"'IMS Data'!D52","v":0},{"$f":"'IMS Data'!E52","v":0},{"$f":"'IMS Data'!F52","v":0},{"$f":"'IMS Data'!G52","v":0},{"$f":"'IMS Data'!H52","v":0},{"$f":"'IMS Data'!I52","v":0},{"$f":"'IMS Data'!J52","v":0},{"$f":"'IMS Data'!K52","v":0},{"$f":"'IMS Data'!L52","v":0},{"$f":"'IMS Data'!M52","v":0}]
[12,50,"2017-12-15",{"$f":"'IMS Data'!D53","v":0},{"$f":"'IMS Data'!E53","v":0},{"$f":"'IMS Data'!F53","v":0},{"$f":"'IMS Data'!G53","v":0},{"$f":"'IMS Data'!H53","v":0},{"$f":"'IMS Data'!I53","v":0},{"$f":"'IMS Data'!J53","v":0},{"$f":"'IMS Data'!K53","v":0},{"$f":"'IMS Data'!L53","v":0},{"$f":"'IMS Data'!M53","v":0}]
[12,51,"2017-12-22",{"$f":"'IMS Data'!D54","v":0},{"$f":"'IMS Data'!E54","v":0},{"$f":"'IMS Data'!F54","v":0},{"$f":"'IMS Data'!G54","v":0},{"$f":"'IMS Data'!H54","v":0},{"$f":"'IMS Data'!I54","v":0},{"$f":"'IMS Data'!J54","v":0},{"$f":"'IMS Data'!K54","v":0},{"$f":"'IMS Data'!L54","v":0},{"$f":"'IMS Data'!M54","v":0}]
[12,52,"2017-12-29",{"$f":"'IMS Data'!D55","v":0},{"$f":"'IMS Data'!E55","v":0},{"$f":"'IMS Data'!F55","v":0},{"$f":"'IMS Data'!G55","v":0},{"$f":"'IMS Data'!H55","v":0},{"$f":"'IMS Data'!I55","v":0},{"$f":"'IMS Data'!J55","v":0},{"$f":"'IMS Data'!K55","v":0},{"$f":"'IMS Data'!L55","v":0},{"$f":"'IMS Data'!M55","v":0}]

{"sheet":"Fentora 2017","index":7,"n_rows":178,"n_cols":15,"rows_kept":178,"cut":false,"hidden":true,"merged":[]}
[]
[]
[]
[null,null,"Fentora TRx Tracker"]
[]
[null,null,null,null,null,null,null,null,null,null,"Baseline","Current Volume"]
[null,null,null,"Select Product",null,"Fentora",null,null,"Rolling 12 Weeks",null,295399,342531]
[]
[null,null,null,1,2,3,4,5,6,7,8,9,10,11,12]
[null,null,null,"Jan","Feb","Mar","Apr","May","Jun","Jul","Aug","Sep","Oct","Nov","Dec"]
[null,null,"Unit Forecast",4353,4847,5018,7320,5527,6569,6020,6090,5243,6508,5667,7024]
[null,null,"Bottle Size",28,28,28,28,28,28,28,28,28,28,28,28]
[null,null,"Avg Units per TRx",94,94,94,94,94,94,94,94,94,94,94,94]
[null,null,"NPA Capture Rate",2,2,2,2,2,2,2,2,2,2,2,2]
[null,null,"TRx Forecast",1549,1426,1630,1654,1588,1628,1729,1623,1670,1903.850792654024,1735.1902693076484,1973.9800941176472]
[null,null,"Actual TRxs To Date",1549,1426,1630,1654,1588,1627.5,1728.5,1623,1670,1738,1571,1439]
[null,null,"% to Plan",1,1,1,1,1,0.99969287469287471,0.99971081550028917,1,1,0.91288666459895051,0.90537621596209084,0.72898404816144868]
[null,null,"Weeks",4.333333333333333,4.333333333333333,4.333333333333333,4.333333333333333,4.333333333333333,4.333333333333333,4.333333333333333,4.333333333333333,4.333333333333333,4.333333333333333,4.333333333333333,4.333333333333333]
[]
[]
[null,null,null,null,"Month","Week #","Week Ending","Actual TRxs","Goal","Variance","EUTRx","Baseline Target","Variance","Rolling 12 weeks"]
[null,null,null,null,1,1,"2015-01-02",380,357.46153846153851,22.53846153846149,34946,24616.583333333332,10329.416666666668]
[null,null,null,null,1,2,"2015-01-09",342,357.46153846153851,-15.46153846153851,29792,24616.583333333332,5175.4166666666679]
[null,null,null,null,1,3,"2015-01-16",416,357.46153846153851,58.53846153846149,37415,24616.583333333332,12798.416666666668]
[null,null,null,null,1,4,"2015-01-23",354,357.46153846153851,-3.4615384615385096,32820,24616.583333333332,8203.4166666666679]
[null,null,null,null,1,5,"2015-01-30",328,357.46153846153851,-29.46153846153851,29726,24616.583333333332,5109.4166666666679]
[null,null,null,null,2,6,"2015-02-06",377,329.07692307692309,47.923076923076906,32736,24616.583333333332,8119.4166666666679]
[null,null,null,null,2,7,"2015-02-13",400,329.07692307692309,70.923076923076906,38220,24616.583333333332,13603.416666666668]
[null,null,null,null,2,8,"2015-02-20",330,329.07692307692309,0.92307692307690559,32780,24616.583333333332,8163.4166666666679]
[null,null,null,null,2,9,"2015-02-27",305,329.07692307692309,-24.076923076923094,31154,24616.583333333332,6537.4166666666679]
[null,null,null,null,3,10,"2015-03-06",397,376.15384615384619,20.846153846153811,33456,24616.583333333332,8839.4166666666679]
[null,null,null,null,3,11,"2015-03-13",408,376.15384615384619,31.846153846153811,38282,24616.583333333332,13665.416666666668]
[null,null,null,null,3,12,"2015-03-20",390,376.15384615384619,13.846153846153811,38078,24616.583333333332,13461.416666666668,{"$f":"IF(K33=0,\"\",SUM(K22:K33))","v":409405}]
[null,null,null,null,3,13,"2015-03-27",311,376.15384615384619,-65.153846153846189,29886,24616.583333333332,5269.4166666666679,{"$f":"IF(K34=0,\"\",SUM(K23:K34))","v":404345}]
[null,null,null,null,4,14,"2015-04-03",368,381.69230769230774,-13.692307692307736,31645,24616.583333333332,7028.4166666666679,406198]
[null,null,null,null,4,15,"2015-04-10",395,381.69230769230774,13.307692307692264,35629,24616.583333333332,11012.416666666668,404412]
[null,null,null,null,4,16,"2015-04-17",386,381.69230769230774,4.307692307692264,35744,24616.583333333332,11127.416666666668,407336]
[null,null,null,null,4,17,"2015-04-24",358,381.69230769230774,-23.692307692307736,32882,24616.583333333332,8265.4166666666679,410492]
[null,null,null,null,5,18,"2015-05-01",371,366.46153846153851,4.5384615384614904,33397,24616.583333333332,8780.4166666666679,411153]
[null,null,null,null,5,19,"2015-05-08",430,366.46153846153851,63.53846153846149,38446,24616.583333333332,13829.416666666668,411379]
[null,null,null,null,5,20,"2015-05-15",351,366.46153846153851,-15.46153846153851,33526,24616.583333333332,8909.4166666666679,412125]
[null,null,null,null,5,21,"2015-05-22",370,366.46153846153851,3.5384615384614904,36728,24616.583333333332,12111.416666666668,417699]
[null,null,null,null,5,22,"2015-05-29",310,366.46153846153851,-56.46153846153851,31130,24616.583333333332,6513.4166666666679,415373]
[null,null,null,null,6,23,"2015-06-05",420,375.69230769230774,44.307692307692264,36906,24616.583333333332,12289.416666666668,413997]
[null,null,null,null,6,24,"2015-06-12",386,375.69230769230774,10.307692307692264,33376,24616.583333333332,8759.4166666666679,409295]
[null,null,null,null,6,25,"2015-06-19",360,375.69230769230774,-15.692307692307736,32486,24616.583333333332,7869.4166666666679,411895]
[null,null,null,null,6,26,"2015-06-26",326,375.69230769230774,-49.692307692307736,29977,24616.583333333332,5360.4166666666679,410227]
[null,null,null,null,7,27,"2015-07-03",411,399,12,36134,24616.583333333332,11517.416666666668,410732]
[null,null,null,null,7,28,"2015-07-10",407,399,8,37423,24616.583333333332,12806.416666666668,412411]
[null,null,null,null,7,29,"2015-07-17",375,399,-24,31212,24616.583333333332,6595.4166666666679,410741]
[null,null,null,null,7,30,"2015-07-24",364,399,-35,33570,24616.583333333332,8953.4166666666679,410914]
[null,null,null,null,7,31,"2015-07-31",332,399,-67,34687,24616.583333333332,10070.416666666668,407155]
[null,null,null,null,8,32,"2015-08-07",464,374.53846153846155,89.461538461538453,37802,24616.583333333332,13185.416666666668,411431]
[null,null,null,null,8,33,"2015-08-14",365,374.53846153846155,-9.5384615384615472,31768,24616.583333333332,7151.4166666666679,406471]
[null,null,null,null,8,34,"2015-08-21",365,374.53846153846155,-9.5384615384615472,32673,24616.583333333332,8056.4166666666679,408014]
[null,null,null,null,8,35,"2015-08-28",345,374.53846153846155,-29.538461538461547,34351,24616.583333333332,9734.4166666666679,405459]
[null,null,null,null,9,36,"2015-09-04",430,385.38461538461542,44.615384615384585,37845,24616.583333333332,13228.416666666668,409928]
[null,null,null,null,9,37,"2015-09-11",342,385.38461538461542,-43.384615384615415,31304,24616.583333333332,6687.4166666666679,408746]
[null,null,null,null,9,38,"2015-09-18",364,385.38461538461542,-21.384615384615415,34828,24616.583333333332,10211.416666666668,413597]
[null,null,null,null,9,39,"2015-09-25",354,385.38461538461542,-31.384615384615415,33396,24616.583333333332,8779.4166666666679,410859]
[null,null,null,null,10,40,"2015-10-02",447,439.3501829201594,7.6498170798406022,38790,24616.583333333332,14173.416666666668,412226]
[null,null,null,null,10,41,"2015-10-09",391,439.3501829201594,-48.350182920159398,34583,24616.583333333332,9966.4166666666679,415597]
[null,null,null,null,10,42,"2015-10-16",372,439.3501829201594,-67.350182920159398,33955,24616.583333333332,9338.4166666666679,415982]
[null,null,null,null,10,43,"2015-10-23",371,439.3501829201594,-68.350182920159398,36071,24616.583333333332,11454.416666666668,417366]
[null,null,null,null,10,44,"2015-10-30",380,439.3501829201594,-59.350182920159398,34736,24616.583333333332,10119.416666666668,414300]
[null,null,null,null,11,45,"2015-11-06",408,400.4285236863804,7.5714763136195984,34410,24616.583333333332,9793.4166666666679,416942]
[null,null,null,null,11,46,"2015-11-13",355,400.4285236863804,-45.428523686380402,35299,24616.583333333332,10682.416666666668,419568]
[null,null,null,null,11,47,"2015-11-20",377,400.4285236863804,-23.428523686380402,32229,24616.583333333332,7612.4166666666679,417446]
[null,null,null,null,11,48,"2015-11-27",316,400.4285236863804,-84.428523686380402,30868,24616.583333333332,6251.4166666666679,410469]
[null,null,null,null,12,49,"2015-12-04",448,455.53386787330322,-7.5338678733032225,39356,24616.583333333332,14739.416666666668,418521]
[null,null,null,null,12,50,"2015-12-11",332,455.53386787330322,-123.53386787330322,28686,24616.583333333332,4069.4166666666679,412379]
[null,null,null,null,12,51,"2015-12-18",392,455.53386787330322,-63.533867873303222,33388,24616.583333333332,8771.4166666666679,412371]
[null,null,null,null,12,52,"2015-12-25",323,455.53386787330322,-132.53386787330322,29911,24616.583333333332,5294.4166666666679,403492]
[null,null,null,null,null,null,{"$f":"G73+7","v":"2016-01-01"},null,null,null,34173,null,null,403082]
[null,null,null,null,null,null,{"$f":"G74+7","v":"2016-01-08"},null,null,null,34173,null,null,403300]
[null,null,null,null,null,null,{"$f":"G75+7","v":"2016-01-15"},null,null,null,31963,null,null,399192]
[null,null,null,null,null,null,{"$f":"G76+7","v":"2016-01-22"},null,null,null,33280,null,null,397736]
[null,null,null,null,null,null,"2016-01-29",null,null,null,28582,null,null,391908]
[null,null,null,null,null,null,"2016-02-05",null,null,null,34114,null,null,390723]
[null,null,null,null,null,null,"2016-02-12",null,null,null,32920,null,null,391414]
[null,null,null,null,null,null,"2016-02-19",null,null,null,26475,null,null,387021]
[null,null,null,null,null,null,"2016-02-26",null,null,null,30158,null,null,377823]
[null,null,null,null,null,null,"2016-03-04",null,null,null,34939,null,null,384076]
[null,null,null,null,null,null,"2016-03-11",null,null,null,30697,null,null,381385]
[null,null,null,null,null,null,"2016-03-18",null,null,null,27534,null,null,379008]
[null,null,null,null,null,null,"2016-03-25",null,null,null,27285,null,null,372120]
[null,null,null,null,null,null,"2016-04-01",null,null,null,31180,null,null,369127]
[null,null,null,null,null,null,"2016-04-08",null,null,null,29656,null,null,366820]
[null,null,null,null,null,null,"2016-04-15",null,null,null,26245,null,null,359785]
[null,null,null,null,null,null,"2016-04-22",null,null,null,30117,null,null,361320]
[null,null,null,null,null,null,"2016-04-29",null,null,null,27792,null,null,354998]
[null,null,null,null,null,null,"2016-05-06",null,null,null,28190,null,null,350268]
[null,null,null,null,null,null,"2016-05-13",null,null,null,31385,null,null,355178]
[null,null,null,null,null,null,"2016-05-20",null,null,null,27955,null,null,352975]
[null,null,null,null,null,null,"2016-05-27",null,null,null,30948,null,null,348984]
[null,null,null,null,null,null,"2016-06-03",null,null,null,24244,null,null,342531]
[null,null,null,null,null,null,"2016-06-10",null,null,null,29665,null,null,344662]
[null,null,null,null,null,null,"2016-06-17",null,null,null,27200,null,null,{"$f":"IF(K98=0,\"\",SUM(K87:K98))","v":344577}]
[null,null,null,null,null,null,"2016-06-24",null,null,null,31255,null,null,344652]
[null,null,null,null,null,null,"2016-07-01",null,null,null,28041,null,null,343037]
[null,null,null,null,null,null,"2016-07-08",null,null,null,23826,null,null,340618]
[null,null,null,null,null,null,"2016-07-15",null,null,null,29258,null,null,339759]
[null,null,null,null,null,null,"2016-07-22",null,null,null,29996,null,null,341963]
[null,null,null,null,null,null,"2016-07-29",null,null,null,21884,null,null,335657]
[null,null,null,null,null,null,"2016-08-05",null,null,null,29694,null,null,333966]
[null,null,null,null,null,null,"2016-08-12",null,null,null,24307,null,null,330318]
[null,null,null,null,null,null,"2016-08-19",null,null,null,24945,null,null,324315]
[null,null,null,null,null,null,"2016-08-26",null,null,null,25934,null,null,326005]
[null,null,null,null,null,null,"2016-09-02",null,null,null,23801,null,null,320141]
[null,null,null,null,null,null,"2016-09-09",null,null,null,20380,null,null,313321]
[null,null,null,null,null,null,"2016-09-16",null,null,null,26871,null,null,308937]
[null,null,null,null,null,null,"2016-09-23",null,null,null,23475,null,null,304371]
[null,null,null,null,null,null,"2016-09-30",null,null,null,23852,null,null,304397]
[null,null,null,null,null,null,"2016-10-07",null,null,null,25220,null,null,300359]
[null,null,null,null,null,null,"2016-10-14",null,null,null,25227,null,null,295590]
[null,null,null,null,null,null,"2016-10-21",null,null,null,24009,null,null,297715]
[null,null,null,null,null,null,"2016-10-28",null,null,null,23462,null,null,291483]
[null,null,null,null,null,null,"2016-11-04",null,null,null,25480,null,null,292656]
[null,null,null,null,null,null,"2016-11-11",null,null,null,23227,null,null,290938]
[null,null,null,null,null,null,"2016-11-18",null,null,null,23462,null,null,288466]
[null,null,null,null,null,null,"2016-11-25",null,null,null,22941,null,null,287606]
[null,null,null,null,null,null,"2016-12-02",null,null,null,23260,null,null,290486]
[null,null,null,null,null,null,"2016-12-09",null,null,null,22993,null,null,286608]
[null,null,null,null,null,null,"2016-12-16",null,null,null,22886,null,null,286019]
[null,null,null,null,null,null,"2016-12-23",null,null,null,25208,null,null,287375]
[null,null,null,null,null,null,"2016-12-30",null,null,null,20728,null,null,282883]
[null,null,null,null,null,null,"2017-01-06",null,null,null,{"$f":"'Fentora Tracker'!K22","v":20084},null,null,277740]
[null,null,null,null,null,null,"2017-01-13",null,null,null,{"$f":"'Fentora Tracker'!K23","v":20862},null,null,274593]
[null,null,null,null,null,null,"2017-01-20",null,null,null,{"$f":"'Fentora Tracker'!K24","v":0},null,null,""]
[null,null,null,null,null,null,"2017-01-27",null,null,null,{"$f":"'Fentora Tracker'!K25","v":0},null,null,""]
[null,null,null,null,null,null,"2017-02-03",null,null,null,{"$f":"'Fentora Tracker'!K26","v":0},null,null,""]
[null,null,null,null,null,null,"2017-02-10",null,null,null,{"$f":"'Fentora Tracker'!K27","v":0},null,null,""]
[null,null,null,null,null,null,"2017-02-17",null,null,null,{"$f":"'Fentora Tracker'!K28","v":0},null,null,""]
[null,null,null,null,null,null,"2017-02-24",null,null,null,{"$f":"'Fentora Tracker'!K29","v":0},null,null,""]
[null,null,null,null,null,null,"2017-03-03",null,null,null,{"$f":"'Fentora Tracker'!K30","v":0},null,null,""]
[null,null,null,null,null,null,"2017-03-10",null,null,null,{"$f":"'Fentora Tracker'!K31","v":0},null,null,""]
[null,null,null,null,null,null,"2017-03-17",null,null,null,{"$f":"'Fentora Tracker'!K32","v":0},null,null,""]
[null,null,null,null,null,null,"2017-03-24",null,null,null,{"$f":"'Fentora Tracker'!K33","v":0},null,null,""]
[null,null,null,null,null,null,"2017-03-31",null,null,null,{"$f":"'Fentora Tracker'!K34","v":0},null,null,""]
[null,null,null,null,null,null,"2017-04-07",null,null,null,{"$f":"'Fentora Tracker'!K35","v":0},null,null,""]
[null,null,null,null,null,null,{"$f":"G140+7","v":"2017-04-14"},null,null,null,{"$f":"'Fentora Tracker'!K36","v":0},null,null,""]
[null,null,null,null,null,null,"2017-04-21",null,null,null,{"$f":"'Fentora Tracker'!K37","v":0},null,null,""]
[null,null,null,null,null,null,"2017-04-28",null,null,null,{"$f":"'Fentora Tracker'!K38","v":0},null,null,""]
[null,null,null,null,null,null,"2017-05-05",null,null,null,{"$f":"'Fentora Tracker'!K39","v":0},null,null,""]
[null,null,null,null,null,null,"2017-05-12",null,null,null,{"$f":"'Fentora Tracker'!K40","v":0},null,null,""]
[null,null,null,null,null,null,"2017-05-19",null,null,null,{"$f":"'Fentora Tracker'!K41","v":0},null,null,""]
[null,null,null,null,null,null,"2017-05-26",null,null,null,{"$f":"'Fentora Tracker'!K42","v":0},null,null,""]
[null,null,null,null,null,null,"2017-06-02",null,null,null,{"$f":"'Fentora Tracker'!K43","v":0},null,null,""]
[null,null,null,null,null,null,"2017-06-09",null,null,null,{"$f":"'Fentora Tracker'!K44","v":0},null,null,""]
[null,null,null,null,null,null,"2017-06-16",null,null,null,{"$f":"'Fentora Tracker'!K45","v":0},null,null,""]
[null,null,null,null,null,null,"2017-06-23",null,null,null,{"$f":"'Fentora Tracker'!K46","v":0},null,null,""]
[null,null,null,null,null,null,"2017-06-30",null,null,null,{"$f":"'Fentora Tracker'!K47","v":0},null,null,""]
[null,null,null,null,null,null,"2017-07-07",null,null,null,{"$f":"'Fentora Tracker'!K48","v":0},null,null,""]
[null,null,null,null,null,null,"2017-07-14",null,null,null,{"$f":"'Fentora Tracker'!K49","v":0},null,null,""]
[null,null,null,null,null,null,"2017-07-21",null,null,null,{"$f":"'Fentora Tracker'!K50","v":0},null,null,""]
[null,null,null,null,null,null,"2017-07-28",null,null,null,{"$f":"'Fentora Tracker'!K51","v":0},null,null,""]
[null,null,null,null,null,null,"2017-08-04",null,null,null,{"$f":"'Fentora Tracker'!K52","v":0},null,null,""]
[null,null,null,null,null,null,"2017-08-11",null,null,null,{"$f":"'Fentora Tracker'!K53","v":0},null,null,""]
[null,null,null,null,null,null,"2017-08-18",null,null,null,{"$f":"'Fentora Tracker'!K54","v":0},null,null,""]
[null,null,null,null,null,null,"2017-08-25",null,null,null,{"$f":"'Fentora Tracker'!K55","v":0},null,null,""]
[null,null,null,null,null,null,"2017-09-01",null,null,null,{"$f":"'Fentora Tracker'!K56","v":0},null,null,""]
[null,null,null,null,null,null,"2017-09-08",null,null,null,{"$f":"'Fentora Tracker'!K57","v":0},null,null,{"$f":"IF(K162=0,\"\",SUM(K151:K162))","v":""}]
[null,null,null,null,null,null,"2017-09-15",null,null,null,{"$f":"'Fentora Tracker'!K58","v":0},null,null,""]
[null,null,null,null,null,null,"2017-09-22",null,null,null,{"$f":"'Fentora Tracker'!K59","v":0},null,null,""]
[null,null,null,null,null,null,"2017-09-29",null,null,null,{"$f":"'Fentora Tracker'!K60","v":0},null,null,""]
[null,null,null,null,null,null,"2017-10-06",null,null,null,{"$f":"'Fentora Tracker'!K61","v":0},null,null,""]
[null,null,null,null,null,null,"2017-10-13",null,null,null,{"$f":"'Fentora Tracker'!K62","v":0},null,null,""]
[null,null,null,null,null,null,"2017-10-20",null,null,null,{"$f":"'Fentora Tracker'!K63","v":0},null,null,""]
[null,null,null,null,null,null,"2017-10-27",null,null,null,{"$f":"'Fentora Tracker'!K64","v":0},null,null,""]
[null,null,null,null,null,null,"2017-11-03",null,null,null,{"$f":"'Fentora Tracker'!K65","v":0},null,null,""]
[null,null,null,null,null,null,"2017-11-10",null,null,null,{"$f":"'Fentora Tracker'!K66","v":0},null,null,""]
[null,null,null,null,null,null,"2017-11-17",null,null,null,{"$f":"'Fentora Tracker'!K67","v":0},null,null,""]
[null,null,null,null,null,null,"2017-11-24",null,null,null,{"$f":"'Fentora Tracker'!K68","v":0},null,null,""]
[null,null,null,null,null,null,"2017-12-01",null,null,null,{"$f":"'Fentora Tracker'!K69","v":0},null,null,""]
[null,null,null,null,null,null,"2017-12-08",null,null,null,{"$f":"'Fentora Tracker'!K70","v":0},null,null,""]
[null,null,null,null,null,null,"2017-12-15",null,null,null,{"$f":"'Fentora Tracker'!K71","v":0},null,null,""]
[null,null,null,null,null,null,"2017-12-22",null,null,null,{"$f":"'Fentora Tracker'!K72","v":0},null,null,""]
[null,null,null,null,null,null,"2017-12-29",null,null,null,{"$f":"'Fentora Tracker'!K73","v":0},null,null,""]

{"sheet":"Zecuity Weekly Forecast","index":8,"n_rows":74,"n_cols":20,"rows_kept":74,"cut":false,"hidden":true,"merged":[]}
[]
[null,"Q2V2 Added 05/30/2016",null,null,null,null,null,null,null,null,null,null,null,null,null,4.45]
["Week Ending","Revised Forecast for Field Sales","TRx Volume (IMS NPA)","Q1V2 Forecast","Variance vs. Forecast","TRx Volume (SP Reported)","Variance vs. Forecast","PSRs Received","Cumulative PSRs","Gross Sales Forecast (Q3V2)","Gross Sales Forecast (Q4V2)"]
[{"$f":"A5-7","v":"2015-09-04"},1,0,null,-1,1,0,258,258,0,1156,null,null,"Jan",1413,{"$f":"P2/2","v":2.2250000000000001},{"$f":"O4/$P$2","v":317.52808988764042},null,1,{"$f":"cubic_spline($P$4:$P$15,$Q$4:$Q$15,S4)","v":224.53792240472811}]
["2015-09-11",1,0,null,-1,1,0,295,553,0,1156,null,null,"Feb",2590.402544010597,{"$f":"P4+$P$2","v":6.6750000000000007},{"$f":"O5/$P$2","v":582.11293123833639},null,2,{"$f":"cubic_spline($P$4:$P$15,$Q$4:$Q$15,S5)","v":300.15496317014077}]
["2015-09-18",19,26,null,7,19,0,640,1193,0,21964,null,null,"Mar",3453.8700586807963,{"$f":"P5+$P$2","v":11.125},776.15057498444855,null,3,376.98562960463192]
["2015-09-25",56,70,null,13,56,-1,468,1661,0,65892,null,null,"Apr",7693.1289606016817,15.574999999999999,1728.7930248543105,null,4,449.63601230061118]
["2015-10-02",82,108,null,25,82,-1,283,1944,880252.43803735252,95948,null,null,"May",10275.263424575369,20.024999999999999,2309.0479605787345,null,5,512.71225525624993]
["2015-10-09",125,137,null,4,125,-8,308,2252,993517.73201487912,153748,null,null,"Jun",11829.504950981729,24.474999999999998,2658.3157193217367,null,6,560.8204261757744]
["2015-10-16",164,145,null,-26,164,-7,834,3086,1106812.6582218937,197676,null,null,"Jul",13815.480234723185,28.924999999999997,3104.6022999377942,null,7,588.72431817783252]
["2015-10-23",164,141,null,-8,164,15,399,3485,1219957.8785717525,172244,null,null,"Aug",15941.60544943869,33.375,3582.383247064874,null,8,601.24202590095729]
["2015-10-30",114,130,null,1,114,-15,292,3777,1332774.3372043734,149124,null,null,"Sep",18067.730664154191,37.825000000000003,4060.1641941919529,null,9,619.12691847639803]
["2015-11-06",203,128,null,-72,203,3,437,4214,1445082.890063874,231200,null,null,"Oct",20193.855878869694,42.275000000000006,4537.9451413190318,null,10,664.54502935575147]
["2015-11-13",269,148,null,-217,269,-96,823,null,1556709.3783246505,421940,null,null,"Nov",22319.981093585197,46.725000000000009,5015.7260884461111,null,11,759.66244283071205]
["2015-11-20",259,175,null,-355,259,-271,570,null,1667592.2361809851,612680,null,null,"Dec",24446.106308300699,51.175000000000011,5493.5070355731905,null,12,921.17627608989403]
["2015-11-27",204,151,null,-544,204,-491,340,null,1777780.8477982094,803420,null,null,null,null,null,null,null,13,1133.847210598193]
["2015-12-04",264,292,null,-568,264,-596,421,null,1887329.4814192071,994160,null,null,null,null,null,null,null,14,1370.8762487704514]
["2015-12-11",278.57142857142856,245,null,null,284,-741,748,null,1996292.3530072076,1184900,null,null,null,null,null,null,null,15,1605.4484644598276]
["2015-12-18",300.27472527472526,275,null,null,null,null,0,null,2104706.7766328128,1375640,null,null,null,null,null,null,null,16,1811.1954901382812]
[{"$f":"A21-7","v":"2015-12-25"},321.97802197802196,207,null,null,null,null,null,null,2212570.4124697843,1566380,null,null,null,null,null,null,null,17,1976.7948173059233]
["2016-01-01",381.0520366996073,263,{"$f":"C21","v":263},null,null,null,null,null,2319874.6838637013,1716300.4348188648,null,null,null,null,null,null,null,18,2109.2270677075439]
[{"$f":"A21+7","v":"2016-01-08"},334,262,{"$f":"C22","v":262},null,null,null,null,null,2426611.0845840727,2149668.5879832203,null,null,null,null,null,null,null,19,2216.5788693990066]
["2016-01-15",341,246,246,null,null,null,null,null,2532772.8931278065,2490085.1761703882,null,null,null,null,null,null,null,20,2306.9367354797082]
["2016-01-22",293,316,316,null,null,null,null,null,2638364.252897888,2695911.9879550473,null,null,null,null,null,null,null,21,2387.7707395302937]
["2016-01-29",291,326,326,null,null,null,null,null,2743393.3333322499,2800884.8500486687,null,null,null,null,null,null,null,22,2463.8937229471621]
["2016-02-05",386,305,{"$f":"T9","v":560.8204261757744},null,null,null,null,null,2847868.3369977986,2849783.6389472084,null,null,null,null,null,null,null,23,2539.4018770216244]
["2016-02-12",425,338,{"$f":"T10","v":588.72431817783252},null,null,null,null,null,2951797.6883972711,2887388.1141241579,null,null,null,null,null,null,null,24,2618.3917848800506]
["2016-02-19",422,447,601.24202590095729,null,null,null,null,null,3055186.8840842545,2952769.3125761673,null,null,null,null,null,null,null,25,2704.8096245858205]
["2016-02-26",491,400,619.12691847639803,null,null,null,null,null,3158039.9088873728,3048407.7415455352,null,null,null,null,null,null,null,26,2799.5171488191286]
["2016-03-04",524,0,664.54502935575147,null,null,null,null,null,3260360.5319496007,3162345.9673855742,null,null,null,null,null,null,null,27,2900.4863252902928]
["2016-03-11",404,0,759.66244283071205,null,null,null,null,null,3362152.2293502339,3282591.0890106191,null,null,null,null,null,null,null,28,3005.5785102699247]
["2016-03-18",556,0,921.17627608989403,null,null,null,null,null,3463419.2643227847,3397496.7446760996,null,null,null,null,null,null,null,29,3112.6544884012287]
["2016-03-25",479,0,1133.847210598193,null,null,null,null,null,3564165.8808435779,3502846.7359454348,null,null,null,null,null,null,null,30,3220.0171822212969]
["2016-04-01",462,0,1370.8762487704514,null,null,null,null,null,3664397.3315026448,3601571.5672913482,null,null,null,null,null,null,null,31,3327.3832991660906]
["2016-04-08",574,0,1605.4484644598276,null,null,null,null,null,3764118.3662166595,3696890.4196265852,null,null,null,null,null,null,null,32,3434.7514337203861]
["2016-04-15",512,0,1811.1954901382812,null,null,null,null,null,3863333.7344856653,3792018.2532333881,null,null,null,null,null,null,null,33,3542.1201498508303]
["2016-04-22",490,0,1976.7948173059233,null,null,null,null,null,3962047.8383908002,3889056.4757552836,null,null,null,null,null,null,null,34,3649.488264485974]
["2016-04-29",406,0,2109.2270677075439,null,null,null,null,null,4060264.7966155731,3987516.2875707853,null,null,null,null,null,null,null,35,3756.8552643260355]
["2016-05-06",405,0,2216.5788693990066,null,null,null,null,null,4157989.5672827056,4086540.4924543635,null,null,null,null,null,null,null,36,3864.2214308512362]
["2016-05-13",471,0,2306.9367354797082,null,null,null,null,null,4255226.2053560559,4185272.4319769647,null,null,null,null,null,null,null,37,3971.5873220875928]
["2016-05-20",1035.5654106732241,0,2387.7707395302937,null,null,null,null,null,4351979.0782438098,4282968.803109928,null,null,null,null,null,null,null,38,4078.9532445461468]
["2016-05-27",1076.8172832150874,0,2463.8937229471621,null,null,null,null,null,4448252.5632683625,4379593.4752776576,null,null,null,null,null,null,null,39,4186.3195672076226]
["2016-06-03",1085.4754013181675,0,2539.4018770216244,null,null,null,null,null,4544051.3505717758,4475380.4758921321,null,null,null,null,null,null,null,40,4293.6858829891435]
["2016-06-10",1078.6017248064984,0,2618.3917848800506,null,null,null,null,null,4639379.9695757208,4570565.7472134084,null,null,null,null,null,null,null,41,4401.0525860052221]
["2016-06-17",1073.2354462234962,0,2704.8096245858205,null,null,null,null,null,4734242.3965964187,4665377.1104043815,null,null,null,null,null,null,null,42,4508.4193074308832]
["2016-06-24",1080.5771020706059,0,2799.5171488191286,null,null,null,null,null,4828643.3522143103,4759897.6513909157,null,null,null,null,null,null,null,43,4615.7859251425662]
["2016-07-01",1098.2393636228967,0,2900.4863252902928,null,null,null,null,null,4922586.5395148937,4854075.4341747994,null,null,null,null,null,null,null,44,4723.1525196212551]
["2016-07-08",1121.9060343737831,0,3005.5785102699247,null,null,null,null,null,5016076.2171095386,4947852.3155449592,null,null,null,null,null,null,null,45,4830.5190654069111]
["2016-07-15",1147.2608784161755,0,3112.6544884012287,null,null,null,null,null,5109116.5874512857,5041171.191192219,null,null,null,null,null,null,null,46,4937.8855144745567]
["2016-07-22",1170.4584826999749,0,3220.0171822212969,null,null,null,null,null,5201712.2428507619,5133995.8024343699,null,null,null,null,null,null,null,47,5045.251879774406]
["2016-07-29",1190.5786068688899,0,3327.3832991660906,null,null,null,null,null,5293868.1476750048,5226341.6515441611,null,null,null,null,null,null,null,48,5152.6184463173431]
["2016-08-05",1207.8225541905906,0,3434.7514337203861,null,null,null,null,null,5385588.9820218012,5318229.1640690137,null,null,null,null,null,null,null,49,5259.9847592729375]
["2016-08-12",1222.3940896841543,0,3542.1201498508303,null,null,null,null,null,5476879.5345393391,5409679.947263632,null,null,null,null,null,null,null,50,5367.3514319680962]
["2016-08-19",1234.576433385849,0,3649.488264485974,null,null,null,null,null,5567742.8571844343,5500712.5206776559,null,null,null,null,null,null,null,51,5474.7177959914443]
["2016-08-26",1246.2843147499032,0,3756.8552643260355,null,null,null,null,null,5658181.0013310891,5591330.7386033973,null,null,null,null,null,null,null,52,5582.084281564421]
["2016-09-02",1260.9610323948978,0,3864.2214308512362,null,null,null,null,null,5748196.7559820581,5681532.0788165154,null,null,null,null,null,null,null,53,5689.4507085569048]
["2016-09-09",1282.1087712029914,0,3971.5873220875928,null,null,null,null,null,5837791.8819579072,5771314.1976582622]
["2016-09-16",1313.2202534226183,0,4078.9532445461468,null,null,null,null,null,5926970.699525075,5860675.0001363661]
["2016-09-23",1355.6246230468903,0,4186.3195672076226,null,null,null,null,null,6015744.4835736128,5949621.0749124978]
["2016-09-30",1405.7569339656741,0,4293.6858829891435,null,null,null,null,null,6104125.1673823204,6038163.7160594426]
["2016-10-07",1459.3786524671109,0,4401.0525860052221,null,null,null,null,null,6192124.0845191432,6126316.4760629814]
["2016-10-14",1512.2515262636109,0,4508.4193074308832,null,null,null,null,null,6279748.4928650195,6214091.9254175937]
["2016-10-21",1560.7007119064185,0,4615.7859251425662,null,null,null,null,null,6366983.705521916,6301491.8485416323]
["2016-10-28",1604.4450187587645,0,4723.1525196212551,null,null,null,null,null,6453804.3099790215,6388494.9659912214]
["2016-11-04",1644.4673754556843,0,4830.5190654069111,null,null,null,null,null,6540186.6420935849,6475076.6749643907]
["2016-11-11",1681.7529072677798,0,4937.8855144745567,null,null,null,null,null,6626109.5868380191,6561212.531429654]
["2016-11-18",1717.2692492178205,0,5045.251879774406,null,null,null,null,null,6711620.8721964518,6646892.7259693751]
["2016-11-25",1751.6404987740002,0,5152.6184463173431,null,null,null,null,null,6796826.8256665897,6732194.7966391882]
["2016-12-02",1785.1765890280553,0,5259.9847592729375,null,null,null,null,null,6881837.7256858181,6817228.4384932807]
[{"$f":"A69+7","v":"2016-12-09"},1818.1765645889116,0,5367.3514319680962,null,null,null,null,null,6966762.580651423,6902102.9780251561]
["2016-12-16",1850.9389893624084,0,{"$f":"T54","v":5474.7177959914443},null,null,null,null,null,7051710.9634567965,6986927.6005723858]
["2016-12-23",1883.7626715102579,0,5582.084281564421,null,null,null,null,null,7136792.4470143365,7071811.9148763623]
["2016-12-30",1916.9463429528855,0,5689.4507085569048,null,null,null,null,null,7222116.6041617701,7156865.3885225477]
[null,null,null,{"$f":"SUM(D21:D73)","v":152105.36382559111}]

{"sheet":"NUVIGIL Goals","index":9,"n_rows":57,"n_cols":5,"rows_kept":57,"cut":false,"hidden":true,"merged":[]}
[]
[]
[]
[null,null,null,"LBE Goals Nuvigil","AOP Goals Nuvigil"]
[null,1,"2017-01-06",{"$f":"+E5","v":1356.9432446168398},1356.9432446168398]
[null,2,{"$f":"+C5+7","v":"2017-01-13"},{"$f":"+E6","v":1273.379145563561},1273.379145563561]
[null,3,{"$f":"+C6+7","v":"2017-01-20"},1189.1328584208741,1189.1328584208741]
[null,4,"2017-01-27",1108.2982248951218,1108.2982248951218]
[null,5,"2017-02-03",1034.9691477278025,1034.9691477278025]
[null,6,"2017-02-10",973.23952966041384,973.23952966041384]
[null,7,"2017-02-17",926.99696370428762,926.99696370428762]
[null,8,"2017-02-24",895.38576107511642,895.38576107511642]
[null,9,"2017-03-03",872.80673317445644,872.80673317445644]
[null,10,"2017-03-10",853.45463038191008,853.45463038191008]
[null,11,"2017-03-17",831.5321399661151,831.5321399661151]
[null,12,"2017-03-24",803.9512263274288,803.9512263274288]
[null,13,"2017-03-31",774.26502885615173,774.26502885615173]
[null,14,"2017-04-07",747.02539380422115,747.02539380422115]
[null,15,"2017-04-14",726.78432488082854,726.78432488082854]
[null,16,"2017-04-21",717.33273292391732,717.33273292391732]
[null,17,"2017-04-28",717.40208573309155,717.40208573309155]
[null,18,"2017-05-05",723.66029029392166,723.66029029392166]
[null,19,"2017-05-12",732.76890499152762,732.76890499152762]
[null,20,"2017-05-19",741.44823633059139,741.44823633059139]
[null,21,"2017-05-26",747.76582755664424,747.76582755664424]
[null,22,"2017-06-02",751.13649120545006,751.13649120545006]
[null,23,"2017-06-09",751.03359032102708,751.03359032102708]
[null,24,"2017-06-16",746.93301078335685,746.93301078335685]
[null,25,"2017-06-23",739.14961273222616,739.14961273222616]
[null,26,"2017-06-30",730.05480911253073,730.05480911253073]
[null,27,"2017-07-07",722.32945660729467,722.32945660729467]
[null,28,"2017-07-14",718.65430260601306,718.65430260601306]
[null,29,"2017-07-21",721.17603869169318,721.17603869169318]
[null,30,"2017-07-28",728.49093944485844,728.49093944485844]
[null,31,"2017-08-04",737.74668711038362,737.74668711038362]
[null,32,"2017-08-11",746.08695359699209,746.08695359699209]
[null,33,"2017-08-18",750.76243625190023,750.76243625190023]
[null,34,"2017-08-25",751.48843590229114,751.48843590229114]
[null,35,"2017-09-01",750.44477104106898,750.44477104106898]
[null,36,"2017-09-08",749.91842129790928,749.91842129790928]
[null,37,"2017-09-15",752.19215849766636,752.19215849766636]
[null,38,"2017-09-22",758.16722276856683,758.16722276856683]
[null,39,"2017-09-29",765.35727836974672,765.35727836974672]
[null,40,"2017-10-06",770.76694751196214,770.76694751196214]
[null,41,"2017-10-13",771.40059386139399,771.40059386139399]
[null,42,"2017-10-20",764.97014912151383,764.97014912151383]
[null,43,"2017-10-27",753.89060135033253,753.89060135033253]
[null,44,"2017-11-03",742.49547693892885,742.49547693892885]
[null,45,"2017-11-10",735.12386311582941,735.12386311582941]
[null,46,"2017-11-17",735.97389211079951,735.97389211079951]
[null,47,"2017-11-24",745.99974723590549,745.99974723590549]
[null,48,"2017-12-01",762.91205162345091,762.91205162345091]
[null,49,"2017-12-08",784.28022370799545,784.28022370799545]
[null,50,"2017-12-15",807.67375677122868,807.67375677122868]
[null,51,"2017-12-22",830.66217290205145,830.66217290205145]
[null,52,"2017-12-29",850.81497269768033,850.81497269768033]
[null,null,null,{"$f":"SUM(D5:D56)","v":42176.62949617485},{"$f":"SUM(E5:E56)","v":42176.62949617485}]